Workbook

Sheet data
J1: No of test cases | K1: 50
B2: Tax rates
B3: Lower Savings Rate | C3: Lsave_rate | D3: 0.2
B4: Basic Rate | C4: BR_rate | D4: 0.2
B5: Lower Dividend Rate | C5: DivBR_rate | D5: 0.0875 | G5: Capacity type | H5: 3
B6: Dividend rate for trusts | C6: Hdiv_rate | D6: 0.3935 | G6: personal representatives | H6: =Capacity_type=1 -> FALSE
B7: Rate Applicable to trusts (RAT) | C7: Trust_rate | D7: 0.45 | G7: RAT rate applies | H7: =Capacity_type=3 -> TRUE
B8: Coronavirus support payments incorrectly claimed Charge rate | C8: Charge_rate | D8: 1 | G8: UUT | H8: =Capacity_type=2 -> FALSE
G9: other trustee | H9: =Capacity_type=4 -> FALSE
B10: Capital Gains Trust Rates bands
B11: Capital Gains Higher Rate | C11: Higher_rate_CGT | D11: 0.2 | F11: Q1Q3 | G11: FALSE
B12: Capital Gains Higher rate Residential Property & Carried Interest | C12: upper_CGT_rate_RP_CI | D12: 0.28 | F12: Q4Q5 | G12: FALSE
B13: Capital Gains at Business Asset Disposal Relief Rate | C13: BADR-rate-CGT | D13: 0.1 | F13: Q23 | G13: FALSE
F14: Q6 | G14: FALSE
B15: Capital Gains Trust's Tax-Free allowance (Annual Exempt amount)
B16: Tax-free allowance | D16: 6150
B17: Tax free allowance if the beneficiary is vulnerable | D17: 12300
B20: Dates
B21: Tax year start | C21: Tax_year_start | D21: 2022 | E21: 22
B22: Tax year end | C22: Tax_year_end | D22: 2023 | E22: 23
B23: BCD year | C23: BCD_year | D23: 2024 | E23: 24
B25: Tax Year | C25: Tax_year | D25: =Tax_year_start&"-"&E22 -> 2022-23
B26: Next tax year | C26: next_year | D26: 2023-24
B28: Rates used to calculate Pension Payment Charges
B29: Unauthorised payments - overseas surcharge | C29: Overseas_surcharge | D29: 0.25
B30: Unauthorised payments - not subject to surcharge rate | C30: Pen_Upayts | D30: 0.4
B31: Unauthorised payments - subject to surcharge rate | C31: Upayts_surchage | D31: 0.55
B32: Short service refund - Lower Rate | C32: SSR_lower_rate | D32: 0.2
B33: Short service refund Lower Rate band | C33: SSR_lower_band | D33: 20000
B34: Short service refund charge Higher Rate | C34: SSR_higher_rate | D34: 0.5
B35: Special lump sum death benefit Rate | C35: SLSDB_rate | D35: 0.45
B37: MISC
B38: Divs grossed up | C38: 100/90 | D38: =100/90 -> 1.111111111 | F38: No longer used
B39: Payments on account limit | C39: POA_limit | D39: 1000
B40: Trust Standard rate band | C40: TSRB_band | D40: 1000
B42: Overview of tax calculation process
B44: There are four different trust types, the calculation describes these as Personal Representatives, RAT-rate, UUT and Other-trustee. Stage 1 of the calculation is used on all types. The calculation uses Question 8 from the Return to decide which stages to use thereafter dependant on the type, this can be either stage 2, 3 or 4 or 5. Stages 1, 6, 7 and 8 are generic and used in all four trust type calculations. Stage 3 (and sometimes stage 9) is used for RAT-type trusts only. Stage 2 is used only for personal representatives.
B50: If Box 8.2 = Y then
B51: Set Trust-type = personal representatives
B52: Else
B53: If Box 8.16 = Y then
B54: Set trust-type = RAT-rate
B55: Else
B56: If Box 8.4 = Y then
B57: Set trust-type = UUT
B58: Else
B59: Set trust-type = Other-trustee
B60: End if
B61: End if
B62: End if
B64: Calculate Stage 1
B66: Case Trust -type
B67: Personal-representatives | C67: Calculate stage 2
B68: RAT-rate | C68: Calculate stage 3 (sometimes stage 9)
B69: UUT | C69: Calculate stage 4
B70: Other-trustee | C70: Calculate stage 5
B71: End case
B73: Calculate stage 6
B74: Calculate stage 7 (may also process stage 9)
B75: Calculate stage 8

Sheet Changes Log
A1: ="Trust calculator "&Tax_year -> Trust calculator 2022-23 | C1: ="Trust calculator "&Tax_year -> Trust calculator 2022-23
A3: colour coding Key
A4: Roll forward annual changes OE | D4: Roll forward annual changes OE
A5: Qualifying Asset Holding companies (QAHC) | D5: Qualifying Asset Holding companies (QAHC)
A6: Changes to Income tax rates on Dividends | D6: Changes to Income tax rates on Dividends
A8: Changes | B8: V0.0.1
A9: Area of change | B9: Worksheet changed | C9: What was changed | D9: Notes
A10: v0.0.1 created | B10: None | C10: Trust_tester-2021-22- E v1.1.2 rolled forward
A11: Roll Forward | B11: Changes log | C11: Previous Year PY changes removed.
A12: Roll Forward | B12: All | C12: PY Project changes and highlighting removed
A13: Roll forward annual changes OE | B13: All | C13: Year roll forward items highlighted
A15: Changes | B15: V0.1.0
A16: Area of change | B16: Worksheet changed | C16: What was changed | D16: Notes
A17: Roll forward annual changes OE | B17: data | C17: rates updated for budget changes
A18: Changes to Income tax rates on Dividends | B18: data | C18: Lower Dividend rate - DivBR_rate changed from 7.5% changed to 8.75%
A19: Changes to Income tax rates on Dividends | B19: data | C19: Dividend rate for trusts - Hdiv_rate changed from 38.1% changed to 39.35%
A20: Changes to Income tax rates on Dividends | B20: Output | C20: Tax rate – Dividend type income changed from “x 38.1%" changed to “x 39.35%"
A21: Changes to Income tax rates on Dividends | B21: Output | C21: Tax rate – Dividend type income changed from “x 7.5%” changed to “x 8.75%”
A22: Changes to Income tax rates on Dividends | B22: T2 | C22: Calculate income tax due - line title changed from “Income taxable at 7.5%” changed to “Income taxable at 8.75%”
A23: Changes to Income tax rates on Dividends | B23: T2 | C23: T2.4 readable text changed from "T2.2 x DivBR_rate 7.5%" changed to "T2.2 x DivBR_rate 8.75%"
A24: Changes to Income tax rates on Dividends | B24: T3 | C24: T3.13 readable text changed from "T3.6 x 92.5/100 " changed to "T3.6 x 91.25/100"
A25: Changes to Income tax rates on Dividends | B25: T3 | C25: T3.18 readable text changed from "T3.15 x 100/92.5" changed to "T3.15 x 100/91.25"
A26: Changes to Income tax rates on Dividends | B26: T3 | C26: T3.29 title changed from “Income taxable at 38.1%” changed to “Income taxable at 39.35%”
A27: Changes to Income tax rates on Dividends | B27: T3 | C27: T3.29 readable text changed from "T3.25 x Hdiv_rate 38.1%" changed to "T3.25 x Hdiv_rate 39.35%"
A28: Changes to Income tax rates on Dividends | B28: T3 | C28: T3.31 title changed from “Income taxable at 7.5%” changed to “Income taxable at 8.75%”
A29: Changes to Income tax rates on Dividends | B29: T3 | C29: T3.31 readable text changed from "T3.31 x DivBR_rate 7.5%" changed to "T3.31 x DivBR_rate 8.75%"
A30: Changes to Income tax rates on Dividends | B30: T4 | C30: T4.10 readable text changed from "T4.9 x DivBR_rate 7.5%" changed to "T4.9 x DivBR_rate 8.75%"
A31: Changes to Income tax rates on Dividends | B31: T5 | C31: T5.17 readable text changed from "T5.16 x DivBR_rate 7.5%" changed to "T5.16 x DivBR_rate 8.75%"
A32: Changes to Income tax rates on Dividends | B32: T5 | C32: T5.20 readable text changed from "T5.19 x DivBR_rate 7.5%" changed to "T5.19 x DivBR_rate 8.75%"
A33: Changes to Income tax rates on Dividends | B33: T5 | C33: T5.22 readable text changed from "T5.21 x Hdiv_rate 38.1%" changed to "T5.21 x Hdiv_rate 39.35%"
A34: Changes to Income tax rates on Dividends | B34: T6 | C34: T6.6 readable text changed from if box 6.2 = N T6.6 = 0 (zero) else T6.6 = T6.5 x DivBR_rate 7.5%" changed to if box 6.2 = N T6.6 = 0 (zero) else T6.6 = T6.5 x DivBR_rate 8.75%"
A35: Changes to Income tax rates on Dividends | B35: T6 | C35: T6.8 readable text changed from "T6.7 x DivBR_rate 7.5%" changed to "T6.7 x DivBR_rate 8.75%"
A36: Changes to Income tax rates on Dividends | B36: T9 | C36: T9.9 readable text changed from "T9.8 x DivBR_rate 7.5%" changed to "T9.8 x DivBR_rate 8.75%"
A38: Changes | B38: V1.0.0
A39: Area of change | B39: Worksheet changed | C39: What was changed | D39: Notes
A40: Roll forward annual changes OE | B40: T7 | C40: T7.36 pdown rounding removed
A41: Roll forward annual changes OE | B41: T7 | C41: T7.36 formula changed from =TRUNC(T7.29+T7.31+T7.31F+T7.33+T7.35,2) changed to =T7.29+T7.31+T7.31F+T7.33+T7.35
A42: Qualifying Asset Holding companies (QAHC) | B42: Components | C42: New boxes QAHC/EIS 5.41EG, 5.41QG and 5.41QL created on components tab
A44: Changes | B44: V1.1.0
A45: Area of change | B45: Worksheet changed | C45: What was changed | D45: Notes
A46: Roll forward annual changes OE | B46: T4 | C46: T4.12 rounding changed from £down changed to pdown

Sheet Start
C2: ="Trust calculator for "&Tax_year -> Trust calculator for 2022-23 | O2: 1
C4: Version 1.0.0 - 29/07/2022
C6: Calculation type
C16: Additional Pages
C17: Q1 to Q3 | E17: Self-employment, Lloyds, Partnership, or Income from property
C19: Q4 to Q5 | E19: Foreign income or Capital Gains
C21: Q6 | E21: Non Residence
C23: Q23 | E23: Pension charges
C27: UTR or other identifier

Sheet Q1-Q3
B2: Trade | J2: Partnership
B4: Adjustments to arrive at taxable profit or loss | J4: trading or professional income
B7: ="Loss offset against other income for "&Tax_year -> Loss offset against other income for 2022-23 | G7: 1.85 | J7: Loss offset against other income | K7: 2.15
B9: Total taxable profits from this business | G9: 1.92 | J9: Total Taxable profits from this business | N9: 2.22
B11: Subcontractors in the construction industry
B14: Construction scheme deductions | D14: 1.97
B16: Tax taken off trading income | J16: investment income
B18: Other tax deducted | D18: 1.98 | J18: Share of losses on partnerships investments | N18: 2.24
B21: Lloyds | J21: Income from Property
B23: Income from Lloyds | J23: Furnished holiday lettings
B25: UK tax on savings | D25: 1L.8 | J25: Furnished Holiday Lettings Profit (1) | N25: 3.15(1)
B27: UK Dividends and credits | G27: 1L.14 | J27: Furnished Holiday Lettings Profit (2) | N27: 3.15(2)
B29: Stock dividends etc. | G29: 1L.17 | J29: Other property income
B31: Foreign dividends | G31: 1L.25 | J31: UK rents tax paid | K31: 3.21
B33: UK tax on foreign income | D33: 1L.53 | J33: Chargeable premiums | K33: 3.22
J36: Income from Property profit | N36: 3.42
B38: net trading profits/allowable losses | J38: Loss set off against income | N38: 3.43
B40: Loss offset against other income | G40: 1L.85 | J40: Residential finance costs | N40: 3.46
B42: Lloyds taxable profit | G42: 1L.91 | J42: Unused residential finance costs brought forward | N42: 3.47

Sheet Q4-Q5
B2: Foreign | J2: Capital Gains
B4: Foreign savings | D4: UK tax | G4: Amount chargeable
J5: Residential property from page TC1
B6: Foreign - Interest | C6: 4.1A | F6: 4.1
B8: Foreign - Divs | C8: 4.2A | F8: 4.2 | J8: Vulnerable Beneficiary CG relief | L8: 5.6
J12: Taxable Gains | L12: 5.8
B13: Foreign savings income taxable on the remittance basis
B14: and foreign income from land and property abroad | J14: Tax Charged on CGT UK Property Disposal returns | L14: 5.8A
B16: income - remittance | C16: 4.2B | F16: 4.2C
B18: income - remittance | C18: 4.3 | F18: 4.4 | J18: Other property, assets and gains from page TC2
B20: Residential finance costs | F20: 4.4A
B22: Unused residential finance costs brought forward | F22: 4.4B
B24: Offshore funds | F24: 4.5 | J24: Vulnerable Beneficiary CG relief | L24: 5.14
B26: CE gains - no tax | F26: 4.6
B28: CE gains - with tax | F28: 4.8 | J28: Total Taxable Gains | L28: 5.16
B30: Foreign Tax Credit Relief for foreign tax paid on trade,
B31: partnership and other income
B33: Foreign Tax Credit Relief on the income | F33: 4.9 | J33: Taxable gains qualifying for Business Asset Disposal Relief | L33: 5.17
B35: FTCR at special trust rates or dividend trust rate | F35: 4.9A | J35: Taxable gains qualifying for Investors' Relief | L35: 5.17A
B37: Foreign Tax Credit Relief for foreign tax paid and Special | J37: Non-resident Capital Gains
B38: Withholding Tax deducted on chargeable gains
B40: Foreign Tax Credit Relief on the gains | F40: 4.10 | J40: Total taxable gains or losses - Residential | L40: 5.36
B42: Special Withholding Tax | C42: 4.10A | J42: Total taxable gains or losses - Non -Residential | L42: 5.36A
B44: Income from land and property abroad | J44: Total taxable gains or losses from Indirect disposals | L44: 5.36B
B46: Loss offset against total income | F46: 4.30A
B48: Loss offset against total income | F48: 4.37A | J48: Total Non-resident Capital Gains Tax already charged | L48: 5.37

Sheet Q6
A1: Non-residence
P4: ="box_"&B5 -> box_6.2 | Q4: FALSE
B5: 6.2 | C5: Not resident in UK for return year | P5: Resident | Q5: =NOT(box_6.2) -> TRUE
P6: Non-Resident | Q6: TRUE

Sheet Q9
B2: Interest and alternative finance receipts | J2: Gains on UK life insurance policies, life annuities & capital redemption policies
H3: Taxable amount | P3: Amount of gain
B4: Untaxed UK Interest and alternative finance receipts | G4: 9.1 | J4: on which no tax is treated as paid | O4: 9.14
P6: Amount of gain
J7: on which tax is treated as paid | O7: 9.16
E9: tax taken off | H9: Gross amount before tax
B10: Taxed UK interest and alternative finance receipts | D10: 9.3 | G10: 9.4
H12: Taxable amount
B13: National Savings & Investments | G13: 9.5 | J13: Other income
H15: Gross amount before tax | M15: tax deducted | P15: Gross amount before tax
B16: NSI interest - with tax | G16: 9.6 | J16: Other income | L16: 9.18 | O16: 9.19
E18: tax taken off | H18: Gross amount before tax | P18: ="Losses used in "&Tax_year -> Losses used in 2022-23
B19: Other income from UK savings | D19: 9.8 | G19: 9.9 | J19: Losses | O19: 9.21
B21: Dividends | H21: Total dividend
B22: Dividends from UK companies | G22: 9.10 | J22: Deemed income
H24: Total dividend/distribution | P24: Taxable amount
B25: Dividend distributions from AUTs | G25: 9.11 | J25: Accrued income etc. | O25: 9.23
H27: Total dividend | P27: Taxable amount
B28: Stock dividends from UK companies | G28: 9.12 | J28: Other deemed income etc | O28: 9.24
P30: Taxable amount
J31: Company purchase of its own shares | O31: 9.26
H36: Taxable amount
B37: Bonus issues of securities & loans written off | G37: 9.13 | J37: Standard Rate Band | O37: 9A.1

Sheet Q10-Q21
B2: Relief claims | J2: Discretionary payments
B3: Interest on loans for Inheritance Tax | G3: 10.1A | J3: Amount | L3: 14.2
E4: tax deducted | J4: Amount | L4: 14.4
B5: Annual payments | D5: 10.3A | G5: 10.4A | J5: Amount | L5: 14.6
J6: Amount | L6: 14.8
B7: Royalty Payments | D7: 10.6A | G7: 10.7A | J7: Amount | L7: 14.1
J8: Amount | L8: 14.12
B9: vulnerable trust | G9: 10.1B | J9: Amount | L9: 14.14
B11: employee benefit trusts | G11: 10.1C | J11: Unused tax pool b/f | L11: 14.15
B13: Annual Payments out of capital | J13: Self calculation
D14: 11.2 | L14: Q17 | Q14: Q17 | R14: FALSE
B16: Income to beneficiary (non-disc)
B17: charged at dividend ordinary rate | G17: 13.7 | J17: Tax due (before POAs) | L17: 17.1
B19: charged at basic rate | G19: 13.11
J20: Earlier year's tax due | L20: 17.2
B21: Income for specific purposes
B22: charged at dividend ordinary rate | G22: 13.13 | J22: Earlier year's tax o/paid | L22: 17.4
B24: charged at basic rate | G24: 13.17 | J24: Next year tax o/paid | L24: 17.9
B26: Total trust mgt exps | G26: 13.19 | J26: Pension charges due | L26: 17.1
B28: Exps not at trust rate | D28: 13.20 | J28: Tax already refunded | L28: 21.6
B30: Income not UK liable | G30: 13.21 | J30: Covid supp pmts
B32: Amount of tax pool not settlor interested | G32: 13A.1 | J32: incorrectly claimed | L32: 21.6B

Sheet Q23
B2: Pension charges from Question 23
C4: Unauthorised payments | D4: Subject to overseas transfer charge' amount | G4: 23.1
C6: Tax paid by your pension scheme | D6: 23.2
D8: 'Not subject to Surcharge' amount | G8: 23.3
D10: 'Subject to Surcharge' amount | G10: 23.4
C12: Foreign tax paid | D12: 23.5
C14: Taxable short service refund of contributions
C15: from an overseas pension scheme | G15: 23.6
C17: Taxable lump sum death benefit payment
C18: from an overseas pension scheme | G18: 23.7
G21: 23.7A
C23: Foreign tax paid | D23: 23.8

Sheet Output
B1: SA Trust ( UTR )
B3: TAX CALCULATION
B4: I have calculated the income and capital gains tax due on the income of the Trust and Estate.
B5: Please let me know if there is anything in this calculation you do not agree with or do not understand.
B7: =IF(UTR<>"",UTR,"") ->  | C7: Non-savings | E7: Dividend | G7: Total
C8: and savings income | E8: type income
B9: Income | C9: =Matrix!E2 -> 0 | E9: =Matrix!I2 -> 0 | G9: =Matrix!M2 -> 0
B10: minus deductions | C10: =Matrix!E4 -> 0 | E10: =Matrix!I4 -> 0 | G10: =Matrix!M4 -> 0
B11: Income minus deductions | C11: =Matrix!E6 -> 0 | E11: =Matrix!I6 -> 0 | G11: =Matrix!M6 -> 0
B13: Income liable to special trust rates | C13: =Matrix!E12 -> 0 | E13: =Matrix!I12 -> 0 | G13: =Matrix!M12 -> 0
B14: minus gross TME's | C14: =Matrix!E15 -> 0 | E14: =Matrix!I15 -> 0 | G14: =Matrix!M15 -> 0
B15: minus standard rate band | C15: =Matrix!E21 -> 0 | E15: =Matrix!I21 -> 0 | G15: =Matrix!M21 -> 0
B16: Income charged at special trust rates | C16: =Matrix!E27 -> 0 | E16: =Matrix!I27 -> 0 | G16: =Matrix!M27 -> 0
B17: tax rate | C17: ="x "&Trust_rate*100&"%" -> x 45% | E17: ="x "&IF(UUT,BR_rate*100,Hdiv_rate*100)&"%" -> x 39.35%
B18: Income Tax charged | C18: =Matrix!E33 -> 0 | E18: =Matrix!I33 -> 0 | G18: =Matrix!M33 -> 0
B20: Income not liable to special trust rates | C20: =Matrix!E40 -> 0 | E20: =Matrix!I40 -> 0 | G20: =Matrix!M40 -> 0
B21: tax rate | C21: ="x "&BR_rate*100&"%" -> x 20% | E21: ="x "&DivBR_rate*100&"%" -> x 8.75%
B22: Income Tax charged | C22: =Matrix!E47 -> 0 | E22: =Matrix!I47 -> 0 | G22: =Matrix!M47 -> 0
B24: Total Income Tax charged | C24: =C18+C22 -> 0 | E24: =E18+E22 -> 0 | G24: ='T7'!Q8 -> 0
B26: minus relief for finance costs | G26: =T7.9 -> 0
B27: minus notional tax | G27: =T7.10 -> 0
B28: minus tax credit relief on foreign income | G28: =T7.11 -> 0
B29: minus tax treated as paid on dividends | G29: =T7.16 -> 0
B30: plus recoverable tax on charges | G30: =T7.14 -> 0
B31: plus pension payment charges | G31: =T7.18 -> 0
G32: =T7.19 -> 0
B33: minus vulnerable beneficiary relief | G33: =T7.20 -> 0
G34: =T7.21 -> 0
B35: plus tax due on tax pool | G35: =T7.22 -> 0
G36: =T7.23 -> 0
B37: minus employee benefit relief | G37: =T7.24 -> 0
B38: plus Coronavirus support payments incorrectly claimed Charge | G38: =T7.25B -> 0
B39: minus tax paid | G39: =T7.26 -> 0
B40: Total Income Tax due | G40: =T7.27 -> 0
B41: Chargeable gains
B42: Business Asset Disposal and or Investors' Relief | C42: =T7.34 -> 0 | D42: ="x "&BADR_rate_CGT*100&"% =" -> x 10% = | E42: =T7.35 -> 0
B43: other gains | C43: =T7.32 -> 0 | D43: ="x "&Higher_rate_CGT*100&"% =" -> x 20% = | E43: =T7.33 -> 0
B44: Residential Property | C44: =T7.28 -> 0 | D44: ="x "&upper_CGT_rate_RP_CI*100&"% =" -> x 28% = | E44: =T7.29 -> 0
B45: Non-Resident other gains | C45: =T7.31E -> 0 | D45: ="x "&Higher_rate_CGT*100&"% =" -> x 20% = | E45: =T7.31F -> 0
B46: Non-Resident - UK Residential Property | C46: =T7.30 -> 0 | D46: ="x "&upper_CGT_rate_RP_CI*100&"% =" -> x 28% = | E46: =T7.31 -> 0
B47: Capital Gains Tax due | E47: =T7.36 -> 0
B48: minus foreign tax credit relief | E48: =T7.37 -> 0
B49: minus Vulnerable Beneficiary relief (Residential property) | E49: =T7.38 -> 0
B50: minus Vulnerable Beneficiary relief (Other property, assets and gains) | E50: =T7.39 -> 0
B51: minus Tax on gains already paid | E51: =T7.40 -> 0
B52: Net Capital Gains Tax due | E52: =T7.40A -> 0 | G52: =T7.40A -> 0
B53: Capital Gains Tax calculated as overpaid | E53: =T7.41 -> 0
B54: Total Income Tax and Capital Gains Tax due | G54: =T7.42A -> 0
B55: minus Capital Gains Tax overpaid reducing Income Tax | G55: =T7.41B -> 0
B56: Total Income Tax and Capital Gains Tax due | G56: =T7.43 -> 0
B57: Capital Gains Tax overpaid amount remaining | E57: =T7.42 -> 0
B58: plus tax already refunded | G58: =T8.2 -> 0
B59: plus tax due for earlier years | G59: =T8.3 -> 0
B60: TOTAL TAX DUE | G60: =T8.4 -> 0

Sheet T1
A1: 1 | B1: Stage 1. All trustees and personal representatives should complete this stage completing boxes
A2: T1.1 | B2: with information from the Trust and Estate Tax Return and the supplementary pages.
A3: T1.2
A4: T1.3 | B4: If any box in this section is negative substitute zero (‘0’)
A5: T1.4 | B5: £up – add .99 and truncate pence to leave integer pounds (e.g. 3.011 becomes 4)
A6: T1.5 | B6: £down – truncate pence to leave integer pounds
A7: T1.6
A8: T1.7 | B8: Total income:
A9: T1.8 | C9: Non savings | F9: Dividend, securities | I9: Gains on Life
A10: T1.9 | C10: and savings | F10: and redeemable | I10: Policies (with tax
A11: T1.10 | C11: income | F11: shares income | I11: treated as paid)
A12: T1.11 | B12: Trades,
A13: T1.12 | B13: professions, | C13: ="(Total all instances boxes "&'Q1-Q3'!G9&") + "&'Q1-Q3'!G42 -> (Total all instances boxes 1.92) + 1L.91
A14: T1.13 | B14: or vocations | C14: =A2 -> T1.1 | D14: =TRUNC(box1.92+box1L91,0) -> 0 | E14: £down
A15: T1.14
A16: T1.15 | C16: ="Total all instances box "&'Q1-Q3'!N9 -> Total all instances box 2.22
A17: T1.16 | B17: Partnership | C17: =A3 -> T1.2 | D17: =TRUNC(box2.22,0) -> 0 | E17: £down
A18: T1.17
A19: T1.18 | B19: Land | C19: ="(Total all instances box 3.15) + "&'Q1-Q3'!N36 -> (Total all instances box 3.15) + 3.42
A20: T1.19 | B20: and property | C20: =A4 -> T1.3 | D20: =TRUNC(Box3.15_1+box3.15_2+box3.42,0) -> 0 | E20: £down
A21: T1.20
A22: T1.21 | C22: total boxes
B23: Foreign | C23: ='Q4-Q5'!F6&" + "&'Q4-Q5'!F16&" + "&'Q4-Q5'!F18&" + "&'Q4-Q5'!F24&" + "&'Q4-Q5'!F26 -> 4.1 + 4.2C + 4.4 + 4.5 + 4.6 | G23: ="from box "&'Q4-Q5'!F8 -> from box 4.2 | J23: ="from box "&'Q4-Q5'!F28 -> from box 4.8
B24: income | C24: =A5 -> T1.4 | D24: =TRUNC(box4.1+box4.2C+box4.4+box4.5+box4.6,0) -> 0 | E24: £down | F24: T1.5 | G24: =TRUNC(box4.2,0) -> 0 | H24: £down | I24: =A7 -> T1.6 | J24: =TRUNC(box4.8,0) -> 0 | K24: £down
C26: total boxes | F26: total boxes
C27: ='Q9'!G4&" + "&'Q9'!G10&" + "&'Q9'!G13&" + "&'Q9'!G16 -> 9.1 + 9.4 + 9.5 + 9.6 | F27: ='Q9'!G22&" + "&'Q9'!G25&" + "&'Q9'!G28 -> 9.10 + 9.11 + 9.12
C28: =" + "&'Q9'!G19&" + "&'Q9'!O16&" + "&'Q9'!O28 -> + 9.9 + 9.19 + 9.24 | F28: =" + "&'Q9'!G37&" + "&'Q9'!O31 -> + 9.13 + 9.26 | J28: ="from box "&'Q9'!O7 -> from box 9.16
B29: Other | C29: =A8 -> T1.7 | D29: =TRUNC(box9.1+box9.4+box9.5+box9.6+box9.9+box9.19+box9.24,0) -> 0 | E29: £down | F29: =A9 -> T1.8 | G29: =TRUNC(box9.10+box9.11+box9.12+box9.13+box9.26,0) -> 0 | H29: £down | I29: =A10 -> T1.9 | J29: =TRUNC(box9.16,0) -> 0 | K29: £down
B30: income
C31: ="total boxes "&'Q9'!O4&" +" -> total boxes 9.14 +
C32: ="(if a gain) box "&'Q9'!O25 -> (if a gain) box 9.23
C33: =A11 -> T1.10 | D33: =TRUNC(box9.14+MAX(0,box9.23),0) -> 0 | E33: £down
B35: Total | C35: Total column above | F35: Total column above | I35: Total column above
B36: Income | C36: =A12 -> T1.11 | D36: =T1.1+T1.2+T1.3+T1.4+T1.7+T1.10 -> 0 | F36: =A13 -> T1.12 | G36: =T1.5+T1.8 -> 0 | I36: =A14 -> T1.13 | J36: =T1.6+T1.9 -> 0
B38: Total deductions: | D38: from boxes
D39: ='Q10-Q21'!G3&" + "&'Q10-Q21'!G5 -> 10.1A + 10.4A
B40: Interest on loans etc. | C40: =A15 -> T1.14 | D40: =TRUNC(box10.1A+box10.4A+0.99,0) -> 0 | E40: £up
D42: ="total boxes "&'Q1-Q3'!G7&" + "&'Q1-Q3'!G40&" + "&'Q1-Q3'!K7 -> total boxes 1.85 + 1L.85 + 2.15
D43: =" + "&'Q1-Q3'!N18&" + "&'Q1-Q3'!N38 -> + 2.24 + 3.43
D44: =" + "&'Q4-Q5'!F48&" + "&'Q4-Q5'!F46&" + "&'Q9'!O19 -> + 4.37A + 4.30A + 9.21
D45: =" + "&"("&'Q9'!O25&" if a loss)" -> + (9.23 if a loss)
B46: Losses | C46: =A16 -> T1.15 | D46: =TRUNC(box1.85+box1L85+box2.15+box2.24+box3.43+box4.30A+box4.37A+box9.21-MIN(0,box9.23)+0.99,0) -> 0 | E46: £up
B48: Taxable income
D49: =C40&" + "&C46 -> T1.14 + T1.15 | G49: =C50&" minus "&C36 -> T1.16 minus T1.11 | J49: =F50&" minus "&F36 -> T1.18 minus T1.12
B50: Total deductions | C50: =A17 -> T1.16 | D50: =T1.14+T1.15 -> 0 | F50: =A19 -> T1.18 | G50: =MAX(0,T1.16-T1.11) -> 0 | I50: =A21 -> T1.20 | J50: =MAX(0,T1.18-T1.12) -> 0
D52: =C36&" minus "&C50 -> T1.11 minus T1.16 | G52: =F36&" minus "&F50 -> T1.12 minus T1.18 | J52: =I36&" minus "&I50 -> T1.13 minus T1.20
B53: Taxable income | C53: =A18 -> T1.17 | D53: =MAX(0,T1.11-T1.16) -> 0 | F53: =A20 -> T1.19 | G53: =MAX(0,T1.12-T1.18) -> 0 | I53: =A22 -> T1.21 | J53: =MAX(0,T1.13-J50) -> 0
F54: ="Copy to "&'T2'!F14 -> Copy to T2.2 | I54: ="Copy to "&'T2'!I14 -> Copy to T2.3
F55: ="Copy to "&'T3'!G16 -> Copy to T3.2 | I55: ="Copy to "&'T6'!D32 -> Copy to T6.10
F56: ="Copy to "&'T6'!D17 -> Copy to T6.2 | I56: to calculate the notional tax
F57: to calculate the tax | I57: credits on deemed income
F58: credits on dividends
B60: ="Personal Representatives: now go to stage "&'T2'!A1 -> Personal Representatives: now go to stage 2
B62: ="Trustees who are taxable at the trust rate or the dividend trust rate: now go to stage "&'T3'!A1 -> Trustees who are taxable at the trust rate or the dividend trust rate: now go to stage 3
B64: ="Trustees of Unauthorised Unit Trusts: now go to stage "&'T4'!A1 -> Trustees of Unauthorised Unit Trusts: now go to stage 4
B66: ="Others trustees, not taxable at the trust rate or the dividend trust rate: now go to stage "&'T5'!A1 -> Others trustees, not taxable at the trust rate or the dividend trust rate: now go to stage 5

Sheet T2
A1: 2 | B1: ="Section "&A1&": This section should only be completed by Personal Representatives" -> Section 2: This section should only be completed by Personal Representatives
A2: T2.1
A3: T2.2 | B3: If any box in this section is negative substitute zero (‘0’)
A4: T2.3 | B4: £up – add .99 and truncate pence to leave integer pounds (e.g. 3.011 becomes 4)
A5: T2.4 | B5: £down – truncate pence to leave integer pounds
A6: T2.5 | B6: pdown – truncate to 2 decimal places (to leave pounds and pence)
A7: T2.6
A8: T2.7 | B8: If trust-type = personal representatives then
A9: T2.8 | B9: Calculate taxable income
A10: T2.9 | C10: Non savings | F10: Dividends & | I10: Life Policy gains
A11: T2.10 | C11: and savings | F11: Co. own shares | I11: (with tax paid)
A12: T2.11
A13: T2.12 | B13: Taxable | D13: ="from "&'T1'!C53 -> from T1.17 | G13: ="from "&'T1'!F53 -> from T1.19 | J13: ="from "&'T1'!I53 -> from T1.21
A14: T2.13 | B14: income | C14: =A2 -> T2.1 | D14: =IF(personal_representatives,T1.17,0) -> 0 | F14: =A3 -> T2.2 | G14: =IF(personal_representatives,T1.19,0) -> 0 | I14: =A4 -> T2.3 | J14: =IF(personal_representatives,T1.21,0) -> 0
A15: T2.14
A16: T2.15 | B16: Calculate income tax due
J17: =F14&" x DivBR_rate "&DivBR_rate*100&"%" -> T2.2 x DivBR_rate 8.75%
D18: ="income taxable at "&DivBR_rate*100&"%" -> income taxable at 8.75% | I18: =A5 -> T2.4 | J18: =TRUNC(T2.2*DivBR_rate,2) -> 0 | K18: pdown
G21: =C14&" + "&I14 -> T2.1 + T2.3 | J21: =F22&" x Lsave_rate "&Lsave_rate*100&"%" -> T2.5 x Lsave_rate 20%
D22: ="income taxable at "&Lsave_rate*100&"%" -> income taxable at 20% | F22: =A6 -> T2.5 | G22: =T2.1+T2.3 -> 0 | I22: =A7 -> T2.6 | J22: =TRUNC(T2.5*Lsave_rate,2) -> 0 | K22: pdown
J24: =I18&" + "&I22 -> T2.4 + T2.6
G25: Income tax due | I25: =A8 -> T2.7 | J25: =T2.4+T2.6 -> 0
J26: ="Copy to "&'T7'!P8 -> Copy to T7.1
C28: ="If you are the personal representative of a deceased Lloyd's Underwriter " -> If you are the personal representative of a deceased Lloyd's Underwriter
C29: ="please complete boxes "&C33&" to "&I50&" to calculate tax credits on Lloyd's income" -> please complete boxes T2.8 to T2.15 to calculate tax credits on Lloyd's income
B31: Calculate tax credit on UK dividends received through Lloyd's
D32: ="from "&'Q1-Q3'!G27 -> from 1L.14 | J32: ="lower of "&C14&" and "&C33 -> lower of T2.1 and T2.8
B33: Total dividends/distributions plus tax credit | C33: =A9 -> T2.8 | D33: =IF(personal_representatives,TRUNC(box1L14+0.99,0),0) -> 0 | E33: £up | I33: =A10 -> T2.9 | J33: =MIN(T2.1,T2.8) -> 0
J34: ="Copy to "&'T6'!H20 -> Copy to T6.4
B35: Calculate tax credit on foreign dividends received through Lloyd's
B37: Dividends from overseas sources | D37: ="from "&'Q1-Q3'!G31 -> from 1L.25 | J37: =C14&" minus "&I33 -> T2.1 minus T2.9
B38: that qualify for UK tax credit | C38: =A11 -> T2.10 | D38: =IF(personal_representatives,TRUNC(box1L25,0),0) -> 0 | E38: £down | I38: =A12 -> T2.11 | J38: =MAX(0,T2.1-T2.9) -> 0
J40: ="lower of "&C38&" and "&I38 -> lower of T2.10 and T2.11
I41: =A13 -> T2.12 | J41: =MIN(T2.10,T2.11) -> 0
B44: Calculate notional tax on dividends received through Lloyd's
B46: Total stock dividends and distributions | D46: ="from "&'Q1-Q3'!G29 -> from 1L.17 | J46: =I38&" minus "&I41 -> T2.11 minus T2.12
B47: plus notional Income Tax | C47: =A14 -> T2.13 | D47: =IF(personal_representatives,TRUNC(box1L17+0.99,0),0) -> 0 | E47: £down | I47: =A15 -> T2.14 | J47: =MAX(0,T2.11-T2.12) -> 0
J49: ="lower of "&C47&" and "&I47 -> lower of T2.13 and T2.14
I50: =A16 -> T2.15 | J50: =MIN(T2.13,T2.14) -> 0
J51: ="Copy to "&'T6'!H25 -> Copy to T6.7
B54: End if
B55: Else
B56: ="Set "&C14&" to "&I50&" to zero" -> Set T2.1 to T2.15 to zero | G56: ="Now go to stage "&'T6'!A1 -> Now go to stage 6
B57: End if | G57: ="Ignore stages "&'T3'!A1&" and "&'T5'!A1 -> Ignore stages 3 and 5

Sheet T3
A1: 3 | C1: ="Stage "&A1&": This section should be completed by trustees" -> Stage 3: This section should be completed by trustees
A2: T3.1 | C2: who are taxable at the trust rate or the dividend trust rate
A3: T3.2
A4: T3.3 | C4: If any box in this section is negative substitute zero (‘0’)
A5: T3.4 | C5: £up – add .99 and truncate pence to leave integer pounds (e.g. 3.011 becomes 4)
A6: T3.5 | C6: £down – truncate pence to leave integer pounds
A7: T3.6 | C7: pdown – truncate to 2 decimal places (to leave pounds and pence)
A8: T3.7
A9: T3.8 | C9: If trust-type = RAT - rate then | N9: Determine taxable income chargeable to special trust rates
A10: T3.9 | C10: Allocate deductions to income
A11: T3.10 | O11: Non savings etc. | R11: Dividends etc.
A12: T3.11 | D12: Non savings | G12: Dividends &
A13: T3.12 | D13: and savings | G13: Co. own shares | P13: =D25&" minus "&J68 -> T3.5 minus T3.19 | S13: =G25&" minus "&G68 -> T3.6 minus T3.18
A14: T3.13 | N14: Items chargeable | O14: =A21 -> T3.20 | P14: =MAX(0,T3.5-T3.19) -> 0 | R14: =A22 -> T3.21 | S14: =MAX(0,T3.6-T3.18) -> 0
A15: T3.14 | E15: ='T1'!C53&" + "&'T1'!I53 -> T1.17 + T1.21 | H15: ="from "&'T1'!F53 -> from T1.19 | N15: at trust rate
A16: T3.15 | C16: Taxable income | D16: =A2 -> T3.1 | E16: =IF(RAT_rate,T1.17+T1.21,0) -> 0 | G16: =A3 -> T3.2 | H16: =IF(RAT_rate,T1.19,0) -> 0
A17: T3.16 | P17: ="from box "&'Q9'!O37 -> from box 9A.1 | S17: =O18&" minus "&O14 -> T3.22 minus T3.20
A18: T3.17 | N18: Standard rate band | O18: =A23 -> T3.22 | P18: =IF(RAT_rate,Box9A.1,0) -> 0 | R18: =A24 -> T3.23 | S18: =MAX(0,T3.22-T3.20) -> 0
A19: T3.18
A20: T3.19 | C20: Income to beneficiary (non-disc) +
A21: T3.20 | C21: Income for specific purposes | E21: ="boxes "&'Q10-Q21'!G19&" + "&'Q10-Q21'!G24 -> boxes 13.11 + 13.17 | H21: ="boxes "&'Q10-Q21'!G17&" + "&'Q10-Q21'!G22 -> boxes 13.7 + 13.13 | N21: Taxable income | P21: =O14&" minus "&O18 -> T3.20 minus T3.22 | S21: =R14&" minus "&R18 -> T3.21 minus T3.23
A22: T3.21 | C22: charged at 10%/basic rate | D22: =A4 -> T3.3 | E22: =IF(RAT_rate,box13.11+box13.17,0) -> 0 | G22: =A5 -> T3.4 | H22: =IF(RAT_rate,box13.7+box13.13,0) -> 0 | N22: chargeable to | O22: =A25 -> T3.24 | P22: =MAX(0,T3.20-T3.22) -> 0 | R22: =A26 -> T3.25 | S22: =MAX(0,T3.21-T3.23) -> 0
A23: T3.22 | N23: special trust rates
A24: T3.23 | E24: ='T3'!D16&" minus "&'T3'!D22 -> T3.1 minus T3.3 | H24: ='T3'!G16&" minus "&'T3'!G22 -> T3.2 minus T3.4
A25: T3.24 | C25: Items chargeable at trust rate | D25: =A6 -> T3.5 | E25: =MAX(0,T3.1-T3.3) -> 0 | G25: =A7 -> T3.6 | H25: =MAX(0,T3.2-T3.4) -> 0
A26: T3.25 | N26: Taxable income | P26: =D16&" minus "&O22 -> T3.1 minus T3.24 | S26: =G16&" minus "&R22 -> T3.2 minus T3.25
A27: T3.26 | C27: Calculation of trust management expenses | N27: not chargeable to | O27: =A27 -> T3.26 | P27: =MAX(0,T3.1-T3.24) -> 0 | R27: =A28 -> T3.27 | S27: =MAX(0,T3.2-T3.25) -> 0
A28: T3.27 | C28: ="If you are claiming Trust Management Expenses complete boxes "&D31&" to "&J68&", otherwise enter zero in boxes "&G68&" and "&J68 -> If you are claiming Trust Management Expenses complete boxes T3.7 to T3.19, otherwise enter zero in boxes T3.18 and T3.19 | N28: special trust rates
A29: T3.28 | C29: =" and continue from box"&O14 -> and continue from boxT3.20
A30: T3.29 | E30: from box 13.19 | S30: =O22&" x Trust_rate "&Trust_rate*100&"%" -> T3.24 x Trust_rate 45%
A31: T3.30 | C31: Total trust management expenses | D31: =A8 -> T3.7 | E31: =IF(RAT_rate,TRUNC(box13.19+0.99,0),0) -> 0 | F31: £up | P31: ="Income taxable at "&Trust_rate*100&"%" -> Income taxable at 45% | R31: =A29 -> T3.28 | S31: =TRUNC(T3.24*Trust_rate,2) -> 0 | T31: pdown
A32: T3.31
A33: T3.32 | E33: from box 13.21 | S33: =R22&" x Hdiv_rate "&Hdiv_rate*100&"%" -> T3.25 x Hdiv_rate 39.35%
A34: T3.33 | C34: Income not liable to UK income tax | D34: =A9 -> T3.8 | E34: =IF(RAT_rate,TRUNC(box13.21,0),0) -> 0 | F34: £down | P34: ="Income taxable at "&Hdiv_rate*100&"%" -> Income taxable at 39.35% | R34: =A30 -> T3.29 | S34: =TRUNC(T3.25*Hdiv_rate,2) -> 0 | T34: pdown
H36: =D34&" + "&'T1'!C36&" + "&'T1'!F36&" + "&'T1'!I36 -> T3.8 + T1.11 + T1.12 + T1.13 | S36: =O27&" x Lsave_rate "&Lsave_rate*100&"%" -> T3.26 x Lsave_rate 20%
F37: Total income | G37: =A10 -> T3.9 | H37: =IF(AND(RAT_rate,box13.19>0),T3.8+T1.11+T1.12+T1.13,0) -> 0 | P37: ="Income taxable at "&Lsave_rate*100&"%" -> Income taxable at 20% | R37: =A31 -> T3.30 | S37: =TRUNC(T3.26*Lsave_rate,2) -> 0 | T37: pdown
G39: ="If "&G37&" > 0 (zero)" -> If T3.9 > 0 (zero) | S39: =R27&" x DivBR_rate "&DivBR_rate*100&"%" -> T3.27 x DivBR_rate 8.75%
G40: =G44&" = "&D31&" x "&D34&"/"&G37 -> T3.10 = T3.7 x T3.8/T3.9 | P40: ="Income taxable at "&DivBR_rate*100&"%" -> Income taxable at 8.75% | R40: =A32 -> T3.31 | S40: =TRUNC(T3.27*DivBR_rate,2) -> 0 | T40: pdown
G41: else
G42: =G44&" = 0 (zero)" -> T3.10 = 0 (zero) | S42: =R31&" + "&R34&" + "&R37&" + "&R40 -> T3.28 + T3.29 + T3.30 + T3.31
E43: Expenses applicable to income not | G43: end if | P43: Income tax due | R43: =A33 -> T3.32 | S43: =T3.28+T3.29+T3.30+T3.31 -> 0
E44: liable to UK income tax | G44: =A11 -> T3.10 | H44: =IF(T3.9>0,TRUNC(T3.7*T3.8/T3.9),0) -> 0 | I44: £down | S44: ="Copy to "&'T7'!P8 -> Copy to T7.1
E45: (non resident trusts only) | R45: Else
R46: ="Set " &D16&" to "&R43&" to zero (0)" -> Set T3.1 to T3.32 to zero (0)
E47: Expenses applicable to income | H47: from box 13.20 | R47: End if
E48: not liable at the trust rate | G48: =A12 -> T3.11 | H48: =IF(RAT_rate,TRUNC(box13.20),0) -> 0 | I48: £down
S49: ="Now go to stage "&'T6'!A1 -> Now go to stage 6
H50: =D31&" minus ("&G44&" + "&G48&")" -> T3.7 minus (T3.10 + T3.11) | S50: ="Ignore stages 4 and "&'T5'!A1 -> Ignore stages 4 and 5
E51: Trust management expenses allowable | G51: =A13 -> T3.12 | H51: =MAX(0,T3.7-T3.10-T3.11) -> 0
G55: Dividends etc. | J55: Non Savings etc.
E56: Notional maximum amount
E57: of net trust management | H57: =G25&" x "&(1-DivBR_rate)*100&"/100" -> T3.6 x 91.25/100 | K57: ='T3'!D25&" x "&(1-BR_rate)*100&"/100" -> T3.5 x 80/100
E58: expenses which could | G58: =A14 -> T3.13 | H58: =TRUNC(T3.6*(1-DivBR_rate),0) -> 0 | I58: £down | J58: =A15 -> T3.14 | K58: =IF(box13.19>0,TRUNC(T3.5*(1-BR_rate)),0) -> 0 | L58: £down
E59: be allowed against income.
H60: ="Lower of "&G51&" and "&G58 -> Lower of T3.12 and T3.13 | K60: =G51&" minus "&G61 -> T3.12 minus T3.15
G61: =A16 -> T3.15 | H61: =MIN(T3.12,T3.13) -> 0 | J61: =A17 -> T3.16 | K61: =MAX(0,T3.12-T3.15) -> 0
K63: ="Lower of "&J58&" and "&J61 -> Lower of T3.14 and T3.16
J64: =A18 -> T3.17 | K64: =MIN(T3.14,T3.16) -> 0
F67: Grossed up trust | H67: =G61&" x 100/"&(1-DivBR_rate)*100 -> T3.15 x 100/91.25 | K67: =J64&" x 100/"&(1-BR_rate)*100 -> T3.17 x 100/80
F68: management expenses | G68: =A19 -> T3.18 | H68: =TRUNC((T3.15/(1-DivBR_rate))+0.99,0) -> 0 | I68: £up | J68: =A20 -> T3.19 | K68: =TRUNC((T3.17/(1-BR_rate))+0.99,0) -> 0 | L68: £up
K69: else
K70: ="Set "&D31&" to "&J68&" to zero (0)" -> Set T3.7 to T3.19 to zero (0)
K71: End if

Sheet T4
A1: 4 | B1: ="Stage "&A1&": This section should be completed by trustees of unauthorised unit trusts" -> Stage 4: This section should be completed by trustees of unauthorised unit trusts
A2: T4.1
A3: T4.2 | B3: If any box in this section is negative substitute zero (‘0’)
A4: T4.3 | B4: £down – truncate pence to leave integer pounds
A5: T4.4 | B5: pdown – truncate to 2 decimal places (to leave pounds and pence)
A6: T4.5
A7: T4.6 | B7: If trust type = UUT
A8: T4.7 | G8: ='T1'!C53&" + "&'T1'!I53 -> T1.17 + T1.21 | J8: =F9&" x BR_rate "&BR_rate*100&"%" -> T4.1 x BR_rate 20%
A9: T4.8 | D9: taxable non-savings and savings income | F9: ='T4'!A2 -> T4.1 | G9: =IF(UUT,T1.17+T1.21,0) -> 0 | I9: ='T4'!A3 -> T4.2 | J9: =TRUNC(T4.1*BR_rate,2) -> 0 | K9: pdown
A10: T4.9
A11: T4.10
A12: T4.11
A13: T4.12 | G13: ="boxes "&'Q4-Q5'!F8&" + "&'Q9'!G22&" + "&'Q9'!G25&" + "&'Q9'!G28&" + "&'Q9'!G37&" + "&'Q9'!O31 -> boxes 4.2 + 9.10 + 9.11 + 9.12 + 9.13 + 9.26
A14: T4.13 | D14: dividend type income | F14: =A4 -> T4.3 | G14: =IF(UUT,TRUNC(box4.2+box9.10+box9.11+box9.12+box9.13+box9.26,0),0) -> 0 | H14: £down
G17: ="from box "&'T1'!F50 -> from box T1.18
F18: =A5 -> T4.4 | G18: =IF(UUT,T1.18,0) -> 0
G21: =F14&" minus "&F18 -> T4.3 minus T4.4
D22: taxable dividend type income | F22: =A6 -> T4.5 | G22: =MAX(0,T4.3-T4.4) -> 0
G25: ="from box "&'Q9'!O37 -> from box 9A.1
D26: Standard rate band | F26: =A7 -> T4.6 | G26: =TRUNC(Box9A.1) -> 0 | H26: pdown
G29: ="Lower of "&F22&" and "&F26 -> Lower of T4.5 and T4.6
F30: ='T4'!A8 -> T4.7 | G30: =MIN(T4.5,T4.6) -> 0
G33: ="from box "&'Q9'!O31 -> from box 9.26
F34: ='T4'!A9 -> T4.8 | G34: =IF(UUT,TRUNC(box9.26,0),0) -> 0 | H34: £down
G37: ="Lower of "&F30&" and "&F34 -> Lower of T4.7 and T4.8 | J37: =F38&" x DivBR_rate "&DivBR_rate*100&"%" -> T4.9 x DivBR_rate 8.75%
F38: ='T4'!A10 -> T4.9 | G38: =MIN(T4.7,T4.8) -> 0 | I38: ='T4'!A11 -> T4.10 | J38: =TRUNC(T4.9*DivBR_rate,2) -> 0 | K38: pdown
G41: =F22&" minus "&F38 -> T4.5 minus T4.9 | J41: =F42&" x BR_rate "&BR_rate*100&"%" -> T4.11 x BR_rate 20%
F42: ='T4'!A12 -> T4.11 | G42: =MAX(0,T4.5-T4.9) -> 0 | I42: ='T4'!A13 -> T4.12 | J42: =TRUNC(T4.11*BR_rate,2) -> 0 | K42: pdown
J45: =I9&" + "&I38&" + "&I42 -> T4.2 + T4.10 + T4.12
D46: Income tax due | I46: ='T4'!A14 -> T4.13 | J46: =T4.2+T4.10+T4.12 -> 0
J47: ="Copy to "&'T7'!P8 -> Copy to T7.1
I48: Else
I49: ="Set "&F9&" to "&I46&" to zero (0)" -> Set T4.1 to T4.13 to zero (0)
I50: end if
J52: ="Now go to stage "&'T6'!A1 -> Now go to stage 6

Sheet T5
A1: 5 | B1: ="Stage "&A1&": This section should be completed by trustees " -> Stage 5: This section should be completed by trustees
A2: T5.1 | B2: who are not taxable at the trust rate or the dividend trust rate.
A3: T5.2
A4: T5.3 | B4: If any box in this section is negative substitute zero (‘0’)
A5: T5.4 | B5: £down – truncate pence to leave integer pounds
A6: T5.5 | B6: pdown – truncate to 2 decimal places (to leave pounds and pence)
A7: T5.6
A8: T5.7 | C8: If trust-type = Other-trustee
A9: T5.8 | I9: ='T1'!C53&" + "&'T1'!I53 -> T1.17 + T1.21
A10: T5.9 | G10: Taxable non-savings and savings income | H10: =A2 -> T5.1 | I10: =IF(other_trustee,T1.17+T1.21,0) -> 0
A11: T5.10
A12: T5.11 | F12: ="lower of box "&'Q1-Q3'!K33&" and box "&'Q1-Q3'!N36 -> lower of box 3.22 and box 3.42
A13: T5.12 | E13: =A3 -> T5.2 | F13: =IF(other_trustee,MIN(box3.22,box3.42),0) -> 0
A14: T5.13
A15: T5.14 | F15: ="boxes "&'Q4-Q5'!F26&" + "&'Q4-Q5'!F28&" + "&'Q9'!O7&" + "&'Q9'!O28&" + "&'T1'!C33 -> boxes 4.6 + 4.8 + 9.16 + 9.24 + T1.10
A16: T5.15 | E16: =A4 -> T5.3 | F16: =IF(other_trustee,TRUNC(box4.6,0)+TRUNC(box4.8,0)+T1.10+TRUNC(box9.16,0)+TRUNC(box9.24,0),0) -> 0 | G16: £down
A17: T5.16
A18: T5.17 | F18: =E13&" + "&E16 -> T5.2 + T5.3 | I18: ="Lower of "&H10&" and "&E19 -> Lower of T5.1 and T5.4
A19: T5.18 | E19: =A5 -> T5.4 | F19: =T5.2+T5.3 -> 0 | H19: =A6 -> T5.5 | I19: =MIN(T5.1,T5.4) -> 0
A20: T5.19
A21: T5.20 | I21: =H10&" minus "&H19 -> T5.1 minus T5.5 | L21: =H22&" x Lsave_rate "&Lsave_rate*100&"%" -> T5.6 x Lsave_rate 20%
A22: T5.21 | G22: ="Income taxable at "&BR_rate*100&"%" -> Income taxable at 20% | H22: =A7 -> T5.6 | I22: =IF(other_trustee,MAX(0,T5.1-T5.5),0) -> 0 | K22: =A8 -> T5.7 | L22: =TRUNC(T5.6*Lsave_rate,2) -> 0 | M22: pdown
A23: T5.22
A24: T5.23 | F24: ="from box "&'Q9'!O37 -> from box 9A.1
D25: Standard rate band | E25: =A9 -> T5.8 | F25: =Box9A.1 -> 0
I27: ="Lower of "&E25&" and "&H19 -> Lower of T5.8 and T5.5 | L27: =H28&" x BR_rate "&BR_rate*100&"%" -> T5.9 x BR_rate 20%
G28: Deemed income in standard rate band | H28: =A10 -> T5.9 | I28: =MIN(T5.8,T5.5) -> 0 | K28: =A11 -> T5.10 | L28: =TRUNC(T5.9*BR_rate,2) -> 0 | M28: pdown
I30: =H19&" minus "&H28 -> T5.5 minus T5.9 | L30: =H31&" x Trust_rate "&Trust_rate*100&"%" -> T5.11 x Trust_rate 45%
H31: =A12 -> T5.11 | I31: =MAX(0,T5.5-T5.9) -> 0 | K31: =A13 -> T5.12 | L31: =TRUNC(T5.11*Trust_rate,2) -> 0 | M31: pdown
I33: ="from "&'T1'!F53 -> from T1.19
G34: Taxable dividend type income | H34: =A14 -> T5.13 | I34: =IF(other_trustee,T1.19,0) -> 0
F39: ="from box "&'Q9'!O31 -> from box 9.26 | H39: ="Lower of "&H34&" and "&E40 -> Lower of T5.13 and T5.14
E40: =A15 -> T5.14 | F40: =IF(other_trustee,TRUNC(box9.26,0),0) -> 0 | G40: pdown | H40: =A16 -> T5.15 | I40: =MIN(T5.13,T5.14) -> 0
I42: =H34&" minus "&H40 -> T5.13 minus T5.15 | L42: =H43&" x DivBR_rate "&DivBR_rate*100&"%" -> T5.16 x DivBR_rate 8.75%
H43: =A17 -> T5.16 | I43: =MAX(0,T5.13-T5.15) -> 0 | K43: =A18 -> T5.17 | L43: =TRUNC(T5.16*DivBR_rate,2) -> 0 | M43: pdown
F45: =E25&" minus "&H28 -> T5.8 minus T5.9
A46: =box3.22 -> 0 | E46: =A19 -> T5.18 | F46: =MAX(0,T5.8-T5.9) -> 0
A47: =box3.42 -> 0
I48: ="Lower of "&E40&" and "&E46 -> Lower of T5.14 and T5.18 | L48: =H49&" x DivBR_rate "&DivBR_rate*100&"%" -> T5.19 x DivBR_rate 8.75%
G49: Income in standard rate band | H49: =A20 -> T5.19 | I49: =MIN(T5.14,T5.18) -> 0 | K49: =A21 -> T5.20 | L49: =TRUNC(T5.19*DivBR_rate,2) -> 0 | M49: pdown
I51: =H40&" minus "&H49 -> T5.15 minus T5.19 | L51: =H52&" x Hdiv_rate "&Hdiv_rate*100&"%" -> T5.21 x Hdiv_rate 39.35%
H52: =A22 -> T5.21 | I52: =MAX(0,T5.15-T5.19) -> 0 | K52: =A23 -> T5.22 | L52: =TRUNC(T5.21*Hdiv_rate,2) -> 0 | M52: pdown
L54: =K22&" + "&K28&" + "&K31&" + "&K43&" + "&K49&" + "&K52 -> T5.7 + T5.10 + T5.12 + T5.17 + T5.20 + T5.22
I55: Income tax due | K55: =A24 -> T5.23 | L55: =T5.7+T5.10+T5.12+T5.17+T5.20+T5.22 -> 0
L56: ="Copy to "&'T7'!P8 -> Copy to T7.1
K57: Else
K58: ="Set "&H10&" to "&K55&" to zero" -> Set T5.1 to T5.23 to zero
K59: end if
L61: ="Now go to stage "&'T6'!A1 -> Now go to stage 6

Sheet T6
A1: 6 | B1: ="Stage "&A1&": calculate tax paid and tax credits" -> Stage 6: calculate tax paid and tax credits
A2: T6.1 | D2: All trustees and personal representatives complete this section
A3: T6.2
A4: T6.3 | B4: If any box in this section is negative substitute zero (‘0’)
A5: T6.4 | B5: £down – truncate pence to leave integer pounds
A6: T6.5 | B6: pdown – truncate to 2 decimal places (to leave pounds and pence)
A7: T6.6
A8: T6.7 | B8: Calculate non-payable tax credits
A9: T6.8
A10: T6.9 | C10: tax credit on UK dividends
A11: T6.10
A12: T6.11
A13: T6.12 | E13: ="boxes "&'Q9'!O31&" + "&'Q9'!G22&" + "&'Q9'!G25&" + "&'Q9'!G37 -> boxes 9.26 + 9.10 + 9.11 + 9.13
A14: T6.13 | B14: Dividends | D14: =A2 -> T6.1 | E14: =TRUNC(box9.26 + box9.10 + box9.11 + box9.13,0) -> 0 | F14: £down
A15: T6.14 | I15: ="lower of "&D14 -> lower of T6.1
A16: T6.15 | E16: ="from "&'T1'!F53 -> from T1.19 | I16: ="and "&D17 -> and T6.2 | O16: If box 6.2 = N
A17: T6.16 | B17: Taxable dividend income | D17: =A3 -> T6.2 | E17: =T1.19 -> 0 | H17: =A4 -> T6.3 | I17: =MIN(T6.1,T6.2) -> 0 | O17: =N20&" = 0 (zero)" -> T6.6 = 0 (zero)
A18: T6.17 | O18: else
A19: T6.18 | I19: ="from "&'T2'!I33 -> from T2.9 | L19: =H17&" + "&H20 -> T6.3 + T6.4 | O19: =N20&" = "&K20&" x DivBR_rate ("&DivBR_rate*100&"%)" -> T6.6 = T6.5 x DivBR_rate (8.75%)
H20: =A5 -> T6.4 | I20: =T2.9 -> 0 | K20: =A6 -> T6.5 | L20: =T6.3+T6.4 -> 0 | N20: =A7 -> T6.6 | O20: =IF(Resident,0,TRUNC(T6.5*DivBR_rate,2)) -> 0 | P20: pdown
O21: ="Copy to "&'T7'!P45 -> Copy to T7.16
C23: notional tax on dividends
I24: ="from "&'T2'!I50 -> from T2.15 | O24: =H25&" x DivBR_rate "&DivBR_rate*100&"%" -> T6.7 x DivBR_rate 8.75%
H25: =A8 -> T6.7 | I25: =T2.15 -> 0 | N25: =A9 -> T6.8 | O25: =TRUNC(T6.7*DivBR_rate,2) -> 0
C27: notional tax on life gains
E28: ="boxes "&'Q4-Q5'!F28&" + "&'Q9'!O7 -> boxes 4.8 + 9.16
B29: Gains on life insurance policies etc. | D29: =A10 -> T6.9 | E29: =TRUNC(box4.8+box9.16,0) -> 0 | F29: £down
E31: ="from "&'T1'!I53 -> from T1.21 | I31: ="lower of "&D29&" and "&D32 -> lower of T6.9 and T6.10 | O31: =H32&" x Lsave_rate "&Lsave_rate*100&"%" -> T6.11 x Lsave_rate 20%
B32: Taxable gains income | D32: =A11 -> T6.10 | E32: =T1.21 -> 0 | H32: =A12 -> T6.11 | I32: =MIN(T6.9,T6.10) -> 0 | N32: =A13 -> T6.12 | O32: =TRUNC(T6.11*Lsave_rate,2) -> 0 | P32: pdown
O33: ="Copy "&N25&" + "&N32&" to "&'T7'!L30 -> Copy T6.8 + T6.12 to T7.10
B35: Add together tax paid
C37: Self Employment | I37: ="boxes "&'Q1-Q3'!D14&" + "&'Q1-Q3'!D18 -> boxes 1.97 + 1.98
C38: From question 1 | H38: =A14 -> T6.13 | I38: =box1.97+box1.98 -> 0
C40: Lloyds | I40: ="boxes "&'Q1-Q3'!D25&" + "&'Q1-Q3'!D33 -> boxes 1L.8 + 1L.53
C41: From question 1L | H41: =A15 -> T6.14 | I41: =box1L8+box1L53 -> 0
C43: Income from property | I43: ="from box "&'Q1-Q3'!K31 -> from box 3.21
C44: From question 3 | H44: =A16 -> T6.15 | I44: =box3.21 -> 0
C46: Foreign | I46: ="boxes "&'Q4-Q5'!C6&" + "&'Q4-Q5'!C8&" + "&'Q4-Q5'!C16&" + "&'Q4-Q5'!C18&" + "&'Q4-Q5'!C42 -> boxes 4.1A + 4.2A + 4.2B + 4.3 + 4.10A
C47: From question 4 | H47: =A17 -> T6.16 | I47: =box4.1A+box4.2A+box4.2B+box4.3+box4.10A -> 0
C49: Savings Interest | I49: ="boxes "&'Q9'!D10&" + "&'Q9'!D19&" + "&'Q9'!L16 -> boxes 9.3 + 9.8 + 9.18
C50: From question 9 | H50: =A18 -> T6.17 | I50: =box9.3+box9.8+box9.18 -> 0
I52: =H38&" + "&H41&" + "&H44&" + "&H47&" + "&H50 -> T6.13 + T6.14 + T6.15 + T6.16 + T6.17
C53: Total tax paid | H53: =A19 -> T6.18 | I53: =I38+I41+I44+I47+I50 -> 0
I54: ="Copy to "&'T7'!P68 -> Copy to T7.26

Sheet T7
A1: 7 | C1: ="Stage "&A1&": Work out Income Tax and Capital Gains Tax due for "&Tax_year -> Stage 7: Work out Income Tax and Capital Gains Tax due for 2022-23
A2: T7.1 | C2: All trustees and personal representatives complete this section
A3: T7.2
A4: T7.3 | C4: If any box in this section is negative substitute zero (‘0’)
A5: T7.4 | C5: £down – truncate pence to leave integer pounds
A6: T7.5 | C6: pdown – truncate to 2 decimal places (to leave pounds and pence) | Q6: ="from "&'T2'!I25&" + "&'T3'!R43 -> from T2.7 + T3.32
A7: T7.6 | Q7: =" + "&'T4'!I46&" + "&'T5'!K55 -> + T4.13 + T5.23
A8: T7.7 | C8: Income tax due | P8: =A2 -> T7.1 | Q8: =T2.7+T3.32+T4.13+T5.23 -> 0
A9: T7.8
A10: T7.9 | C10: Calculate relief for finance costs | I10: ="boxes "&'Q1-Q3'!N40&" + "&'Q1-Q3'!N42 -> boxes 3.46 + 3.47
A11: T7.10 | C11: Finance costs | H11: =A3 -> T7.2 | I11: =box3.46+box3.47 -> 0
A12: T7.11
A13: T7.12 | I13: ="from "&'Q1-Q3'!N36 -> from 3.42 | M13: ="lower of "&H11&" and "&H14 -> lower of T7.2 and T7.3
A14: T7.13 | C14: Adjusted profit | H14: =A4 -> T7.3 | I14: =TRUNC(box3.42,0) -> 0 | L14: =A5 -> T7.4 | M14: =MIN(T7.2,T7.3) -> 0
A15: T7.14
A16: T7.15 | I16: ="boxes "&'Q4-Q5'!F20&" + "&'Q4-Q5'!F22 -> boxes 4.4A + 4.4B
A17: T7.16 | C17: Finance costs | H17: =A6 -> T7.5 | I17: =box4.4A+box4.4B -> 0
A18: T7.17
A19: T7.18 | I19: ="from "&'Q4-Q5'!F18 -> from 4.4 | M19: ="lower of "&H17&" and "&H20 -> lower of T7.5 and T7.6
A20: T7.19 | C20: Adjusted profit | H20: =A7 -> T7.6 | I20: =TRUNC(box4.4,0) -> 0 | L20: =A8 -> T7.7 | M20: =MIN(T7.5,T7.6) -> 0
A21: T7.20
A22: T7.21 | M22: =L14&" + "&L20 -> T7.4 + T7.7
A23: T7.22 | C23: Relievable amount | L23: =A9 -> T7.8 | M23: =T7.4+T7.7 -> 0
A24: T7.23
A25: T7.24 | M25: =L23&" x BR_rate "&BR_rate*100&"%" -> T7.8 x BR_rate 20%
A26: T7.25 | C26: Relief for finance costs | L26: =A10 -> T7.9 | M26: =T7.8*BR_rate -> 0
A27: T7.25A
A28: T7.25B
A29: T7.25C | M29: ='T6'!N25&" + "&'T6'!N32 -> T6.8 + T6.12
A30: T7.26 | C30: Notional tax | L30: =A11 -> T7.10 | M30: =T6.8+T6.12 -> 0
A31: T7.27
A32: T7.28
A33: T7.29 | M33: ="from box "&'Q4-Q5'!F33 -> from box 4.9 | Q33: =L26&" + "&L30&" + "&L34 -> T7.9 + T7.10 + T7.11
A34: T7.30 | C34: Foreign tax credit relief | L34: =A12 -> T7.11 | M34: =box4.9 -> 0 | P34: =A13 -> T7.12 | Q34: =T7.9+T7.10+T7.11 -> 0
A35: T7.29A
A36: T7.29B | Q36: =P8&" minus "&P34 -> T7.1 minus T7.12
A37: T7.29C | P37: =A14 -> T7.13 | Q37: =MAX(0,T7.1-T7.12) -> 0
A38: T7.31
A39: T7.31A
A40: T7.31B | C40: Patent Royalties, recoverable tax on charges | M40: ='Q10-Q21'!D5&" + "&'Q10-Q21'!D7&" + "&'Q10-Q21'!D14 -> 10.3A + 10.6A + 11.2 | Q40: =P37&" + "&L41 -> T7.13 + T7.14
A41: T7.31C | C41: and annual payments made out of capital | L41: =A15 -> T7.14 | M41: =box10.3A+box10.6A+box11.2 -> 0 | P41: =A16 -> T7.15 | Q41: =T7.13+T7.14 -> 0
A42: T7.31D
A43: T7.31E
A44: T7.31F | Q44: ="from "&'T6'!N20 -> from T6.6
A45: T7.32 | C45: Dividends from UK companies | P45: =A17 -> T7.16 | Q45: =T6.6 -> 0
A46: 5.36
A47: 5.36A | Q47: =P41&" minus "&P45 -> T7.15 minus T7.16
A48: 5.36B | P48: =A18 -> T7.17 | Q48: =T7.15-T7.16 -> 0
A49: T7.33
A50: T7.34 | M50: ="from "&'T23'!H68 -> from T23.27 | Q50: =P48&" + "&L51 -> T7.17 + T7.18
A51: T7.35 | C51: Pension payment charges | L51: =A19 -> T7.18 | M51: =T23.27 -> 0 | P51: =A20 -> T7.19 | Q51: =T7.17+T7.18 -> 0
A52: T7.36
A53: T7.37 | M53: ="from box "&'Q10-Q21'!G9 -> from box 10.1B | Q53: =P51&" minus "&L54 -> T7.19 minus T7.20
A54: T7.38 | C54: Vulnerable beneficiary relief | L54: =A21 -> T7.20 | M54: =box10.1B -> 0 | P54: =A22 -> T7.21 | Q54: =MAX(0,T7.19-T7.20) -> 0
A55: T7.39
A56: T7.39A | M56: ="from "&'T9'!X40 -> from T9.29 | Q56: =P54&" + "&L57 -> T7.21 + T7.22
A57: T7.40 | C57: Tax pool adjustment | L57: =A23 -> T7.22 | M57: =IF(RAT_rate,T9.29,0) -> 0 | P57: =A24 -> T7.23 | Q57: =T7.21+T7.22 -> 0
A58: T7.40A
A59: T7.41 | M59: ="from box"&'Q10-Q21'!G11 -> from box 10.1C | Q59: =P57&" minus "&L60 -> T7.23 minus T7.24
A60: T7.41A | C60: Employee benefit relief | L60: =A25 -> T7.24 | M60: =box10.1C -> 0 | P60: =A26 -> T7.25 | Q60: =T7.23-T7.24 -> 0
A61: T7.41B | Q61: This box can be negative
A62: T7.42
A63: T7.42A | C63: CJRS grant and JRB incorrectly claimed charge | I63: ="from box "&'Q10-Q21'!L32 -> from box 21.6B | M63: =H64&" x Charge_rate ("&Charge_rate*100&"%)" -> T7.25A x Charge_rate (100%) | Q63: =P60&" plus "&L64 -> T7.25 plus T7.25B
A64: T7.42B | H64: =A27 -> T7.25A | I64: =box21.6B -> 0 | L64: =A28 -> T7.25B | M64: =TRUNC(T7.25A*Charge_rate,2) -> 0 | P64: =A29 -> T7.25C | Q64: =T7.25+T7.25B -> 0
A65: T7.43 | Q65: This box can be negative
Q67: ="from "&'T6'!H53 -> from T6.18
C68: Tax paid | P68: =A30 -> T7.26 | Q68: =T6.18 -> 0
Q70: =P64&" minus "&P68 -> T7.25C minus T7.26
C71: Income tax due | P71: =A31 -> T7.27 | Q71: =T7.25C-T7.26 -> 0
Q72: This box can be negative
C74: Capital Gains Tax
C76: Chargeable gains
C78: Residential property
M79: ="from box "&'Q4-Q5'!L12 -> from box 5.8 | Q79: =L80&" x upper_CGT_rate_RP_CI ("&upper_CGT_rate_RP_CI*100&"%)" -> T7.28 x upper_CGT_rate_RP_CI (28%)
L80: =A32 -> T7.28 | M80: =TRUNC(box5.8,0) -> 0 | N80: £down | P80: =A33 -> T7.29 | Q80: =TRUNC(T7.28*upper_CGT_rate_RP_CI,2) -> 0 | R80: pdown
C82: Non-resident Capital Gains
I85: =" if box "&'Q4-Q5'!L40&" less than 0 (zero)" -> if box 5.36 less than 0 (zero) | M85: =" if box "&'Q4-Q5'!L40&" greater than 0 (zero)" -> if box 5.36 greater than 0 (zero)
I86: =H90&" = box "&'Q4-Q5'!L40&" (Absolute value)" -> T7.29A = box 5.36 (Absolute value) | M86: =L90&" = "&'Q4-Q5'!L40&" minus ("&'T7'!H105&" + "&'T7'!H119&")" -> T7.30 = 5.36 minus (T7.29B + T7.29C)
I87: else | M87: else
I88: =H90&" = 0 (zero)" -> T7.29A = 0 (zero) | M88: =L90&" = 0 (zero)" -> T7.30 = 0 (zero)
E89: Gain / loss | I89: end if | M89: end if | Q89: =L90&" x upper_CGT_rate_RP_CI ("&upper_CGT_rate_RP_CI*100&"%)" -> T7.30 x upper_CGT_rate_RP_CI (28%)
D90: =A46 -> 5.36 | E90: =box5.36 -> 0 | G90: Loss | H90: =A35 -> T7.29A | I90: =IF(box5.36<0,(ABS(box5.36)),0) -> 0 | L90: =A34 -> T7.30 | M90: =TRUNC(IF(box5.36>0,MAX(0,box5.36-(T7.29B+T7.29C)),0)) -> 0 | N90: £down | P90: =A38 -> T7.31 | Q90: =TRUNC(T7.30*upper_CGT_rate_RP_CI,2) -> 0 | R90: pdown
D91: Calculator check only
M93: =" if box "&'Q4-Q5'!L40&" greater than 0 (zero)" -> if box 5.36 greater than 0 (zero)
M94: =L98&" = ("&H105&" + "&H119&") minus box "&'Q4-Q5'!L40 -> T7.31A = (T7.29B + T7.29C) minus box 5.36
M95: else
M96: =L98&" = "&H90&" + "&H105&" + "&H119&"" -> T7.31A = T7.29A + T7.29B + T7.29C
M97: end if
K98: Unused loss | L98: =A39 -> T7.31A | M98: =IF(box5.36>0,MAX(0,(T7.29B+T7.29C)-box5.36),T7.29A+T7.29B+T7.29C) -> 0
I100: =" if box "&'Q4-Q5'!L42&" less than 0 (zero)" -> if box 5.36A less than 0 (zero) | M100: =" if box "&'Q4-Q5'!L42&" greater than 0 (zero)" -> if box 5.36A greater than 0 (zero)
I101: =H105&" = box "&'Q4-Q5'!L42&" (Absolute value)" -> T7.29B = box 5.36A (Absolute value) | M101: =L105&" = "&'Q4-Q5'!L42&" minus " &L98 -> T7.31B = 5.36A minus T7.31A
I102: else | M102: else
I103: =H105&" = 0 (zero)" -> T7.29B = 0 (zero) | M103: =L105&" = 0 (zero)" -> T7.31B = 0 (zero)
E104: Gain / loss | I104: end if | M104: end if
D105: =A47 -> 5.36A | E105: =box5.36A -> 0 | G105: Loss | H105: =A36 -> T7.29B | I105: =IF(box5.36A<0,(ABS(box5.36A)),0) -> 0 | L105: =A40 -> T7.31B | M105: =IF(box5.36A>0,MAX(0,box5.36A-T7.31A),0) -> 0
D106: Calculator check only
M107: =" if box "&'Q4-Q5'!L42&" greater than 0 (zero)" -> if box 5.36A greater than 0 (zero)
M108: =L112&" = "&L98&" minus "&'Q4-Q5'!L42 -> T7.31C = T7.31A minus 5.36A
M109: else
M110: =L112&" = "&L98&"" -> T7.31C = T7.31A
M111: end if
K112: Unused loss | L112: =A41 -> T7.31C | M112: =IF(box5.36A>0,MAX(0,T7.31A-box5.36A),T7.31A) -> 0
I114: =" if box "&'Q4-Q5'!L44&" less than 0 (zero)" -> if box 5.36B less than 0 (zero) | M114: =" if box "&'Q4-Q5'!L44&" greater than 0 (zero)" -> if box 5.36B greater than 0 (zero)
I115: =H119&" = box "&'Q4-Q5'!L44&" (Absolute value)" -> T7.29C = box 5.36B (Absolute value) | M115: =L119&" = "&'Q4-Q5'!L44&" minus " &L112 -> T7.31D = 5.36B minus T7.31C
I116: else | M116: else
I117: =H119&" = 0 (zero)" -> T7.29C = 0 (zero) | M117: =L119&" = 0 (zero)" -> T7.31D = 0 (zero)
E118: Gain / loss | I118: end if | M118: end if
D119: =A48 -> 5.36B | E119: =box5.36B -> 0 | G119: Loss | H119: =A37 -> T7.29C | I119: =IF(box5.36B<0,(ABS(box5.36B)),0) -> 0 | L119: =A42 -> T7.31D | M119: =IF(box5.36B>0,MAX(0,box5.36B-T7.31C),0) -> 0
D120: Calculator check only
M121: =L105&" + "&L119&" " -> T7.31B + T7.31D | Q121: =L122&" x Higher_rate_CGT ("&Higher_rate_CGT*100&"%) " -> T7.31E x Higher_rate_CGT (20%)
L122: =A43 -> T7.31E | M122: =TRUNC(T7.31B+T7.31D,0) -> 0 | N122: £down | P122: =A44 -> T7.31F | Q122: =TRUNC(T7.31E*Higher_rate_CGT,2) -> 0 | R122: pdown
M125: ="from box "&'Q4-Q5'!L28 -> from box 5.16 | Q125: =L126&" x Higher_rate_CGT ("&Higher_rate_CGT*100&"%) " -> T7.32 x Higher_rate_CGT (20%)
C126: Other property, assets and gains | L126: =A45 -> T7.32 | M126: =TRUNC(box5.16,0) -> 0 | N126: £down | P126: =A49 -> T7.33 | Q126: =TRUNC(T7.32*Higher_rate_CGT,2) -> 0 | R126: pdown
M128: ='Q4-Q5'!L33&" + "&'Q4-Q5'!L35 -> 5.17 + 5.17A | Q128: =L129&" x BADR_rate_CGT ("&BADR_rate_CGT*100&"%) " -> T7.34 x BADR_rate_CGT (10%)
C129: gains that qualify for BADR and/or IR | L129: =A50 -> T7.34 | M129: =TRUNC(box5.17+box5.17A,0) -> 0 | N129: £down | P129: =A51 -> T7.35 | Q129: =TRUNC(T7.34*BADR_rate_CGT,2) -> 0 | R129: pdown
Q131: =P80&" + "&P90&" + "&P122&" + "&P126&" + "&P129 -> T7.29 + T7.31 + T7.31F + T7.33 + T7.35
C132: Total Taxable Gains | P132: =A52 -> T7.36 | Q132: =T7.29+T7.31+T7.31F+T7.33+T7.35 -> 0 | R132: pdown
C134: Foreign Tax Credit Relief for foreign tax paid and Special Withholding Tax | M134: ="from box "&'Q4-Q5'!F40 -> from box 4.10
C135: deducted on chargeable gains reported on the ‘Trust and Estate | L135: =A53 -> T7.37 | M135: =box4.10 -> 0
C136: Capital Gains’ pages
M137: ="from box "&'Q4-Q5'!L8 -> from box 5.6
C138: Vulnerable beneficiary election - amount of relief claimed | L138: =A54 -> T7.38 | M138: =box5.6 -> 0
M140: ="from box "&'Q4-Q5'!L24 -> from box 5.14 | Q140: =P132&" minus ("&L135&" + "&L138&" + "&L141&")" -> T7.36 minus (T7.37 + T7.38 + T7.39)
C141: Vulnerable beneficiary election - amount of relief claimed | L141: =A55 -> T7.39 | M141: =box5.14 -> 0 | P141: =A56 -> T7.39A | Q141: =MAX(0,T7.36-(T7.37+T7.38+T7.39)) -> 0
M143: ='Q4-Q5'!L14&" + "&'Q4-Q5'!L48 -> 5.8A + 5.37
C144: Tax on gains already paid | L144: =A57 -> T7.40 | M144: =box5.8A+box5.37 -> 0
Q146: =P141&" minus "&L144 -> T7.39A minus T7.40
C147: Capital Gains Tax due | P147: =A58 -> T7.40A | Q147: =MAX(0,T7.39A-T7.40) -> 0
M149: =L144&" minus "&P141 -> T7.40 minus T7.39A
C150: Capital Gains overpaid | L150: T7.41 | M150: =MAX(0,T7.40-T7.39A) -> 0
M152: =P64&" minus "&P68 -> T7.25C minus T7.26
C153: Income Tax Due | L153: =A60 -> T7.41A | M153: =MAX(0,T7.25C-T7.26) -> 0
Q155: ="lower of "&L150&" and "&L153 -> lower of T7.41 and T7.41A
C156: minus Capital Gains Tax overpaid reducing Income Tax | P156: =A61 -> T7.41B | Q156: =MIN(T7.41,T7.41A) -> 0
M158: =L150&" minus "&L153 -> T7.41 minus T7.41A
C159: Capital Gains Tax overpaid amount remaining | L159: =A62 -> T7.42 | M159: =MAX(0,T7.41-T7.41A) -> 0
I164: =P71&" + "&P147 -> T7.27 + T7.40A
G165: Income Tax due before overpaid | H165: =A63 -> T7.42A | I165: =T7.27+T7.40A -> 0
I166: This box can be negative
Q168: =P71&" minus "&P156 -> T7.27 minus T7.41B
O169: Income Tax after deducting Capital Gains Tax overpaid | P169: =A64 -> T7.42B | Q169: =T7.27-T7.41B -> 0
Q170: This box can be negative
Q172: =P147&" + "&P169 -> T7.40A + T7.42B
C173: ="Income Tax and Capital Gains Tax due for "&Tax_year -> Income Tax and Capital Gains Tax due for 2022-23 | O173: CGT + other tax after overpaid tax set against it | P173: =A65 -> T7.43 | Q173: =T7.40A+T7.42C -> 0
C174: copy this figure to box 17.1 in the Trust and Estate Return | Q174: This box can be negative

Sheet T8
A1: T8.1 | D1: ="Stage "&A6&": Working out payments due by 31 January "&BCD_year -> Stage 8: Working out payments due by 31 January 2024
A3: T8.2 | D3: If any box in this section is negative substitute zero (‘0’)
A4: T8.3 | D4: pdown – truncate to 2 decimal places (to leave pounds and pence)
A6: 8 | D6: STAGE 8 All trustees and personal representatives complete this section
A7: T8.4 | C7: Box T8.2 | D7: Enter in box T8.2 the amount of any | L7: ="from "&'T7'!P173 -> from T7.43
A8: T8.5 | D8: ="repayment of "&Tax_year&" tax in box 21.6 in the Trust and" -> repayment of 2022-23 tax in box 21.6 in the Trust and | I8: ="Income Tax and Capital Gains Tax due for "&Tax_year -> Income Tax and Capital Gains Tax due for 2022-23 | K8: =A1 -> T8.1 | L8: =T7.43 -> 0
A9: T8.6 | D9: Estate Tax Return. Do not include any repayments from | K9: This box can be negative
A10: T8.7 | D10: trading losses carried back to an earlier year.
A11: T8.8 | L11: ="from box "&'Q10-Q21'!L28 -> from box 21.6
A12: T8.9 | C12: Box T8.3 | D12: An adjustment may be required to increase | G12: =Tax_year&" tax already refunded" -> 2022-23 tax already refunded | K12: =A3 -> T8.2 | L12: =box21.6 -> 0
A13: T8.10 | D13: ="the tax for "&Tax_year&" because:" -> the tax for 2022-23 because:
A14: T8.11 | D14: • you claim farmers' averaging, or | G14: Any adjustment increasing the tax due, | L14: ="from box "&'Q10-Q21'!L20 -> from box 17.2
A15: T8.12 | D15: • you claim averaging of literary or artistic income, or | G15: calculated by reference to earlier years | K15: =A4 -> T8.3 | L15: =box17.2 -> 0
A16: T8.13 | D16: • you claim to pay tax on post-cessation receipts by | G16: ="(see notes and on on the Trust and Estate Tax Return)" -> (see notes and on on the Trust and Estate Tax Return) | O16: =K8&" + "&K12&" + "&K15 -> T8.1 + T8.2 + T8.3
A17: T8.14 | D17: reference to the year the business ceased. | G17: ="Copy this figure to "&'Q10-Q21'!L20&" in the Trust and Estate Return" -> Copy this figure to 17.2 in the Trust and Estate Return | N17: =A7 -> T8.4 | O17: =T8.1+T8.2+T8.3 -> 0
A18: T8.15 | D18: Calculate the difference between the actual liability for | N18: This box can be negative
D19: the earlier year, and the liability that would have arisen
D20: for the earlier year if the averaged profit or post-cessation
D21: receipt had been included in the Trust and Estate
D22: Tax Return for that year. Work out the increase in tax by | G22: Any adjustment reducing the tax due,
D23: reference to the tax rate and circumstances for the earlier | G23: calculated by reference to earlier years | L23: ="from box "&'Q10-Q21'!L22 -> from box 17.4
D24: year. Include any entry in box 1L.79 of the 'Trust and | G24: ="(see notes and on the Trust and Estate Tax Return," -> (see notes and on the Trust and Estate Tax Return, | K24: =A8 -> T8.5 | L24: =box17.4 -> 0
D25: Estate Lloyd's Underwriters' pages. Enter the amount in | G25: tick box 17.3 and copy this figure
D26: box T8.3. Copy this figure to box 17.2 in the Trust and | G26: =" to "&'Q10-Q21'!L22&" in the Trust and Estate Return)" -> to 17.4 in the Trust and Estate Return)
D27: Estate Tax Return. | L27: ="from box "&'Q10-Q21'!L24 -> from box 17.9
D28: ="The adjustment relates to "&Tax_year&", even though it is" -> The adjustment relates to 2022-23, even though it is | G28: ="any "&next_year&" repayment (see notes)" -> any 2023-24 repayment (see notes) | K28: =A9 -> T8.6 | L28: =box17.9 -> 0
D29: calculated by reference to the circumstances of the
D30: earlier year. If you need help, ask us or your tax adviser. | O30: =K24&" + "&K28&" + "&K31 -> T8.5 + T8.6 + T8.7
G31: Payments already made | K31: =A10 -> T8.7 | N31: =A11 -> T8.8 | O31: =T8.5+T8.6+T8.7 -> 0
C32: Box T8.5 | D32: An adjustment may be required to decrease | G32: (from your Statements of Account)
D33: ="the tax for "&Tax_year&", calculated by reference to an earlier" -> the tax for 2022-23, calculated by reference to an earlier | O33: =N17&" minus "&N31 -> T8.4 minus T8.8
D34: year, because: | G34: ="Tax payable for "&Tax_year -> Tax payable for 2022-23 | N34: =A12 -> T8.9 | O34: =T8.4-T8.8 -> 0
D35: • you are claiming loss relief calculated by reference to | N35: This box can be negative
D36: your income of an earlier year or years, or | G36: ="If box "&N34&" is positive, this is the tax you owe" -> If box T8.9 is positive, this is the tax you owe
D37: • you are claiming farmers' averaging. | G37: ="If box "&N34&" is negative, this is the tax we owe you" -> If box T8.9 is negative, this is the tax we owe you
D38: Do not include losses for which you have previously
D39: claimed relief. Calculate the difference between the | F39: ="CALCULATION OF PAYMENT ON ACCOUNT FOR "&next_year -> CALCULATION OF PAYMENT ON ACCOUNT FOR 2023-24
D40: actual liability for the earlier year, and the liability that
D41: would have arisen for the earlier year if the loss or | G41: ="If "&'T7'!P71&" < £1,000 then Payment on Account (box "&N67&") = 0" -> If T7.27 < £1,000 then Payment on Account (box T8.14) = 0
D42: averaged profits had been included in the Trust and | G42: Else
D43: Estate Tax Return for that year. Work out the decrease in
D44: tax by reference to the tax rate and circumstances for | L44: ="from "&'T7'!P71 -> from T7.27
D45: the earlier year. Enter it in box T8.5. Copy this figure to | G45: ="Income Tax bill for "&Tax_year -> Income Tax bill for 2022-23 | K45: =A13 -> T8.10 | L45: =T7.27 -> 0
D46: box 17.4 and tick box 17.3 in the Trust and Estate | K46: This box can be negative
D47: Tax Return. | G47: ="If box "&K45&" is less than £"&POA_limit&", you do not need to make payments on account. Tick box 17.6" -> If box T8.10 is less than £1000, you do not need to make payments on account. Tick box 17.6
D48: ="The adjustment relates to "&Tax_year&" even though it is" -> The adjustment relates to 2022-23 even though it is | G48: in the Trust and Estate Tax Return. Otherwise, leave box 17.6 blank and continue.
D49: calculated by reference to the circumstances of the
D50: earlier year. If you need help, ask us or your tax adviser. | G50: Tax deducted at source, | L50: ='T7'!L30&" + "&'T7'!L60&" + "&'T7'!P68 -> T7.10 + T7.24 + T7.26
G51: notional tax, tax credit, etc. | K51: =A14 -> T8.11 | L51: =T7.10+T7.24+T7.26 -> 0
L53: =K45&" + "&K51 -> T8.10 + T8.11
K54: =A15 -> T8.12 | L54: =T8.10+T8.11 -> 0
L56: =K54&" x 20%" -> T8.12 x 20%
K57: =A16 -> T8.13 | L57: =TRUNC((T8.12*20%)+0.0099,2) -> 0 | M57: pdown
G59: ="If box "&K45&" is less than "&K57&", you do not need to make payments on account. Tick box 17.6" -> If box T8.10 is less than T8.13, you do not need to make payments on account. Tick box 17.6
G60: in the Trust and Estate Tax Return. Otherwise, leave box 17.6 blank and continue.
O62: ="if "&K45&" < "&K57 -> if T8.10 < T8.13
O63: =N67&" = 0 (zero)" -> T8.14 = 0 (zero)
O64: else
O65: =K45&" x 50%" -> T8.10 x 50%
O66: end if
G67: ="The amount of each payment on account for "&next_year -> The amount of each payment on account for 2023-24 | N67: =A17 -> T8.14 | O67: =IF(T8.10<1000,0,IF(T8.10<T8.13,0,TRUNC(T8.10*50%,2))) -> 0 | P67: pdown
G69: End if
O70: =N34&" + "&N67 -> T8.9 + T8.14
G71: ="Payment due by 31 January "&BCD_year -> Payment due by 31 January 2024 | N71: =A18 -> T8.15 | O71: =T8.9+T8.14 -> 0
N72: This box can be negative
L73: ="If box "&N71&" is positive, this is the tax you owe" -> If box T8.15 is positive, this is the tax you owe
L74: ="If box "&N71&" is negative, this is the tax we owe you" -> If box T8.15 is negative, this is the tax we owe you

Sheet T9
A1: 9 | B1: ="Stage "&A1&": calculation of tax pool, for "&Tax_year -> Stage 9: calculation of tax pool, for 2022-23
A2: T9.1 | C2: This section should be completed by trustees who have made discretionary payments to
A3: T9.2 | C3: beneficiaries (see question 14 on the Tax Return)
A4: T9.3
A5: T9.4 | C5: When you make discretionary payments that are income in the hands of the beneficiaries, those payments carry
A6: T9.5 | C6: a tax credit. The tax credits have to be matched as far as possible with the tax payable by you on the trust income | Y6: =M53&" minus "&M73 -> T9.10 minus T9.19
A7: T9.6 | C7: or tax credits attached to the income you have received. If the tax credits attaching to the payments to beneficiaries | X7: =A21 -> T9.20 | Y7: =IF(SIT_tax_pool,"",MAX(0,T9.10-T9.19)) -> 0
A8: T9.7 | C8: exceed the total of tax credits and tax payments (the tax pool), you have to pay the difference to us.
A9: T9.8 | C9: Foreign tax credit relief, non-payable tax credits on dividends and notional tax on life policy gains are not available | X9: End If
A10: T9.9 | C10: for repayment and cannot be used to frank tax credits allowed to beneficiaries.
A11: T9.10 | C11: The calculation excludes from the tax pool the proportion of such foreign tax and notional tax credits which relates | Y11: ="higher of "&M28&" and ("&M34&" or "&X7&")" -> higher of T9.1 and (T9.3 or T9.20)
A12: T9.11 | C12: to income which is to be accumulated or is payable at the trustees' discretion. Any excess of the tax credits attaching to | V12: Pool available | X12: =A22 -> T9.21 | Y12: =IF(N31>0,MAX(T9.1,T9.3),MAX(T9.1,T9.20)) -> 0
A13: T9.12 | C13: payments to beneficiaries over your available tax credits and tax payments (the tax pool) is carried back to Stage 7 and
A14: T9.13 | C14: ="added to the tax bill for "&Tax_year&". Any excess in the tax pool is carried forward to the tax pool for the tax year "&next_year&"." -> added to the tax bill for 2022-23. Any excess in the tax pool is carried forward to the tax pool for the tax year 2023-24. | U14: ="from "&'T7'!L26 -> from T7.9
A15: T9.14 | C15: Tax paid in a year when the trustees are non-resident does not enter the tax pool. | S15: Relief for finance costs | T15: =A23 -> T9.22A | U15: =IF(Resident,T7.9,0) -> 0
A16: T9.15
A17: T9.16 | C17: If any box in this section is negative substitute zero (‘0’)
A18: T9.17 | C18: pdown – truncate to 2 decimal places (to leave pounds and pence)
A19: T9.18
A20: T9.19
A21: T9.20 | C21: If 8.12 = ‘Y’ and box 13A.1 is null | U21: ="from box "&'Q10-Q21'!G9 -> from box 10.1B
A22: T9.21 | C22: Or trust-type is not RAT-rate | S22: Vulnerable beneficiary relief | T22: =A24 -> T9.22 | U22: =IF(Resident,box10.1B,0) -> 0
A23: T9.22A | C23: Or box 6.2 =Y then
A24: T9.22 | C24: Set boxes T9.1 to T9.29 to zero | U24: ="from box "&'Q10-Q21'!G11 -> from box 10.1C | Y24: =T15&" + "&T22&" + "&T25 -> T9.22A + T9.22 + T9.23
A25: T9.23 | C25: Else | S25: Employee benefit relief | T25: =A25 -> T9.23 | U25: =IF(Resident,box10.1C,0) -> 0 | X25: =A26 -> T9.24 | Y25: =T9.22A+T9.22+T9.23 -> 0
A26: T9.24 | C26: If trust-type = RAT-rate and box 6.2 = N then
A27: T9.25 | N27: ="from box "&'Q10-Q21'!L11 -> from box 14.15 | Y27: =X12&" minus "&X25 -> T9.21 minus T9.24
A28: T9.26 | K28: Amount of tax pool brought forward | M28: =A2 -> T9.1 | N28: =IF(Resident,box14.15,0) -> 0 | X28: =A27 -> T9.25 | Y28: =MAX(0,T9.21-T9.24) -> 0
A29: T9.27
A30: T9.28 | N30: ="from box "&'Q10-Q21'!G32 -> from box 13A.1 | Y30: ="total boxes "&'Q10-Q21'!L3&" + "&'Q10-Q21'!L4&" + "&'Q10-Q21'!L5&" + "&'Q10-Q21'!L6&" + "&'Q10-Q21'!L7&" + "&'Q10-Q21'!L8&" + "&'Q10-Q21'!L9 -> total boxes 14.2 + 14.4 + 14.6 + 14.8 + 14.1 + 14.12 + 14.14
A31: T9.29 | K31: Amount of tax pool applicable to income that is not settlor interested | M31: =A3 -> T9.2 | N31: =IF(Resident,box13A.1,0) -> 0 | V31: Tax on payments to beneficiaries | X31: =A28 -> T9.26 | Y31: =IF(Resident,box14.2+box14.4+box14.6+box14.8+box14.10+box14.12+box14.14,0) -> 0
N33: =M28&" + "&M31 -> T9.1 + T9.2 | Y33: =X31&" multipled by "&Trust_rate*100&"/"&(1-Trust_rate)*100 -> T9.26 multipled by 45/55
M34: =A4 -> T9.3 | N34: =T9.1+T9.2 -> 0 | X34: =A29 -> T9.27 | Y34: =TRUNC(T9.26*(Trust_rate/(1-Trust_rate)),2) -> 0
C36: ="If you have completed box 8.12 ignore boxes "&M41&" to "&X7&" and continue from box "&X12 -> If you have completed box 8.12 ignore boxes T9.4 to T9.20 and continue from box T9.21 | Y36: =X28&" minus "&X34 -> T9.25 minus T9.27
C37: ="otherwise continue from box "&M41 -> otherwise continue from box T9.4 | V37: Tax pool to carry forward to next year | X37: =A30 -> T9.28 | Y37: =MAX(0,T9.25-T9.27) -> 0
A38: =box13A.1>0 -> FALSE | C38: If 8.12 = Y | V38: (if negative amount enter zero)
C39: ="Set boxes "&M41&" to "&X7&" = zero" -> Set boxes T9.4 to T9.20 = zero | Y39: =X34&" minus "&X28 -> T9.27 minus T9.25
C40: Else | N40: ="from "&'T3'!R34 -> from T3.29 | V40: Additional tax due | X40: =A31 -> T9.29 | Y40: =MAX(0,T9.27-T9.25) -> 0
K41: Trust rate tax charged on dividend type income | M41: =A5 -> T9.4 | N41: =IF(Resident,IF(SIT_tax_pool,"",T3.29),0) -> 0 | V41: (if negative amount enter zero) | Y41: ="Copy to "&'T7'!L57 -> Copy to T7.22
K43: ='T3'!O14&" minus "&'T3'!O22 -> T3.20 minus T3.24 | N43: =J44&" x BR_rate "&BR_rate*100&"%" -> T9.5 x BR_rate 20% | X43: Else
I44: Non-savings income etc. in standard rate band | J44: =A6 -> T9.5 | K44: =IF(Resident,IF(SIT_tax_pool,"",MAX(0,T3.20-T3.24)),0) -> 0 | M44: =A7 -> T9.6 | N44: =IF(SIT_tax_pool,"",TRUNC(T9.5*BR_rate,2)) -> 0 | O44: pdown | X44: ="Set "&X40&" to zero" -> Set T9.29 to zero
X45: End If
N46: ="from "&'T3'!R31 -> from T3.28 | X46: End If
K47: Tax charged on income and deemed income at the trust rate | M47: =A8 -> T9.7 | N47: =IF(Resident,IF(SIT_tax_pool,"",T3.28),0) -> 0
K49: ="lower of "&'T3'!R14&" and "&'T3'!R18 -> lower of T3.21 and T3.23 | N49: =J50&" x DivBR_rate "&DivBR_rate*100&"%" -> T9.8 x DivBR_rate 8.75%
I50: Dividends covered by the Standard Rate Band | J50: =A9 -> T9.8 | K50: =IF(Resident,IF(SIT_tax_pool,"",MIN(T3.21,T3.23)),0) -> 0 | M50: =A10 -> T9.9 | N50: =IF(SIT_tax_pool,"",TRUNC(T9.8*DivBR_rate,2)) -> 0 | O50: pdown
N52: =M28&" + "&M41&" + "&M44&" + "&M47&" + "&M50 -> T9.1 + T9.4 + T9.6 + T9.7 + T9.9
M53: =A11 -> T9.10 | N53: =IF(SIT_tax_pool,"",T9.1+T9.4+T9.6+T9.7+T9.9) -> 0
H55: ="from "&'T6'!N25 -> from T6.8
F56: non repayable tax on dividend type income | G56: =A12 -> T9.11 | H56: =IF(Resident,IF(SIT_tax_pool,"",T6.8),0) -> 0
H58: ="from "&'T3'!R40 -> from T3.31
F59: Tax charged on dividend type income not | G59: =A13 -> T9.12 | H59: =IF(Resident,IF(SIT_tax_pool,"",T3.31),0) -> 0
F60: charged at the trust dividend rate | K60: =G56&" minus "&G59 -> T9.11 minus T9.12
J61: =A14 -> T9.13 | K61: =IF(SIT_tax_pool,"",MAX(0,T9.11-T9.12)) -> 0
H63: ="from "&'T6'!N32 -> from T6.12
F64: non repayable tax on deemed income | G64: =A15 -> T9.14 | H64: =IF(Resident,IF(SIT_tax_pool,"",T6.12),0) -> 0
E66: ="smaller of "&'T3'!O18&" and "&'T6'!H32 -> smaller of T3.22 and T6.11 | H66: =D67&" x BR_rate "&BR_rate*100&"%" -> T9.15 x BR_rate 20% | K66: =G64&" minus "&G67 -> T9.14 minus T9.16
D67: =A16 -> T9.15 | E67: =IF(Resident,IF(SIT_tax_pool,"",MIN(T3.22,T6.11)),0) -> 0 | G67: =A17 -> T9.16 | H67: =IF(SIT_tax_pool,"",TRUNC(T9.15*BR_rate,2)) -> 0 | I67: pdown | J67: =A18 -> T9.17 | K67: =IF(SIT_tax_pool,"",MAX(0,T9.14-T9.16)) -> 0
K69: ="from box "&'Q4-Q5'!F35 -> from box 4.9A
I70: foreign tax credit relief | J70: =A19 -> T9.18 | K70: =IF(Resident,IF(SIT_tax_pool,"",box4.9A),0) -> 0
N72: =J61&" + "&J67&" + "&J70 -> T9.13 + T9.17 + T9.18
K73: Total deduction of non repayable tax etc. | M73: =A20 -> T9.19 | N73: =IF(SIT_tax_pool,"",T9.13+T9.17+T9.18) -> 0

Sheet T23
A1: 23 | B1: Pension payment charges
A2: T23.1
A3: T23.2 | B3: If any box in this section is negative substitute zero (‘0’)
A4: T23.3 | B4: £down – truncate pence to leave integer pounds
A5: T23.4 | B5: pdown – truncate to 2 decimal places (to leave pounds and pence)
A6: T23.5
A7: T23.6 | C7: ="If trust-type = personal representative and boxes "&'Q23'!G4&" to "&'Q23'!G15&" >0 " -> If trust-type = personal representative and boxes 23.1 to 23.6 >0
A8: T23.7
A9: T23.8
A10: T23.9
A11: T23.10
A12: T23.11 | B12: Unauthorised payments | E12: ="from box "&'Q23'!G4 -> from box 23.1 | I12: =D13&" x Overseas_surcharge "&Overseas_surcharge*100&"%" -> T23.1 x Overseas_surcharge 25%
A13: T23.12 | C13: 'Not subject to Surcharge' amount | D13: =A2 -> T23.1 | E13: =TRUNC(box23.1,0) -> 0 | F13: £down | H13: =A3 -> T23.2 | I13: =TRUNC(T23.1*Overseas_surcharge,2) -> 0 | J13: pdown
A14: T23.13
A15: T23.14 | E15: ="from box "&'Q23'!D6 -> from box 23.2 | I15: ="lower of "&H13&" and "&D16 -> lower of T23.2 and T23.3
A16: T23.15 | C16: 'Subject to Surcharge' amount | D16: =A4 -> T23.3 | E16: =TRUNC(box23.2,0) -> 0 | F16: £down | H16: =A5 -> T23.4 | I16: =MIN(T23.2,T23.3) -> 0
A17: T23.16
A18: T23.17 | I18: =H13&" minus "&H16 -> T23.2 minus T23.4
A19: T23.18 | C19: Overseas transfer charge due | H19: =A6 -> T23.5 | I19: =MAX(0,T23.2-T23.4) -> 0
A20: T23.19
A21: T23.20 | B21: Pension payment charges
A22: T23.21
A23: T23.22 | B23: Unauthorised payments | E23: ="from box "&'Q23'!G8 -> from box 23.3 | I23: =D24&" x Pen_Upayts "&Pen_Upayts*100&"%" -> T23.6 x Pen_Upayts 40%
A24: T23.23 | C24: 'Not subject to Surcharge' amount | D24: =A7 -> T23.6 | E24: =TRUNC('Q23'!H8,0) -> 0 | F24: £down | H24: =A8 -> T23.7 | I24: =TRUNC(T23.6*Pen_Upayts,0) -> 0 | J24: pdown
A25: T23.24
A26: T23.25 | E26: ="from box "&'Q23'!G10 -> from box 23.4 | I26: =D27&" x Upayts_surcharge "&Upayts_surchage*100&"%" -> T23.8 x Upayts_surcharge 55%
A27: T23.26 | C27: 'Subject to Surcharge' amount | D27: =A9 -> T23.8 | E27: =TRUNC('Q23'!H10,0) -> 0 | F27: £down | H27: =A10 -> T23.9 | I27: =TRUNC(T23.8*Upayts_surchage,2) -> 0 | J27: pdown
A28: T23.27
I29: ="Unauthorised payment charge and surcharge ("&H24&" + "&H27&")" -> Unauthorised payment charge and surcharge (T23.7 + T23.9)
H30: =A11 -> T23.10 | I30: =T23.7+T23.9 -> 0
E32: ="from box "&'Q23'!D12 -> from box 23.5 | I32: ="lower of "&H30&" and "&D33 -> lower of T23.10 and T23.11
C33: Foreign tax deducted | D33: =A12 -> T23.11 | E33: ='Q23'!E12 -> 0 | H33: =A13 -> T23.12 | I33: =MIN(T23.10,T23.11) -> 0
I35: =H30&" minus "&H33 -> T23.10 minus T23.12
G36: Unauthorised payment charge and surcharge due | H36: =A14 -> T23.13 | I36: =MAX(0,T23.10-T23.12) -> 0
B38: (Overseas) short service refund charge
C39: Taxable short service refund of contributions | E39: ="from box "&'Q23'!G15 -> from box 23.6
C40: from an overseas pension scheme | D40: =A15 -> T23.14 | E40: =TRUNC('Q23'!H15,0) -> 0 | F40: £down
C43: Short service refund Lower Rate band | D43: =A16 -> T23.15 | E43: =SSR_lower_band -> 20000
I45: =D46&" x SSR_lower_rate "&SSR_lower_rate*100&"%" -> T23.16 x SSR_lower_rate 20%
C46: ="lower of "&D40&" and "&D43 -> lower of T23.14 and T23.15 | D46: =A17 -> T23.16 | E46: =MIN(T23.14,T23.15) -> 0 | H46: =A18 -> T23.17 | I46: =TRUNC(T23.16*SSR_lower_rate,2) -> 0 | J46: pdown
I48: =D49&" x SSR_higher_rate "&SSR_higher_rate*100&"%" -> T23.18 x SSR_higher_rate 50%
C49: =D40&" minus "&D46 -> T23.14 minus T23.16 | D49: =A19 -> T23.18 | E49: =MAX(0,T23.14-T23.16) -> 0 | H49: =A20 -> T23.19 | I49: =TRUNC(T23.18*SSR_higher_rate,2) -> 0 | J49: pdown
I51: =H46&" + "&H49 -> T23.17 + T23.19
G52: Short service refund charge | H52: =A21 -> T23.20 | I52: =T23.17+T23.19 -> 0
B54: Overseas special tax charges due
C55: Taxable lump sum death benefit payment | E55: ="from box "&'Q23'!G18 -> from box 23.7 | I55: =D56&" x SLSDB_rate "&SLSDB_rate*100&"%" -> T23.21 x SLSDB_rate 45%
C56: from an overseas pension scheme | D56: =A22 -> T23.21 | E56: =TRUNC('Q23'!H18,0) -> 0 | F56: £down | H56: =A23 -> T23.22 | I56: =TRUNC(T23.21*SLSDB_rate,2) -> 0 | J56: pdown
I58: =H52&" + "&H56 -> T23.20 + T23.22
H59: =A24 -> T23.23 | I59: =T23.20+T23.22 -> 0
E61: ="from box "&'Q23'!D23 -> from box 23.8 | I61: ="lower of "&H59&" and "&D62 -> lower of T23.23 and T23.24
C62: Foreign tax deducted | D62: =A25 -> T23.24 | E62: ='Q23'!E23 -> 0 | H62: =A26 -> T23.25 | I62: =MIN(T23.23,T23.24) -> 0
I64: =H59&" minus "&H62 -> T23.23 minus T23.25
G65: Special lump sum death benefit charge due | H65: =A27 -> T23.26 | I65: =MAX(0,T23.23-T23.25) -> 0
I67: =H19&" + "&H36&" + "&H65 -> T23.5 + T23.13 + T23.26
H68: =A28 -> T23.27 | I68: =T23.5+T23.13+T23.26 -> 0
I69: ="Copy box "&H68&" to box "&'T7'!L51 -> Copy box T23.27 to box T7.18

Sheet Test Cases
A1: 51
A3: Selected | I3: Number of recorded test cases | J3: =data!K1 -> 50
A4: Case | F4: 6 | G4: 7 | H4: 8 | I4: 9 | J4: 10 | K4: 11 | L4: 12 | M4: 13 | N4: 14 | O4: 15 | P4: 16 | Q4: 17 | R4: 18 | S4: 19 | T4: 20 | U4: 21 | V4: 22 | W4: 23 | X4: 24 | Y4: 25 | Z4: 26 | AA4: 27 | AB4: 28 | AC4: 29 | AD4: 30 | AE4: 31 | AF4: 32 | AG4: 33 | AH4: 34 | AI4: 35 | AJ4: 36 | AK4: 37 | AL4: 38 | AM4: 39 | AN4: 40 | AO4: 41 | AP4: 42 | AQ4: 43 | AR4: 44 | AS4: 45 | AT4: 46 | AU4: 47 | AV4: 48 | AW4: 49 | AX4: 50 | AY4: 51 | AZ4: 52 | BA4: 53 | BB4: 54 | BC4: 55 | BD4: 56 | BE4: 57 | BF4: 58 | BG4: 59 | BH4: 60 | BI4: 61 | BJ4: 62 | BK4: 63 | BL4: 64 | BM4: 65 | BN4: 66 | BO4: 67 | BP4: 68 | BQ4: 69 | BR4: 70 | BS4: 71 | BT4: 72 | BU4: 73 | BV4: 74 | BW4: 75 | BX4: 76 | BY4: 77 | BZ4: 78 | CA4: 79 | CB4: 80 | CC4: 81 | CD4: 82 | CE4: 83 | CF4: 84 | CG4: 85 | CH4: 86 | CI4: 87 | CJ4: 88 | CK4: 89 | CL4: 90 | CM4: 91 | CN4: 92 | CO4: 93 | CP4: 94 | CQ4: 95 | CR4: 96 | CS4: 97 | CT4: 98 | CU4: 99 | CV4: 100 | CW4: 101 | CX4: 102 | CY4: 103 | CZ4: 104 | DA4: 105 | DB4: 106 | DC4: 107 | DD4: 108 | DE4: 109 | DF4: 110 | DG4: 111 | DH4: 112 | DI4: 113 | DJ4: 114 | DK4: 115 | DL4: 116 | DM4: 117 | DN4: 118 | DO4: 119 | DP4: 120 | DQ4: 121 | DR4: 122
A5: Number | F5: Q1-Q3 | G5: =COUNTIF(G7:AA7,">0") -> 0 | AB5: Q4-Q5 | AC5: =COUNTIF(AB7:BE7,">0") -> 2 | BF5: Q6 | BG5: Q8 | BJ5: Q9 | BK5: =COUNTIF(BJ7:CC7,">0") -> 1 | CD5: Q10-Q21 | CE5: =COUNTIF(CD7:DA7,">0") -> 0 | DB5: Q17 | DH5: Q21 | DJ5: Q23 | DK5: =COUNTIF(DJ7:DR7,">0") -> 0
A6: 32 | B6: Notes | F6: 1.85 | G6: 1.92 | H6: 1.97 | I6: 1.98 | J6: 1L.8 | K6: 1L.14 | L6: 1L.17 | M6: 1L.25 | N6: 1L.53 | O6: 1L.85 | P6: 1L.91 | Q6: 2.15 | R6: 2.22 | S6: 2.24 | T6: 3.15(1) | U6: 3.15(2) | V6: 3.21 | W6: 3.22 | X6: 3.42 | Y6: 3.43 | Z6: 3.46 | AA6: 3.47 | AB6: 4.1A | AC6: 4.1 | AD6: 4.2A | AE6: 4.2 | AF6: 4.2B | AG6: 4.2C | AH6: 4.3 | AI6: 4.4 | AJ6: 4.4A | AK6: 4.4B | AL6: 4.5 | AM6: 4.6 | AN6: 4.8 | AO6: 4.9 | AP6: 4.9A | AQ6: 4.10 | AR6: 4.10A | AS6: 4.30A | AT6: 4.37A | AU6: 5.6 | AV6: 5.8 | AW6: 5.8A | AX6: 5.14 | AY6: 5.16 | AZ6: 5.17 | BA6: 5.17A | BB6: 5.36 | BC6: 5.36A | BD6: 5.36B | BE6: 5.37 | BF6: 6.2 | BG6: 8.2 | BH6: 8.4 | BI6: 8.16 | BJ6: 9.1 | BK6: 9.3 | BL6: 9.4 | BM6: 9.5 | BN6: 9.6 | BO6: 9.8 | BP6: 9.9 | BQ6: 9.10 | BR6: 9.11 | BS6: 9.12 | BT6: 9.13 | BU6: 9.14 | BV6: 9.16 | BW6: 9.18 | BX6: 9.19 | BY6: 9.21 | BZ6: 9.23 | CA6: 9.24 | CB6: 9.26 | CC6: 9a.1 | CD6: 10.1A | CE6: 10.3A | CF6: 10.4A | CG6: 10.6A | CH6: 10.7A | CI6: 10.1B | CJ6: 10.1C | CK6: 11.2 | CL6: 13.7 | CM6: 13.11 | CN6: 13.13 | CO6: 13.17 | CP6: 13.19 | CQ6: 13.20 | CR6: 13.21 | CS6: 13A.1 | CT6: 14.2 | CU6: 14.4 | CV6: 14.6 | CW6: 14.8 | CX6: 14.10 | CY6: 14.12 | CZ6: 14.14 | DA6: 14.15 | DB6: 17 | DC6: 17.1 | DD6: 17.2 | DE6: 17.4 | DF6: 17.9 | DG6: 17.10 | DH6: 21.6 | DI6: 21.6B | DJ6: 23.1 | DK6: 23.2 | DL6: 23.3 | DM6: 23.4 | DN6: 23.5 | DO6: 23.6 | DP6: 23.7 | DQ6: 23.7A | DR6: 23.8
A7: Test case | C7: 17.1 (Cust Calc) | D7: Output Calc | E7: POA | F7: =IF(VLOOKUP($A$6,$A$8:F57,F4,TRUE)="",0,VLOOKUP($A$6,$A$8:F57,F4,TRUE)) -> 0 | G7: =IF(VLOOKUP($A$6,$A$8:G57,G4,TRUE)="",0,VLOOKUP($A$6,$A$8:G57,G4,TRUE)) -> 0 | H7: =IF(VLOOKUP($A$6,$A$8:H57,H4,TRUE)="",0,VLOOKUP($A$6,$A$8:H57,H4,TRUE)) -> 0 | I7: =IF(VLOOKUP($A$6,$A$8:I57,I4,TRUE)="",0,VLOOKUP($A$6,$A$8:I57,I4,TRUE)) -> 0 | J7: =IF(VLOOKUP($A$6,$A$8:J57,J4,TRUE)="",0,VLOOKUP($A$6,$A$8:J57,J4,TRUE)) -> 0 | K7: =IF(VLOOKUP($A$6,$A$8:K57,K4,TRUE)="",0,VLOOKUP($A$6,$A$8:K57,K4,TRUE)) -> 0 | L7: =IF(VLOOKUP($A$6,$A$8:L57,L4,TRUE)="",0,VLOOKUP($A$6,$A$8:L57,L4,TRUE)) -> 0 | M7: =IF(VLOOKUP($A$6,$A$8:M57,M4,TRUE)="",0,VLOOKUP($A$6,$A$8:M57,M4,TRUE)) -> 0 | N7: =IF(VLOOKUP($A$6,$A$8:N57,N4,TRUE)="",0,VLOOKUP($A$6,$A$8:N57,N4,TRUE)) -> 0 | O7: =IF(VLOOKUP($A$6,$A$8:O57,O4,TRUE)="",0,VLOOKUP($A$6,$A$8:O57,O4,TRUE)) -> 0 | P7: =IF(VLOOKUP($A$6,$A$8:P57,P4,TRUE)="",0,VLOOKUP($A$6,$A$8:P57,P4,TRUE)) -> 0 | Q7: =IF(VLOOKUP($A$6,$A$8:Q57,Q4,TRUE)="",0,VLOOKUP($A$6,$A$8:Q57,Q4,TRUE)) -> 0 | R7: =IF(VLOOKUP($A$6,$A$8:R57,R4,TRUE)="",0,VLOOKUP($A$6,$A$8:R57,R4,TRUE)) -> 0 | S7: =IF(VLOOKUP($A$6,$A$8:S57,S4,TRUE)="",0,VLOOKUP($A$6,$A$8:S57,S4,TRUE)) -> 0 | T7: =IF(VLOOKUP($A$6,$A$8:T57,T4,TRUE)="",0,VLOOKUP($A$6,$A$8:T57,T4,TRUE)) -> 0 | U7: =IF(VLOOKUP($A$6,$A$8:U57,U4,TRUE)="",0,VLOOKUP($A$6,$A$8:U57,U4,TRUE)) -> 0 | V7: =IF(VLOOKUP($A$6,$A$8:V57,V4,TRUE)="",0,VLOOKUP($A$6,$A$8:V57,V4,TRUE)) -> 0 | W7: =IF(VLOOKUP($A$6,$A$8:W57,W4,TRUE)="",0,VLOOKUP($A$6,$A$8:W57,W4,TRUE)) -> 0 | X7: =IF(VLOOKUP($A$6,$A$8:X57,X4,TRUE)="",0,VLOOKUP($A$6,$A$8:X57,X4,TRUE)) -> 0 | Y7: =IF(VLOOKUP($A$6,$A$8:Y57,Y4,TRUE)="",0,VLOOKUP($A$6,$A$8:Y57,Y4,TRUE)) -> 0 | Z7: =IF(VLOOKUP($A$6,$A$8:Z57,Z4,TRUE)="",0,VLOOKUP($A$6,$A$8:Z57,Z4,TRUE)) -> 0 | AA7: =IF(VLOOKUP($A$6,$A$8:AA57,AA4,TRUE)="",0,VLOOKUP($A$6,$A$8:AA57,AA4,TRUE)) -> 0 | AB7: =IF(VLOOKUP($A$6,$A$8:AB57,AB4,TRUE)="",0,VLOOKUP($A$6,$A$8:AB57,AB4,TRUE)) -> 0 | AC7: =IF(VLOOKUP($A$6,$A$8:AC57,AC4,TRUE)="",0,VLOOKUP($A$6,$A$8:AC57,AC4,TRUE)) -> 0 | AD7: =IF(VLOOKUP($A$6,$A$8:AD57,AD4,TRUE)="",0,VLOOKUP($A$6,$A$8:AD57,AD4,TRUE)) -> 0 | AE7: =IF(VLOOKUP($A$6,$A$8:AE57,AE4,TRUE)="",0,VLOOKUP($A$6,$A$8:AE57,AE4,TRUE)) -> 0 | AF7: =IF(VLOOKUP($A$6,$A$8:AF57,AF4,TRUE)="",0,VLOOKUP($A$6,$A$8:AF57,AF4,TRUE)) -> 0 | AG7: =IF(VLOOKUP($A$6,$A$8:AG57,AG4,TRUE)="",0,VLOOKUP($A$6,$A$8:AG57,AG4,TRUE)) -> 0 | AH7: =IF(VLOOKUP($A$6,$A$8:AH57,AH4,TRUE)="",0,VLOOKUP($A$6,$A$8:AH57,AH4,TRUE)) -> 0 | AI7: =IF(VLOOKUP($A$6,$A$8:AI57,AI4,TRUE)="",0,VLOOKUP($A$6,$A$8:AI57,AI4,TRUE)) -> 0 | AJ7: =IF(VLOOKUP($A$6,$A$8:AJ57,AJ4,TRUE)="",0,VLOOKUP($A$6,$A$8:AJ57,AJ4,TRUE)) -> 0 | AK7: =IF(VLOOKUP($A$6,$A$8:AK57,AK4,TRUE)="",0,VLOOKUP($A$6,$A$8:AK57,AK4,TRUE)) -> 0 | AL7: =IF(VLOOKUP($A$6,$A$8:AL57,AL4,TRUE)="",0,VLOOKUP($A$6,$A$8:AL57,AL4,TRUE)) -> 0 | AM7: =IF(VLOOKUP($A$6,$A$8:AM57,AM4,TRUE)="",0,VLOOKUP($A$6,$A$8:AM57,AM4,TRUE)) -> 0 | AN7: =IF(VLOOKUP($A$6,$A$8:AN57,AN4,TRUE)="",0,VLOOKUP($A$6,$A$8:AN57,AN4,TRUE)) -> 0 | AO7: =IF(VLOOKUP($A$6,$A$8:AO57,AO4,TRUE)="",0,VLOOKUP($A$6,$A$8:AO57,AO4,TRUE)) -> 0 | AP7: =IF(VLOOKUP($A$6,$A$8:AP57,AP4,TRUE)="",0,VLOOKUP($A$6,$A$8:AP57,AP4,TRUE)) -> 0 | AQ7: =IF(VLOOKUP($A$6,$A$8:AQ57,AQ4,TRUE)="",0,VLOOKUP($A$6,$A$8:AQ57,AQ4,TRUE)) -> 0 | AR7: =IF(VLOOKUP($A$6,$A$8:AR57,AR4,TRUE)="",0,VLOOKUP($A$6,$A$8:AR57,AR4,TRUE)) -> 0 | AS7: =IF(VLOOKUP($A$6,$A$8:AS57,AS4,TRUE)="",0,VLOOKUP($A$6,$A$8:AS57,AS4,TRUE)) -> 0 | AT7: =IF(VLOOKUP($A$6,$A$8:AT57,AT4,TRUE)="",0,VLOOKUP($A$6,$A$8:AT57,AT4,TRUE)) -> 0 | AU7: =IF(VLOOKUP($A$6,$A$8:AU57,AU4,TRUE)="",0,VLOOKUP($A$6,$A$8:AU57,AU4,TRUE)) -> 0 | AV7: =IF(VLOOKUP($A$6,$A$8:AV57,AV4,TRUE)="",0,VLOOKUP($A$6,$A$8:AV57,AV4,TRUE)) -> 18721 | AW7: =IF(VLOOKUP($A$6,$A$8:AW57,AW4,TRUE)="",0,VLOOKUP($A$6,$A$8:AW57,AW4,TRUE)) -> 6963.88 | AX7: =IF(VLOOKUP($A$6,$A$8:AX57,AX4,TRUE)="",0,VLOOKUP($A$6,$A$8:AX57,AX4,TRUE)) -> 0 | AY7: =IF(VLOOKUP($A$6,$A$8:AY57,AY4,TRUE)="",0,VLOOKUP($A$6,$A$8:AY57,AY4,TRUE)) -> 0 | AZ7: =IF(VLOOKUP($A$6,$A$8:AZ57,AZ4,TRUE)="",0,VLOOKUP($A$6,$A$8:AZ57,AZ4,TRUE)) -> 0 | BA7: =IF(VLOOKUP($A$6,$A$8:BA57,BA4,TRUE)="",0,VLOOKUP($A$6,$A$8:BA57,BA4,TRUE)) -> 0 | BB7: =IF(VLOOKUP($A$6,$A$8:BB57,BB4,TRUE)="",0,VLOOKUP($A$6,$A$8:BB57,BB4,TRUE)) -> 0 | BC7: =IF(VLOOKUP($A$6,$A$8:BC57,BC4,TRUE)="",0,VLOOKUP($A$6,$A$8:BC57,BC4,TRUE)) -> 0 | BD7: =IF(VLOOKUP($A$6,$A$8:BD57,BD4,TRUE)="",0,VLOOKUP($A$6,$A$8:BD57,BD4,TRUE)) -> 0 | BE7: =IF(VLOOKUP($A$6,$A$8:BE57,BE4,TRUE)="",0,VLOOKUP($A$6,$A$8:BE57,BE4,TRUE)) -> 0 | BF7: =IF(VLOOKUP($A$6,$A$8:BF57,BF4,TRUE)="","FALSE",VLOOKUP($A$6,$A$8:BF57,BF4,TRUE)) -> FALSE | BG7: =IF(VLOOKUP($A$6,$A$8:BG57,BG4,TRUE)="","FALSE",VLOOKUP($A$6,$A$8:BG57,BG4,TRUE)) -> FALSE | BH7: =IF(VLOOKUP($A$6,$A$8:BH57,BH4,TRUE)="","FALSE",VLOOKUP($A$6,$A$8:BH57,BH4,TRUE)) -> FALSE | BI7: =IF(VLOOKUP($A$6,$A$8:BI57,BI4,TRUE)="","FALSE",VLOOKUP($A$6,$A$8:BI57,BI4,TRUE)) -> TRUE | BJ7: =IF(VLOOKUP($A$6,$A$8:BJ57,BJ4,TRUE)="",0,VLOOKUP($A$6,$A$8:BJ57,BJ4,TRUE)) -> 0 | BK7: =IF(VLOOKUP($A$6,$A$8:BK57,BK4,TRUE)="",0,VLOOKUP($A$6,$A$8:BK57,BK4,TRUE)) -> 0 | BL7: =IF(VLOOKUP($A$6,$A$8:BL57,BL4,TRUE)="",0,VLOOKUP($A$6,$A$8:BL57,BL4,TRUE)) -> 0 | BM7: =IF(VLOOKUP($A$6,$A$8:BM57,BM4,TRUE)="",0,VLOOKUP($A$6,$A$8:BM57,BM4,TRUE)) -> 0 | BN7: =IF(VLOOKUP($A$6,$A$8:BN57,BN4,TRUE)="",0,VLOOKUP($A$6,$A$8:BN57,BN4,TRUE)) -> 0 | BO7: =IF(VLOOKUP($A$6,$A$8:BO57,BO4,TRUE)="",0,VLOOKUP($A$6,$A$8:BO57,BO4,TRUE)) -> 0 | BP7: =IF(VLOOKUP($A$6,$A$8:BP57,BP4,TRUE)="",0,VLOOKUP($A$6,$A$8:BP57,BP4,TRUE)) -> 0 | BQ7: =IF(VLOOKUP($A$6,$A$8:BQ57,BQ4,TRUE)="",0,VLOOKUP($A$6,$A$8:BQ57,BQ4,TRUE)) -> 0 | BR7: =IF(VLOOKUP($A$6,$A$8:BR57,BR4,TRUE)="",0,VLOOKUP($A$6,$A$8:BR57,BR4,TRUE)) -> 0 | BS7: =IF(VLOOKUP($A$6,$A$8:BS57,BS4,TRUE)="",0,VLOOKUP($A$6,$A$8:BS57,BS4,TRUE)) -> 0 | BT7: =IF(VLOOKUP($A$6,$A$8:BT57,BT4,TRUE)="",0,VLOOKUP($A$6,$A$8:BT57,BT4,TRUE)) -> 0 | BU7: =IF(VLOOKUP($A$6,$A$8:BU57,BU4,TRUE)="",0,VLOOKUP($A$6,$A$8:BU57,BU4,TRUE)) -> 0 | BV7: =IF(VLOOKUP($A$6,$A$8:BV57,BV4,TRUE)="",0,VLOOKUP($A$6,$A$8:BV57,BV4,TRUE)) -> 0 | BW7: =IF(VLOOKUP($A$6,$A$8:BW57,BW4,TRUE)="",0,VLOOKUP($A$6,$A$8:BW57,BW4,TRUE)) -> 0 | BX7: =IF(VLOOKUP($A$6,$A$8:BX57,BX4,TRUE)="",0,VLOOKUP($A$6,$A$8:BX57,BX4,TRUE)) -> 0 | BY7: =IF(VLOOKUP($A$6,$A$8:BY57,BY4,TRUE)="",0,VLOOKUP($A$6,$A$8:BY57,BY4,TRUE)) -> 0 | BZ7: =IF(VLOOKUP($A$6,$A$8:BZ57,BZ4,TRUE)="",0,VLOOKUP($A$6,$A$8:BZ57,BZ4,TRUE)) -> 0 | CA7: =IF(VLOOKUP($A$6,$A$8:CA57,CA4,TRUE)="",0,VLOOKUP($A$6,$A$8:CA57,CA4,TRUE)) -> 0 | CB7: =IF(VLOOKUP($A$6,$A$8:CB57,CB4,TRUE)="",0,VLOOKUP($A$6,$A$8:CB57,CB4,TRUE)) -> 0 | CC7: =IF(VLOOKUP($A$6,$A$8:CC57,CC4,TRUE)="",0,VLOOKUP($A$6,$A$8:CC57,CC4,TRUE)) -> 1000 | CD7: =IF(VLOOKUP($A$6,$A$8:CD57,CD4,TRUE)="",0,VLOOKUP($A$6,$A$8:CD57,CD4,TRUE)) -> 0 | CE7: =IF(VLOOKUP($A$6,$A$8:CE57,CE4,TRUE)="",0,VLOOKUP($A$6,$A$8:CE57,CE4,TRUE)) -> 0 | CF7: =IF(VLOOKUP($A$6,$A$8:CF57,CF4,TRUE)="",0,VLOOKUP($A$6,$A$8:CF57,CF4,TRUE)) -> 0 | CG7: =IF(VLOOKUP($A$6,$A$8:CG57,CG4,TRUE)="",0,VLOOKUP($A$6,$A$8:CG57,CG4,TRUE)) -> 0 | CH7: =IF(VLOOKUP($A$6,$A$8:CH57,CH4,TRUE)="",0,VLOOKUP($A$6,$A$8:CH57,CH4,TRUE)) -> 0 | CI7: =IF(VLOOKUP($A$6,$A$8:CI57,CI4,TRUE)="",0,VLOOKUP($A$6,$A$8:CI57,CI4,TRUE)) -> 0 | CJ7: =IF(VLOOKUP($A$6,$A$8:CJ57,CJ4,TRUE)="",0,VLOOKUP($A$6,$A$8:CJ57,CJ4,TRUE)) -> 0 | CK7: =IF(VLOOKUP($A$6,$A$8:CK57,CK4,TRUE)="",0,VLOOKUP($A$6,$A$8:CK57,CK4,TRUE)) -> 0 | CL7: =IF(VLOOKUP($A$6,$A$8:CL57,CL4,TRUE)="",0,VLOOKUP($A$6,$A$8:CL57,CL4,TRUE)) -> 0 | CM7: =IF(VLOOKUP($A$6,$A$8:CM57,CM4,TRUE)="",0,VLOOKUP($A$6,$A$8:CM57,CM4,TRUE)) -> 0 | CN7: =IF(VLOOKUP($A$6,$A$8:CN57,CN4,TRUE)="",0,VLOOKUP($A$6,$A$8:CN57,CN4,TRUE)) -> 0 | CO7: =IF(VLOOKUP($A$6,$A$8:CO57,CO4,TRUE)="",0,VLOOKUP($A$6,$A$8:CO57,CO4,TRUE)) -> 0 | CP7: =IF(VLOOKUP($A$6,$A$8:CP57,CP4,TRUE)="",0,VLOOKUP($A$6,$A$8:CP57,CP4,TRUE)) -> 0 | CQ7: =IF(VLOOKUP($A$6,$A$8:CQ57,CQ4,TRUE)="",0,VLOOKUP($A$6,$A$8:CQ57,CQ4,TRUE)) -> 0 | CR7: =IF(VLOOKUP($A$6,$A$8:CR57,CR4,TRUE)="",0,VLOOKUP($A$6,$A$8:CR57,CR4,TRUE)) -> 0 | CS7: =IF(VLOOKUP($A$6,$A$8:CS57,CS4,TRUE)="",0,VLOOKUP($A$6,$A$8:CS57,CS4,TRUE)) -> 0 | CT7: =IF(VLOOKUP($A$6,$A$8:CT57,CT4,TRUE)="",0,VLOOKUP($A$6,$A$8:CT57,CT4,TRUE)) -> 0 | CU7: =IF(VLOOKUP($A$6,$A$8:CU57,CU4,TRUE)="",0,VLOOKUP($A$6,$A$8:CU57,CU4,TRUE)) -> 0 | CV7: =IF(VLOOKUP($A$6,$A$8:CV57,CV4,TRUE)="",0,VLOOKUP($A$6,$A$8:CV57,CV4,TRUE)) -> 0 | CW7: =IF(VLOOKUP($A$6,$A$8:CW57,CW4,TRUE)="",0,VLOOKUP($A$6,$A$8:CW57,CW4,TRUE)) -> 0 | CX7: =IF(VLOOKUP($A$6,$A$8:CX57,CX4,TRUE)="",0,VLOOKUP($A$6,$A$8:CX57,CX4,TRUE)) -> 0 | CY7: =IF(VLOOKUP($A$6,$A$8:CY57,CY4,TRUE)="",0,VLOOKUP($A$6,$A$8:CY57,CY4,TRUE)) -> 0 | CZ7: =IF(VLOOKUP($A$6,$A$8:CZ57,CZ4,TRUE)="",0,VLOOKUP($A$6,$A$8:CZ57,CZ4,TRUE)) -> 0 | DA7: =IF(VLOOKUP($A$6,$A$8:DA57,DA4,TRUE)="",0,VLOOKUP($A$6,$A$8:DA57,DA4,TRUE)) -> 0 | DB7: =IF(VLOOKUP($A$6,$A$8:DB57,DB4,TRUE)="",FALSE,VLOOKUP($A$6,$A$8:DB57,DB4,TRUE)) -> TRUE | DC7: =IF(VLOOKUP($A$6,$A$8:DC57,DC4,TRUE)="",0,VLOOKUP($A$6,$A$8:DC57,DC4,TRUE)) -> 0 | DD7: =IF(VLOOKUP($A$6,$A$8:DD57,DD4,TRUE)="",0,VLOOKUP($A$6,$A$8:DD57,DD4,TRUE)) -> 0 | DE7: =IF(VLOOKUP($A$6,$A$8:DE57,DE4,TRUE)="",0,VLOOKUP($A$6,$A$8:DE57,DE4,TRUE)) -> 0 | DF7: =IF(VLOOKUP($A$6,$A$8:DF57,DF4,TRUE)="",0,VLOOKUP($A$6,$A$8:DF57,DF4,TRUE)) -> 0 | DG7: =IF(VLOOKUP($A$6,$A$8:DG57,DG4,TRUE)="",0,VLOOKUP($A$6,$A$8:DG57,DG4,TRUE)) -> 0 | DH7: =IF(VLOOKUP($A$6,$A$8:DH57,DH4,TRUE)="",0,VLOOKUP($A$6,$A$8:DH57,DH4,TRUE)) -> 0 | DI7: =IF(VLOOKUP($A$6,$A$8:DI57,DI4,TRUE)="",0,VLOOKUP($A$6,$A$8:DI57,DI4,TRUE)) -> 0 | DJ7: =IF(VLOOKUP($A$6,$A$8:DJ57,DJ4,TRUE)="",0,VLOOKUP($A$6,$A$8:DJ57,DJ4,TRUE)) -> 0 | DK7: =IF(VLOOKUP($A$6,$A$8:DK57,DK4,TRUE)="",0,VLOOKUP($A$6,$A$8:DK57,DK4,TRUE)) -> 0 | DL7: =IF(VLOOKUP($A$6,$A$8:DL57,DL4,TRUE)="",0,VLOOKUP($A$6,$A$8:DL57,DL4,TRUE)) -> 0 | DM7: =IF(VLOOKUP($A$6,$A$8:DM57,DM4,TRUE)="",0,VLOOKUP($A$6,$A$8:DM57,DM4,TRUE)) -> 0 | DN7: =IF(VLOOKUP($A$6,$A$8:DN57,DN4,TRUE)="",0,VLOOKUP($A$6,$A$8:DN57,DN4,TRUE)) -> 0 | DO7: =IF(VLOOKUP($A$6,$A$8:DO57,DO4,TRUE)="",0,VLOOKUP($A$6,$A$8:DO57,DO4,TRUE)) -> 0 | DP7: =IF(VLOOKUP($A$6,$A$8:DP57,DP4,TRUE)="",0,VLOOKUP($A$6,$A$8:DP57,DP4,TRUE)) -> 0 | DQ7: =IF(VLOOKUP($A$6,$A$8:DQ57,DQ4,TRUE)="",0,VLOOKUP($A$6,$A$8:DQ57,DQ4,TRUE)) -> 0 | DR7: =IF(VLOOKUP($A$6,$A$8:DR57,DR4,TRUE)="",0,VLOOKUP($A$6,$A$8:DR57,DR4,TRUE)) -> 0
A8: 1 | B8: Calc Type - Trust rate Q8.16 (Special trust rates - Yes) Q9 (Other Inc) - taxed UK INT, NS&I, Other SAV, Stock DIV 9A.1 (amt of SRB) - 500 Q13 (Inc not liable at Spec trust rates) Q17 (Self Calc) | C8: =DC8 -> 444.01 | D8: 444.01 | E8: 0 | F8: =IF(ISNA(HLOOKUP(F$6,Components!$C$2:$AIR$3,2,FALSE)),"",IF(HLOOKUP(F$6,Components!$C$2:$AIR$3,2,FALSE)="","",HLOOKUP(F$6,Components!$C$2:$AIR$3,2,FALSE))) ->  | G8: =IF(ISNA(HLOOKUP(G$6,Components!$C$2:$AIR$3,2,FALSE)),"",IF(HLOOKUP(G$6,Components!$C$2:$AIR$3,2,FALSE)="","",HLOOKUP(G$6,Components!$C$2:$AIR$3,2,FALSE))) ->  | H8: =IF(ISNA(HLOOKUP(H$6,Components!$C$2:$AIR$3,2,FALSE)),"",IF(HLOOKUP(H$6,Components!$C$2:$AIR$3,2,FALSE)="","",HLOOKUP(H$6,Components!$C$2:$AIR$3,2,FALSE))) ->  | I8: =IF(ISNA(HLOOKUP(I$6,Components!$C$2:$AIR$3,2,FALSE)),"",IF(HLOOKUP(I$6,Components!$C$2:$AIR$3,2,FALSE)="","",HLOOKUP(I$6,Components!$C$2:$AIR$3,2,FALSE))) ->  | J8: =IF(ISNA(HLOOKUP(J$6,Components!$C$2:$AIR$3,2,FALSE)),"",IF(HLOOKUP(J$6,Components!$C$2:$AIR$3,2,FALSE)="","",HLOOKUP(J$6,Components!$C$2:$AIR$3,2,FALSE))) ->  | K8: =IF(ISNA(HLOOKUP(K$6,Components!$C$2:$AIR$3,2,FALSE)),"",IF(HLOOKUP(K$6,Components!$C$2:$AIR$3,2,FALSE)="","",HLOOKUP(K$6,Components!$C$2:$AIR$3,2,FALSE))) ->  | L8: =IF(ISNA(HLOOKUP(L$6,Components!$C$2:$AIR$3,2,FALSE)),"",IF(HLOOKUP(L$6,Components!$C$2:$AIR$3,2,FALSE)="","",HLOOKUP(L$6,Components!$C$2:$AIR$3,2,FALSE))) ->  | M8: =IF(ISNA(HLOOKUP(M$6,Components!$C$2:$AIR$3,2,FALSE)),"",IF(HLOOKUP(M$6,Components!$C$2:$AIR$3,2,FALSE)="","",HLOOKUP(M$6,Components!$C$2:$AIR$3,2,FALSE))) ->  | N8: =IF(ISNA(HLOOKUP(N$6,Components!$C$2:$AIR$3,2,FALSE)),"",IF(HLOOKUP(N$6,Components!$C$2:$AIR$3,2,FALSE)="","",HLOOKUP(N$6,Components!$C$2:$AIR$3,2,FALSE))) ->  | O8: =IF(ISNA(HLOOKUP(O$6,Components!$C$2:$AIR$3,2,FALSE)),"",IF(HLOOKUP(O$6,Components!$C$2:$AIR$3,2,FALSE)="","",HLOOKUP(O$6,Components!$C$2:$AIR$3,2,FALSE))) ->  | P8: =IF(ISNA(HLOOKUP(P$6,Components!$C$2:$AIR$3,2,FALSE)),"",IF(HLOOKUP(P$6,Components!$C$2:$AIR$3,2,FALSE)="","",HLOOKUP(P$6,Components!$C$2:$AIR$3,2,FALSE))) ->  | Q8: =IF(ISNA(HLOOKUP(Q$6,Components!$C$2:$AIR$3,2,FALSE)),"",IF(HLOOKUP(Q$6,Components!$C$2:$AIR$3,2,FALSE)="","",HLOOKUP(Q$6,Components!$C$2:$AIR$3,2,FALSE))) ->  | R8: =IF(ISNA(HLOOKUP(R$6,Components!$C$2:$AIR$3,2,FALSE)),"",IF(HLOOKUP(R$6,Components!$C$2:$AIR$3,2,FALSE)="","",HLOOKUP(R$6,Components!$C$2:$AIR$3,2,FALSE))) ->  | S8: =IF(ISNA(HLOOKUP(S$6,Components!$C$2:$AIR$3,2,FALSE)),"",IF(HLOOKUP(S$6,Components!$C$2:$AIR$3,2,FALSE)="","",HLOOKUP(S$6,Components!$C$2:$AIR$3,2,FALSE))) ->  | T8: =IF(ISNA(HLOOKUP(T$6,Components!$C$2:$AIR$3,2,FALSE)),"",IF(HLOOKUP(T$6,Components!$C$2:$AIR$3,2,FALSE)="","",HLOOKUP(T$6,Components!$C$2:$AIR$3,2,FALSE))) ->  | U8: =IF(ISNA(HLOOKUP(U$6,Components!$C$2:$AIR$3,2,FALSE)),"",IF(HLOOKUP(U$6,Components!$C$2:$AIR$3,2,FALSE)="","",HLOOKUP(U$6,Components!$C$2:$AIR$3,2,FALSE))) ->  | V8: =IF(ISNA(HLOOKUP(V$6,Components!$C$2:$AIR$3,2,FALSE)),"",IF(HLOOKUP(V$6,Components!$C$2:$AIR$3,2,FALSE)="","",HLOOKUP(V$6,Components!$C$2:$AIR$3,2,FALSE))) ->  | W8: =IF(ISNA(HLOOKUP(W$6,Components!$C$2:$AIR$3,2,FALSE)),"",IF(HLOOKUP(W$6,Components!$C$2:$AIR$3,2,FALSE)="","",HLOOKUP(W$6,Components!$C$2:$AIR$3,2,FALSE))) ->  | X8: =IF(ISNA(HLOOKUP(X$6,Components!$C$2:$AIR$3,2,FALSE)),"",IF(HLOOKUP(X$6,Components!$C$2:$AIR$3,2,FALSE)="","",HLOOKUP(X$6,Components!$C$2:$AIR$3,2,FALSE))) ->  | Y8: =IF(ISNA(HLOOKUP(Y$6,Components!$C$2:$AIR$3,2,FALSE)),"",IF(HLOOKUP(Y$6,Components!$C$2:$AIR$3,2,FALSE)="","",HLOOKUP(Y$6,Components!$C$2:$AIR$3,2,FALSE))) ->  | Z8: =IF(ISNA(HLOOKUP(Z$6,Components!$C$2:$AIR$3,2,FALSE)),"",IF(HLOOKUP(Z$6,Components!$C$2:$AIR$3,2,FALSE)="","",HLOOKUP(Z$6,Components!$C$2:$AIR$3,2,FALSE))) ->  | AA8: =IF(ISNA(HLOOKUP(AA$6,Components!$C$2:$AIR$3,2,FALSE)),"",IF(HLOOKUP(AA$6,Components!$C$2:$AIR$3,2,FALSE)="","",HLOOKUP(AA$6,Components!$C$2:$AIR$3,2,FALSE))) ->  | AB8: =IF(ISNA(HLOOKUP(AB$6,Components!$C$2:$AIR$3,2,FALSE)),"",IF(HLOOKUP(AB$6,Components!$C$2:$AIR$3,2,FALSE)="","",HLOOKUP(AB$6,Components!$C$2:$AIR$3,2,FALSE))) ->  | AC8: =IF(ISNA(HLOOKUP(AC$6,Components!$C$2:$AIR$3,2,FALSE)),"",IF(HLOOKUP(AC$6,Components!$C$2:$AIR$3,2,FALSE)="","",HLOOKUP(AC$6,Components!$C$2:$AIR$3,2,FALSE))) ->  | AD8: =IF(ISNA(HLOOKUP(AD$6,Components!$C$2:$AIR$3,2,FALSE)),"",IF(HLOOKUP(AD$6,Components!$C$2:$AIR$3,2,FALSE)="","",HLOOKUP(AD$6,Components!$C$2:$AIR$3,2,FALSE))) ->  | AE8: =IF(ISNA(HLOOKUP(AE$6,Components!$C$2:$AIR$3,2,FALSE)),"",IF(HLOOKUP(AE$6,Components!$C$2:$AIR$3,2,FALSE)="","",HLOOKUP(AE$6,Components!$C$2:$AIR$3,2,FALSE))) ->  | AF8: =IF(ISNA(HLOOKUP(AF$6,Components!$C$2:$AIR$3,2,FALSE)),"",IF(HLOOKUP(AF$6,Components!$C$2:$AIR$3,2,FALSE)="","",HLOOKUP(AF$6,Components!$C$2:$AIR$3,2,FALSE))) ->  | AG8: =IF(ISNA(HLOOKUP(AG$6,Components!$C$2:$AIR$3,2,FALSE)),"",IF(HLOOKUP(AG$6,Components!$C$2:$AIR$3,2,FALSE)="","",HLOOKUP(AG$6,Components!$C$2:$AIR$3,2,FALSE))) ->  | AH8: =IF(ISNA(HLOOKUP(AH$6,Components!$C$2:$AIR$3,2,FALSE)),"",IF(HLOOKUP(AH$6,Components!$C$2:$AIR$3,2,FALSE)="","",HLOOKUP(AH$6,Components!$C$2:$AIR$3,2,FALSE))) ->  | AI8: =IF(ISNA(HLOOKUP(AI$6,Components!$C$2:$AIR$3,2,FALSE)),"",IF(HLOOKUP(AI$6,Components!$C$2:$AIR$3,2,FALSE)="","",HLOOKUP(AI$6,Components!$C$2:$AIR$3,2,FALSE))) ->  | AJ8: =IF(ISNA(HLOOKUP(AJ$6,Components!$C$2:$AIR$3,2,FALSE)),"",IF(HLOOKUP(AJ$6,Components!$C$2:$AIR$3,2,FALSE)="","",HLOOKUP(AJ$6,Components!$C$2:$AIR$3,2,FALSE))) ->  | AK8: =IF(ISNA(HLOOKUP(AK$6,Components!$C$2:$AIR$3,2,FALSE)),"",IF(HLOOKUP(AK$6,Components!$C$2:$AIR$3,2,FALSE)="","",HLOOKUP(AK$6,Components!$C$2:$AIR$3,2,FALSE))) ->  | AL8: =IF(ISNA(HLOOKUP(AL$6,Components!$C$2:$AIR$3,2,FALSE)),"",IF(HLOOKUP(AL$6,Components!$C$2:$AIR$3,2,FALSE)="","",HLOOKUP(AL$6,Components!$C$2:$AIR$3,2,FALSE))) ->  | AM8: =IF(ISNA(HLOOKUP(AM$6,Components!$C$2:$AIR$3,2,FALSE)),"",IF(HLOOKUP(AM$6,Components!$C$2:$AIR$3,2,FALSE)="","",HLOOKUP(AM$6,Components!$C$2:$AIR$3,2,FALSE))) ->  | AN8: =IF(ISNA(HLOOKUP(AN$6,Components!$C$2:$AIR$3,2,FALSE)),"",IF(HLOOKUP(AN$6,Components!$C$2:$AIR$3,2,FALSE)="","",HLOOKUP(AN$6,Components!$C$2:$AIR$3,2,FALSE))) ->  | AO8: =IF(ISNA(HLOOKUP(AO$6,Components!$C$2:$AIR$3,2,FALSE)),"",IF(HLOOKUP(AO$6,Components!$C$2:$AIR$3,2,FALSE)="","",HLOOKUP(AO$6,Components!$C$2:$AIR$3,2,FALSE))) ->  | AP8: =IF(ISNA(HLOOKUP(AP$6,Components!$C$2:$AIR$3,2,FALSE)),"",IF(HLOOKUP(AP$6,Components!$C$2:$AIR$3,2,FALSE)="","",HLOOKUP(AP$6,Components!$C$2:$AIR$3,2,FALSE))) ->  | AQ8: =IF(ISNA(HLOOKUP(AQ$6,Components!$C$2:$AIR$3,2,FALSE)),"",IF(HLOOKUP(AQ$6,Components!$C$2:$AIR$3,2,FALSE)="","",HLOOKUP(AQ$6,Components!$C$2:$AIR$3,2,FALSE))) ->  | AR8: =IF(ISNA(HLOOKUP(AR$6,Components!$C$2:$AIR$3,2,FALSE)),"",IF(HLOOKUP(AR$6,Components!$C$2:$AIR$3,2,FALSE)="","",HLOOKUP(AR$6,Components!$C$2:$AIR$3,2,FALSE))) ->  | AS8: =IF(ISNA(HLOOKUP(AS$6,Components!$C$2:$AIR$3,2,FALSE)),"",IF(HLOOKUP(AS$6,Components!$C$2:$AIR$3,2,FALSE)="","",HLOOKUP(AS$6,Components!$C$2:$AIR$3,2,FALSE))) ->  | AT8: =IF(ISNA(HLOOKUP(AT$6,Components!$C$2:$AIR$3,2,FALSE)),"",IF(HLOOKUP(AT$6,Components!$C$2:$AIR$3,2,FALSE)="","",HLOOKUP(AT$6,Components!$C$2:$AIR$3,2,FALSE))) ->  | AU8: =IF(ISNA(HLOOKUP(AU$6,Components!$C$2:$AIR$3,2,FALSE)),"",IF(HLOOKUP(AU$6,Components!$C$2:$AIR$3,2,FALSE)="","",HLOOKUP(AU$6,Components!$C$2:$AIR$3,2,FALSE))) ->  | AV8: =IF(ISNA(HLOOKUP(AV$6,Components!$C$2:$AIR$3,2,FALSE)),"",IF(HLOOKUP(AV$6,Components!$C$2:$AIR$3,2,FALSE)="","",HLOOKUP(AV$6,Components!$C$2:$AIR$3,2,FALSE))) ->  | AW8: =IF(ISNA(HLOOKUP(AW$6,Components!$C$2:$AIR$3,2,FALSE)),"",IF(HLOOKUP(AW$6,Components!$C$2:$AIR$3,2,FALSE)="","",HLOOKUP(AW$6,Components!$C$2:$AIR$3,2,FALSE))) ->  | AX8: =IF(ISNA(HLOOKUP(AX$6,Components!$C$2:$AIR$3,2,FALSE)),"",IF(HLOOKUP(AX$6,Components!$C$2:$AIR$3,2,FALSE)="","",HLOOKUP(AX$6,Components!$C$2:$AIR$3,2,FALSE))) ->  | AY8: =IF(ISNA(HLOOKUP(AY$6,Components!$C$2:$AIR$3,2,FALSE)),"",IF(HLOOKUP(AY$6,Components!$C$2:$AIR$3,2,FALSE)="","",HLOOKUP(AY$6,Components!$C$2:$AIR$3,2,FALSE))) ->  | AZ8: =IF(ISNA(HLOOKUP(AZ$6,Components!$C$2:$AIR$3,2,FALSE)),"",IF(HLOOKUP(AZ$6,Components!$C$2:$AIR$3,2,FALSE)="","",HLOOKUP(AZ$6,Components!$C$2:$AIR$3,2,FALSE))) ->  | BA8: =IF(ISNA(HLOOKUP(BA$6,Components!$C$2:$AIR$3,2,FALSE)),"",IF(HLOOKUP(BA$6,Components!$C$2:$AIR$3,2,FALSE)="","",HLOOKUP(BA$6,Components!$C$2:$AIR$3,2,FALSE))) ->  | BB8: =IF(ISNA(HLOOKUP(BB$6,Components!$C$2:$AIR$3,2,FALSE)),"",IF(HLOOKUP(BB$6,Components!$C$2:$AIR$3,2,FALSE)="","",HLOOKUP(BB$6,Components!$C$2:$AIR$3,2,FALSE))) ->  | BC8: =IF(ISNA(HLOOKUP(BC$6,Components!$C$2:$AIR$3,2,FALSE)),"",IF(HLOOKUP(BC$6,Components!$C$2:$AIR$3,2,FALSE)="","",HLOOKUP(BC$6,Components!$C$2:$AIR$3,2,FALSE))) ->  | BD8: =IF(ISNA(HLOOKUP(BD$6,Components!$C$2:$AIR$3,2,FALSE)),"",IF(HLOOKUP(BD$6,Components!$C$2:$AIR$3,2,FALSE)="","",HLOOKUP(BD$6,Components!$C$2:$AIR$3,2,FALSE))) ->  | BE8: =IF(ISNA(HLOOKUP(BE$6,Components!$C$2:$AIR$3,2,FALSE)),"",IF(HLOOKUP(BE$6,Components!$C$2:$AIR$3,2,FALSE)="","",HLOOKUP(BE$6,Components!$C$2:$AIR$3,2,FALSE))) ->  | BF8: =IF(ISNA(HLOOKUP(BF$6,Components!$C$2:$AIR$3,2,FALSE)),"",IF(HLOOKUP(BF$6,Components!$C$2:$AIR$3,2,FALSE)="","",HLOOKUP(BF$6,Components!$C$2:$AIR$3,2,FALSE))) ->  | BG8: =IF(ISNA(HLOOKUP(BG$6,Components!$C$2:$AIR$3,2,FALSE)),"",IF(HLOOKUP(BG$6,Components!$C$2:$AIR$3,2,FALSE)="","",HLOOKUP(BG$6,Components!$C$2:$AIR$3,2,FALSE))) ->  | BH8: =IF(ISNA(HLOOKUP(BH$6,Components!$C$2:$AIR$3,2,FALSE)),"",IF(HLOOKUP(BH$6,Components!$C$2:$AIR$3,2,FALSE)="","",HLOOKUP(BH$6,Components!$C$2:$AIR$3,2,FALSE))) ->  | BI8: =IF(ISNA(HLOOKUP(BI$6,Components!$C$2:$AIR$3,2,FALSE)),"",IF(HLOOKUP(BI$6,Components!$C$2:$AIR$3,2,FALSE)="","",HLOOKUP(BI$6,Components!$C$2:$AIR$3,2,FALSE))) -> TRUE | BJ8: =IF(ISNA(HLOOKUP(BJ$6,Components!$C$2:$AIR$3,2,FALSE)),"",IF(HLOOKUP(BJ$6,Components!$C$2:$AIR$3,2,FALSE)="","",HLOOKUP(BJ$6,Components!$C$2:$AIR$3,2,FALSE))) -> 22 | BK8: =IF(ISNA(HLOOKUP(BK$6,Components!$C$2:$AIR$3,2,FALSE)),"",IF(HLOOKUP(BK$6,Components!$C$2:$AIR$3,2,FALSE)="","",HLOOKUP(BK$6,Components!$C$2:$AIR$3,2,FALSE))) -> 524.96 | BL8: =IF(ISNA(HLOOKUP(BL$6,Components!$C$2:$AIR$3,2,FALSE)),"",IF(HLOOKUP(BL$6,Components!$C$2:$AIR$3,2,FALSE)="","",HLOOKUP(BL$6,Components!$C$2:$AIR$3,2,FALSE))) -> 2624.84 | BM8: =IF(ISNA(HLOOKUP(BM$6,Components!$C$2:$AIR$3,2,FALSE)),"",IF(HLOOKUP(BM$6,Components!$C$2:$AIR$3,2,FALSE)="","",HLOOKUP(BM$6,Components!$C$2:$AIR$3,2,FALSE))) -> 263.45 | BN8: =IF(ISNA(HLOOKUP(BN$6,Components!$C$2:$AIR$3,2,FALSE)),"",IF(HLOOKUP(BN$6,Components!$C$2:$AIR$3,2,FALSE)="","",HLOOKUP(BN$6,Components!$C$2:$AIR$3,2,FALSE))) ->  | BO8: =IF(ISNA(HLOOKUP(BO$6,Components!$C$2:$AIR$3,2,FALSE)),"",IF(HLOOKUP(BO$6,Components!$C$2:$AIR$3,2,FALSE)="","",HLOOKUP(BO$6,Components!$C$2:$AIR$3,2,FALSE))) -> 109.69 | BP8: =IF(ISNA(HLOOKUP(BP$6,Components!$C$2:$AIR$3,2,FALSE)),"",IF(HLOOKUP(BP$6,Components!$C$2:$AIR$3,2,FALSE)="","",HLOOKUP(BP$6,Components!$C$2:$AIR$3,2,FALSE))) -> 548.44 | BQ8: =IF(ISNA(HLOOKUP(BQ$6,Components!$C$2:$AIR$3,2,FALSE)),"",IF(HLOOKUP(BQ$6,Components!$C$2:$AIR$3,2,FALSE)="","",HLOOKUP(BQ$6,Components!$C$2:$AIR$3,2,FALSE))) ->  | BR8: =IF(ISNA(HLOOKUP(BR$6,Components!$C$2:$AIR$3,2,FALSE)),"",IF(HLOOKUP(BR$6,Components!$C$2:$AIR$3,2,FALSE)="","",HLOOKUP(BR$6,Components!$C$2:$AIR$3,2,FALSE))) ->  | BS8: =IF(ISNA(HLOOKUP(BS$6,Components!$C$2:$AIR$3,2,FALSE)),"",IF(HLOOKUP(BS$6,Components!$C$2:$AIR$3,2,FALSE)="","",HLOOKUP(BS$6,Components!$C$2:$AIR$3,2,FALSE))) -> 545 | BT8: =IF(ISNA(HLOOKUP(BT$6,Components!$C$2:$AIR$3,2,FALSE)),"",IF(HLOOKUP(BT$6,Components!$C$2:$AIR$3,2,FALSE)="","",HLOOKUP(BT$6,Components!$C$2:$AIR$3,2,FALSE))) ->  | BU8: =IF(ISNA(HLOOKUP(BU$6,Components!$C$2:$AIR$3,2,FALSE)),"",IF(HLOOKUP(BU$6,Components!$C$2:$AIR$3,2,FALSE)="","",HLOOKUP(BU$6,Components!$C$2:$AIR$3,2,FALSE))) ->  | BV8: =IF(ISNA(HLOOKUP(BV$6,Components!$C$2:$AIR$3,2,FALSE)),"",IF(HLOOKUP(BV$6,Components!$C$2:$AIR$3,2,FALSE)="","",HLOOKUP(BV$6,Components!$C$2:$AIR$3,2,FALSE))) ->  | BW8: =IF(ISNA(HLOOKUP(BW$6,Components!$C$2:$AIR$3,2,FALSE)),"",IF(HLOOKUP(BW$6,Components!$C$2:$AIR$3,2,FALSE)="","",HLOOKUP(BW$6,Components!$C$2:$AIR$3,2,FALSE))) ->  | BX8: =IF(ISNA(HLOOKUP(BX$6,Components!$C$2:$AIR$3,2,FALSE)),"",IF(HLOOKUP(BX$6,Components!$C$2:$AIR$3,2,FALSE)="","",HLOOKUP(BX$6,Components!$C$2:$AIR$3,2,FALSE))) ->  | BY8: =IF(ISNA(HLOOKUP(BY$6,Components!$C$2:$AIR$3,2,FALSE)),"",IF(HLOOKUP(BY$6,Components!$C$2:$AIR$3,2,FALSE)="","",HLOOKUP(BY$6,Components!$C$2:$AIR$3,2,FALSE))) ->  | BZ8: =IF(ISNA(HLOOKUP(BZ$6,Components!$C$2:$AIR$3,2,FALSE)),"",IF(HLOOKUP(BZ$6,Components!$C$2:$AIR$3,2,FALSE)="","",HLOOKUP(BZ$6,Components!$C$2:$AIR$3,2,FALSE))) ->  | CA8: =IF(ISNA(HLOOKUP(CA$6,Components!$C$2:$AIR$3,2,FALSE)),"",IF(HLOOKUP(CA$6,Components!$C$2:$AIR$3,2,FALSE)="","",HLOOKUP(CA$6,Components!$C$2:$AIR$3,2,FALSE))) ->  | CB8: =IF(ISNA(HLOOKUP(CB$6,Components!$C$2:$AIR$3,2,FALSE)),"",IF(HLOOKUP(CB$6,Components!$C$2:$AIR$3,2,FALSE)="","",HLOOKUP(CB$6,Components!$C$2:$AIR$3,2,FALSE))) ->  | CC8: =IF(ISNA(HLOOKUP(CC$6,Components!$C$2:$AIR$3,2,FALSE)),"",IF(HLOOKUP(CC$6,Components!$C$2:$AIR$3,2,FALSE)="","",HLOOKUP(CC$6,Components!$C$2:$AIR$3,2,FALSE))) -> 500 | CD8: =IF(ISNA(HLOOKUP(CD$6,Components!$C$2:$AIR$3,2,FALSE)),"",IF(HLOOKUP(CD$6,Components!$C$2:$AIR$3,2,FALSE)="","",HLOOKUP(CD$6,Components!$C$2:$AIR$3,2,FALSE))) ->  | CE8: =IF(ISNA(HLOOKUP(CE$6,Components!$C$2:$AIR$3,2,FALSE)),"",IF(HLOOKUP(CE$6,Components!$C$2:$AIR$3,2,FALSE)="","",HLOOKUP(CE$6,Components!$C$2:$AIR$3,2,FALSE))) ->  | CF8: =IF(ISNA(HLOOKUP(CF$6,Components!$C$2:$AIR$3,2,FALSE)),"",IF(HLOOKUP(CF$6,Components!$C$2:$AIR$3,2,FALSE)="","",HLOOKUP(CF$6,Components!$C$2:$AIR$3,2,FALSE))) ->  | CG8: =IF(ISNA(HLOOKUP(CG$6,Components!$C$2:$AIR$3,2,FALSE)),"",IF(HLOOKUP(CG$6,Components!$C$2:$AIR$3,2,FALSE)="","",HLOOKUP(CG$6,Components!$C$2:$AIR$3,2,FALSE))) ->  | CH8: =IF(ISNA(HLOOKUP(CH$6,Components!$C$2:$AIR$3,2,FALSE)),"",IF(HLOOKUP(CH$6,Components!$C$2:$AIR$3,2,FALSE)="","",HLOOKUP(CH$6,Components!$C$2:$AIR$3,2,FALSE))) ->  | CI8: =IF(ISNA(HLOOKUP(CI$6,Components!$C$2:$AIR$3,2,FALSE)),"",IF(HLOOKUP(CI$6,Components!$C$2:$AIR$3,2,FALSE)="","",HLOOKUP(CI$6,Components!$C$2:$AIR$3,2,FALSE))) ->  | CJ8: =IF(ISNA(HLOOKUP(CJ$6,Components!$C$2:$AIR$3,2,FALSE)),"",IF(HLOOKUP(CJ$6,Components!$C$2:$AIR$3,2,FALSE)="","",HLOOKUP(CJ$6,Components!$C$2:$AIR$3,2,FALSE))) ->  | CK8: =IF(ISNA(HLOOKUP(CK$6,Components!$C$2:$AIR$3,2,FALSE)),"",IF(HLOOKUP(CK$6,Components!$C$2:$AIR$3,2,FALSE)="","",HLOOKUP(CK$6,Components!$C$2:$AIR$3,2,FALSE))) ->  | CL8: =IF(ISNA(HLOOKUP(CL$6,Components!$C$2:$AIR$3,2,FALSE)),"",IF(HLOOKUP(CL$6,Components!$C$2:$AIR$3,2,FALSE)="","",HLOOKUP(CL$6,Components!$C$2:$AIR$3,2,FALSE))) -> 250 | CM8: =IF(ISNA(HLOOKUP(CM$6,Components!$C$2:$AIR$3,2,FALSE)),"",IF(HLOOKUP(CM$6,Components!$C$2:$AIR$3,2,FALSE)="","",HLOOKUP(CM$6,Components!$C$2:$AIR$3,2,FALSE))) -> 1800 | CN8: =IF(ISNA(HLOOKUP(CN$6,Components!$C$2:$AIR$3,2,FALSE)),"",IF(HLOOKUP(CN$6,Components!$C$2:$AIR$3,2,FALSE)="","",HLOOKUP(CN$6,Components!$C$2:$AIR$3,2,FALSE))) ->  | CO8: =IF(ISNA(HLOOKUP(CO$6,Components!$C$2:$AIR$3,2,FALSE)),"",IF(HLOOKUP(CO$6,Components!$C$2:$AIR$3,2,FALSE)="","",HLOOKUP(CO$6,Components!$C$2:$AIR$3,2,FALSE))) ->  | CP8: =IF(ISNA(HLOOKUP(CP$6,Components!$C$2:$AIR$3,2,FALSE)),"",IF(HLOOKUP(CP$6,Components!$C$2:$AIR$3,2,FALSE)="","",HLOOKUP(CP$6,Components!$C$2:$AIR$3,2,FALSE))) -> 260 | CQ8: =IF(ISNA(HLOOKUP(CQ$6,Components!$C$2:$AIR$3,2,FALSE)),"",IF(HLOOKUP(CQ$6,Components!$C$2:$AIR$3,2,FALSE)="","",HLOOKUP(CQ$6,Components!$C$2:$AIR$3,2,FALSE))) -> 140 | CR8: =IF(ISNA(HLOOKUP(CR$6,Components!$C$2:$AIR$3,2,FALSE)),"",IF(HLOOKUP(CR$6,Components!$C$2:$AIR$3,2,FALSE)="","",HLOOKUP(CR$6,Components!$C$2:$AIR$3,2,FALSE))) ->  | CS8: =IF(ISNA(HLOOKUP(CS$6,Components!$C$2:$AIR$3,2,FALSE)),"",IF(HLOOKUP(CS$6,Components!$C$2:$AIR$3,2,FALSE)="","",HLOOKUP(CS$6,Components!$C$2:$AIR$3,2,FALSE))) ->  | CT8: =IF(ISNA(HLOOKUP(CT$6,Components!$C$2:$AIR$3,2,FALSE)),"",IF(HLOOKUP(CT$6,Components!$C$2:$AIR$3,2,FALSE)="","",HLOOKUP(CT$6,Components!$C$2:$AIR$3,2,FALSE))) ->  | CU8: =IF(ISNA(HLOOKUP(CU$6,Components!$C$2:$AIR$3,2,FALSE)),"",IF(HLOOKUP(CU$6,Components!$C$2:$AIR$3,2,FALSE)="","",HLOOKUP(CU$6,Components!$C$2:$AIR$3,2,FALSE))) ->  | CV8: =IF(ISNA(HLOOKUP(CV$6,Components!$C$2:$AIR$3,2,FALSE)),"",IF(HLOOKUP(CV$6,Components!$C$2:$AIR$3,2,FALSE)="","",HLOOKUP(CV$6,Components!$C$2:$AIR$3,2,FALSE))) ->  | CW8: =IF(ISNA(HLOOKUP(CW$6,Components!$C$2:$AIR$3,2,FALSE)),"",IF(HLOOKUP(CW$6,Components!$C$2:$AIR$3,2,FALSE)="","",HLOOKUP(CW$6,Components!$C$2:$AIR$3,2,FALSE))) ->  | CX8: =IF(ISNA(HLOOKUP(CX$6,Components!$C$2:$AIR$3,2,FALSE)),"",IF(HLOOKUP(CX$6,Components!$C$2:$AIR$3,2,FALSE)="","",HLOOKUP(CX$6,Components!$C$2:$AIR$3,2,FALSE))) ->  | CY8: =IF(ISNA(HLOOKUP(CY$6,Components!$C$2:$AIR$3,2,FALSE)),"",IF(HLOOKUP(CY$6,Components!$C$2:$AIR$3,2,FALSE)="","",HLOOKUP(CY$6,Components!$C$2:$AIR$3,2,FALSE))) ->  | CZ8: =IF(ISNA(HLOOKUP(CZ$6,Components!$C$2:$AIR$3,2,FALSE)),"",IF(HLOOKUP(CZ$6,Components!$C$2:$AIR$3,2,FALSE)="","",HLOOKUP(CZ$6,Components!$C$2:$AIR$3,2,FALSE))) ->  | DA8: =IF(ISNA(HLOOKUP(DA$6,Components!$C$2:$AIR$3,2,FALSE)),"",IF(HLOOKUP(DA$6,Components!$C$2:$AIR$3,2,FALSE)="","",HLOOKUP(DA$6,Components!$C$2:$AIR$3,2,FALSE))) ->  | DB8: =IF(ISNA(HLOOKUP(DB$6,Components!$C$2:$AIR$3,2,FALSE)),"",IF(HLOOKUP(DB$6,Components!$C$2:$AIR$3,2,FALSE)="","",HLOOKUP(DB$6,Components!$C$2:$AIR$3,2,FALSE))) -> TRUE | DC8: =IF(ISNA(HLOOKUP(DC$6,Components!$C$2:$AIR$3,2,FALSE)),"",IF(HLOOKUP(DC$6,Components!$C$2:$AIR$3,2,FALSE)="","",HLOOKUP(DC$6,Components!$C$2:$AIR$3,2,FALSE))) -> 444.01 | DD8: =IF(ISNA(HLOOKUP(DD$6,Components!$C$2:$AIR$3,2,FALSE)),"",IF(HLOOKUP(DD$6,Components!$C$2:$AIR$3,2,FALSE)="","",HLOOKUP(DD$6,Components!$C$2:$AIR$3,2,FALSE))) ->  | DE8: =IF(ISNA(HLOOKUP(DE$6,Components!$C$2:$AIR$3,2,FALSE)),"",IF(HLOOKUP(DE$6,Components!$C$2:$AIR$3,2,FALSE)="","",HLOOKUP(DE$6,Components!$C$2:$AIR$3,2,FALSE))) ->  | DF8: =IF(ISNA(HLOOKUP(DF$6,Components!$C$2:$AIR$3,2,FALSE)),"",IF(HLOOKUP(DF$6,Components!$C$2:$AIR$3,2,FALSE)="","",HLOOKUP(DF$6,Components!$C$2:$AIR$3,2,FALSE))) ->  | DG8: =IF(ISNA(HLOOKUP(DG$6,Components!$C$2:$AIR$3,2,FALSE)),"",IF(HLOOKUP(DG$6,Components!$C$2:$AIR$3,2,FALSE)="","",HLOOKUP(DG$6,Components!$C$2:$AIR$3,2,FALSE))) ->  | DH8: =IF(ISNA(HLOOKUP(DH$6,Components!$C$2:$AIR$3,2,FALSE)),"",IF(HLOOKUP(DH$6,Components!$C$2:$AIR$3,2,FALSE)="","",HLOOKUP(DH$6,Components!$C$2:$AIR$3,2,FALSE))) ->  | DI8: =IF(ISNA(HLOOKUP(DI$6,Components!$C$2:$AIR$3,2,FALSE)),"",IF(HLOOKUP(DI$6,Components!$C$2:$AIR$3,2,FALSE)="","",HLOOKUP(DI$6,Components!$C$2:$AIR$3,2,FALSE))) ->  | DJ8: =IF(ISNA(HLOOKUP(DJ$6,Components!$C$2:$AIR$3,2,FALSE)),"",IF(HLOOKUP(DJ$6,Components!$C$2:$AIR$3,2,FALSE)="","",HLOOKUP(DJ$6,Components!$C$2:$AIR$3,2,FALSE))) ->  | DK8: =IF(ISNA(HLOOKUP(DK$6,Components!$C$2:$AIR$3,2,FALSE)),"",IF(HLOOKUP(DK$6,Components!$C$2:$AIR$3,2,FALSE)="","",HLOOKUP(DK$6,Components!$C$2:$AIR$3,2,FALSE))) ->  | DL8: =IF(ISNA(HLOOKUP(DL$6,Components!$C$2:$AIR$3,2,FALSE)),"",IF(HLOOKUP(DL$6,Components!$C$2:$AIR$3,2,FALSE)="","",HLOOKUP(DL$6,Components!$C$2:$AIR$3,2,FALSE))) ->  | DM8: =IF(ISNA(HLOOKUP(DM$6,Components!$C$2:$AIR$3,2,FALSE)),"",IF(HLOOKUP(DM$6,Components!$C$2:$AIR$3,2,FALSE)="","",HLOOKUP(DM$6,Components!$C$2:$AIR$3,2,FALSE))) ->  | DN8: =IF(ISNA(HLOOKUP(DN$6,Components!$C$2:$AIR$3,2,FALSE)),"",IF(HLOOKUP(DN$6,Components!$C$2:$AIR$3,2,FALSE)="","",HLOOKUP(DN$6,Components!$C$2:$AIR$3,2,FALSE))) ->  | DO8: =IF(ISNA(HLOOKUP(DO$6,Components!$C$2:$AIR$3,2,FALSE)),"",IF(HLOOKUP(DO$6,Components!$C$2:$AIR$3,2,FALSE)="","",HLOOKUP(DO$6,Components!$C$2:$AIR$3,2,FALSE))) ->  | DP8: =IF(ISNA(HLOOKUP(DP$6,Components!$C$2:$AIR$3,2,FALSE)),"",IF(HLOOKUP(DP$6,Components!$C$2:$AIR$3,2,FALSE)="","",HLOOKUP(DP$6,Components!$C$2:$AIR$3,2,FALSE))) ->  | DQ8: =IF(ISNA(HLOOKUP(DQ$6,Components!$C$2:$AIR$3,2,FALSE)),"",IF(HLOOKUP(DQ$6,Components!$C$2:$AIR$3,2,FALSE)="","",HLOOKUP(DQ$6,Components!$C$2:$AIR$3,2,FALSE))) ->  | DR8: =IF(ISNA(HLOOKUP(DR$6,Components!$C$2:$AIR$3,2,FALSE)),"",IF(HLOOKUP(DR$6,Components!$C$2:$AIR$3,2,FALSE)="","",HLOOKUP(DR$6,Components!$C$2:$AIR$3,2,FALSE))) -> 
A9: 2 | B9: Calc Type - Trust rate Q3 (UK Prop) Hol Let Q8.16 (Special trust rates - Yes) Q9 (Other Inc) NS&I INT(Taxed), Other SAV, Bonus Issues W/O 9A.1 (amt of SRB) - 200 Q17 (Self Calc) | C9: =DC9 -> 1830.7 | D9: 1830.7 | E9: 915.35 | F9: =IF(ISNA(HLOOKUP(F$6,Components!$C$4:$AIR$5,2,FALSE)),"",IF(HLOOKUP(F$6,Components!$C$4:$AIR$5,2,FALSE)="","",HLOOKUP(F$6,Components!$C$4:$AIR$5,2,FALSE))) ->  | G9: =IF(ISNA(HLOOKUP(G$6,Components!$C$4:$AIR$5,2,FALSE)),"",IF(HLOOKUP(G$6,Components!$C$4:$AIR$5,2,FALSE)="","",HLOOKUP(G$6,Components!$C$4:$AIR$5,2,FALSE))) ->  | H9: =IF(ISNA(HLOOKUP(H$6,Components!$C$4:$AIR$5,2,FALSE)),"",IF(HLOOKUP(H$6,Components!$C$4:$AIR$5,2,FALSE)="","",HLOOKUP(H$6,Components!$C$4:$AIR$5,2,FALSE))) ->  | I9: =IF(ISNA(HLOOKUP(I$6,Components!$C$4:$AIR$5,2,FALSE)),"",IF(HLOOKUP(I$6,Components!$C$4:$AIR$5,2,FALSE)="","",HLOOKUP(I$6,Components!$C$4:$AIR$5,2,FALSE))) ->  | J9: =IF(ISNA(HLOOKUP(J$6,Components!$C$4:$AIR$5,2,FALSE)),"",IF(HLOOKUP(J$6,Components!$C$4:$AIR$5,2,FALSE)="","",HLOOKUP(J$6,Components!$C$4:$AIR$5,2,FALSE))) ->  | K9: =IF(ISNA(HLOOKUP(K$6,Components!$C$4:$AIR$5,2,FALSE)),"",IF(HLOOKUP(K$6,Components!$C$4:$AIR$5,2,FALSE)="","",HLOOKUP(K$6,Components!$C$4:$AIR$5,2,FALSE))) ->  | L9: =IF(ISNA(HLOOKUP(L$6,Components!$C$4:$AIR$5,2,FALSE)),"",IF(HLOOKUP(L$6,Components!$C$4:$AIR$5,2,FALSE)="","",HLOOKUP(L$6,Components!$C$4:$AIR$5,2,FALSE))) ->  | M9: =IF(ISNA(HLOOKUP(M$6,Components!$C$4:$AIR$5,2,FALSE)),"",IF(HLOOKUP(M$6,Components!$C$4:$AIR$5,2,FALSE)="","",HLOOKUP(M$6,Components!$C$4:$AIR$5,2,FALSE))) ->  | N9: =IF(ISNA(HLOOKUP(N$6,Components!$C$4:$AIR$5,2,FALSE)),"",IF(HLOOKUP(N$6,Components!$C$4:$AIR$5,2,FALSE)="","",HLOOKUP(N$6,Components!$C$4:$AIR$5,2,FALSE))) ->  | O9: =IF(ISNA(HLOOKUP(O$6,Components!$C$4:$AIR$5,2,FALSE)),"",IF(HLOOKUP(O$6,Components!$C$4:$AIR$5,2,FALSE)="","",HLOOKUP(O$6,Components!$C$4:$AIR$5,2,FALSE))) ->  | P9: =IF(ISNA(HLOOKUP(P$6,Components!$C$4:$AIR$5,2,FALSE)),"",IF(HLOOKUP(P$6,Components!$C$4:$AIR$5,2,FALSE)="","",HLOOKUP(P$6,Components!$C$4:$AIR$5,2,FALSE))) ->  | Q9: =IF(ISNA(HLOOKUP(Q$6,Components!$C$4:$AIR$5,2,FALSE)),"",IF(HLOOKUP(Q$6,Components!$C$4:$AIR$5,2,FALSE)="","",HLOOKUP(Q$6,Components!$C$4:$AIR$5,2,FALSE))) ->  | R9: =IF(ISNA(HLOOKUP(R$6,Components!$C$4:$AIR$5,2,FALSE)),"",IF(HLOOKUP(R$6,Components!$C$4:$AIR$5,2,FALSE)="","",HLOOKUP(R$6,Components!$C$4:$AIR$5,2,FALSE))) ->  | S9: =IF(ISNA(HLOOKUP(S$6,Components!$C$4:$AIR$5,2,FALSE)),"",IF(HLOOKUP(S$6,Components!$C$4:$AIR$5,2,FALSE)="","",HLOOKUP(S$6,Components!$C$4:$AIR$5,2,FALSE))) ->  | T9: =IF(ISNA(HLOOKUP(T$6,Components!$C$4:$AIR$5,2,FALSE)),"",IF(HLOOKUP(T$6,Components!$C$4:$AIR$5,2,FALSE)="","",HLOOKUP(T$6,Components!$C$4:$AIR$5,2,FALSE))) -> 3525 | U9: =IF(ISNA(HLOOKUP(U$6,Components!$C$4:$AIR$5,2,FALSE)),"",IF(HLOOKUP(U$6,Components!$C$4:$AIR$5,2,FALSE)="","",HLOOKUP(U$6,Components!$C$4:$AIR$5,2,FALSE))) ->  | V9: =IF(ISNA(HLOOKUP(V$6,Components!$C$4:$AIR$5,2,FALSE)),"",IF(HLOOKUP(V$6,Components!$C$4:$AIR$5,2,FALSE)="","",HLOOKUP(V$6,Components!$C$4:$AIR$5,2,FALSE))) ->  | W9: =IF(ISNA(HLOOKUP(W$6,Components!$C$4:$AIR$5,2,FALSE)),"",IF(HLOOKUP(W$6,Components!$C$4:$AIR$5,2,FALSE)="","",HLOOKUP(W$6,Components!$C$4:$AIR$5,2,FALSE))) ->  | X9: =IF(ISNA(HLOOKUP(X$6,Components!$C$4:$AIR$5,2,FALSE)),"",IF(HLOOKUP(X$6,Components!$C$4:$AIR$5,2,FALSE)="","",HLOOKUP(X$6,Components!$C$4:$AIR$5,2,FALSE))) ->  | Y9: =IF(ISNA(HLOOKUP(Y$6,Components!$C$4:$AIR$5,2,FALSE)),"",IF(HLOOKUP(Y$6,Components!$C$4:$AIR$5,2,FALSE)="","",HLOOKUP(Y$6,Components!$C$4:$AIR$5,2,FALSE))) ->  | Z9: =IF(ISNA(HLOOKUP(Z$6,Components!$C$4:$AIR$5,2,FALSE)),"",IF(HLOOKUP(Z$6,Components!$C$4:$AIR$5,2,FALSE)="","",HLOOKUP(Z$6,Components!$C$4:$AIR$5,2,FALSE))) ->  | AA9: =IF(ISNA(HLOOKUP(AA$6,Components!$C$4:$AIR$5,2,FALSE)),"",IF(HLOOKUP(AA$6,Components!$C$4:$AIR$5,2,FALSE)="","",HLOOKUP(AA$6,Components!$C$4:$AIR$5,2,FALSE))) ->  | AB9: =IF(ISNA(HLOOKUP(AB$6,Components!$C$4:$AIR$5,2,FALSE)),"",IF(HLOOKUP(AB$6,Components!$C$4:$AIR$5,2,FALSE)="","",HLOOKUP(AB$6,Components!$C$4:$AIR$5,2,FALSE))) ->  | AC9: =IF(ISNA(HLOOKUP(AC$6,Components!$C$4:$AIR$5,2,FALSE)),"",IF(HLOOKUP(AC$6,Components!$C$4:$AIR$5,2,FALSE)="","",HLOOKUP(AC$6,Components!$C$4:$AIR$5,2,FALSE))) ->  | AD9: =IF(ISNA(HLOOKUP(AD$6,Components!$C$4:$AIR$5,2,FALSE)),"",IF(HLOOKUP(AD$6,Components!$C$4:$AIR$5,2,FALSE)="","",HLOOKUP(AD$6,Components!$C$4:$AIR$5,2,FALSE))) ->  | AE9: =IF(ISNA(HLOOKUP(AE$6,Components!$C$4:$AIR$5,2,FALSE)),"",IF(HLOOKUP(AE$6,Components!$C$4:$AIR$5,2,FALSE)="","",HLOOKUP(AE$6,Components!$C$4:$AIR$5,2,FALSE))) ->  | AF9: =IF(ISNA(HLOOKUP(AF$6,Components!$C$4:$AIR$5,2,FALSE)),"",IF(HLOOKUP(AF$6,Components!$C$4:$AIR$5,2,FALSE)="","",HLOOKUP(AF$6,Components!$C$4:$AIR$5,2,FALSE))) ->  | AG9: =IF(ISNA(HLOOKUP(AG$6,Components!$C$4:$AIR$5,2,FALSE)),"",IF(HLOOKUP(AG$6,Components!$C$4:$AIR$5,2,FALSE)="","",HLOOKUP(AG$6,Components!$C$4:$AIR$5,2,FALSE))) ->  | AH9: =IF(ISNA(HLOOKUP(AH$6,Components!$C$4:$AIR$5,2,FALSE)),"",IF(HLOOKUP(AH$6,Components!$C$4:$AIR$5,2,FALSE)="","",HLOOKUP(AH$6,Components!$C$4:$AIR$5,2,FALSE))) ->  | AI9: =IF(ISNA(HLOOKUP(AI$6,Components!$C$4:$AIR$5,2,FALSE)),"",IF(HLOOKUP(AI$6,Components!$C$4:$AIR$5,2,FALSE)="","",HLOOKUP(AI$6,Components!$C$4:$AIR$5,2,FALSE))) ->  | AJ9: =IF(ISNA(HLOOKUP(AJ$6,Components!$C$4:$AIR$5,2,FALSE)),"",IF(HLOOKUP(AJ$6,Components!$C$4:$AIR$5,2,FALSE)="","",HLOOKUP(AJ$6,Components!$C$4:$AIR$5,2,FALSE))) ->  | AK9: =IF(ISNA(HLOOKUP(AK$6,Components!$C$4:$AIR$5,2,FALSE)),"",IF(HLOOKUP(AK$6,Components!$C$4:$AIR$5,2,FALSE)="","",HLOOKUP(AK$6,Components!$C$4:$AIR$5,2,FALSE))) ->  | AL9: =IF(ISNA(HLOOKUP(AL$6,Components!$C$4:$AIR$5,2,FALSE)),"",IF(HLOOKUP(AL$6,Components!$C$4:$AIR$5,2,FALSE)="","",HLOOKUP(AL$6,Components!$C$4:$AIR$5,2,FALSE))) ->  | AM9: =IF(ISNA(HLOOKUP(AM$6,Components!$C$4:$AIR$5,2,FALSE)),"",IF(HLOOKUP(AM$6,Components!$C$4:$AIR$5,2,FALSE)="","",HLOOKUP(AM$6,Components!$C$4:$AIR$5,2,FALSE))) ->  | AN9: =IF(ISNA(HLOOKUP(AN$6,Components!$C$4:$AIR$5,2,FALSE)),"",IF(HLOOKUP(AN$6,Components!$C$4:$AIR$5,2,FALSE)="","",HLOOKUP(AN$6,Components!$C$4:$AIR$5,2,FALSE))) ->  | AO9: =IF(ISNA(HLOOKUP(AO$6,Components!$C$4:$AIR$5,2,FALSE)),"",IF(HLOOKUP(AO$6,Components!$C$4:$AIR$5,2,FALSE)="","",HLOOKUP(AO$6,Components!$C$4:$AIR$5,2,FALSE))) ->  | AP9: =IF(ISNA(HLOOKUP(AP$6,Components!$C$4:$AIR$5,2,FALSE)),"",IF(HLOOKUP(AP$6,Components!$C$4:$AIR$5,2,FALSE)="","",HLOOKUP(AP$6,Components!$C$4:$AIR$5,2,FALSE))) ->  | AQ9: =IF(ISNA(HLOOKUP(AQ$6,Components!$C$4:$AIR$5,2,FALSE)),"",IF(HLOOKUP(AQ$6,Components!$C$4:$AIR$5,2,FALSE)="","",HLOOKUP(AQ$6,Components!$C$4:$AIR$5,2,FALSE))) ->  | AR9: =IF(ISNA(HLOOKUP(AR$6,Components!$C$4:$AIR$5,2,FALSE)),"",IF(HLOOKUP(AR$6,Components!$C$4:$AIR$5,2,FALSE)="","",HLOOKUP(AR$6,Components!$C$4:$AIR$5,2,FALSE))) ->  | AS9: =IF(ISNA(HLOOKUP(AS$6,Components!$C$4:$AIR$5,2,FALSE)),"",IF(HLOOKUP(AS$6,Components!$C$4:$AIR$5,2,FALSE)="","",HLOOKUP(AS$6,Components!$C$4:$AIR$5,2,FALSE))) ->  | AT9: =IF(ISNA(HLOOKUP(AT$6,Components!$C$4:$AIR$5,2,FALSE)),"",IF(HLOOKUP(AT$6,Components!$C$4:$AIR$5,2,FALSE)="","",HLOOKUP(AT$6,Components!$C$4:$AIR$5,2,FALSE))) ->  | AU9: =IF(ISNA(HLOOKUP(AU$6,Components!$C$4:$AIR$5,2,FALSE)),"",IF(HLOOKUP(AU$6,Components!$C$4:$AIR$5,2,FALSE)="","",HLOOKUP(AU$6,Components!$C$4:$AIR$5,2,FALSE))) ->  | AV9: =IF(ISNA(HLOOKUP(AV$6,Components!$C$4:$AIR$5,2,FALSE)),"",IF(HLOOKUP(AV$6,Components!$C$4:$AIR$5,2,FALSE)="","",HLOOKUP(AV$6,Components!$C$4:$AIR$5,2,FALSE))) ->  | AW9: =IF(ISNA(HLOOKUP(AW$6,Components!$C$4:$AIR$5,2,FALSE)),"",IF(HLOOKUP(AW$6,Components!$C$4:$AIR$5,2,FALSE)="","",HLOOKUP(AW$6,Components!$C$4:$AIR$5,2,FALSE))) ->  | AX9: =IF(ISNA(HLOOKUP(AX$6,Components!$C$4:$AIR$5,2,FALSE)),"",IF(HLOOKUP(AX$6,Components!$C$4:$AIR$5,2,FALSE)="","",HLOOKUP(AX$6,Components!$C$4:$AIR$5,2,FALSE))) ->  | AY9: =IF(ISNA(HLOOKUP(AY$6,Components!$C$4:$AIR$5,2,FALSE)),"",IF(HLOOKUP(AY$6,Components!$C$4:$AIR$5,2,FALSE)="","",HLOOKUP(AY$6,Components!$C$4:$AIR$5,2,FALSE))) ->  | AZ9: =IF(ISNA(HLOOKUP(AZ$6,Components!$C$4:$AIR$5,2,FALSE)),"",IF(HLOOKUP(AZ$6,Components!$C$4:$AIR$5,2,FALSE)="","",HLOOKUP(AZ$6,Components!$C$4:$AIR$5,2,FALSE))) ->  | BA9: =IF(ISNA(HLOOKUP(BA$6,Components!$C$4:$AIR$5,2,FALSE)),"",IF(HLOOKUP(BA$6,Components!$C$4:$AIR$5,2,FALSE)="","",HLOOKUP(BA$6,Components!$C$4:$AIR$5,2,FALSE))) ->  | BB9: =IF(ISNA(HLOOKUP(BB$6,Components!$C$4:$AIR$5,2,FALSE)),"",IF(HLOOKUP(BB$6,Components!$C$4:$AIR$5,2,FALSE)="","",HLOOKUP(BB$6,Components!$C$4:$AIR$5,2,FALSE))) ->  | BC9: =IF(ISNA(HLOOKUP(BC$6,Components!$C$4:$AIR$5,2,FALSE)),"",IF(HLOOKUP(BC$6,Components!$C$4:$AIR$5,2,FALSE)="","",HLOOKUP(BC$6,Components!$C$4:$AIR$5,2,FALSE))) ->  | BD9: =IF(ISNA(HLOOKUP(BD$6,Components!$C$4:$AIR$5,2,FALSE)),"",IF(HLOOKUP(BD$6,Components!$C$4:$AIR$5,2,FALSE)="","",HLOOKUP(BD$6,Components!$C$4:$AIR$5,2,FALSE))) ->  | BE9: =IF(ISNA(HLOOKUP(BE$6,Components!$C$4:$AIR$5,2,FALSE)),"",IF(HLOOKUP(BE$6,Components!$C$4:$AIR$5,2,FALSE)="","",HLOOKUP(BE$6,Components!$C$4:$AIR$5,2,FALSE))) ->  | BF9: =IF(ISNA(HLOOKUP(BF$6,Components!$C$4:$AIR$5,2,FALSE)),"",IF(HLOOKUP(BF$6,Components!$C$4:$AIR$5,2,FALSE)="","",HLOOKUP(BF$6,Components!$C$4:$AIR$5,2,FALSE))) ->  | BG9: =IF(ISNA(HLOOKUP(BG$6,Components!$C$4:$AIR$5,2,FALSE)),"",IF(HLOOKUP(BG$6,Components!$C$4:$AIR$5,2,FALSE)="","",HLOOKUP(BG$6,Components!$C$4:$AIR$5,2,FALSE))) ->  | BH9: =IF(ISNA(HLOOKUP(BH$6,Components!$C$4:$AIR$5,2,FALSE)),"",IF(HLOOKUP(BH$6,Components!$C$4:$AIR$5,2,FALSE)="","",HLOOKUP(BH$6,Components!$C$4:$AIR$5,2,FALSE))) ->  | BI9: =IF(ISNA(HLOOKUP(BI$6,Components!$C$4:$AIR$5,2,FALSE)),"",IF(HLOOKUP(BI$6,Components!$C$4:$AIR$5,2,FALSE)="","",HLOOKUP(BI$6,Components!$C$4:$AIR$5,2,FALSE))) -> TRUE | BJ9: =IF(ISNA(HLOOKUP(BJ$6,Components!$C$4:$AIR$5,2,FALSE)),"",IF(HLOOKUP(BJ$6,Components!$C$4:$AIR$5,2,FALSE)="","",HLOOKUP(BJ$6,Components!$C$4:$AIR$5,2,FALSE))) -> 781 | BK9: =IF(ISNA(HLOOKUP(BK$6,Components!$C$4:$AIR$5,2,FALSE)),"",IF(HLOOKUP(BK$6,Components!$C$4:$AIR$5,2,FALSE)="","",HLOOKUP(BK$6,Components!$C$4:$AIR$5,2,FALSE))) ->  | BL9: =IF(ISNA(HLOOKUP(BL$6,Components!$C$4:$AIR$5,2,FALSE)),"",IF(HLOOKUP(BL$6,Components!$C$4:$AIR$5,2,FALSE)="","",HLOOKUP(BL$6,Components!$C$4:$AIR$5,2,FALSE))) ->  | BM9: =IF(ISNA(HLOOKUP(BM$6,Components!$C$4:$AIR$5,2,FALSE)),"",IF(HLOOKUP(BM$6,Components!$C$4:$AIR$5,2,FALSE)="","",HLOOKUP(BM$6,Components!$C$4:$AIR$5,2,FALSE))) ->  | BN9: =IF(ISNA(HLOOKUP(BN$6,Components!$C$4:$AIR$5,2,FALSE)),"",IF(HLOOKUP(BN$6,Components!$C$4:$AIR$5,2,FALSE)="","",HLOOKUP(BN$6,Components!$C$4:$AIR$5,2,FALSE))) -> 1321 | BO9: =IF(ISNA(HLOOKUP(BO$6,Components!$C$4:$AIR$5,2,FALSE)),"",IF(HLOOKUP(BO$6,Components!$C$4:$AIR$5,2,FALSE)="","",HLOOKUP(BO$6,Components!$C$4:$AIR$5,2,FALSE))) -> 800 | BP9: =IF(ISNA(HLOOKUP(BP$6,Components!$C$4:$AIR$5,2,FALSE)),"",IF(HLOOKUP(BP$6,Components!$C$4:$AIR$5,2,FALSE)="","",HLOOKUP(BP$6,Components!$C$4:$AIR$5,2,FALSE))) -> 115.2 | BQ9: =IF(ISNA(HLOOKUP(BQ$6,Components!$C$4:$AIR$5,2,FALSE)),"",IF(HLOOKUP(BQ$6,Components!$C$4:$AIR$5,2,FALSE)="","",HLOOKUP(BQ$6,Components!$C$4:$AIR$5,2,FALSE))) -> 128 | BR9: =IF(ISNA(HLOOKUP(BR$6,Components!$C$4:$AIR$5,2,FALSE)),"",IF(HLOOKUP(BR$6,Components!$C$4:$AIR$5,2,FALSE)="","",HLOOKUP(BR$6,Components!$C$4:$AIR$5,2,FALSE))) ->  | BS9: =IF(ISNA(HLOOKUP(BS$6,Components!$C$4:$AIR$5,2,FALSE)),"",IF(HLOOKUP(BS$6,Components!$C$4:$AIR$5,2,FALSE)="","",HLOOKUP(BS$6,Components!$C$4:$AIR$5,2,FALSE))) ->  | BT9: =IF(ISNA(HLOOKUP(BT$6,Components!$C$4:$AIR$5,2,FALSE)),"",IF(HLOOKUP(BT$6,Components!$C$4:$AIR$5,2,FALSE)="","",HLOOKUP(BT$6,Components!$C$4:$AIR$5,2,FALSE))) -> 118 | BU9: =IF(ISNA(HLOOKUP(BU$6,Components!$C$4:$AIR$5,2,FALSE)),"",IF(HLOOKUP(BU$6,Components!$C$4:$AIR$5,2,FALSE)="","",HLOOKUP(BU$6,Components!$C$4:$AIR$5,2,FALSE))) ->  | BV9: =IF(ISNA(HLOOKUP(BV$6,Components!$C$4:$AIR$5,2,FALSE)),"",IF(HLOOKUP(BV$6,Components!$C$4:$AIR$5,2,FALSE)="","",HLOOKUP(BV$6,Components!$C$4:$AIR$5,2,FALSE))) ->  | BW9: =IF(ISNA(HLOOKUP(BW$6,Components!$C$4:$AIR$5,2,FALSE)),"",IF(HLOOKUP(BW$6,Components!$C$4:$AIR$5,2,FALSE)="","",HLOOKUP(BW$6,Components!$C$4:$AIR$5,2,FALSE))) ->  | BX9: =IF(ISNA(HLOOKUP(BX$6,Components!$C$4:$AIR$5,2,FALSE)),"",IF(HLOOKUP(BX$6,Components!$C$4:$AIR$5,2,FALSE)="","",HLOOKUP(BX$6,Components!$C$4:$AIR$5,2,FALSE))) ->  | BY9: =IF(ISNA(HLOOKUP(BY$6,Components!$C$4:$AIR$5,2,FALSE)),"",IF(HLOOKUP(BY$6,Components!$C$4:$AIR$5,2,FALSE)="","",HLOOKUP(BY$6,Components!$C$4:$AIR$5,2,FALSE))) ->  | BZ9: =IF(ISNA(HLOOKUP(BZ$6,Components!$C$4:$AIR$5,2,FALSE)),"",IF(HLOOKUP(BZ$6,Components!$C$4:$AIR$5,2,FALSE)="","",HLOOKUP(BZ$6,Components!$C$4:$AIR$5,2,FALSE))) ->  | CA9: =IF(ISNA(HLOOKUP(CA$6,Components!$C$4:$AIR$5,2,FALSE)),"",IF(HLOOKUP(CA$6,Components!$C$4:$AIR$5,2,FALSE)="","",HLOOKUP(CA$6,Components!$C$4:$AIR$5,2,FALSE))) ->  | CB9: =IF(ISNA(HLOOKUP(CB$6,Components!$C$4:$AIR$5,2,FALSE)),"",IF(HLOOKUP(CB$6,Components!$C$4:$AIR$5,2,FALSE)="","",HLOOKUP(CB$6,Components!$C$4:$AIR$5,2,FALSE))) ->  | CC9: =IF(ISNA(HLOOKUP(CC$6,Components!$C$4:$AIR$5,2,FALSE)),"",IF(HLOOKUP(CC$6,Components!$C$4:$AIR$5,2,FALSE)="","",HLOOKUP(CC$6,Components!$C$4:$AIR$5,2,FALSE))) -> 200 | CD9: =IF(ISNA(HLOOKUP(CD$6,Components!$C$4:$AIR$5,2,FALSE)),"",IF(HLOOKUP(CD$6,Components!$C$4:$AIR$5,2,FALSE)="","",HLOOKUP(CD$6,Components!$C$4:$AIR$5,2,FALSE))) ->  | CE9: =IF(ISNA(HLOOKUP(CE$6,Components!$C$4:$AIR$5,2,FALSE)),"",IF(HLOOKUP(CE$6,Components!$C$4:$AIR$5,2,FALSE)="","",HLOOKUP(CE$6,Components!$C$4:$AIR$5,2,FALSE))) ->  | CF9: =IF(ISNA(HLOOKUP(CF$6,Components!$C$4:$AIR$5,2,FALSE)),"",IF(HLOOKUP(CF$6,Components!$C$4:$AIR$5,2,FALSE)="","",HLOOKUP(CF$6,Components!$C$4:$AIR$5,2,FALSE))) ->  | CG9: =IF(ISNA(HLOOKUP(CG$6,Components!$C$4:$AIR$5,2,FALSE)),"",IF(HLOOKUP(CG$6,Components!$C$4:$AIR$5,2,FALSE)="","",HLOOKUP(CG$6,Components!$C$4:$AIR$5,2,FALSE))) ->  | CH9: =IF(ISNA(HLOOKUP(CH$6,Components!$C$4:$AIR$5,2,FALSE)),"",IF(HLOOKUP(CH$6,Components!$C$4:$AIR$5,2,FALSE)="","",HLOOKUP(CH$6,Components!$C$4:$AIR$5,2,FALSE))) ->  | CI9: =IF(ISNA(HLOOKUP(CI$6,Components!$C$4:$AIR$5,2,FALSE)),"",IF(HLOOKUP(CI$6,Components!$C$4:$AIR$5,2,FALSE)="","",HLOOKUP(CI$6,Components!$C$4:$AIR$5,2,FALSE))) ->  | CJ9: =IF(ISNA(HLOOKUP(CJ$6,Components!$C$4:$AIR$5,2,FALSE)),"",IF(HLOOKUP(CJ$6,Components!$C$4:$AIR$5,2,FALSE)="","",HLOOKUP(CJ$6,Components!$C$4:$AIR$5,2,FALSE))) ->  | CK9: =IF(ISNA(HLOOKUP(CK$6,Components!$C$4:$AIR$5,2,FALSE)),"",IF(HLOOKUP(CK$6,Components!$C$4:$AIR$5,2,FALSE)="","",HLOOKUP(CK$6,Components!$C$4:$AIR$5,2,FALSE))) ->  | CL9: =IF(ISNA(HLOOKUP(CL$6,Components!$C$4:$AIR$5,2,FALSE)),"",IF(HLOOKUP(CL$6,Components!$C$4:$AIR$5,2,FALSE)="","",HLOOKUP(CL$6,Components!$C$4:$AIR$5,2,FALSE))) ->  | CM9: =IF(ISNA(HLOOKUP(CM$6,Components!$C$4:$AIR$5,2,FALSE)),"",IF(HLOOKUP(CM$6,Components!$C$4:$AIR$5,2,FALSE)="","",HLOOKUP(CM$6,Components!$C$4:$AIR$5,2,FALSE))) ->  | CN9: =IF(ISNA(HLOOKUP(CN$6,Components!$C$4:$AIR$5,2,FALSE)),"",IF(HLOOKUP(CN$6,Components!$C$4:$AIR$5,2,FALSE)="","",HLOOKUP(CN$6,Components!$C$4:$AIR$5,2,FALSE))) ->  | CO9: =IF(ISNA(HLOOKUP(CO$6,Components!$C$4:$AIR$5,2,FALSE)),"",IF(HLOOKUP(CO$6,Components!$C$4:$AIR$5,2,FALSE)="","",HLOOKUP(CO$6,Components!$C$4:$AIR$5,2,FALSE))) ->  | CP9: =IF(ISNA(HLOOKUP(CP$6,Components!$C$4:$AIR$5,2,FALSE)),"",IF(HLOOKUP(CP$6,Components!$C$4:$AIR$5,2,FALSE)="","",HLOOKUP(CP$6,Components!$C$4:$AIR$5,2,FALSE))) ->  | CQ9: =IF(ISNA(HLOOKUP(CQ$6,Components!$C$4:$AIR$5,2,FALSE)),"",IF(HLOOKUP(CQ$6,Components!$C$4:$AIR$5,2,FALSE)="","",HLOOKUP(CQ$6,Components!$C$4:$AIR$5,2,FALSE))) ->  | CR9: =IF(ISNA(HLOOKUP(CR$6,Components!$C$4:$AIR$5,2,FALSE)),"",IF(HLOOKUP(CR$6,Components!$C$4:$AIR$5,2,FALSE)="","",HLOOKUP(CR$6,Components!$C$4:$AIR$5,2,FALSE))) ->  | CS9: =IF(ISNA(HLOOKUP(CS$6,Components!$C$4:$AIR$5,2,FALSE)),"",IF(HLOOKUP(CS$6,Components!$C$4:$AIR$5,2,FALSE)="","",HLOOKUP(CS$6,Components!$C$4:$AIR$5,2,FALSE))) ->  | CT9: =IF(ISNA(HLOOKUP(CT$6,Components!$C$4:$AIR$5,2,FALSE)),"",IF(HLOOKUP(CT$6,Components!$C$4:$AIR$5,2,FALSE)="","",HLOOKUP(CT$6,Components!$C$4:$AIR$5,2,FALSE))) ->  | CU9: =IF(ISNA(HLOOKUP(CU$6,Components!$C$4:$AIR$5,2,FALSE)),"",IF(HLOOKUP(CU$6,Components!$C$4:$AIR$5,2,FALSE)="","",HLOOKUP(CU$6,Components!$C$4:$AIR$5,2,FALSE))) ->  | CV9: =IF(ISNA(HLOOKUP(CV$6,Components!$C$4:$AIR$5,2,FALSE)),"",IF(HLOOKUP(CV$6,Components!$C$4:$AIR$5,2,FALSE)="","",HLOOKUP(CV$6,Components!$C$4:$AIR$5,2,FALSE))) ->  | CW9: =IF(ISNA(HLOOKUP(CW$6,Components!$C$4:$AIR$5,2,FALSE)),"",IF(HLOOKUP(CW$6,Components!$C$4:$AIR$5,2,FALSE)="","",HLOOKUP(CW$6,Components!$C$4:$AIR$5,2,FALSE))) ->  | CX9: =IF(ISNA(HLOOKUP(CX$6,Components!$C$4:$AIR$5,2,FALSE)),"",IF(HLOOKUP(CX$6,Components!$C$4:$AIR$5,2,FALSE)="","",HLOOKUP(CX$6,Components!$C$4:$AIR$5,2,FALSE))) ->  | CY9: =IF(ISNA(HLOOKUP(CY$6,Components!$C$4:$AIR$5,2,FALSE)),"",IF(HLOOKUP(CY$6,Components!$C$4:$AIR$5,2,FALSE)="","",HLOOKUP(CY$6,Components!$C$4:$AIR$5,2,FALSE))) ->  | CZ9: =IF(ISNA(HLOOKUP(CZ$6,Components!$C$4:$AIR$5,2,FALSE)),"",IF(HLOOKUP(CZ$6,Components!$C$4:$AIR$5,2,FALSE)="","",HLOOKUP(CZ$6,Components!$C$4:$AIR$5,2,FALSE))) ->  | DA9: =IF(ISNA(HLOOKUP(DA$6,Components!$C$4:$AIR$5,2,FALSE)),"",IF(HLOOKUP(DA$6,Components!$C$4:$AIR$5,2,FALSE)="","",HLOOKUP(DA$6,Components!$C$4:$AIR$5,2,FALSE))) ->  | DB9: =IF(ISNA(HLOOKUP(DB$6,Components!$C$4:$AIR$5,2,FALSE)),"",IF(HLOOKUP(DB$6,Components!$C$4:$AIR$5,2,FALSE)="","",HLOOKUP(DB$6,Components!$C$4:$AIR$5,2,FALSE))) -> TRUE | DC9: =IF(ISNA(HLOOKUP(DC$6,Components!$C$4:$AIR$5,2,FALSE)),"",IF(HLOOKUP(DC$6,Components!$C$4:$AIR$5,2,FALSE)="","",HLOOKUP(DC$6,Components!$C$4:$AIR$5,2,FALSE))) -> 1830.7 | DD9: =IF(ISNA(HLOOKUP(DD$6,Components!$C$4:$AIR$5,2,FALSE)),"",IF(HLOOKUP(DD$6,Components!$C$4:$AIR$5,2,FALSE)="","",HLOOKUP(DD$6,Components!$C$4:$AIR$5,2,FALSE))) ->  | DE9: =IF(ISNA(HLOOKUP(DE$6,Components!$C$4:$AIR$5,2,FALSE)),"",IF(HLOOKUP(DE$6,Components!$C$4:$AIR$5,2,FALSE)="","",HLOOKUP(DE$6,Components!$C$4:$AIR$5,2,FALSE))) ->  | DF9: =IF(ISNA(HLOOKUP(DF$6,Components!$C$4:$AIR$5,2,FALSE)),"",IF(HLOOKUP(DF$6,Components!$C$4:$AIR$5,2,FALSE)="","",HLOOKUP(DF$6,Components!$C$4:$AIR$5,2,FALSE))) ->  | DG9: =IF(ISNA(HLOOKUP(DG$6,Components!$C$4:$AIR$5,2,FALSE)),"",IF(HLOOKUP(DG$6,Components!$C$4:$AIR$5,2,FALSE)="","",HLOOKUP(DG$6,Components!$C$4:$AIR$5,2,FALSE))) ->  | DH9: =IF(ISNA(HLOOKUP(DH$6,Components!$C$4:$AIR$5,2,FALSE)),"",IF(HLOOKUP(DH$6,Components!$C$4:$AIR$5,2,FALSE)="","",HLOOKUP(DH$6,Components!$C$4:$AIR$5,2,FALSE))) ->  | DI9: =IF(ISNA(HLOOKUP(DI$6,Components!$C$4:$AIR$5,2,FALSE)),"",IF(HLOOKUP(DI$6,Components!$C$4:$AIR$5,2,FALSE)="","",HLOOKUP(DI$6,Components!$C$4:$AIR$5,2,FALSE))) ->  | DJ9: =IF(ISNA(HLOOKUP(DJ$6,Components!$C$4:$AIR$5,2,FALSE)),"",IF(HLOOKUP(DJ$6,Components!$C$4:$AIR$5,2,FALSE)="","",HLOOKUP(DJ$6,Components!$C$4:$AIR$5,2,FALSE))) ->  | DK9: =IF(ISNA(HLOOKUP(DK$6,Components!$C$4:$AIR$5,2,FALSE)),"",IF(HLOOKUP(DK$6,Components!$C$4:$AIR$5,2,FALSE)="","",HLOOKUP(DK$6,Components!$C$4:$AIR$5,2,FALSE))) ->  | DL9: =IF(ISNA(HLOOKUP(DL$6,Components!$C$4:$AIR$5,2,FALSE)),"",IF(HLOOKUP(DL$6,Components!$C$4:$AIR$5,2,FALSE)="","",HLOOKUP(DL$6,Components!$C$4:$AIR$5,2,FALSE))) ->  | DM9: =IF(ISNA(HLOOKUP(DM$6,Components!$C$4:$AIR$5,2,FALSE)),"",IF(HLOOKUP(DM$6,Components!$C$4:$AIR$5,2,FALSE)="","",HLOOKUP(DM$6,Components!$C$4:$AIR$5,2,FALSE))) ->  | DN9: =IF(ISNA(HLOOKUP(DN$6,Components!$C$4:$AIR$5,2,FALSE)),"",IF(HLOOKUP(DN$6,Components!$C$4:$AIR$5,2,FALSE)="","",HLOOKUP(DN$6,Components!$C$4:$AIR$5,2,FALSE))) ->  | DO9: =IF(ISNA(HLOOKUP(DO$6,Components!$C$4:$AIR$5,2,FALSE)),"",IF(HLOOKUP(DO$6,Components!$C$4:$AIR$5,2,FALSE)="","",HLOOKUP(DO$6,Components!$C$4:$AIR$5,2,FALSE))) ->  | DP9: =IF(ISNA(HLOOKUP(DP$6,Components!$C$4:$AIR$5,2,FALSE)),"",IF(HLOOKUP(DP$6,Components!$C$4:$AIR$5,2,FALSE)="","",HLOOKUP(DP$6,Components!$C$4:$AIR$5,2,FALSE))) ->  | DQ9: =IF(ISNA(HLOOKUP(DQ$6,Components!$C$4:$AIR$5,2,FALSE)),"",IF(HLOOKUP(DQ$6,Components!$C$4:$AIR$5,2,FALSE)="","",HLOOKUP(DQ$6,Components!$C$4:$AIR$5,2,FALSE))) ->  | DR9: =IF(ISNA(HLOOKUP(DR$6,Components!$C$4:$AIR$5,2,FALSE)),"",IF(HLOOKUP(DR$6,Components!$C$4:$AIR$5,2,FALSE)="","",HLOOKUP(DR$6,Components!$C$4:$AIR$5,2,FALSE))) -> 
A10: 3 | B10: Calc Type - Trust rate Q4 (For) INT Q8.16 (Special trust rates - Yes) Q9 (Other Inc) taxed UK INT 9A.1 (amt of SRB) - 1000 Q17 (Self Calc) (+£250 over calculated due to income taxed at SRB) | C10: =DC10 -> 1900.18 | D10: 1650.18 | E10: 825.09 | F10: =IF(ISNA(HLOOKUP(F$6,Components!$C$6:$AIR$7,2,FALSE)),"",IF(HLOOKUP(F$6,Components!$C$6:$AIR$7,2,FALSE)="","",HLOOKUP(F$6,Components!$C$6:$AIR$7,2,FALSE))) ->  | G10: =IF(ISNA(HLOOKUP(G$6,Components!$C$6:$AIR$7,2,FALSE)),"",IF(HLOOKUP(G$6,Components!$C$6:$AIR$7,2,FALSE)="","",HLOOKUP(G$6,Components!$C$6:$AIR$7,2,FALSE))) ->  | H10: =IF(ISNA(HLOOKUP(H$6,Components!$C$6:$AIR$7,2,FALSE)),"",IF(HLOOKUP(H$6,Components!$C$6:$AIR$7,2,FALSE)="","",HLOOKUP(H$6,Components!$C$6:$AIR$7,2,FALSE))) ->  | I10: =IF(ISNA(HLOOKUP(I$6,Components!$C$6:$AIR$7,2,FALSE)),"",IF(HLOOKUP(I$6,Components!$C$6:$AIR$7,2,FALSE)="","",HLOOKUP(I$6,Components!$C$6:$AIR$7,2,FALSE))) ->  | J10: =IF(ISNA(HLOOKUP(J$6,Components!$C$6:$AIR$7,2,FALSE)),"",IF(HLOOKUP(J$6,Components!$C$6:$AIR$7,2,FALSE)="","",HLOOKUP(J$6,Components!$C$6:$AIR$7,2,FALSE))) ->  | K10: =IF(ISNA(HLOOKUP(K$6,Components!$C$6:$AIR$7,2,FALSE)),"",IF(HLOOKUP(K$6,Components!$C$6:$AIR$7,2,FALSE)="","",HLOOKUP(K$6,Components!$C$6:$AIR$7,2,FALSE))) ->  | L10: =IF(ISNA(HLOOKUP(L$6,Components!$C$6:$AIR$7,2,FALSE)),"",IF(HLOOKUP(L$6,Components!$C$6:$AIR$7,2,FALSE)="","",HLOOKUP(L$6,Components!$C$6:$AIR$7,2,FALSE))) ->  | M10: =IF(ISNA(HLOOKUP(M$6,Components!$C$6:$AIR$7,2,FALSE)),"",IF(HLOOKUP(M$6,Components!$C$6:$AIR$7,2,FALSE)="","",HLOOKUP(M$6,Components!$C$6:$AIR$7,2,FALSE))) ->  | N10: =IF(ISNA(HLOOKUP(N$6,Components!$C$6:$AIR$7,2,FALSE)),"",IF(HLOOKUP(N$6,Components!$C$6:$AIR$7,2,FALSE)="","",HLOOKUP(N$6,Components!$C$6:$AIR$7,2,FALSE))) ->  | O10: =IF(ISNA(HLOOKUP(O$6,Components!$C$6:$AIR$7,2,FALSE)),"",IF(HLOOKUP(O$6,Components!$C$6:$AIR$7,2,FALSE)="","",HLOOKUP(O$6,Components!$C$6:$AIR$7,2,FALSE))) ->  | P10: =IF(ISNA(HLOOKUP(P$6,Components!$C$6:$AIR$7,2,FALSE)),"",IF(HLOOKUP(P$6,Components!$C$6:$AIR$7,2,FALSE)="","",HLOOKUP(P$6,Components!$C$6:$AIR$7,2,FALSE))) ->  | Q10: =IF(ISNA(HLOOKUP(Q$6,Components!$C$6:$AIR$7,2,FALSE)),"",IF(HLOOKUP(Q$6,Components!$C$6:$AIR$7,2,FALSE)="","",HLOOKUP(Q$6,Components!$C$6:$AIR$7,2,FALSE))) ->  | R10: =IF(ISNA(HLOOKUP(R$6,Components!$C$6:$AIR$7,2,FALSE)),"",IF(HLOOKUP(R$6,Components!$C$6:$AIR$7,2,FALSE)="","",HLOOKUP(R$6,Components!$C$6:$AIR$7,2,FALSE))) ->  | S10: =IF(ISNA(HLOOKUP(S$6,Components!$C$6:$AIR$7,2,FALSE)),"",IF(HLOOKUP(S$6,Components!$C$6:$AIR$7,2,FALSE)="","",HLOOKUP(S$6,Components!$C$6:$AIR$7,2,FALSE))) ->  | T10: =IF(ISNA(HLOOKUP(T$6,Components!$C$6:$AIR$7,2,FALSE)),"",IF(HLOOKUP(T$6,Components!$C$6:$AIR$7,2,FALSE)="","",HLOOKUP(T$6,Components!$C$6:$AIR$7,2,FALSE))) ->  | U10: =IF(ISNA(HLOOKUP(U$6,Components!$C$6:$AIR$7,2,FALSE)),"",IF(HLOOKUP(U$6,Components!$C$6:$AIR$7,2,FALSE)="","",HLOOKUP(U$6,Components!$C$6:$AIR$7,2,FALSE))) ->  | V10: =IF(ISNA(HLOOKUP(V$6,Components!$C$6:$AIR$7,2,FALSE)),"",IF(HLOOKUP(V$6,Components!$C$6:$AIR$7,2,FALSE)="","",HLOOKUP(V$6,Components!$C$6:$AIR$7,2,FALSE))) ->  | W10: =IF(ISNA(HLOOKUP(W$6,Components!$C$6:$AIR$7,2,FALSE)),"",IF(HLOOKUP(W$6,Components!$C$6:$AIR$7,2,FALSE)="","",HLOOKUP(W$6,Components!$C$6:$AIR$7,2,FALSE))) ->  | X10: =IF(ISNA(HLOOKUP(X$6,Components!$C$6:$AIR$7,2,FALSE)),"",IF(HLOOKUP(X$6,Components!$C$6:$AIR$7,2,FALSE)="","",HLOOKUP(X$6,Components!$C$6:$AIR$7,2,FALSE))) ->  | Y10: =IF(ISNA(HLOOKUP(Y$6,Components!$C$6:$AIR$7,2,FALSE)),"",IF(HLOOKUP(Y$6,Components!$C$6:$AIR$7,2,FALSE)="","",HLOOKUP(Y$6,Components!$C$6:$AIR$7,2,FALSE))) ->  | Z10: =IF(ISNA(HLOOKUP(Z$6,Components!$C$6:$AIR$7,2,FALSE)),"",IF(HLOOKUP(Z$6,Components!$C$6:$AIR$7,2,FALSE)="","",HLOOKUP(Z$6,Components!$C$6:$AIR$7,2,FALSE))) ->  | AA10: =IF(ISNA(HLOOKUP(AA$6,Components!$C$6:$AIR$7,2,FALSE)),"",IF(HLOOKUP(AA$6,Components!$C$6:$AIR$7,2,FALSE)="","",HLOOKUP(AA$6,Components!$C$6:$AIR$7,2,FALSE))) ->  | AB10: =IF(ISNA(HLOOKUP(AB$6,Components!$C$6:$AIR$7,2,FALSE)),"",IF(HLOOKUP(AB$6,Components!$C$6:$AIR$7,2,FALSE)="","",HLOOKUP(AB$6,Components!$C$6:$AIR$7,2,FALSE))) ->  | AC10: =IF(ISNA(HLOOKUP(AC$6,Components!$C$6:$AIR$7,2,FALSE)),"",IF(HLOOKUP(AC$6,Components!$C$6:$AIR$7,2,FALSE)="","",HLOOKUP(AC$6,Components!$C$6:$AIR$7,2,FALSE))) -> 2647 | AD10: =IF(ISNA(HLOOKUP(AD$6,Components!$C$6:$AIR$7,2,FALSE)),"",IF(HLOOKUP(AD$6,Components!$C$6:$AIR$7,2,FALSE)="","",HLOOKUP(AD$6,Components!$C$6:$AIR$7,2,FALSE))) ->  | AE10: =IF(ISNA(HLOOKUP(AE$6,Components!$C$6:$AIR$7,2,FALSE)),"",IF(HLOOKUP(AE$6,Components!$C$6:$AIR$7,2,FALSE)="","",HLOOKUP(AE$6,Components!$C$6:$AIR$7,2,FALSE))) -> 333.66 | AF10: =IF(ISNA(HLOOKUP(AF$6,Components!$C$6:$AIR$7,2,FALSE)),"",IF(HLOOKUP(AF$6,Components!$C$6:$AIR$7,2,FALSE)="","",HLOOKUP(AF$6,Components!$C$6:$AIR$7,2,FALSE))) ->  | AG10: =IF(ISNA(HLOOKUP(AG$6,Components!$C$6:$AIR$7,2,FALSE)),"",IF(HLOOKUP(AG$6,Components!$C$6:$AIR$7,2,FALSE)="","",HLOOKUP(AG$6,Components!$C$6:$AIR$7,2,FALSE))) ->  | AH10: =IF(ISNA(HLOOKUP(AH$6,Components!$C$6:$AIR$7,2,FALSE)),"",IF(HLOOKUP(AH$6,Components!$C$6:$AIR$7,2,FALSE)="","",HLOOKUP(AH$6,Components!$C$6:$AIR$7,2,FALSE))) ->  | AI10: =IF(ISNA(HLOOKUP(AI$6,Components!$C$6:$AIR$7,2,FALSE)),"",IF(HLOOKUP(AI$6,Components!$C$6:$AIR$7,2,FALSE)="","",HLOOKUP(AI$6,Components!$C$6:$AIR$7,2,FALSE))) ->  | AJ10: =IF(ISNA(HLOOKUP(AJ$6,Components!$C$6:$AIR$7,2,FALSE)),"",IF(HLOOKUP(AJ$6,Components!$C$6:$AIR$7,2,FALSE)="","",HLOOKUP(AJ$6,Components!$C$6:$AIR$7,2,FALSE))) ->  | AK10: =IF(ISNA(HLOOKUP(AK$6,Components!$C$6:$AIR$7,2,FALSE)),"",IF(HLOOKUP(AK$6,Components!$C$6:$AIR$7,2,FALSE)="","",HLOOKUP(AK$6,Components!$C$6:$AIR$7,2,FALSE))) ->  | AL10: =IF(ISNA(HLOOKUP(AL$6,Components!$C$6:$AIR$7,2,FALSE)),"",IF(HLOOKUP(AL$6,Components!$C$6:$AIR$7,2,FALSE)="","",HLOOKUP(AL$6,Components!$C$6:$AIR$7,2,FALSE))) ->  | AM10: =IF(ISNA(HLOOKUP(AM$6,Components!$C$6:$AIR$7,2,FALSE)),"",IF(HLOOKUP(AM$6,Components!$C$6:$AIR$7,2,FALSE)="","",HLOOKUP(AM$6,Components!$C$6:$AIR$7,2,FALSE))) ->  | AN10: =IF(ISNA(HLOOKUP(AN$6,Components!$C$6:$AIR$7,2,FALSE)),"",IF(HLOOKUP(AN$6,Components!$C$6:$AIR$7,2,FALSE)="","",HLOOKUP(AN$6,Components!$C$6:$AIR$7,2,FALSE))) ->  | AO10: =IF(ISNA(HLOOKUP(AO$6,Components!$C$6:$AIR$7,2,FALSE)),"",IF(HLOOKUP(AO$6,Components!$C$6:$AIR$7,2,FALSE)="","",HLOOKUP(AO$6,Components!$C$6:$AIR$7,2,FALSE))) ->  | AP10: =IF(ISNA(HLOOKUP(AP$6,Components!$C$6:$AIR$7,2,FALSE)),"",IF(HLOOKUP(AP$6,Components!$C$6:$AIR$7,2,FALSE)="","",HLOOKUP(AP$6,Components!$C$6:$AIR$7,2,FALSE))) ->  | AQ10: =IF(ISNA(HLOOKUP(AQ$6,Components!$C$6:$AIR$7,2,FALSE)),"",IF(HLOOKUP(AQ$6,Components!$C$6:$AIR$7,2,FALSE)="","",HLOOKUP(AQ$6,Components!$C$6:$AIR$7,2,FALSE))) ->  | AR10: =IF(ISNA(HLOOKUP(AR$6,Components!$C$6:$AIR$7,2,FALSE)),"",IF(HLOOKUP(AR$6,Components!$C$6:$AIR$7,2,FALSE)="","",HLOOKUP(AR$6,Components!$C$6:$AIR$7,2,FALSE))) ->  | AS10: =IF(ISNA(HLOOKUP(AS$6,Components!$C$6:$AIR$7,2,FALSE)),"",IF(HLOOKUP(AS$6,Components!$C$6:$AIR$7,2,FALSE)="","",HLOOKUP(AS$6,Components!$C$6:$AIR$7,2,FALSE))) ->  | AT10: =IF(ISNA(HLOOKUP(AT$6,Components!$C$6:$AIR$7,2,FALSE)),"",IF(HLOOKUP(AT$6,Components!$C$6:$AIR$7,2,FALSE)="","",HLOOKUP(AT$6,Components!$C$6:$AIR$7,2,FALSE))) ->  | AU10: =IF(ISNA(HLOOKUP(AU$6,Components!$C$6:$AIR$7,2,FALSE)),"",IF(HLOOKUP(AU$6,Components!$C$6:$AIR$7,2,FALSE)="","",HLOOKUP(AU$6,Components!$C$6:$AIR$7,2,FALSE))) ->  | AV10: =IF(ISNA(HLOOKUP(AV$6,Components!$C$6:$AIR$7,2,FALSE)),"",IF(HLOOKUP(AV$6,Components!$C$6:$AIR$7,2,FALSE)="","",HLOOKUP(AV$6,Components!$C$6:$AIR$7,2,FALSE))) ->  | AW10: =IF(ISNA(HLOOKUP(AW$6,Components!$C$6:$AIR$7,2,FALSE)),"",IF(HLOOKUP(AW$6,Components!$C$6:$AIR$7,2,FALSE)="","",HLOOKUP(AW$6,Components!$C$6:$AIR$7,2,FALSE))) ->  | AX10: =IF(ISNA(HLOOKUP(AX$6,Components!$C$6:$AIR$7,2,FALSE)),"",IF(HLOOKUP(AX$6,Components!$C$6:$AIR$7,2,FALSE)="","",HLOOKUP(AX$6,Components!$C$6:$AIR$7,2,FALSE))) ->  | AY10: =IF(ISNA(HLOOKUP(AY$6,Components!$C$6:$AIR$7,2,FALSE)),"",IF(HLOOKUP(AY$6,Components!$C$6:$AIR$7,2,FALSE)="","",HLOOKUP(AY$6,Components!$C$6:$AIR$7,2,FALSE))) ->  | AZ10: =IF(ISNA(HLOOKUP(AZ$6,Components!$C$6:$AIR$7,2,FALSE)),"",IF(HLOOKUP(AZ$6,Components!$C$6:$AIR$7,2,FALSE)="","",HLOOKUP(AZ$6,Components!$C$6:$AIR$7,2,FALSE))) ->  | BA10: =IF(ISNA(HLOOKUP(BA$6,Components!$C$6:$AIR$7,2,FALSE)),"",IF(HLOOKUP(BA$6,Components!$C$6:$AIR$7,2,FALSE)="","",HLOOKUP(BA$6,Components!$C$6:$AIR$7,2,FALSE))) ->  | BB10: =IF(ISNA(HLOOKUP(BB$6,Components!$C$6:$AIR$7,2,FALSE)),"",IF(HLOOKUP(BB$6,Components!$C$6:$AIR$7,2,FALSE)="","",HLOOKUP(BB$6,Components!$C$6:$AIR$7,2,FALSE))) ->  | BC10: =IF(ISNA(HLOOKUP(BC$6,Components!$C$6:$AIR$7,2,FALSE)),"",IF(HLOOKUP(BC$6,Components!$C$6:$AIR$7,2,FALSE)="","",HLOOKUP(BC$6,Components!$C$6:$AIR$7,2,FALSE))) ->  | BD10: =IF(ISNA(HLOOKUP(BD$6,Components!$C$6:$AIR$7,2,FALSE)),"",IF(HLOOKUP(BD$6,Components!$C$6:$AIR$7,2,FALSE)="","",HLOOKUP(BD$6,Components!$C$6:$AIR$7,2,FALSE))) ->  | BE10: =IF(ISNA(HLOOKUP(BE$6,Components!$C$6:$AIR$7,2,FALSE)),"",IF(HLOOKUP(BE$6,Components!$C$6:$AIR$7,2,FALSE)="","",HLOOKUP(BE$6,Components!$C$6:$AIR$7,2,FALSE))) ->  | BF10: =IF(ISNA(HLOOKUP(BF$6,Components!$C$6:$AIR$7,2,FALSE)),"",IF(HLOOKUP(BF$6,Components!$C$6:$AIR$7,2,FALSE)="","",HLOOKUP(BF$6,Components!$C$6:$AIR$7,2,FALSE))) ->  | BG10: =IF(ISNA(HLOOKUP(BG$6,Components!$C$6:$AIR$7,2,FALSE)),"",IF(HLOOKUP(BG$6,Components!$C$6:$AIR$7,2,FALSE)="","",HLOOKUP(BG$6,Components!$C$6:$AIR$7,2,FALSE))) ->  | BH10: =IF(ISNA(HLOOKUP(BH$6,Components!$C$6:$AIR$7,2,FALSE)),"",IF(HLOOKUP(BH$6,Components!$C$6:$AIR$7,2,FALSE)="","",HLOOKUP(BH$6,Components!$C$6:$AIR$7,2,FALSE))) ->  | BI10: =IF(ISNA(HLOOKUP(BI$6,Components!$C$6:$AIR$7,2,FALSE)),"",IF(HLOOKUP(BI$6,Components!$C$6:$AIR$7,2,FALSE)="","",HLOOKUP(BI$6,Components!$C$6:$AIR$7,2,FALSE))) -> TRUE | BJ10: =IF(ISNA(HLOOKUP(BJ$6,Components!$C$6:$AIR$7,2,FALSE)),"",IF(HLOOKUP(BJ$6,Components!$C$6:$AIR$7,2,FALSE)="","",HLOOKUP(BJ$6,Components!$C$6:$AIR$7,2,FALSE))) ->  | BK10: =IF(ISNA(HLOOKUP(BK$6,Components!$C$6:$AIR$7,2,FALSE)),"",IF(HLOOKUP(BK$6,Components!$C$6:$AIR$7,2,FALSE)="","",HLOOKUP(BK$6,Components!$C$6:$AIR$7,2,FALSE))) -> 462.4 | BL10: =IF(ISNA(HLOOKUP(BL$6,Components!$C$6:$AIR$7,2,FALSE)),"",IF(HLOOKUP(BL$6,Components!$C$6:$AIR$7,2,FALSE)="","",HLOOKUP(BL$6,Components!$C$6:$AIR$7,2,FALSE))) -> 2312 | BM10: =IF(ISNA(HLOOKUP(BM$6,Components!$C$6:$AIR$7,2,FALSE)),"",IF(HLOOKUP(BM$6,Components!$C$6:$AIR$7,2,FALSE)="","",HLOOKUP(BM$6,Components!$C$6:$AIR$7,2,FALSE))) ->  | BN10: =IF(ISNA(HLOOKUP(BN$6,Components!$C$6:$AIR$7,2,FALSE)),"",IF(HLOOKUP(BN$6,Components!$C$6:$AIR$7,2,FALSE)="","",HLOOKUP(BN$6,Components!$C$6:$AIR$7,2,FALSE))) ->  | BO10: =IF(ISNA(HLOOKUP(BO$6,Components!$C$6:$AIR$7,2,FALSE)),"",IF(HLOOKUP(BO$6,Components!$C$6:$AIR$7,2,FALSE)="","",HLOOKUP(BO$6,Components!$C$6:$AIR$7,2,FALSE))) ->  | BP10: =IF(ISNA(HLOOKUP(BP$6,Components!$C$6:$AIR$7,2,FALSE)),"",IF(HLOOKUP(BP$6,Components!$C$6:$AIR$7,2,FALSE)="","",HLOOKUP(BP$6,Components!$C$6:$AIR$7,2,FALSE))) ->  | BQ10: =IF(ISNA(HLOOKUP(BQ$6,Components!$C$6:$AIR$7,2,FALSE)),"",IF(HLOOKUP(BQ$6,Components!$C$6:$AIR$7,2,FALSE)="","",HLOOKUP(BQ$6,Components!$C$6:$AIR$7,2,FALSE))) ->  | BR10: =IF(ISNA(HLOOKUP(BR$6,Components!$C$6:$AIR$7,2,FALSE)),"",IF(HLOOKUP(BR$6,Components!$C$6:$AIR$7,2,FALSE)="","",HLOOKUP(BR$6,Components!$C$6:$AIR$7,2,FALSE))) ->  | BS10: =IF(ISNA(HLOOKUP(BS$6,Components!$C$6:$AIR$7,2,FALSE)),"",IF(HLOOKUP(BS$6,Components!$C$6:$AIR$7,2,FALSE)="","",HLOOKUP(BS$6,Components!$C$6:$AIR$7,2,FALSE))) ->  | BT10: =IF(ISNA(HLOOKUP(BT$6,Components!$C$6:$AIR$7,2,FALSE)),"",IF(HLOOKUP(BT$6,Components!$C$6:$AIR$7,2,FALSE)="","",HLOOKUP(BT$6,Components!$C$6:$AIR$7,2,FALSE))) ->  | BU10: =IF(ISNA(HLOOKUP(BU$6,Components!$C$6:$AIR$7,2,FALSE)),"",IF(HLOOKUP(BU$6,Components!$C$6:$AIR$7,2,FALSE)="","",HLOOKUP(BU$6,Components!$C$6:$AIR$7,2,FALSE))) ->  | BV10: =IF(ISNA(HLOOKUP(BV$6,Components!$C$6:$AIR$7,2,FALSE)),"",IF(HLOOKUP(BV$6,Components!$C$6:$AIR$7,2,FALSE)="","",HLOOKUP(BV$6,Components!$C$6:$AIR$7,2,FALSE))) ->  | BW10: =IF(ISNA(HLOOKUP(BW$6,Components!$C$6:$AIR$7,2,FALSE)),"",IF(HLOOKUP(BW$6,Components!$C$6:$AIR$7,2,FALSE)="","",HLOOKUP(BW$6,Components!$C$6:$AIR$7,2,FALSE))) ->  | BX10: =IF(ISNA(HLOOKUP(BX$6,Components!$C$6:$AIR$7,2,FALSE)),"",IF(HLOOKUP(BX$6,Components!$C$6:$AIR$7,2,FALSE)="","",HLOOKUP(BX$6,Components!$C$6:$AIR$7,2,FALSE))) ->  | BY10: =IF(ISNA(HLOOKUP(BY$6,Components!$C$6:$AIR$7,2,FALSE)),"",IF(HLOOKUP(BY$6,Components!$C$6:$AIR$7,2,FALSE)="","",HLOOKUP(BY$6,Components!$C$6:$AIR$7,2,FALSE))) ->  | BZ10: =IF(ISNA(HLOOKUP(BZ$6,Components!$C$6:$AIR$7,2,FALSE)),"",IF(HLOOKUP(BZ$6,Components!$C$6:$AIR$7,2,FALSE)="","",HLOOKUP(BZ$6,Components!$C$6:$AIR$7,2,FALSE))) ->  | CA10: =IF(ISNA(HLOOKUP(CA$6,Components!$C$6:$AIR$7,2,FALSE)),"",IF(HLOOKUP(CA$6,Components!$C$6:$AIR$7,2,FALSE)="","",HLOOKUP(CA$6,Components!$C$6:$AIR$7,2,FALSE))) ->  | CB10: =IF(ISNA(HLOOKUP(CB$6,Components!$C$6:$AIR$7,2,FALSE)),"",IF(HLOOKUP(CB$6,Components!$C$6:$AIR$7,2,FALSE)="","",HLOOKUP(CB$6,Components!$C$6:$AIR$7,2,FALSE))) ->  | CC10: =IF(ISNA(HLOOKUP(CC$6,Components!$C$6:$AIR$7,2,FALSE)),"",IF(HLOOKUP(CC$6,Components!$C$6:$AIR$7,2,FALSE)="","",HLOOKUP(CC$6,Components!$C$6:$AIR$7,2,FALSE))) -> 1000 | CD10: =IF(ISNA(HLOOKUP(CD$6,Components!$C$6:$AIR$7,2,FALSE)),"",IF(HLOOKUP(CD$6,Components!$C$6:$AIR$7,2,FALSE)="","",HLOOKUP(CD$6,Components!$C$6:$AIR$7,2,FALSE))) ->  | CE10: =IF(ISNA(HLOOKUP(CE$6,Components!$C$6:$AIR$7,2,FALSE)),"",IF(HLOOKUP(CE$6,Components!$C$6:$AIR$7,2,FALSE)="","",HLOOKUP(CE$6,Components!$C$6:$AIR$7,2,FALSE))) ->  | CF10: =IF(ISNA(HLOOKUP(CF$6,Components!$C$6:$AIR$7,2,FALSE)),"",IF(HLOOKUP(CF$6,Components!$C$6:$AIR$7,2,FALSE)="","",HLOOKUP(CF$6,Components!$C$6:$AIR$7,2,FALSE))) ->  | CG10: =IF(ISNA(HLOOKUP(CG$6,Components!$C$6:$AIR$7,2,FALSE)),"",IF(HLOOKUP(CG$6,Components!$C$6:$AIR$7,2,FALSE)="","",HLOOKUP(CG$6,Components!$C$6:$AIR$7,2,FALSE))) ->  | CH10: =IF(ISNA(HLOOKUP(CH$6,Components!$C$6:$AIR$7,2,FALSE)),"",IF(HLOOKUP(CH$6,Components!$C$6:$AIR$7,2,FALSE)="","",HLOOKUP(CH$6,Components!$C$6:$AIR$7,2,FALSE))) ->  | CI10: =IF(ISNA(HLOOKUP(CI$6,Components!$C$6:$AIR$7,2,FALSE)),"",IF(HLOOKUP(CI$6,Components!$C$6:$AIR$7,2,FALSE)="","",HLOOKUP(CI$6,Components!$C$6:$AIR$7,2,FALSE))) ->  | CJ10: =IF(ISNA(HLOOKUP(CJ$6,Components!$C$6:$AIR$7,2,FALSE)),"",IF(HLOOKUP(CJ$6,Components!$C$6:$AIR$7,2,FALSE)="","",HLOOKUP(CJ$6,Components!$C$6:$AIR$7,2,FALSE))) ->  | CK10: =IF(ISNA(HLOOKUP(CK$6,Components!$C$6:$AIR$7,2,FALSE)),"",IF(HLOOKUP(CK$6,Components!$C$6:$AIR$7,2,FALSE)="","",HLOOKUP(CK$6,Components!$C$6:$AIR$7,2,FALSE))) ->  | CL10: =IF(ISNA(HLOOKUP(CL$6,Components!$C$6:$AIR$7,2,FALSE)),"",IF(HLOOKUP(CL$6,Components!$C$6:$AIR$7,2,FALSE)="","",HLOOKUP(CL$6,Components!$C$6:$AIR$7,2,FALSE))) ->  | CM10: =IF(ISNA(HLOOKUP(CM$6,Components!$C$6:$AIR$7,2,FALSE)),"",IF(HLOOKUP(CM$6,Components!$C$6:$AIR$7,2,FALSE)="","",HLOOKUP(CM$6,Components!$C$6:$AIR$7,2,FALSE))) ->  | CN10: =IF(ISNA(HLOOKUP(CN$6,Components!$C$6:$AIR$7,2,FALSE)),"",IF(HLOOKUP(CN$6,Components!$C$6:$AIR$7,2,FALSE)="","",HLOOKUP(CN$6,Components!$C$6:$AIR$7,2,FALSE))) ->  | CO10: =IF(ISNA(HLOOKUP(CO$6,Components!$C$6:$AIR$7,2,FALSE)),"",IF(HLOOKUP(CO$6,Components!$C$6:$AIR$7,2,FALSE)="","",HLOOKUP(CO$6,Components!$C$6:$AIR$7,2,FALSE))) ->  | CP10: =IF(ISNA(HLOOKUP(CP$6,Components!$C$6:$AIR$7,2,FALSE)),"",IF(HLOOKUP(CP$6,Components!$C$6:$AIR$7,2,FALSE)="","",HLOOKUP(CP$6,Components!$C$6:$AIR$7,2,FALSE))) ->  | CQ10: =IF(ISNA(HLOOKUP(CQ$6,Components!$C$6:$AIR$7,2,FALSE)),"",IF(HLOOKUP(CQ$6,Components!$C$6:$AIR$7,2,FALSE)="","",HLOOKUP(CQ$6,Components!$C$6:$AIR$7,2,FALSE))) ->  | CR10: =IF(ISNA(HLOOKUP(CR$6,Components!$C$6:$AIR$7,2,FALSE)),"",IF(HLOOKUP(CR$6,Components!$C$6:$AIR$7,2,FALSE)="","",HLOOKUP(CR$6,Components!$C$6:$AIR$7,2,FALSE))) ->  | CS10: =IF(ISNA(HLOOKUP(CS$6,Components!$C$6:$AIR$7,2,FALSE)),"",IF(HLOOKUP(CS$6,Components!$C$6:$AIR$7,2,FALSE)="","",HLOOKUP(CS$6,Components!$C$6:$AIR$7,2,FALSE))) ->  | CT10: =IF(ISNA(HLOOKUP(CT$6,Components!$C$6:$AIR$7,2,FALSE)),"",IF(HLOOKUP(CT$6,Components!$C$6:$AIR$7,2,FALSE)="","",HLOOKUP(CT$6,Components!$C$6:$AIR$7,2,FALSE))) ->  | CU10: =IF(ISNA(HLOOKUP(CU$6,Components!$C$6:$AIR$7,2,FALSE)),"",IF(HLOOKUP(CU$6,Components!$C$6:$AIR$7,2,FALSE)="","",HLOOKUP(CU$6,Components!$C$6:$AIR$7,2,FALSE))) ->  | CV10: =IF(ISNA(HLOOKUP(CV$6,Components!$C$6:$AIR$7,2,FALSE)),"",IF(HLOOKUP(CV$6,Components!$C$6:$AIR$7,2,FALSE)="","",HLOOKUP(CV$6,Components!$C$6:$AIR$7,2,FALSE))) ->  | CW10: =IF(ISNA(HLOOKUP(CW$6,Components!$C$6:$AIR$7,2,FALSE)),"",IF(HLOOKUP(CW$6,Components!$C$6:$AIR$7,2,FALSE)="","",HLOOKUP(CW$6,Components!$C$6:$AIR$7,2,FALSE))) ->  | CX10: =IF(ISNA(HLOOKUP(CX$6,Components!$C$6:$AIR$7,2,FALSE)),"",IF(HLOOKUP(CX$6,Components!$C$6:$AIR$7,2,FALSE)="","",HLOOKUP(CX$6,Components!$C$6:$AIR$7,2,FALSE))) ->  | CY10: =IF(ISNA(HLOOKUP(CY$6,Components!$C$6:$AIR$7,2,FALSE)),"",IF(HLOOKUP(CY$6,Components!$C$6:$AIR$7,2,FALSE)="","",HLOOKUP(CY$6,Components!$C$6:$AIR$7,2,FALSE))) ->  | CZ10: =IF(ISNA(HLOOKUP(CZ$6,Components!$C$6:$AIR$7,2,FALSE)),"",IF(HLOOKUP(CZ$6,Components!$C$6:$AIR$7,2,FALSE)="","",HLOOKUP(CZ$6,Components!$C$6:$AIR$7,2,FALSE))) ->  | DA10: =IF(ISNA(HLOOKUP(DA$6,Components!$C$6:$AIR$7,2,FALSE)),"",IF(HLOOKUP(DA$6,Components!$C$6:$AIR$7,2,FALSE)="","",HLOOKUP(DA$6,Components!$C$6:$AIR$7,2,FALSE))) ->  | DB10: =IF(ISNA(HLOOKUP(DB$6,Components!$C$6:$AIR$7,2,FALSE)),"",IF(HLOOKUP(DB$6,Components!$C$6:$AIR$7,2,FALSE)="","",HLOOKUP(DB$6,Components!$C$6:$AIR$7,2,FALSE))) -> TRUE | DC10: =IF(ISNA(HLOOKUP(DC$6,Components!$C$6:$AIR$7,2,FALSE)),"",IF(HLOOKUP(DC$6,Components!$C$6:$AIR$7,2,FALSE)="","",HLOOKUP(DC$6,Components!$C$6:$AIR$7,2,FALSE))) -> 1900.18 | DD10: =IF(ISNA(HLOOKUP(DD$6,Components!$C$6:$AIR$7,2,FALSE)),"",IF(HLOOKUP(DD$6,Components!$C$6:$AIR$7,2,FALSE)="","",HLOOKUP(DD$6,Components!$C$6:$AIR$7,2,FALSE))) ->  | DE10: =IF(ISNA(HLOOKUP(DE$6,Components!$C$6:$AIR$7,2,FALSE)),"",IF(HLOOKUP(DE$6,Components!$C$6:$AIR$7,2,FALSE)="","",HLOOKUP(DE$6,Components!$C$6:$AIR$7,2,FALSE))) ->  | DF10: =IF(ISNA(HLOOKUP(DF$6,Components!$C$6:$AIR$7,2,FALSE)),"",IF(HLOOKUP(DF$6,Components!$C$6:$AIR$7,2,FALSE)="","",HLOOKUP(DF$6,Components!$C$6:$AIR$7,2,FALSE))) ->  | DG10: =IF(ISNA(HLOOKUP(DG$6,Components!$C$6:$AIR$7,2,FALSE)),"",IF(HLOOKUP(DG$6,Components!$C$6:$AIR$7,2,FALSE)="","",HLOOKUP(DG$6,Components!$C$6:$AIR$7,2,FALSE))) ->  | DH10: =IF(ISNA(HLOOKUP(DH$6,Components!$C$6:$AIR$7,2,FALSE)),"",IF(HLOOKUP(DH$6,Components!$C$6:$AIR$7,2,FALSE)="","",HLOOKUP(DH$6,Components!$C$6:$AIR$7,2,FALSE))) ->  | DI10: =IF(ISNA(HLOOKUP(DI$6,Components!$C$6:$AIR$7,2,FALSE)),"",IF(HLOOKUP(DI$6,Components!$C$6:$AIR$7,2,FALSE)="","",HLOOKUP(DI$6,Components!$C$6:$AIR$7,2,FALSE))) ->  | DJ10: =IF(ISNA(HLOOKUP(DJ$6,Components!$C$6:$AIR$7,2,FALSE)),"",IF(HLOOKUP(DJ$6,Components!$C$6:$AIR$7,2,FALSE)="","",HLOOKUP(DJ$6,Components!$C$6:$AIR$7,2,FALSE))) ->  | DK10: =IF(ISNA(HLOOKUP(DK$6,Components!$C$6:$AIR$7,2,FALSE)),"",IF(HLOOKUP(DK$6,Components!$C$6:$AIR$7,2,FALSE)="","",HLOOKUP(DK$6,Components!$C$6:$AIR$7,2,FALSE))) ->  | DL10: =IF(ISNA(HLOOKUP(DL$6,Components!$C$6:$AIR$7,2,FALSE)),"",IF(HLOOKUP(DL$6,Components!$C$6:$AIR$7,2,FALSE)="","",HLOOKUP(DL$6,Components!$C$6:$AIR$7,2,FALSE))) ->  | DM10: =IF(ISNA(HLOOKUP(DM$6,Components!$C$6:$AIR$7,2,FALSE)),"",IF(HLOOKUP(DM$6,Components!$C$6:$AIR$7,2,FALSE)="","",HLOOKUP(DM$6,Components!$C$6:$AIR$7,2,FALSE))) ->  | DN10: =IF(ISNA(HLOOKUP(DN$6,Components!$C$6:$AIR$7,2,FALSE)),"",IF(HLOOKUP(DN$6,Components!$C$6:$AIR$7,2,FALSE)="","",HLOOKUP(DN$6,Components!$C$6:$AIR$7,2,FALSE))) ->  | DO10: =IF(ISNA(HLOOKUP(DO$6,Components!$C$6:$AIR$7,2,FALSE)),"",IF(HLOOKUP(DO$6,Components!$C$6:$AIR$7,2,FALSE)="","",HLOOKUP(DO$6,Components!$C$6:$AIR$7,2,FALSE))) ->  | DP10: =IF(ISNA(HLOOKUP(DP$6,Components!$C$6:$AIR$7,2,FALSE)),"",IF(HLOOKUP(DP$6,Components!$C$6:$AIR$7,2,FALSE)="","",HLOOKUP(DP$6,Components!$C$6:$AIR$7,2,FALSE))) ->  | DQ10: =IF(ISNA(HLOOKUP(DQ$6,Components!$C$6:$AIR$7,2,FALSE)),"",IF(HLOOKUP(DQ$6,Components!$C$6:$AIR$7,2,FALSE)="","",HLOOKUP(DQ$6,Components!$C$6:$AIR$7,2,FALSE))) ->  | DR10: =IF(ISNA(HLOOKUP(DR$6,Components!$C$6:$AIR$7,2,FALSE)),"",IF(HLOOKUP(DR$6,Components!$C$6:$AIR$7,2,FALSE)="","",HLOOKUP(DR$6,Components!$C$6:$AIR$7,2,FALSE))) -> 
A11: 4 | B11: Calc Type - Trust rate Q3 (UK Prop) IFP profit with RES FIN, RES FIN B/F Q5 (CG) Other prop, assets or gains (TC2) Q8.16 (Special trust rates - Yes) Q9 (Other Inc) UK DIV 9A.1 (amt of SRB) - 500 Q17 (Self Calc) | C11: 13373.97 | D11: 13373.97 | E11: 5347.38 | F11: =IF(ISNA(HLOOKUP(F$6,Components!$C$8:$AIR$9,2,FALSE)),"",IF(HLOOKUP(F$6,Components!$C$8:$AIR$9,2,FALSE)="","",HLOOKUP(F$6,Components!$C$8:$AIR$9,2,FALSE))) ->  | G11: =IF(ISNA(HLOOKUP(G$6,Components!$C$8:$AIR$9,2,FALSE)),"",IF(HLOOKUP(G$6,Components!$C$8:$AIR$9,2,FALSE)="","",HLOOKUP(G$6,Components!$C$8:$AIR$9,2,FALSE))) ->  | H11: =IF(ISNA(HLOOKUP(H$6,Components!$C$8:$AIR$9,2,FALSE)),"",IF(HLOOKUP(H$6,Components!$C$8:$AIR$9,2,FALSE)="","",HLOOKUP(H$6,Components!$C$8:$AIR$9,2,FALSE))) ->  | I11: =IF(ISNA(HLOOKUP(I$6,Components!$C$8:$AIR$9,2,FALSE)),"",IF(HLOOKUP(I$6,Components!$C$8:$AIR$9,2,FALSE)="","",HLOOKUP(I$6,Components!$C$8:$AIR$9,2,FALSE))) ->  | J11: =IF(ISNA(HLOOKUP(J$6,Components!$C$8:$AIR$9,2,FALSE)),"",IF(HLOOKUP(J$6,Components!$C$8:$AIR$9,2,FALSE)="","",HLOOKUP(J$6,Components!$C$8:$AIR$9,2,FALSE))) ->  | K11: =IF(ISNA(HLOOKUP(K$6,Components!$C$8:$AIR$9,2,FALSE)),"",IF(HLOOKUP(K$6,Components!$C$8:$AIR$9,2,FALSE)="","",HLOOKUP(K$6,Components!$C$8:$AIR$9,2,FALSE))) ->  | L11: =IF(ISNA(HLOOKUP(L$6,Components!$C$8:$AIR$9,2,FALSE)),"",IF(HLOOKUP(L$6,Components!$C$8:$AIR$9,2,FALSE)="","",HLOOKUP(L$6,Components!$C$8:$AIR$9,2,FALSE))) ->  | M11: =IF(ISNA(HLOOKUP(M$6,Components!$C$8:$AIR$9,2,FALSE)),"",IF(HLOOKUP(M$6,Components!$C$8:$AIR$9,2,FALSE)="","",HLOOKUP(M$6,Components!$C$8:$AIR$9,2,FALSE))) ->  | N11: =IF(ISNA(HLOOKUP(N$6,Components!$C$8:$AIR$9,2,FALSE)),"",IF(HLOOKUP(N$6,Components!$C$8:$AIR$9,2,FALSE)="","",HLOOKUP(N$6,Components!$C$8:$AIR$9,2,FALSE))) ->  | O11: =IF(ISNA(HLOOKUP(O$6,Components!$C$8:$AIR$9,2,FALSE)),"",IF(HLOOKUP(O$6,Components!$C$8:$AIR$9,2,FALSE)="","",HLOOKUP(O$6,Components!$C$8:$AIR$9,2,FALSE))) ->  | P11: =IF(ISNA(HLOOKUP(P$6,Components!$C$8:$AIR$9,2,FALSE)),"",IF(HLOOKUP(P$6,Components!$C$8:$AIR$9,2,FALSE)="","",HLOOKUP(P$6,Components!$C$8:$AIR$9,2,FALSE))) ->  | Q11: =IF(ISNA(HLOOKUP(Q$6,Components!$C$8:$AIR$9,2,FALSE)),"",IF(HLOOKUP(Q$6,Components!$C$8:$AIR$9,2,FALSE)="","",HLOOKUP(Q$6,Components!$C$8:$AIR$9,2,FALSE))) ->  | R11: =IF(ISNA(HLOOKUP(R$6,Components!$C$8:$AIR$9,2,FALSE)),"",IF(HLOOKUP(R$6,Components!$C$8:$AIR$9,2,FALSE)="","",HLOOKUP(R$6,Components!$C$8:$AIR$9,2,FALSE))) ->  | S11: =IF(ISNA(HLOOKUP(S$6,Components!$C$8:$AIR$9,2,FALSE)),"",IF(HLOOKUP(S$6,Components!$C$8:$AIR$9,2,FALSE)="","",HLOOKUP(S$6,Components!$C$8:$AIR$9,2,FALSE))) ->  | T11: =IF(ISNA(HLOOKUP(T$6,Components!$C$8:$AIR$9,2,FALSE)),"",IF(HLOOKUP(T$6,Components!$C$8:$AIR$9,2,FALSE)="","",HLOOKUP(T$6,Components!$C$8:$AIR$9,2,FALSE))) -> 0 | U11: =IF(ISNA(HLOOKUP(U$6,Components!$C$8:$AIR$9,2,FALSE)),"",IF(HLOOKUP(U$6,Components!$C$8:$AIR$9,2,FALSE)="","",HLOOKUP(U$6,Components!$C$8:$AIR$9,2,FALSE))) ->  | V11: =IF(ISNA(HLOOKUP(V$6,Components!$C$8:$AIR$9,2,FALSE)),"",IF(HLOOKUP(V$6,Components!$C$8:$AIR$9,2,FALSE)="","",HLOOKUP(V$6,Components!$C$8:$AIR$9,2,FALSE))) ->  | W11: =IF(ISNA(HLOOKUP(W$6,Components!$C$8:$AIR$9,2,FALSE)),"",IF(HLOOKUP(W$6,Components!$C$8:$AIR$9,2,FALSE)="","",HLOOKUP(W$6,Components!$C$8:$AIR$9,2,FALSE))) ->  | X11: =IF(ISNA(HLOOKUP(X$6,Components!$C$8:$AIR$9,2,FALSE)),"",IF(HLOOKUP(X$6,Components!$C$8:$AIR$9,2,FALSE)="","",HLOOKUP(X$6,Components!$C$8:$AIR$9,2,FALSE))) -> 1126 | Y11: =IF(ISNA(HLOOKUP(Y$6,Components!$C$8:$AIR$9,2,FALSE)),"",IF(HLOOKUP(Y$6,Components!$C$8:$AIR$9,2,FALSE)="","",HLOOKUP(Y$6,Components!$C$8:$AIR$9,2,FALSE))) ->  | Z11: =IF(ISNA(HLOOKUP(Z$6,Components!$C$8:$AIR$9,2,FALSE)),"",IF(HLOOKUP(Z$6,Components!$C$8:$AIR$9,2,FALSE)="","",HLOOKUP(Z$6,Components!$C$8:$AIR$9,2,FALSE))) -> 850 | AA11: =IF(ISNA(HLOOKUP(AA$6,Components!$C$8:$AIR$9,2,FALSE)),"",IF(HLOOKUP(AA$6,Components!$C$8:$AIR$9,2,FALSE)="","",HLOOKUP(AA$6,Components!$C$8:$AIR$9,2,FALSE))) -> 50 | AB11: =IF(ISNA(HLOOKUP(AB$6,Components!$C$8:$AIR$9,2,FALSE)),"",IF(HLOOKUP(AB$6,Components!$C$8:$AIR$9,2,FALSE)="","",HLOOKUP(AB$6,Components!$C$8:$AIR$9,2,FALSE))) ->  | AC11: =IF(ISNA(HLOOKUP(AC$6,Components!$C$8:$AIR$9,2,FALSE)),"",IF(HLOOKUP(AC$6,Components!$C$8:$AIR$9,2,FALSE)="","",HLOOKUP(AC$6,Components!$C$8:$AIR$9,2,FALSE))) ->  | AD11: =IF(ISNA(HLOOKUP(AD$6,Components!$C$8:$AIR$9,2,FALSE)),"",IF(HLOOKUP(AD$6,Components!$C$8:$AIR$9,2,FALSE)="","",HLOOKUP(AD$6,Components!$C$8:$AIR$9,2,FALSE))) ->  | AE11: =IF(ISNA(HLOOKUP(AE$6,Components!$C$8:$AIR$9,2,FALSE)),"",IF(HLOOKUP(AE$6,Components!$C$8:$AIR$9,2,FALSE)="","",HLOOKUP(AE$6,Components!$C$8:$AIR$9,2,FALSE))) ->  | AF11: =IF(ISNA(HLOOKUP(AF$6,Components!$C$8:$AIR$9,2,FALSE)),"",IF(HLOOKUP(AF$6,Components!$C$8:$AIR$9,2,FALSE)="","",HLOOKUP(AF$6,Components!$C$8:$AIR$9,2,FALSE))) ->  | AG11: =IF(ISNA(HLOOKUP(AG$6,Components!$C$8:$AIR$9,2,FALSE)),"",IF(HLOOKUP(AG$6,Components!$C$8:$AIR$9,2,FALSE)="","",HLOOKUP(AG$6,Components!$C$8:$AIR$9,2,FALSE))) ->  | AH11: =IF(ISNA(HLOOKUP(AH$6,Components!$C$8:$AIR$9,2,FALSE)),"",IF(HLOOKUP(AH$6,Components!$C$8:$AIR$9,2,FALSE)="","",HLOOKUP(AH$6,Components!$C$8:$AIR$9,2,FALSE))) ->  | AI11: =IF(ISNA(HLOOKUP(AI$6,Components!$C$8:$AIR$9,2,FALSE)),"",IF(HLOOKUP(AI$6,Components!$C$8:$AIR$9,2,FALSE)="","",HLOOKUP(AI$6,Components!$C$8:$AIR$9,2,FALSE))) ->  | AJ11: =IF(ISNA(HLOOKUP(AJ$6,Components!$C$8:$AIR$9,2,FALSE)),"",IF(HLOOKUP(AJ$6,Components!$C$8:$AIR$9,2,FALSE)="","",HLOOKUP(AJ$6,Components!$C$8:$AIR$9,2,FALSE))) ->  | AK11: =IF(ISNA(HLOOKUP(AK$6,Components!$C$8:$AIR$9,2,FALSE)),"",IF(HLOOKUP(AK$6,Components!$C$8:$AIR$9,2,FALSE)="","",HLOOKUP(AK$6,Components!$C$8:$AIR$9,2,FALSE))) ->  | AL11: =IF(ISNA(HLOOKUP(AL$6,Components!$C$8:$AIR$9,2,FALSE)),"",IF(HLOOKUP(AL$6,Components!$C$8:$AIR$9,2,FALSE)="","",HLOOKUP(AL$6,Components!$C$8:$AIR$9,2,FALSE))) ->  | AM11: =IF(ISNA(HLOOKUP(AM$6,Components!$C$8:$AIR$9,2,FALSE)),"",IF(HLOOKUP(AM$6,Components!$C$8:$AIR$9,2,FALSE)="","",HLOOKUP(AM$6,Components!$C$8:$AIR$9,2,FALSE))) ->  | AN11: =IF(ISNA(HLOOKUP(AN$6,Components!$C$8:$AIR$9,2,FALSE)),"",IF(HLOOKUP(AN$6,Components!$C$8:$AIR$9,2,FALSE)="","",HLOOKUP(AN$6,Components!$C$8:$AIR$9,2,FALSE))) ->  | AO11: =IF(ISNA(HLOOKUP(AO$6,Components!$C$8:$AIR$9,2,FALSE)),"",IF(HLOOKUP(AO$6,Components!$C$8:$AIR$9,2,FALSE)="","",HLOOKUP(AO$6,Components!$C$8:$AIR$9,2,FALSE))) ->  | AP11: =IF(ISNA(HLOOKUP(AP$6,Components!$C$8:$AIR$9,2,FALSE)),"",IF(HLOOKUP(AP$6,Components!$C$8:$AIR$9,2,FALSE)="","",HLOOKUP(AP$6,Components!$C$8:$AIR$9,2,FALSE))) ->  | AQ11: =IF(ISNA(HLOOKUP(AQ$6,Components!$C$8:$AIR$9,2,FALSE)),"",IF(HLOOKUP(AQ$6,Components!$C$8:$AIR$9,2,FALSE)="","",HLOOKUP(AQ$6,Components!$C$8:$AIR$9,2,FALSE))) ->  | AR11: =IF(ISNA(HLOOKUP(AR$6,Components!$C$8:$AIR$9,2,FALSE)),"",IF(HLOOKUP(AR$6,Components!$C$8:$AIR$9,2,FALSE)="","",HLOOKUP(AR$6,Components!$C$8:$AIR$9,2,FALSE))) ->  | AS11: =IF(ISNA(HLOOKUP(AS$6,Components!$C$8:$AIR$9,2,FALSE)),"",IF(HLOOKUP(AS$6,Components!$C$8:$AIR$9,2,FALSE)="","",HLOOKUP(AS$6,Components!$C$8:$AIR$9,2,FALSE))) ->  | AT11: =IF(ISNA(HLOOKUP(AT$6,Components!$C$8:$AIR$9,2,FALSE)),"",IF(HLOOKUP(AT$6,Components!$C$8:$AIR$9,2,FALSE)="","",HLOOKUP(AT$6,Components!$C$8:$AIR$9,2,FALSE))) ->  | AU11: =IF(ISNA(HLOOKUP(AU$6,Components!$C$8:$AIR$9,2,FALSE)),"",IF(HLOOKUP(AU$6,Components!$C$8:$AIR$9,2,FALSE)="","",HLOOKUP(AU$6,Components!$C$8:$AIR$9,2,FALSE))) ->  | AV11: =IF(ISNA(HLOOKUP(AV$6,Components!$C$8:$AIR$9,2,FALSE)),"",IF(HLOOKUP(AV$6,Components!$C$8:$AIR$9,2,FALSE)="","",HLOOKUP(AV$6,Components!$C$8:$AIR$9,2,FALSE))) ->  | AW11: =IF(ISNA(HLOOKUP(AW$6,Components!$C$8:$AIR$9,2,FALSE)),"",IF(HLOOKUP(AW$6,Components!$C$8:$AIR$9,2,FALSE)="","",HLOOKUP(AW$6,Components!$C$8:$AIR$9,2,FALSE))) ->  | AX11: =IF(ISNA(HLOOKUP(AX$6,Components!$C$8:$AIR$9,2,FALSE)),"",IF(HLOOKUP(AX$6,Components!$C$8:$AIR$9,2,FALSE)="","",HLOOKUP(AX$6,Components!$C$8:$AIR$9,2,FALSE))) ->  | AY11: =IF(ISNA(HLOOKUP(AY$6,Components!$C$8:$AIR$9,2,FALSE)),"",IF(HLOOKUP(AY$6,Components!$C$8:$AIR$9,2,FALSE)="","",HLOOKUP(AY$6,Components!$C$8:$AIR$9,2,FALSE))) -> 13396 | AZ11: =IF(ISNA(HLOOKUP(AZ$6,Components!$C$8:$AIR$9,2,FALSE)),"",IF(HLOOKUP(AZ$6,Components!$C$8:$AIR$9,2,FALSE)="","",HLOOKUP(AZ$6,Components!$C$8:$AIR$9,2,FALSE))) ->  | BA11: =IF(ISNA(HLOOKUP(BA$6,Components!$C$8:$AIR$9,2,FALSE)),"",IF(HLOOKUP(BA$6,Components!$C$8:$AIR$9,2,FALSE)="","",HLOOKUP(BA$6,Components!$C$8:$AIR$9,2,FALSE))) ->  | BB11: =IF(ISNA(HLOOKUP(BB$6,Components!$C$8:$AIR$9,2,FALSE)),"",IF(HLOOKUP(BB$6,Components!$C$8:$AIR$9,2,FALSE)="","",HLOOKUP(BB$6,Components!$C$8:$AIR$9,2,FALSE))) ->  | BC11: =IF(ISNA(HLOOKUP(BC$6,Components!$C$8:$AIR$9,2,FALSE)),"",IF(HLOOKUP(BC$6,Components!$C$8:$AIR$9,2,FALSE)="","",HLOOKUP(BC$6,Components!$C$8:$AIR$9,2,FALSE))) ->  | BD11: =IF(ISNA(HLOOKUP(BD$6,Components!$C$8:$AIR$9,2,FALSE)),"",IF(HLOOKUP(BD$6,Components!$C$8:$AIR$9,2,FALSE)="","",HLOOKUP(BD$6,Components!$C$8:$AIR$9,2,FALSE))) ->  | BE11: =IF(ISNA(HLOOKUP(BE$6,Components!$C$8:$AIR$9,2,FALSE)),"",IF(HLOOKUP(BE$6,Components!$C$8:$AIR$9,2,FALSE)="","",HLOOKUP(BE$6,Components!$C$8:$AIR$9,2,FALSE))) ->  | BF11: =IF(ISNA(HLOOKUP(BF$6,Components!$C$8:$AIR$9,2,FALSE)),"",IF(HLOOKUP(BF$6,Components!$C$8:$AIR$9,2,FALSE)="","",HLOOKUP(BF$6,Components!$C$8:$AIR$9,2,FALSE))) ->  | BG11: =IF(ISNA(HLOOKUP(BG$6,Components!$C$8:$AIR$9,2,FALSE)),"",IF(HLOOKUP(BG$6,Components!$C$8:$AIR$9,2,FALSE)="","",HLOOKUP(BG$6,Components!$C$8:$AIR$9,2,FALSE))) ->  | BH11: =IF(ISNA(HLOOKUP(BH$6,Components!$C$8:$AIR$9,2,FALSE)),"",IF(HLOOKUP(BH$6,Components!$C$8:$AIR$9,2,FALSE)="","",HLOOKUP(BH$6,Components!$C$8:$AIR$9,2,FALSE))) ->  | BI11: =IF(ISNA(HLOOKUP(BI$6,Components!$C$8:$AIR$9,2,FALSE)),"",IF(HLOOKUP(BI$6,Components!$C$8:$AIR$9,2,FALSE)="","",HLOOKUP(BI$6,Components!$C$8:$AIR$9,2,FALSE))) -> TRUE | BJ11: =IF(ISNA(HLOOKUP(BJ$6,Components!$C$8:$AIR$9,2,FALSE)),"",IF(HLOOKUP(BJ$6,Components!$C$8:$AIR$9,2,FALSE)="","",HLOOKUP(BJ$6,Components!$C$8:$AIR$9,2,FALSE))) ->  | BK11: =IF(ISNA(HLOOKUP(BK$6,Components!$C$8:$AIR$9,2,FALSE)),"",IF(HLOOKUP(BK$6,Components!$C$8:$AIR$9,2,FALSE)="","",HLOOKUP(BK$6,Components!$C$8:$AIR$9,2,FALSE))) ->  | BL11: =IF(ISNA(HLOOKUP(BL$6,Components!$C$8:$AIR$9,2,FALSE)),"",IF(HLOOKUP(BL$6,Components!$C$8:$AIR$9,2,FALSE)="","",HLOOKUP(BL$6,Components!$C$8:$AIR$9,2,FALSE))) ->  | BM11: =IF(ISNA(HLOOKUP(BM$6,Components!$C$8:$AIR$9,2,FALSE)),"",IF(HLOOKUP(BM$6,Components!$C$8:$AIR$9,2,FALSE)="","",HLOOKUP(BM$6,Components!$C$8:$AIR$9,2,FALSE))) ->  | BN11: =IF(ISNA(HLOOKUP(BN$6,Components!$C$8:$AIR$9,2,FALSE)),"",IF(HLOOKUP(BN$6,Components!$C$8:$AIR$9,2,FALSE)="","",HLOOKUP(BN$6,Components!$C$8:$AIR$9,2,FALSE))) ->  | BO11: =IF(ISNA(HLOOKUP(BO$6,Components!$C$8:$AIR$9,2,FALSE)),"",IF(HLOOKUP(BO$6,Components!$C$8:$AIR$9,2,FALSE)="","",HLOOKUP(BO$6,Components!$C$8:$AIR$9,2,FALSE))) ->  | BP11: =IF(ISNA(HLOOKUP(BP$6,Components!$C$8:$AIR$9,2,FALSE)),"",IF(HLOOKUP(BP$6,Components!$C$8:$AIR$9,2,FALSE)="","",HLOOKUP(BP$6,Components!$C$8:$AIR$9,2,FALSE))) ->  | BQ11: =IF(ISNA(HLOOKUP(BQ$6,Components!$C$8:$AIR$9,2,FALSE)),"",IF(HLOOKUP(BQ$6,Components!$C$8:$AIR$9,2,FALSE)="","",HLOOKUP(BQ$6,Components!$C$8:$AIR$9,2,FALSE))) -> 26666.67 | BR11: =IF(ISNA(HLOOKUP(BR$6,Components!$C$8:$AIR$9,2,FALSE)),"",IF(HLOOKUP(BR$6,Components!$C$8:$AIR$9,2,FALSE)="","",HLOOKUP(BR$6,Components!$C$8:$AIR$9,2,FALSE))) ->  | BS11: =IF(ISNA(HLOOKUP(BS$6,Components!$C$8:$AIR$9,2,FALSE)),"",IF(HLOOKUP(BS$6,Components!$C$8:$AIR$9,2,FALSE)="","",HLOOKUP(BS$6,Components!$C$8:$AIR$9,2,FALSE))) ->  | BT11: =IF(ISNA(HLOOKUP(BT$6,Components!$C$8:$AIR$9,2,FALSE)),"",IF(HLOOKUP(BT$6,Components!$C$8:$AIR$9,2,FALSE)="","",HLOOKUP(BT$6,Components!$C$8:$AIR$9,2,FALSE))) ->  | BU11: =IF(ISNA(HLOOKUP(BU$6,Components!$C$8:$AIR$9,2,FALSE)),"",IF(HLOOKUP(BU$6,Components!$C$8:$AIR$9,2,FALSE)="","",HLOOKUP(BU$6,Components!$C$8:$AIR$9,2,FALSE))) ->  | BV11: =IF(ISNA(HLOOKUP(BV$6,Components!$C$8:$AIR$9,2,FALSE)),"",IF(HLOOKUP(BV$6,Components!$C$8:$AIR$9,2,FALSE)="","",HLOOKUP(BV$6,Components!$C$8:$AIR$9,2,FALSE))) ->  | BW11: =IF(ISNA(HLOOKUP(BW$6,Components!$C$8:$AIR$9,2,FALSE)),"",IF(HLOOKUP(BW$6,Components!$C$8:$AIR$9,2,FALSE)="","",HLOOKUP(BW$6,Components!$C$8:$AIR$9,2,FALSE))) ->  | BX11: =IF(ISNA(HLOOKUP(BX$6,Components!$C$8:$AIR$9,2,FALSE)),"",IF(HLOOKUP(BX$6,Components!$C$8:$AIR$9,2,FALSE)="","",HLOOKUP(BX$6,Components!$C$8:$AIR$9,2,FALSE))) ->  | BY11: =IF(ISNA(HLOOKUP(BY$6,Components!$C$8:$AIR$9,2,FALSE)),"",IF(HLOOKUP(BY$6,Components!$C$8:$AIR$9,2,FALSE)="","",HLOOKUP(BY$6,Components!$C$8:$AIR$9,2,FALSE))) ->  | BZ11: =IF(ISNA(HLOOKUP(BZ$6,Components!$C$8:$AIR$9,2,FALSE)),"",IF(HLOOKUP(BZ$6,Components!$C$8:$AIR$9,2,FALSE)="","",HLOOKUP(BZ$6,Components!$C$8:$AIR$9,2,FALSE))) ->  | CA11: =IF(ISNA(HLOOKUP(CA$6,Components!$C$8:$AIR$9,2,FALSE)),"",IF(HLOOKUP(CA$6,Components!$C$8:$AIR$9,2,FALSE)="","",HLOOKUP(CA$6,Components!$C$8:$AIR$9,2,FALSE))) ->  | CB11: =IF(ISNA(HLOOKUP(CB$6,Components!$C$8:$AIR$9,2,FALSE)),"",IF(HLOOKUP(CB$6,Components!$C$8:$AIR$9,2,FALSE)="","",HLOOKUP(CB$6,Components!$C$8:$AIR$9,2,FALSE))) ->  | CC11: =IF(ISNA(HLOOKUP(CC$6,Components!$C$8:$AIR$9,2,FALSE)),"",IF(HLOOKUP(CC$6,Components!$C$8:$AIR$9,2,FALSE)="","",HLOOKUP(CC$6,Components!$C$8:$AIR$9,2,FALSE))) -> 500 | CD11: =IF(ISNA(HLOOKUP(CD$6,Components!$C$8:$AIR$9,2,FALSE)),"",IF(HLOOKUP(CD$6,Components!$C$8:$AIR$9,2,FALSE)="","",HLOOKUP(CD$6,Components!$C$8:$AIR$9,2,FALSE))) ->  | CE11: =IF(ISNA(HLOOKUP(CE$6,Components!$C$8:$AIR$9,2,FALSE)),"",IF(HLOOKUP(CE$6,Components!$C$8:$AIR$9,2,FALSE)="","",HLOOKUP(CE$6,Components!$C$8:$AIR$9,2,FALSE))) ->  | CF11: =IF(ISNA(HLOOKUP(CF$6,Components!$C$8:$AIR$9,2,FALSE)),"",IF(HLOOKUP(CF$6,Components!$C$8:$AIR$9,2,FALSE)="","",HLOOKUP(CF$6,Components!$C$8:$AIR$9,2,FALSE))) ->  | CG11: =IF(ISNA(HLOOKUP(CG$6,Components!$C$8:$AIR$9,2,FALSE)),"",IF(HLOOKUP(CG$6,Components!$C$8:$AIR$9,2,FALSE)="","",HLOOKUP(CG$6,Components!$C$8:$AIR$9,2,FALSE))) ->  | CH11: =IF(ISNA(HLOOKUP(CH$6,Components!$C$8:$AIR$9,2,FALSE)),"",IF(HLOOKUP(CH$6,Components!$C$8:$AIR$9,2,FALSE)="","",HLOOKUP(CH$6,Components!$C$8:$AIR$9,2,FALSE))) ->  | CI11: =IF(ISNA(HLOOKUP(CI$6,Components!$C$8:$AIR$9,2,FALSE)),"",IF(HLOOKUP(CI$6,Components!$C$8:$AIR$9,2,FALSE)="","",HLOOKUP(CI$6,Components!$C$8:$AIR$9,2,FALSE))) ->  | CJ11: =IF(ISNA(HLOOKUP(CJ$6,Components!$C$8:$AIR$9,2,FALSE)),"",IF(HLOOKUP(CJ$6,Components!$C$8:$AIR$9,2,FALSE)="","",HLOOKUP(CJ$6,Components!$C$8:$AIR$9,2,FALSE))) ->  | CK11: =IF(ISNA(HLOOKUP(CK$6,Components!$C$8:$AIR$9,2,FALSE)),"",IF(HLOOKUP(CK$6,Components!$C$8:$AIR$9,2,FALSE)="","",HLOOKUP(CK$6,Components!$C$8:$AIR$9,2,FALSE))) ->  | CL11: =IF(ISNA(HLOOKUP(CL$6,Components!$C$8:$AIR$9,2,FALSE)),"",IF(HLOOKUP(CL$6,Components!$C$8:$AIR$9,2,FALSE)="","",HLOOKUP(CL$6,Components!$C$8:$AIR$9,2,FALSE))) ->  | CM11: =IF(ISNA(HLOOKUP(CM$6,Components!$C$8:$AIR$9,2,FALSE)),"",IF(HLOOKUP(CM$6,Components!$C$8:$AIR$9,2,FALSE)="","",HLOOKUP(CM$6,Components!$C$8:$AIR$9,2,FALSE))) ->  | CN11: =IF(ISNA(HLOOKUP(CN$6,Components!$C$8:$AIR$9,2,FALSE)),"",IF(HLOOKUP(CN$6,Components!$C$8:$AIR$9,2,FALSE)="","",HLOOKUP(CN$6,Components!$C$8:$AIR$9,2,FALSE))) ->  | CO11: =IF(ISNA(HLOOKUP(CO$6,Components!$C$8:$AIR$9,2,FALSE)),"",IF(HLOOKUP(CO$6,Components!$C$8:$AIR$9,2,FALSE)="","",HLOOKUP(CO$6,Components!$C$8:$AIR$9,2,FALSE))) ->  | CP11: =IF(ISNA(HLOOKUP(CP$6,Components!$C$8:$AIR$9,2,FALSE)),"",IF(HLOOKUP(CP$6,Components!$C$8:$AIR$9,2,FALSE)="","",HLOOKUP(CP$6,Components!$C$8:$AIR$9,2,FALSE))) ->  | CQ11: =IF(ISNA(HLOOKUP(CQ$6,Components!$C$8:$AIR$9,2,FALSE)),"",IF(HLOOKUP(CQ$6,Components!$C$8:$AIR$9,2,FALSE)="","",HLOOKUP(CQ$6,Components!$C$8:$AIR$9,2,FALSE))) ->  | CR11: =IF(ISNA(HLOOKUP(CR$6,Components!$C$8:$AIR$9,2,FALSE)),"",IF(HLOOKUP(CR$6,Components!$C$8:$AIR$9,2,FALSE)="","",HLOOKUP(CR$6,Components!$C$8:$AIR$9,2,FALSE))) ->  | CS11: =IF(ISNA(HLOOKUP(CS$6,Components!$C$8:$AIR$9,2,FALSE)),"",IF(HLOOKUP(CS$6,Components!$C$8:$AIR$9,2,FALSE)="","",HLOOKUP(CS$6,Components!$C$8:$AIR$9,2,FALSE))) ->  | CT11: =IF(ISNA(HLOOKUP(CT$6,Components!$C$8:$AIR$9,2,FALSE)),"",IF(HLOOKUP(CT$6,Components!$C$8:$AIR$9,2,FALSE)="","",HLOOKUP(CT$6,Components!$C$8:$AIR$9,2,FALSE))) ->  | CU11: =IF(ISNA(HLOOKUP(CU$6,Components!$C$8:$AIR$9,2,FALSE)),"",IF(HLOOKUP(CU$6,Components!$C$8:$AIR$9,2,FALSE)="","",HLOOKUP(CU$6,Components!$C$8:$AIR$9,2,FALSE))) ->  | CV11: =IF(ISNA(HLOOKUP(CV$6,Components!$C$8:$AIR$9,2,FALSE)),"",IF(HLOOKUP(CV$6,Components!$C$8:$AIR$9,2,FALSE)="","",HLOOKUP(CV$6,Components!$C$8:$AIR$9,2,FALSE))) ->  | CW11: =IF(ISNA(HLOOKUP(CW$6,Components!$C$8:$AIR$9,2,FALSE)),"",IF(HLOOKUP(CW$6,Components!$C$8:$AIR$9,2,FALSE)="","",HLOOKUP(CW$6,Components!$C$8:$AIR$9,2,FALSE))) ->  | CX11: =IF(ISNA(HLOOKUP(CX$6,Components!$C$8:$AIR$9,2,FALSE)),"",IF(HLOOKUP(CX$6,Components!$C$8:$AIR$9,2,FALSE)="","",HLOOKUP(CX$6,Components!$C$8:$AIR$9,2,FALSE))) ->  | CY11: =IF(ISNA(HLOOKUP(CY$6,Components!$C$8:$AIR$9,2,FALSE)),"",IF(HLOOKUP(CY$6,Components!$C$8:$AIR$9,2,FALSE)="","",HLOOKUP(CY$6,Components!$C$8:$AIR$9,2,FALSE))) ->  | CZ11: =IF(ISNA(HLOOKUP(CZ$6,Components!$C$8:$AIR$9,2,FALSE)),"",IF(HLOOKUP(CZ$6,Components!$C$8:$AIR$9,2,FALSE)="","",HLOOKUP(CZ$6,Components!$C$8:$AIR$9,2,FALSE))) ->  | DA11: =IF(ISNA(HLOOKUP(DA$6,Components!$C$8:$AIR$9,2,FALSE)),"",IF(HLOOKUP(DA$6,Components!$C$8:$AIR$9,2,FALSE)="","",HLOOKUP(DA$6,Components!$C$8:$AIR$9,2,FALSE))) ->  | DB11: =IF(ISNA(HLOOKUP(DB$6,Components!$C$8:$AIR$9,2,FALSE)),"",IF(HLOOKUP(DB$6,Components!$C$8:$AIR$9,2,FALSE)="","",HLOOKUP(DB$6,Components!$C$8:$AIR$9,2,FALSE))) -> TRUE | DC11: =IF(ISNA(HLOOKUP(DC$6,Components!$C$8:$AIR$9,2,FALSE)),"",IF(HLOOKUP(DC$6,Components!$C$8:$AIR$9,2,FALSE)="","",HLOOKUP(DC$6,Components!$C$8:$AIR$9,2,FALSE))) -> 13373.97 | DD11: =IF(ISNA(HLOOKUP(DD$6,Components!$C$8:$AIR$9,2,FALSE)),"",IF(HLOOKUP(DD$6,Components!$C$8:$AIR$9,2,FALSE)="","",HLOOKUP(DD$6,Components!$C$8:$AIR$9,2,FALSE))) ->  | DE11: =IF(ISNA(HLOOKUP(DE$6,Components!$C$8:$AIR$9,2,FALSE)),"",IF(HLOOKUP(DE$6,Components!$C$8:$AIR$9,2,FALSE)="","",HLOOKUP(DE$6,Components!$C$8:$AIR$9,2,FALSE))) ->  | DF11: =IF(ISNA(HLOOKUP(DF$6,Components!$C$8:$AIR$9,2,FALSE)),"",IF(HLOOKUP(DF$6,Components!$C$8:$AIR$9,2,FALSE)="","",HLOOKUP(DF$6,Components!$C$8:$AIR$9,2,FALSE))) ->  | DG11: =IF(ISNA(HLOOKUP(DG$6,Components!$C$8:$AIR$9,2,FALSE)),"",IF(HLOOKUP(DG$6,Components!$C$8:$AIR$9,2,FALSE)="","",HLOOKUP(DG$6,Components!$C$8:$AIR$9,2,FALSE))) ->  | DH11: =IF(ISNA(HLOOKUP(DH$6,Components!$C$8:$AIR$9,2,FALSE)),"",IF(HLOOKUP(DH$6,Components!$C$8:$AIR$9,2,FALSE)="","",HLOOKUP(DH$6,Components!$C$8:$AIR$9,2,FALSE))) ->  | DI11: =IF(ISNA(HLOOKUP(DI$6,Components!$C$8:$AIR$9,2,FALSE)),"",IF(HLOOKUP(DI$6,Components!$C$8:$AIR$9,2,FALSE)="","",HLOOKUP(DI$6,Components!$C$8:$AIR$9,2,FALSE))) ->  | DJ11: =IF(ISNA(HLOOKUP(DJ$6,Components!$C$8:$AIR$9,2,FALSE)),"",IF(HLOOKUP(DJ$6,Components!$C$8:$AIR$9,2,FALSE)="","",HLOOKUP(DJ$6,Components!$C$8:$AIR$9,2,FALSE))) ->  | DK11: =IF(ISNA(HLOOKUP(DK$6,Components!$C$8:$AIR$9,2,FALSE)),"",IF(HLOOKUP(DK$6,Components!$C$8:$AIR$9,2,FALSE)="","",HLOOKUP(DK$6,Components!$C$8:$AIR$9,2,FALSE))) ->  | DL11: =IF(ISNA(HLOOKUP(DL$6,Components!$C$8:$AIR$9,2,FALSE)),"",IF(HLOOKUP(DL$6,Components!$C$8:$AIR$9,2,FALSE)="","",HLOOKUP(DL$6,Components!$C$8:$AIR$9,2,FALSE))) ->  | DM11: =IF(ISNA(HLOOKUP(DM$6,Components!$C$8:$AIR$9,2,FALSE)),"",IF(HLOOKUP(DM$6,Components!$C$8:$AIR$9,2,FALSE)="","",HLOOKUP(DM$6,Components!$C$8:$AIR$9,2,FALSE))) ->  | DN11: =IF(ISNA(HLOOKUP(DN$6,Components!$C$8:$AIR$9,2,FALSE)),"",IF(HLOOKUP(DN$6,Components!$C$8:$AIR$9,2,FALSE)="","",HLOOKUP(DN$6,Components!$C$8:$AIR$9,2,FALSE))) ->  | DO11: =IF(ISNA(HLOOKUP(DO$6,Components!$C$8:$AIR$9,2,FALSE)),"",IF(HLOOKUP(DO$6,Components!$C$8:$AIR$9,2,FALSE)="","",HLOOKUP(DO$6,Components!$C$8:$AIR$9,2,FALSE))) ->  | DP11: =IF(ISNA(HLOOKUP(DP$6,Components!$C$8:$AIR$9,2,FALSE)),"",IF(HLOOKUP(DP$6,Components!$C$8:$AIR$9,2,FALSE)="","",HLOOKUP(DP$6,Components!$C$8:$AIR$9,2,FALSE))) ->  | DQ11: =IF(ISNA(HLOOKUP(DQ$6,Components!$C$8:$AIR$9,2,FALSE)),"",IF(HLOOKUP(DQ$6,Components!$C$8:$AIR$9,2,FALSE)="","",HLOOKUP(DQ$6,Components!$C$8:$AIR$9,2,FALSE))) ->  | DR11: =IF(ISNA(HLOOKUP(DR$6,Components!$C$8:$AIR$9,2,FALSE)),"",IF(HLOOKUP(DR$6,Components!$C$8:$AIR$9,2,FALSE)="","",HLOOKUP(DR$6,Components!$C$8:$AIR$9,2,FALSE))) -> 
A12: 5 | B12: Calc Type - Trust rate Q1 (Trade) Q8.16 (Special trust rates - Yes) Q9 (Other Inc) UK DIVS, DIV dist AUT 9A.1 (amt of SRB) - 250 Q13 (Inc not liable at Spec trust rates) Q17 (Self Calc) 17.5 / 17.7 - Claim to reduce POA's - £10000.00 Q21 (Other Info) | C12: 41713.77 | D12: 41713.77 | E12: 20856.88 | F12: =IF(ISNA(HLOOKUP(F$6,Components!$C$10:$AIR$11,2,FALSE)),"",IF(HLOOKUP(F$6,Components!$C$10:$AIR$11,2,FALSE)="","",HLOOKUP(F$6,Components!$C$10:$AIR$11,2,FALSE))) ->  | G12: =IF(ISNA(HLOOKUP(G$6,Components!$C$10:$AIR$11,2,FALSE)),"",IF(HLOOKUP(G$6,Components!$C$10:$AIR$11,2,FALSE)="","",HLOOKUP(G$6,Components!$C$10:$AIR$11,2,FALSE))) -> 91196 | H12: =IF(ISNA(HLOOKUP(H$6,Components!$C$10:$AIR$11,2,FALSE)),"",IF(HLOOKUP(H$6,Components!$C$10:$AIR$11,2,FALSE)="","",HLOOKUP(H$6,Components!$C$10:$AIR$11,2,FALSE))) ->  | I12: =IF(ISNA(HLOOKUP(I$6,Components!$C$10:$AIR$11,2,FALSE)),"",IF(HLOOKUP(I$6,Components!$C$10:$AIR$11,2,FALSE)="","",HLOOKUP(I$6,Components!$C$10:$AIR$11,2,FALSE))) ->  | J12: =IF(ISNA(HLOOKUP(J$6,Components!$C$10:$AIR$11,2,FALSE)),"",IF(HLOOKUP(J$6,Components!$C$10:$AIR$11,2,FALSE)="","",HLOOKUP(J$6,Components!$C$10:$AIR$11,2,FALSE))) ->  | K12: =IF(ISNA(HLOOKUP(K$6,Components!$C$10:$AIR$11,2,FALSE)),"",IF(HLOOKUP(K$6,Components!$C$10:$AIR$11,2,FALSE)="","",HLOOKUP(K$6,Components!$C$10:$AIR$11,2,FALSE))) ->  | L12: =IF(ISNA(HLOOKUP(L$6,Components!$C$10:$AIR$11,2,FALSE)),"",IF(HLOOKUP(L$6,Components!$C$10:$AIR$11,2,FALSE)="","",HLOOKUP(L$6,Components!$C$10:$AIR$11,2,FALSE))) ->  | M12: =IF(ISNA(HLOOKUP(M$6,Components!$C$10:$AIR$11,2,FALSE)),"",IF(HLOOKUP(M$6,Components!$C$10:$AIR$11,2,FALSE)="","",HLOOKUP(M$6,Components!$C$10:$AIR$11,2,FALSE))) ->  | N12: =IF(ISNA(HLOOKUP(N$6,Components!$C$10:$AIR$11,2,FALSE)),"",IF(HLOOKUP(N$6,Components!$C$10:$AIR$11,2,FALSE)="","",HLOOKUP(N$6,Components!$C$10:$AIR$11,2,FALSE))) ->  | O12: =IF(ISNA(HLOOKUP(O$6,Components!$C$10:$AIR$11,2,FALSE)),"",IF(HLOOKUP(O$6,Components!$C$10:$AIR$11,2,FALSE)="","",HLOOKUP(O$6,Components!$C$10:$AIR$11,2,FALSE))) ->  | P12: =IF(ISNA(HLOOKUP(P$6,Components!$C$10:$AIR$11,2,FALSE)),"",IF(HLOOKUP(P$6,Components!$C$10:$AIR$11,2,FALSE)="","",HLOOKUP(P$6,Components!$C$10:$AIR$11,2,FALSE))) ->  | Q12: =IF(ISNA(HLOOKUP(Q$6,Components!$C$10:$AIR$11,2,FALSE)),"",IF(HLOOKUP(Q$6,Components!$C$10:$AIR$11,2,FALSE)="","",HLOOKUP(Q$6,Components!$C$10:$AIR$11,2,FALSE))) ->  | R12: =IF(ISNA(HLOOKUP(R$6,Components!$C$10:$AIR$11,2,FALSE)),"",IF(HLOOKUP(R$6,Components!$C$10:$AIR$11,2,FALSE)="","",HLOOKUP(R$6,Components!$C$10:$AIR$11,2,FALSE))) ->  | S12: =IF(ISNA(HLOOKUP(S$6,Components!$C$10:$AIR$11,2,FALSE)),"",IF(HLOOKUP(S$6,Components!$C$10:$AIR$11,2,FALSE)="","",HLOOKUP(S$6,Components!$C$10:$AIR$11,2,FALSE))) ->  | T12: =IF(ISNA(HLOOKUP(T$6,Components!$C$10:$AIR$11,2,FALSE)),"",IF(HLOOKUP(T$6,Components!$C$10:$AIR$11,2,FALSE)="","",HLOOKUP(T$6,Components!$C$10:$AIR$11,2,FALSE))) ->  | U12: =IF(ISNA(HLOOKUP(U$6,Components!$C$10:$AIR$11,2,FALSE)),"",IF(HLOOKUP(U$6,Components!$C$10:$AIR$11,2,FALSE)="","",HLOOKUP(U$6,Components!$C$10:$AIR$11,2,FALSE))) ->  | V12: =IF(ISNA(HLOOKUP(V$6,Components!$C$10:$AIR$11,2,FALSE)),"",IF(HLOOKUP(V$6,Components!$C$10:$AIR$11,2,FALSE)="","",HLOOKUP(V$6,Components!$C$10:$AIR$11,2,FALSE))) ->  | W12: =IF(ISNA(HLOOKUP(W$6,Components!$C$10:$AIR$11,2,FALSE)),"",IF(HLOOKUP(W$6,Components!$C$10:$AIR$11,2,FALSE)="","",HLOOKUP(W$6,Components!$C$10:$AIR$11,2,FALSE))) ->  | X12: =IF(ISNA(HLOOKUP(X$6,Components!$C$10:$AIR$11,2,FALSE)),"",IF(HLOOKUP(X$6,Components!$C$10:$AIR$11,2,FALSE)="","",HLOOKUP(X$6,Components!$C$10:$AIR$11,2,FALSE))) ->  | Y12: =IF(ISNA(HLOOKUP(Y$6,Components!$C$10:$AIR$11,2,FALSE)),"",IF(HLOOKUP(Y$6,Components!$C$10:$AIR$11,2,FALSE)="","",HLOOKUP(Y$6,Components!$C$10:$AIR$11,2,FALSE))) ->  | Z12: =IF(ISNA(HLOOKUP(Z$6,Components!$C$10:$AIR$11,2,FALSE)),"",IF(HLOOKUP(Z$6,Components!$C$10:$AIR$11,2,FALSE)="","",HLOOKUP(Z$6,Components!$C$10:$AIR$11,2,FALSE))) ->  | AA12: =IF(ISNA(HLOOKUP(AA$6,Components!$C$10:$AIR$11,2,FALSE)),"",IF(HLOOKUP(AA$6,Components!$C$10:$AIR$11,2,FALSE)="","",HLOOKUP(AA$6,Components!$C$10:$AIR$11,2,FALSE))) ->  | AB12: =IF(ISNA(HLOOKUP(AB$6,Components!$C$10:$AIR$11,2,FALSE)),"",IF(HLOOKUP(AB$6,Components!$C$10:$AIR$11,2,FALSE)="","",HLOOKUP(AB$6,Components!$C$10:$AIR$11,2,FALSE))) ->  | AC12: =IF(ISNA(HLOOKUP(AC$6,Components!$C$10:$AIR$11,2,FALSE)),"",IF(HLOOKUP(AC$6,Components!$C$10:$AIR$11,2,FALSE)="","",HLOOKUP(AC$6,Components!$C$10:$AIR$11,2,FALSE))) ->  | AD12: =IF(ISNA(HLOOKUP(AD$6,Components!$C$10:$AIR$11,2,FALSE)),"",IF(HLOOKUP(AD$6,Components!$C$10:$AIR$11,2,FALSE)="","",HLOOKUP(AD$6,Components!$C$10:$AIR$11,2,FALSE))) ->  | AE12: =IF(ISNA(HLOOKUP(AE$6,Components!$C$10:$AIR$11,2,FALSE)),"",IF(HLOOKUP(AE$6,Components!$C$10:$AIR$11,2,FALSE)="","",HLOOKUP(AE$6,Components!$C$10:$AIR$11,2,FALSE))) ->  | AF12: =IF(ISNA(HLOOKUP(AF$6,Components!$C$10:$AIR$11,2,FALSE)),"",IF(HLOOKUP(AF$6,Components!$C$10:$AIR$11,2,FALSE)="","",HLOOKUP(AF$6,Components!$C$10:$AIR$11,2,FALSE))) ->  | AG12: =IF(ISNA(HLOOKUP(AG$6,Components!$C$10:$AIR$11,2,FALSE)),"",IF(HLOOKUP(AG$6,Components!$C$10:$AIR$11,2,FALSE)="","",HLOOKUP(AG$6,Components!$C$10:$AIR$11,2,FALSE))) ->  | AH12: =IF(ISNA(HLOOKUP(AH$6,Components!$C$10:$AIR$11,2,FALSE)),"",IF(HLOOKUP(AH$6,Components!$C$10:$AIR$11,2,FALSE)="","",HLOOKUP(AH$6,Components!$C$10:$AIR$11,2,FALSE))) ->  | AI12: =IF(ISNA(HLOOKUP(AI$6,Components!$C$10:$AIR$11,2,FALSE)),"",IF(HLOOKUP(AI$6,Components!$C$10:$AIR$11,2,FALSE)="","",HLOOKUP(AI$6,Components!$C$10:$AIR$11,2,FALSE))) ->  | AJ12: =IF(ISNA(HLOOKUP(AJ$6,Components!$C$10:$AIR$11,2,FALSE)),"",IF(HLOOKUP(AJ$6,Components!$C$10:$AIR$11,2,FALSE)="","",HLOOKUP(AJ$6,Components!$C$10:$AIR$11,2,FALSE))) ->  | AK12: =IF(ISNA(HLOOKUP(AK$6,Components!$C$10:$AIR$11,2,FALSE)),"",IF(HLOOKUP(AK$6,Components!$C$10:$AIR$11,2,FALSE)="","",HLOOKUP(AK$6,Components!$C$10:$AIR$11,2,FALSE))) ->  | AL12: =IF(ISNA(HLOOKUP(AL$6,Components!$C$10:$AIR$11,2,FALSE)),"",IF(HLOOKUP(AL$6,Components!$C$10:$AIR$11,2,FALSE)="","",HLOOKUP(AL$6,Components!$C$10:$AIR$11,2,FALSE))) ->  | AM12: =IF(ISNA(HLOOKUP(AM$6,Components!$C$10:$AIR$11,2,FALSE)),"",IF(HLOOKUP(AM$6,Components!$C$10:$AIR$11,2,FALSE)="","",HLOOKUP(AM$6,Components!$C$10:$AIR$11,2,FALSE))) ->  | AN12: =IF(ISNA(HLOOKUP(AN$6,Components!$C$10:$AIR$11,2,FALSE)),"",IF(HLOOKUP(AN$6,Components!$C$10:$AIR$11,2,FALSE)="","",HLOOKUP(AN$6,Components!$C$10:$AIR$11,2,FALSE))) ->  | AO12: =IF(ISNA(HLOOKUP(AO$6,Components!$C$10:$AIR$11,2,FALSE)),"",IF(HLOOKUP(AO$6,Components!$C$10:$AIR$11,2,FALSE)="","",HLOOKUP(AO$6,Components!$C$10:$AIR$11,2,FALSE))) ->  | AP12: =IF(ISNA(HLOOKUP(AP$6,Components!$C$10:$AIR$11,2,FALSE)),"",IF(HLOOKUP(AP$6,Components!$C$10:$AIR$11,2,FALSE)="","",HLOOKUP(AP$6,Components!$C$10:$AIR$11,2,FALSE))) ->  | AQ12: =IF(ISNA(HLOOKUP(AQ$6,Components!$C$10:$AIR$11,2,FALSE)),"",IF(HLOOKUP(AQ$6,Components!$C$10:$AIR$11,2,FALSE)="","",HLOOKUP(AQ$6,Components!$C$10:$AIR$11,2,FALSE))) ->  | AR12: =IF(ISNA(HLOOKUP(AR$6,Components!$C$10:$AIR$11,2,FALSE)),"",IF(HLOOKUP(AR$6,Components!$C$10:$AIR$11,2,FALSE)="","",HLOOKUP(AR$6,Components!$C$10:$AIR$11,2,FALSE))) ->  | AS12: =IF(ISNA(HLOOKUP(AS$6,Components!$C$10:$AIR$11,2,FALSE)),"",IF(HLOOKUP(AS$6,Components!$C$10:$AIR$11,2,FALSE)="","",HLOOKUP(AS$6,Components!$C$10:$AIR$11,2,FALSE))) ->  | AT12: =IF(ISNA(HLOOKUP(AT$6,Components!$C$10:$AIR$11,2,FALSE)),"",IF(HLOOKUP(AT$6,Components!$C$10:$AIR$11,2,FALSE)="","",HLOOKUP(AT$6,Components!$C$10:$AIR$11,2,FALSE))) ->  | AU12: =IF(ISNA(HLOOKUP(AU$6,Components!$C$10:$AIR$11,2,FALSE)),"",IF(HLOOKUP(AU$6,Components!$C$10:$AIR$11,2,FALSE)="","",HLOOKUP(AU$6,Components!$C$10:$AIR$11,2,FALSE))) ->  | AV12: =IF(ISNA(HLOOKUP(AV$6,Components!$C$10:$AIR$11,2,FALSE)),"",IF(HLOOKUP(AV$6,Components!$C$10:$AIR$11,2,FALSE)="","",HLOOKUP(AV$6,Components!$C$10:$AIR$11,2,FALSE))) ->  | AW12: =IF(ISNA(HLOOKUP(AW$6,Components!$C$10:$AIR$11,2,FALSE)),"",IF(HLOOKUP(AW$6,Components!$C$10:$AIR$11,2,FALSE)="","",HLOOKUP(AW$6,Components!$C$10:$AIR$11,2,FALSE))) ->  | AX12: =IF(ISNA(HLOOKUP(AX$6,Components!$C$10:$AIR$11,2,FALSE)),"",IF(HLOOKUP(AX$6,Components!$C$10:$AIR$11,2,FALSE)="","",HLOOKUP(AX$6,Components!$C$10:$AIR$11,2,FALSE))) ->  | AY12: =IF(ISNA(HLOOKUP(AY$6,Components!$C$10:$AIR$11,2,FALSE)),"",IF(HLOOKUP(AY$6,Components!$C$10:$AIR$11,2,FALSE)="","",HLOOKUP(AY$6,Components!$C$10:$AIR$11,2,FALSE))) ->  | AZ12: =IF(ISNA(HLOOKUP(AZ$6,Components!$C$10:$AIR$11,2,FALSE)),"",IF(HLOOKUP(AZ$6,Components!$C$10:$AIR$11,2,FALSE)="","",HLOOKUP(AZ$6,Components!$C$10:$AIR$11,2,FALSE))) ->  | BA12: =IF(ISNA(HLOOKUP(BA$6,Components!$C$10:$AIR$11,2,FALSE)),"",IF(HLOOKUP(BA$6,Components!$C$10:$AIR$11,2,FALSE)="","",HLOOKUP(BA$6,Components!$C$10:$AIR$11,2,FALSE))) ->  | BB12: =IF(ISNA(HLOOKUP(BB$6,Components!$C$10:$AIR$11,2,FALSE)),"",IF(HLOOKUP(BB$6,Components!$C$10:$AIR$11,2,FALSE)="","",HLOOKUP(BB$6,Components!$C$10:$AIR$11,2,FALSE))) ->  | BC12: =IF(ISNA(HLOOKUP(BC$6,Components!$C$10:$AIR$11,2,FALSE)),"",IF(HLOOKUP(BC$6,Components!$C$10:$AIR$11,2,FALSE)="","",HLOOKUP(BC$6,Components!$C$10:$AIR$11,2,FALSE))) ->  | BD12: =IF(ISNA(HLOOKUP(BD$6,Components!$C$10:$AIR$11,2,FALSE)),"",IF(HLOOKUP(BD$6,Components!$C$10:$AIR$11,2,FALSE)="","",HLOOKUP(BD$6,Components!$C$10:$AIR$11,2,FALSE))) ->  | BE12: =IF(ISNA(HLOOKUP(BE$6,Components!$C$10:$AIR$11,2,FALSE)),"",IF(HLOOKUP(BE$6,Components!$C$10:$AIR$11,2,FALSE)="","",HLOOKUP(BE$6,Components!$C$10:$AIR$11,2,FALSE))) ->  | BF12: =IF(ISNA(HLOOKUP(BF$6,Components!$C$10:$AIR$11,2,FALSE)),"",IF(HLOOKUP(BF$6,Components!$C$10:$AIR$11,2,FALSE)="","",HLOOKUP(BF$6,Components!$C$10:$AIR$11,2,FALSE))) ->  | BG12: =IF(ISNA(HLOOKUP(BG$6,Components!$C$10:$AIR$11,2,FALSE)),"",IF(HLOOKUP(BG$6,Components!$C$10:$AIR$11,2,FALSE)="","",HLOOKUP(BG$6,Components!$C$10:$AIR$11,2,FALSE))) ->  | BH12: =IF(ISNA(HLOOKUP(BH$6,Components!$C$10:$AIR$11,2,FALSE)),"",IF(HLOOKUP(BH$6,Components!$C$10:$AIR$11,2,FALSE)="","",HLOOKUP(BH$6,Components!$C$10:$AIR$11,2,FALSE))) ->  | BI12: =IF(ISNA(HLOOKUP(BI$6,Components!$C$10:$AIR$11,2,FALSE)),"",IF(HLOOKUP(BI$6,Components!$C$10:$AIR$11,2,FALSE)="","",HLOOKUP(BI$6,Components!$C$10:$AIR$11,2,FALSE))) -> TRUE | BJ12: =IF(ISNA(HLOOKUP(BJ$6,Components!$C$10:$AIR$11,2,FALSE)),"",IF(HLOOKUP(BJ$6,Components!$C$10:$AIR$11,2,FALSE)="","",HLOOKUP(BJ$6,Components!$C$10:$AIR$11,2,FALSE))) ->  | BK12: =IF(ISNA(HLOOKUP(BK$6,Components!$C$10:$AIR$11,2,FALSE)),"",IF(HLOOKUP(BK$6,Components!$C$10:$AIR$11,2,FALSE)="","",HLOOKUP(BK$6,Components!$C$10:$AIR$11,2,FALSE))) ->  | BL12: =IF(ISNA(HLOOKUP(BL$6,Components!$C$10:$AIR$11,2,FALSE)),"",IF(HLOOKUP(BL$6,Components!$C$10:$AIR$11,2,FALSE)="","",HLOOKUP(BL$6,Components!$C$10:$AIR$11,2,FALSE))) ->  | BM12: =IF(ISNA(HLOOKUP(BM$6,Components!$C$10:$AIR$11,2,FALSE)),"",IF(HLOOKUP(BM$6,Components!$C$10:$AIR$11,2,FALSE)="","",HLOOKUP(BM$6,Components!$C$10:$AIR$11,2,FALSE))) ->  | BN12: =IF(ISNA(HLOOKUP(BN$6,Components!$C$10:$AIR$11,2,FALSE)),"",IF(HLOOKUP(BN$6,Components!$C$10:$AIR$11,2,FALSE)="","",HLOOKUP(BN$6,Components!$C$10:$AIR$11,2,FALSE))) ->  | BO12: =IF(ISNA(HLOOKUP(BO$6,Components!$C$10:$AIR$11,2,FALSE)),"",IF(HLOOKUP(BO$6,Components!$C$10:$AIR$11,2,FALSE)="","",HLOOKUP(BO$6,Components!$C$10:$AIR$11,2,FALSE))) ->  | BP12: =IF(ISNA(HLOOKUP(BP$6,Components!$C$10:$AIR$11,2,FALSE)),"",IF(HLOOKUP(BP$6,Components!$C$10:$AIR$11,2,FALSE)="","",HLOOKUP(BP$6,Components!$C$10:$AIR$11,2,FALSE))) ->  | BQ12: =IF(ISNA(HLOOKUP(BQ$6,Components!$C$10:$AIR$11,2,FALSE)),"",IF(HLOOKUP(BQ$6,Components!$C$10:$AIR$11,2,FALSE)="","",HLOOKUP(BQ$6,Components!$C$10:$AIR$11,2,FALSE))) -> 1510 | BR12: =IF(ISNA(HLOOKUP(BR$6,Components!$C$10:$AIR$11,2,FALSE)),"",IF(HLOOKUP(BR$6,Components!$C$10:$AIR$11,2,FALSE)="","",HLOOKUP(BR$6,Components!$C$10:$AIR$11,2,FALSE))) -> 910 | BS12: =IF(ISNA(HLOOKUP(BS$6,Components!$C$10:$AIR$11,2,FALSE)),"",IF(HLOOKUP(BS$6,Components!$C$10:$AIR$11,2,FALSE)="","",HLOOKUP(BS$6,Components!$C$10:$AIR$11,2,FALSE))) ->  | BT12: =IF(ISNA(HLOOKUP(BT$6,Components!$C$10:$AIR$11,2,FALSE)),"",IF(HLOOKUP(BT$6,Components!$C$10:$AIR$11,2,FALSE)="","",HLOOKUP(BT$6,Components!$C$10:$AIR$11,2,FALSE))) ->  | BU12: =IF(ISNA(HLOOKUP(BU$6,Components!$C$10:$AIR$11,2,FALSE)),"",IF(HLOOKUP(BU$6,Components!$C$10:$AIR$11,2,FALSE)="","",HLOOKUP(BU$6,Components!$C$10:$AIR$11,2,FALSE))) ->  | BV12: =IF(ISNA(HLOOKUP(BV$6,Components!$C$10:$AIR$11,2,FALSE)),"",IF(HLOOKUP(BV$6,Components!$C$10:$AIR$11,2,FALSE)="","",HLOOKUP(BV$6,Components!$C$10:$AIR$11,2,FALSE))) ->  | BW12: =IF(ISNA(HLOOKUP(BW$6,Components!$C$10:$AIR$11,2,FALSE)),"",IF(HLOOKUP(BW$6,Components!$C$10:$AIR$11,2,FALSE)="","",HLOOKUP(BW$6,Components!$C$10:$AIR$11,2,FALSE))) ->  | BX12: =IF(ISNA(HLOOKUP(BX$6,Components!$C$10:$AIR$11,2,FALSE)),"",IF(HLOOKUP(BX$6,Components!$C$10:$AIR$11,2,FALSE)="","",HLOOKUP(BX$6,Components!$C$10:$AIR$11,2,FALSE))) ->  | BY12: =IF(ISNA(HLOOKUP(BY$6,Components!$C$10:$AIR$11,2,FALSE)),"",IF(HLOOKUP(BY$6,Components!$C$10:$AIR$11,2,FALSE)="","",HLOOKUP(BY$6,Components!$C$10:$AIR$11,2,FALSE))) ->  | BZ12: =IF(ISNA(HLOOKUP(BZ$6,Components!$C$10:$AIR$11,2,FALSE)),"",IF(HLOOKUP(BZ$6,Components!$C$10:$AIR$11,2,FALSE)="","",HLOOKUP(BZ$6,Components!$C$10:$AIR$11,2,FALSE))) ->  | CA12: =IF(ISNA(HLOOKUP(CA$6,Components!$C$10:$AIR$11,2,FALSE)),"",IF(HLOOKUP(CA$6,Components!$C$10:$AIR$11,2,FALSE)="","",HLOOKUP(CA$6,Components!$C$10:$AIR$11,2,FALSE))) ->  | CB12: =IF(ISNA(HLOOKUP(CB$6,Components!$C$10:$AIR$11,2,FALSE)),"",IF(HLOOKUP(CB$6,Components!$C$10:$AIR$11,2,FALSE)="","",HLOOKUP(CB$6,Components!$C$10:$AIR$11,2,FALSE))) ->  | CC12: =IF(ISNA(HLOOKUP(CC$6,Components!$C$10:$AIR$11,2,FALSE)),"",IF(HLOOKUP(CC$6,Components!$C$10:$AIR$11,2,FALSE)="","",HLOOKUP(CC$6,Components!$C$10:$AIR$11,2,FALSE))) -> 250 | CD12: =IF(ISNA(HLOOKUP(CD$6,Components!$C$10:$AIR$11,2,FALSE)),"",IF(HLOOKUP(CD$6,Components!$C$10:$AIR$11,2,FALSE)="","",HLOOKUP(CD$6,Components!$C$10:$AIR$11,2,FALSE))) ->  | CE12: =IF(ISNA(HLOOKUP(CE$6,Components!$C$10:$AIR$11,2,FALSE)),"",IF(HLOOKUP(CE$6,Components!$C$10:$AIR$11,2,FALSE)="","",HLOOKUP(CE$6,Components!$C$10:$AIR$11,2,FALSE))) ->  | CF12: =IF(ISNA(HLOOKUP(CF$6,Components!$C$10:$AIR$11,2,FALSE)),"",IF(HLOOKUP(CF$6,Components!$C$10:$AIR$11,2,FALSE)="","",HLOOKUP(CF$6,Components!$C$10:$AIR$11,2,FALSE))) ->  | CG12: =IF(ISNA(HLOOKUP(CG$6,Components!$C$10:$AIR$11,2,FALSE)),"",IF(HLOOKUP(CG$6,Components!$C$10:$AIR$11,2,FALSE)="","",HLOOKUP(CG$6,Components!$C$10:$AIR$11,2,FALSE))) ->  | CH12: =IF(ISNA(HLOOKUP(CH$6,Components!$C$10:$AIR$11,2,FALSE)),"",IF(HLOOKUP(CH$6,Components!$C$10:$AIR$11,2,FALSE)="","",HLOOKUP(CH$6,Components!$C$10:$AIR$11,2,FALSE))) ->  | CI12: =IF(ISNA(HLOOKUP(CI$6,Components!$C$10:$AIR$11,2,FALSE)),"",IF(HLOOKUP(CI$6,Components!$C$10:$AIR$11,2,FALSE)="","",HLOOKUP(CI$6,Components!$C$10:$AIR$11,2,FALSE))) ->  | CJ12: =IF(ISNA(HLOOKUP(CJ$6,Components!$C$10:$AIR$11,2,FALSE)),"",IF(HLOOKUP(CJ$6,Components!$C$10:$AIR$11,2,FALSE)="","",HLOOKUP(CJ$6,Components!$C$10:$AIR$11,2,FALSE))) ->  | CK12: =IF(ISNA(HLOOKUP(CK$6,Components!$C$10:$AIR$11,2,FALSE)),"",IF(HLOOKUP(CK$6,Components!$C$10:$AIR$11,2,FALSE)="","",HLOOKUP(CK$6,Components!$C$10:$AIR$11,2,FALSE))) ->  | CL12: =IF(ISNA(HLOOKUP(CL$6,Components!$C$10:$AIR$11,2,FALSE)),"",IF(HLOOKUP(CL$6,Components!$C$10:$AIR$11,2,FALSE)="","",HLOOKUP(CL$6,Components!$C$10:$AIR$11,2,FALSE))) -> 700 | CM12: =IF(ISNA(HLOOKUP(CM$6,Components!$C$10:$AIR$11,2,FALSE)),"",IF(HLOOKUP(CM$6,Components!$C$10:$AIR$11,2,FALSE)="","",HLOOKUP(CM$6,Components!$C$10:$AIR$11,2,FALSE))) ->  | CN12: =IF(ISNA(HLOOKUP(CN$6,Components!$C$10:$AIR$11,2,FALSE)),"",IF(HLOOKUP(CN$6,Components!$C$10:$AIR$11,2,FALSE)="","",HLOOKUP(CN$6,Components!$C$10:$AIR$11,2,FALSE))) ->  | CO12: =IF(ISNA(HLOOKUP(CO$6,Components!$C$10:$AIR$11,2,FALSE)),"",IF(HLOOKUP(CO$6,Components!$C$10:$AIR$11,2,FALSE)="","",HLOOKUP(CO$6,Components!$C$10:$AIR$11,2,FALSE))) ->  | CP12: =IF(ISNA(HLOOKUP(CP$6,Components!$C$10:$AIR$11,2,FALSE)),"",IF(HLOOKUP(CP$6,Components!$C$10:$AIR$11,2,FALSE)="","",HLOOKUP(CP$6,Components!$C$10:$AIR$11,2,FALSE))) -> 140 | CQ12: =IF(ISNA(HLOOKUP(CQ$6,Components!$C$10:$AIR$11,2,FALSE)),"",IF(HLOOKUP(CQ$6,Components!$C$10:$AIR$11,2,FALSE)="","",HLOOKUP(CQ$6,Components!$C$10:$AIR$11,2,FALSE))) -> 140 | CR12: =IF(ISNA(HLOOKUP(CR$6,Components!$C$10:$AIR$11,2,FALSE)),"",IF(HLOOKUP(CR$6,Components!$C$10:$AIR$11,2,FALSE)="","",HLOOKUP(CR$6,Components!$C$10:$AIR$11,2,FALSE))) ->  | CS12: =IF(ISNA(HLOOKUP(CS$6,Components!$C$10:$AIR$11,2,FALSE)),"",IF(HLOOKUP(CS$6,Components!$C$10:$AIR$11,2,FALSE)="","",HLOOKUP(CS$6,Components!$C$10:$AIR$11,2,FALSE))) ->  | CT12: =IF(ISNA(HLOOKUP(CT$6,Components!$C$10:$AIR$11,2,FALSE)),"",IF(HLOOKUP(CT$6,Components!$C$10:$AIR$11,2,FALSE)="","",HLOOKUP(CT$6,Components!$C$10:$AIR$11,2,FALSE))) ->  | CU12: =IF(ISNA(HLOOKUP(CU$6,Components!$C$10:$AIR$11,2,FALSE)),"",IF(HLOOKUP(CU$6,Components!$C$10:$AIR$11,2,FALSE)="","",HLOOKUP(CU$6,Components!$C$10:$AIR$11,2,FALSE))) ->  | CV12: =IF(ISNA(HLOOKUP(CV$6,Components!$C$10:$AIR$11,2,FALSE)),"",IF(HLOOKUP(CV$6,Components!$C$10:$AIR$11,2,FALSE)="","",HLOOKUP(CV$6,Components!$C$10:$AIR$11,2,FALSE))) ->  | CW12: =IF(ISNA(HLOOKUP(CW$6,Components!$C$10:$AIR$11,2,FALSE)),"",IF(HLOOKUP(CW$6,Components!$C$10:$AIR$11,2,FALSE)="","",HLOOKUP(CW$6,Components!$C$10:$AIR$11,2,FALSE))) ->  | CX12: =IF(ISNA(HLOOKUP(CX$6,Components!$C$10:$AIR$11,2,FALSE)),"",IF(HLOOKUP(CX$6,Components!$C$10:$AIR$11,2,FALSE)="","",HLOOKUP(CX$6,Components!$C$10:$AIR$11,2,FALSE))) ->  | CY12: =IF(ISNA(HLOOKUP(CY$6,Components!$C$10:$AIR$11,2,FALSE)),"",IF(HLOOKUP(CY$6,Components!$C$10:$AIR$11,2,FALSE)="","",HLOOKUP(CY$6,Components!$C$10:$AIR$11,2,FALSE))) ->  | CZ12: =IF(ISNA(HLOOKUP(CZ$6,Components!$C$10:$AIR$11,2,FALSE)),"",IF(HLOOKUP(CZ$6,Components!$C$10:$AIR$11,2,FALSE)="","",HLOOKUP(CZ$6,Components!$C$10:$AIR$11,2,FALSE))) ->  | DA12: =IF(ISNA(HLOOKUP(DA$6,Components!$C$10:$AIR$11,2,FALSE)),"",IF(HLOOKUP(DA$6,Components!$C$10:$AIR$11,2,FALSE)="","",HLOOKUP(DA$6,Components!$C$10:$AIR$11,2,FALSE))) ->  | DB12: =IF(ISNA(HLOOKUP(DB$6,Components!$C$10:$AIR$11,2,FALSE)),"",IF(HLOOKUP(DB$6,Components!$C$10:$AIR$11,2,FALSE)="","",HLOOKUP(DB$6,Components!$C$10:$AIR$11,2,FALSE))) -> TRUE | DC12: =IF(ISNA(HLOOKUP(DC$6,Components!$C$10:$AIR$11,2,FALSE)),"",IF(HLOOKUP(DC$6,Components!$C$10:$AIR$11,2,FALSE)="","",HLOOKUP(DC$6,Components!$C$10:$AIR$11,2,FALSE))) -> 41713.77 | DD12: =IF(ISNA(HLOOKUP(DD$6,Components!$C$10:$AIR$11,2,FALSE)),"",IF(HLOOKUP(DD$6,Components!$C$10:$AIR$11,2,FALSE)="","",HLOOKUP(DD$6,Components!$C$10:$AIR$11,2,FALSE))) ->  | DE12: =IF(ISNA(HLOOKUP(DE$6,Components!$C$10:$AIR$11,2,FALSE)),"",IF(HLOOKUP(DE$6,Components!$C$10:$AIR$11,2,FALSE)="","",HLOOKUP(DE$6,Components!$C$10:$AIR$11,2,FALSE))) ->  | DF12: =IF(ISNA(HLOOKUP(DF$6,Components!$C$10:$AIR$11,2,FALSE)),"",IF(HLOOKUP(DF$6,Components!$C$10:$AIR$11,2,FALSE)="","",HLOOKUP(DF$6,Components!$C$10:$AIR$11,2,FALSE))) ->  | DG12: =IF(ISNA(HLOOKUP(DG$6,Components!$C$10:$AIR$11,2,FALSE)),"",IF(HLOOKUP(DG$6,Components!$C$10:$AIR$11,2,FALSE)="","",HLOOKUP(DG$6,Components!$C$10:$AIR$11,2,FALSE))) ->  | DH12: =IF(ISNA(HLOOKUP(DH$6,Components!$C$10:$AIR$11,2,FALSE)),"",IF(HLOOKUP(DH$6,Components!$C$10:$AIR$11,2,FALSE)="","",HLOOKUP(DH$6,Components!$C$10:$AIR$11,2,FALSE))) ->  | DI12: =IF(ISNA(HLOOKUP(DI$6,Components!$C$10:$AIR$11,2,FALSE)),"",IF(HLOOKUP(DI$6,Components!$C$10:$AIR$11,2,FALSE)="","",HLOOKUP(DI$6,Components!$C$10:$AIR$11,2,FALSE))) ->  | DJ12: =IF(ISNA(HLOOKUP(DJ$6,Components!$C$10:$AIR$11,2,FALSE)),"",IF(HLOOKUP(DJ$6,Components!$C$10:$AIR$11,2,FALSE)="","",HLOOKUP(DJ$6,Components!$C$10:$AIR$11,2,FALSE))) ->  | DK12: =IF(ISNA(HLOOKUP(DK$6,Components!$C$10:$AIR$11,2,FALSE)),"",IF(HLOOKUP(DK$6,Components!$C$10:$AIR$11,2,FALSE)="","",HLOOKUP(DK$6,Components!$C$10:$AIR$11,2,FALSE))) ->  | DL12: =IF(ISNA(HLOOKUP(DL$6,Components!$C$10:$AIR$11,2,FALSE)),"",IF(HLOOKUP(DL$6,Components!$C$10:$AIR$11,2,FALSE)="","",HLOOKUP(DL$6,Components!$C$10:$AIR$11,2,FALSE))) ->  | DM12: =IF(ISNA(HLOOKUP(DM$6,Components!$C$10:$AIR$11,2,FALSE)),"",IF(HLOOKUP(DM$6,Components!$C$10:$AIR$11,2,FALSE)="","",HLOOKUP(DM$6,Components!$C$10:$AIR$11,2,FALSE))) ->  | DN12: =IF(ISNA(HLOOKUP(DN$6,Components!$C$10:$AIR$11,2,FALSE)),"",IF(HLOOKUP(DN$6,Components!$C$10:$AIR$11,2,FALSE)="","",HLOOKUP(DN$6,Components!$C$10:$AIR$11,2,FALSE))) ->  | DO12: =IF(ISNA(HLOOKUP(DO$6,Components!$C$10:$AIR$11,2,FALSE)),"",IF(HLOOKUP(DO$6,Components!$C$10:$AIR$11,2,FALSE)="","",HLOOKUP(DO$6,Components!$C$10:$AIR$11,2,FALSE))) ->  | DP12: =IF(ISNA(HLOOKUP(DP$6,Components!$C$10:$AIR$11,2,FALSE)),"",IF(HLOOKUP(DP$6,Components!$C$10:$AIR$11,2,FALSE)="","",HLOOKUP(DP$6,Components!$C$10:$AIR$11,2,FALSE))) ->  | DQ12: =IF(ISNA(HLOOKUP(DQ$6,Components!$C$10:$AIR$11,2,FALSE)),"",IF(HLOOKUP(DQ$6,Components!$C$10:$AIR$11,2,FALSE)="","",HLOOKUP(DQ$6,Components!$C$10:$AIR$11,2,FALSE))) ->  | DR12: =IF(ISNA(HLOOKUP(DR$6,Components!$C$10:$AIR$11,2,FALSE)),"",IF(HLOOKUP(DR$6,Components!$C$10:$AIR$11,2,FALSE)="","",HLOOKUP(DR$6,Components!$C$10:$AIR$11,2,FALSE))) -> 
A13: 6 | B13: Calc Type - Trust rate Q3 (UK Prop) IFP profit Q4 (For) DIVS, Remitted INC Q8.16 (Special trust rates - Yes) Q9 (Other Inc) taxed UK INT, NS&I, Other SAV, UK DIVS, Stock DIV 9A.1 (amt of SRB) - 1000 Q13 (Inc not liable at Spec trust rates) Q14 (Discretionary Pmts) Q17 (Self Calc) | C13: 40504.48 | D13: 40504.48 | E13: 20252.24 | F13: =IF(ISNA(HLOOKUP(F$6,Components!$C$12:$AIR$13,2,FALSE)),"",IF(HLOOKUP(F$6,Components!$C$12:$AIR$13,2,FALSE)="","",HLOOKUP(F$6,Components!$C$12:$AIR$13,2,FALSE))) ->  | G13: =IF(ISNA(HLOOKUP(G$6,Components!$C$12:$AIR$13,2,FALSE)),"",IF(HLOOKUP(G$6,Components!$C$12:$AIR$13,2,FALSE)="","",HLOOKUP(G$6,Components!$C$12:$AIR$13,2,FALSE))) ->  | H13: =IF(ISNA(HLOOKUP(H$6,Components!$C$12:$AIR$13,2,FALSE)),"",IF(HLOOKUP(H$6,Components!$C$12:$AIR$13,2,FALSE)="","",HLOOKUP(H$6,Components!$C$12:$AIR$13,2,FALSE))) ->  | I13: =IF(ISNA(HLOOKUP(I$6,Components!$C$12:$AIR$13,2,FALSE)),"",IF(HLOOKUP(I$6,Components!$C$12:$AIR$13,2,FALSE)="","",HLOOKUP(I$6,Components!$C$12:$AIR$13,2,FALSE))) ->  | J13: =IF(ISNA(HLOOKUP(J$6,Components!$C$12:$AIR$13,2,FALSE)),"",IF(HLOOKUP(J$6,Components!$C$12:$AIR$13,2,FALSE)="","",HLOOKUP(J$6,Components!$C$12:$AIR$13,2,FALSE))) ->  | K13: =IF(ISNA(HLOOKUP(K$6,Components!$C$12:$AIR$13,2,FALSE)),"",IF(HLOOKUP(K$6,Components!$C$12:$AIR$13,2,FALSE)="","",HLOOKUP(K$6,Components!$C$12:$AIR$13,2,FALSE))) ->  | L13: =IF(ISNA(HLOOKUP(L$6,Components!$C$12:$AIR$13,2,FALSE)),"",IF(HLOOKUP(L$6,Components!$C$12:$AIR$13,2,FALSE)="","",HLOOKUP(L$6,Components!$C$12:$AIR$13,2,FALSE))) ->  | M13: =IF(ISNA(HLOOKUP(M$6,Components!$C$12:$AIR$13,2,FALSE)),"",IF(HLOOKUP(M$6,Components!$C$12:$AIR$13,2,FALSE)="","",HLOOKUP(M$6,Components!$C$12:$AIR$13,2,FALSE))) ->  | N13: =IF(ISNA(HLOOKUP(N$6,Components!$C$12:$AIR$13,2,FALSE)),"",IF(HLOOKUP(N$6,Components!$C$12:$AIR$13,2,FALSE)="","",HLOOKUP(N$6,Components!$C$12:$AIR$13,2,FALSE))) ->  | O13: =IF(ISNA(HLOOKUP(O$6,Components!$C$12:$AIR$13,2,FALSE)),"",IF(HLOOKUP(O$6,Components!$C$12:$AIR$13,2,FALSE)="","",HLOOKUP(O$6,Components!$C$12:$AIR$13,2,FALSE))) ->  | P13: =IF(ISNA(HLOOKUP(P$6,Components!$C$12:$AIR$13,2,FALSE)),"",IF(HLOOKUP(P$6,Components!$C$12:$AIR$13,2,FALSE)="","",HLOOKUP(P$6,Components!$C$12:$AIR$13,2,FALSE))) ->  | Q13: =IF(ISNA(HLOOKUP(Q$6,Components!$C$12:$AIR$13,2,FALSE)),"",IF(HLOOKUP(Q$6,Components!$C$12:$AIR$13,2,FALSE)="","",HLOOKUP(Q$6,Components!$C$12:$AIR$13,2,FALSE))) ->  | R13: =IF(ISNA(HLOOKUP(R$6,Components!$C$12:$AIR$13,2,FALSE)),"",IF(HLOOKUP(R$6,Components!$C$12:$AIR$13,2,FALSE)="","",HLOOKUP(R$6,Components!$C$12:$AIR$13,2,FALSE))) ->  | S13: =IF(ISNA(HLOOKUP(S$6,Components!$C$12:$AIR$13,2,FALSE)),"",IF(HLOOKUP(S$6,Components!$C$12:$AIR$13,2,FALSE)="","",HLOOKUP(S$6,Components!$C$12:$AIR$13,2,FALSE))) ->  | T13: =IF(ISNA(HLOOKUP(T$6,Components!$C$12:$AIR$13,2,FALSE)),"",IF(HLOOKUP(T$6,Components!$C$12:$AIR$13,2,FALSE)="","",HLOOKUP(T$6,Components!$C$12:$AIR$13,2,FALSE))) ->  | U13: =IF(ISNA(HLOOKUP(U$6,Components!$C$12:$AIR$13,2,FALSE)),"",IF(HLOOKUP(U$6,Components!$C$12:$AIR$13,2,FALSE)="","",HLOOKUP(U$6,Components!$C$12:$AIR$13,2,FALSE))) ->  | V13: =IF(ISNA(HLOOKUP(V$6,Components!$C$12:$AIR$13,2,FALSE)),"",IF(HLOOKUP(V$6,Components!$C$12:$AIR$13,2,FALSE)="","",HLOOKUP(V$6,Components!$C$12:$AIR$13,2,FALSE))) ->  | W13: =IF(ISNA(HLOOKUP(W$6,Components!$C$12:$AIR$13,2,FALSE)),"",IF(HLOOKUP(W$6,Components!$C$12:$AIR$13,2,FALSE)="","",HLOOKUP(W$6,Components!$C$12:$AIR$13,2,FALSE))) ->  | X13: =IF(ISNA(HLOOKUP(X$6,Components!$C$12:$AIR$13,2,FALSE)),"",IF(HLOOKUP(X$6,Components!$C$12:$AIR$13,2,FALSE)="","",HLOOKUP(X$6,Components!$C$12:$AIR$13,2,FALSE))) -> 15446 | Y13: =IF(ISNA(HLOOKUP(Y$6,Components!$C$12:$AIR$13,2,FALSE)),"",IF(HLOOKUP(Y$6,Components!$C$12:$AIR$13,2,FALSE)="","",HLOOKUP(Y$6,Components!$C$12:$AIR$13,2,FALSE))) ->  | Z13: =IF(ISNA(HLOOKUP(Z$6,Components!$C$12:$AIR$13,2,FALSE)),"",IF(HLOOKUP(Z$6,Components!$C$12:$AIR$13,2,FALSE)="","",HLOOKUP(Z$6,Components!$C$12:$AIR$13,2,FALSE))) ->  | AA13: =IF(ISNA(HLOOKUP(AA$6,Components!$C$12:$AIR$13,2,FALSE)),"",IF(HLOOKUP(AA$6,Components!$C$12:$AIR$13,2,FALSE)="","",HLOOKUP(AA$6,Components!$C$12:$AIR$13,2,FALSE))) ->  | AB13: =IF(ISNA(HLOOKUP(AB$6,Components!$C$12:$AIR$13,2,FALSE)),"",IF(HLOOKUP(AB$6,Components!$C$12:$AIR$13,2,FALSE)="","",HLOOKUP(AB$6,Components!$C$12:$AIR$13,2,FALSE))) ->  | AC13: =IF(ISNA(HLOOKUP(AC$6,Components!$C$12:$AIR$13,2,FALSE)),"",IF(HLOOKUP(AC$6,Components!$C$12:$AIR$13,2,FALSE)="","",HLOOKUP(AC$6,Components!$C$12:$AIR$13,2,FALSE))) ->  | AD13: =IF(ISNA(HLOOKUP(AD$6,Components!$C$12:$AIR$13,2,FALSE)),"",IF(HLOOKUP(AD$6,Components!$C$12:$AIR$13,2,FALSE)="","",HLOOKUP(AD$6,Components!$C$12:$AIR$13,2,FALSE))) ->  | AE13: =IF(ISNA(HLOOKUP(AE$6,Components!$C$12:$AIR$13,2,FALSE)),"",IF(HLOOKUP(AE$6,Components!$C$12:$AIR$13,2,FALSE)="","",HLOOKUP(AE$6,Components!$C$12:$AIR$13,2,FALSE))) -> 2802 | AF13: =IF(ISNA(HLOOKUP(AF$6,Components!$C$12:$AIR$13,2,FALSE)),"",IF(HLOOKUP(AF$6,Components!$C$12:$AIR$13,2,FALSE)="","",HLOOKUP(AF$6,Components!$C$12:$AIR$13,2,FALSE))) ->  | AG13: =IF(ISNA(HLOOKUP(AG$6,Components!$C$12:$AIR$13,2,FALSE)),"",IF(HLOOKUP(AG$6,Components!$C$12:$AIR$13,2,FALSE)="","",HLOOKUP(AG$6,Components!$C$12:$AIR$13,2,FALSE))) -> 6500 | AH13: =IF(ISNA(HLOOKUP(AH$6,Components!$C$12:$AIR$13,2,FALSE)),"",IF(HLOOKUP(AH$6,Components!$C$12:$AIR$13,2,FALSE)="","",HLOOKUP(AH$6,Components!$C$12:$AIR$13,2,FALSE))) ->  | AI13: =IF(ISNA(HLOOKUP(AI$6,Components!$C$12:$AIR$13,2,FALSE)),"",IF(HLOOKUP(AI$6,Components!$C$12:$AIR$13,2,FALSE)="","",HLOOKUP(AI$6,Components!$C$12:$AIR$13,2,FALSE))) -> 9902 | AJ13: =IF(ISNA(HLOOKUP(AJ$6,Components!$C$12:$AIR$13,2,FALSE)),"",IF(HLOOKUP(AJ$6,Components!$C$12:$AIR$13,2,FALSE)="","",HLOOKUP(AJ$6,Components!$C$12:$AIR$13,2,FALSE))) ->  | AK13: =IF(ISNA(HLOOKUP(AK$6,Components!$C$12:$AIR$13,2,FALSE)),"",IF(HLOOKUP(AK$6,Components!$C$12:$AIR$13,2,FALSE)="","",HLOOKUP(AK$6,Components!$C$12:$AIR$13,2,FALSE))) ->  | AL13: =IF(ISNA(HLOOKUP(AL$6,Components!$C$12:$AIR$13,2,FALSE)),"",IF(HLOOKUP(AL$6,Components!$C$12:$AIR$13,2,FALSE)="","",HLOOKUP(AL$6,Components!$C$12:$AIR$13,2,FALSE))) ->  | AM13: =IF(ISNA(HLOOKUP(AM$6,Components!$C$12:$AIR$13,2,FALSE)),"",IF(HLOOKUP(AM$6,Components!$C$12:$AIR$13,2,FALSE)="","",HLOOKUP(AM$6,Components!$C$12:$AIR$13,2,FALSE))) ->  | AN13: =IF(ISNA(HLOOKUP(AN$6,Components!$C$12:$AIR$13,2,FALSE)),"",IF(HLOOKUP(AN$6,Components!$C$12:$AIR$13,2,FALSE)="","",HLOOKUP(AN$6,Components!$C$12:$AIR$13,2,FALSE))) ->  | AO13: =IF(ISNA(HLOOKUP(AO$6,Components!$C$12:$AIR$13,2,FALSE)),"",IF(HLOOKUP(AO$6,Components!$C$12:$AIR$13,2,FALSE)="","",HLOOKUP(AO$6,Components!$C$12:$AIR$13,2,FALSE))) ->  | AP13: =IF(ISNA(HLOOKUP(AP$6,Components!$C$12:$AIR$13,2,FALSE)),"",IF(HLOOKUP(AP$6,Components!$C$12:$AIR$13,2,FALSE)="","",HLOOKUP(AP$6,Components!$C$12:$AIR$13,2,FALSE))) ->  | AQ13: =IF(ISNA(HLOOKUP(AQ$6,Components!$C$12:$AIR$13,2,FALSE)),"",IF(HLOOKUP(AQ$6,Components!$C$12:$AIR$13,2,FALSE)="","",HLOOKUP(AQ$6,Components!$C$12:$AIR$13,2,FALSE))) ->  | AR13: =IF(ISNA(HLOOKUP(AR$6,Components!$C$12:$AIR$13,2,FALSE)),"",IF(HLOOKUP(AR$6,Components!$C$12:$AIR$13,2,FALSE)="","",HLOOKUP(AR$6,Components!$C$12:$AIR$13,2,FALSE))) ->  | AS13: =IF(ISNA(HLOOKUP(AS$6,Components!$C$12:$AIR$13,2,FALSE)),"",IF(HLOOKUP(AS$6,Components!$C$12:$AIR$13,2,FALSE)="","",HLOOKUP(AS$6,Components!$C$12:$AIR$13,2,FALSE))) ->  | AT13: =IF(ISNA(HLOOKUP(AT$6,Components!$C$12:$AIR$13,2,FALSE)),"",IF(HLOOKUP(AT$6,Components!$C$12:$AIR$13,2,FALSE)="","",HLOOKUP(AT$6,Components!$C$12:$AIR$13,2,FALSE))) ->  | AU13: =IF(ISNA(HLOOKUP(AU$6,Components!$C$12:$AIR$13,2,FALSE)),"",IF(HLOOKUP(AU$6,Components!$C$12:$AIR$13,2,FALSE)="","",HLOOKUP(AU$6,Components!$C$12:$AIR$13,2,FALSE))) ->  | AV13: =IF(ISNA(HLOOKUP(AV$6,Components!$C$12:$AIR$13,2,FALSE)),"",IF(HLOOKUP(AV$6,Components!$C$12:$AIR$13,2,FALSE)="","",HLOOKUP(AV$6,Components!$C$12:$AIR$13,2,FALSE))) ->  | AW13: =IF(ISNA(HLOOKUP(AW$6,Components!$C$12:$AIR$13,2,FALSE)),"",IF(HLOOKUP(AW$6,Components!$C$12:$AIR$13,2,FALSE)="","",HLOOKUP(AW$6,Components!$C$12:$AIR$13,2,FALSE))) ->  | AX13: =IF(ISNA(HLOOKUP(AX$6,Components!$C$12:$AIR$13,2,FALSE)),"",IF(HLOOKUP(AX$6,Components!$C$12:$AIR$13,2,FALSE)="","",HLOOKUP(AX$6,Components!$C$12:$AIR$13,2,FALSE))) ->  | AY13: =IF(ISNA(HLOOKUP(AY$6,Components!$C$12:$AIR$13,2,FALSE)),"",IF(HLOOKUP(AY$6,Components!$C$12:$AIR$13,2,FALSE)="","",HLOOKUP(AY$6,Components!$C$12:$AIR$13,2,FALSE))) ->  | AZ13: =IF(ISNA(HLOOKUP(AZ$6,Components!$C$12:$AIR$13,2,FALSE)),"",IF(HLOOKUP(AZ$6,Components!$C$12:$AIR$13,2,FALSE)="","",HLOOKUP(AZ$6,Components!$C$12:$AIR$13,2,FALSE))) ->  | BA13: =IF(ISNA(HLOOKUP(BA$6,Components!$C$12:$AIR$13,2,FALSE)),"",IF(HLOOKUP(BA$6,Components!$C$12:$AIR$13,2,FALSE)="","",HLOOKUP(BA$6,Components!$C$12:$AIR$13,2,FALSE))) ->  | BB13: =IF(ISNA(HLOOKUP(BB$6,Components!$C$12:$AIR$13,2,FALSE)),"",IF(HLOOKUP(BB$6,Components!$C$12:$AIR$13,2,FALSE)="","",HLOOKUP(BB$6,Components!$C$12:$AIR$13,2,FALSE))) ->  | BC13: =IF(ISNA(HLOOKUP(BC$6,Components!$C$12:$AIR$13,2,FALSE)),"",IF(HLOOKUP(BC$6,Components!$C$12:$AIR$13,2,FALSE)="","",HLOOKUP(BC$6,Components!$C$12:$AIR$13,2,FALSE))) ->  | BD13: =IF(ISNA(HLOOKUP(BD$6,Components!$C$12:$AIR$13,2,FALSE)),"",IF(HLOOKUP(BD$6,Components!$C$12:$AIR$13,2,FALSE)="","",HLOOKUP(BD$6,Components!$C$12:$AIR$13,2,FALSE))) ->  | BE13: =IF(ISNA(HLOOKUP(BE$6,Components!$C$12:$AIR$13,2,FALSE)),"",IF(HLOOKUP(BE$6,Components!$C$12:$AIR$13,2,FALSE)="","",HLOOKUP(BE$6,Components!$C$12:$AIR$13,2,FALSE))) ->  | BF13: =IF(ISNA(HLOOKUP(BF$6,Components!$C$12:$AIR$13,2,FALSE)),"",IF(HLOOKUP(BF$6,Components!$C$12:$AIR$13,2,FALSE)="","",HLOOKUP(BF$6,Components!$C$12:$AIR$13,2,FALSE))) ->  | BG13: =IF(ISNA(HLOOKUP(BG$6,Components!$C$12:$AIR$13,2,FALSE)),"",IF(HLOOKUP(BG$6,Components!$C$12:$AIR$13,2,FALSE)="","",HLOOKUP(BG$6,Components!$C$12:$AIR$13,2,FALSE))) ->  | BH13: =IF(ISNA(HLOOKUP(BH$6,Components!$C$12:$AIR$13,2,FALSE)),"",IF(HLOOKUP(BH$6,Components!$C$12:$AIR$13,2,FALSE)="","",HLOOKUP(BH$6,Components!$C$12:$AIR$13,2,FALSE))) ->  | BI13: =IF(ISNA(HLOOKUP(BI$6,Components!$C$12:$AIR$13,2,FALSE)),"",IF(HLOOKUP(BI$6,Components!$C$12:$AIR$13,2,FALSE)="","",HLOOKUP(BI$6,Components!$C$12:$AIR$13,2,FALSE))) -> TRUE | BJ13: =IF(ISNA(HLOOKUP(BJ$6,Components!$C$12:$AIR$13,2,FALSE)),"",IF(HLOOKUP(BJ$6,Components!$C$12:$AIR$13,2,FALSE)="","",HLOOKUP(BJ$6,Components!$C$12:$AIR$13,2,FALSE))) -> 2718 | BK13: =IF(ISNA(HLOOKUP(BK$6,Components!$C$12:$AIR$13,2,FALSE)),"",IF(HLOOKUP(BK$6,Components!$C$12:$AIR$13,2,FALSE)="","",HLOOKUP(BK$6,Components!$C$12:$AIR$13,2,FALSE))) -> 3427.6 | BL13: =IF(ISNA(HLOOKUP(BL$6,Components!$C$12:$AIR$13,2,FALSE)),"",IF(HLOOKUP(BL$6,Components!$C$12:$AIR$13,2,FALSE)="","",HLOOKUP(BL$6,Components!$C$12:$AIR$13,2,FALSE))) -> 17138 | BM13: =IF(ISNA(HLOOKUP(BM$6,Components!$C$12:$AIR$13,2,FALSE)),"",IF(HLOOKUP(BM$6,Components!$C$12:$AIR$13,2,FALSE)="","",HLOOKUP(BM$6,Components!$C$12:$AIR$13,2,FALSE))) -> 12948 | BN13: =IF(ISNA(HLOOKUP(BN$6,Components!$C$12:$AIR$13,2,FALSE)),"",IF(HLOOKUP(BN$6,Components!$C$12:$AIR$13,2,FALSE)="","",HLOOKUP(BN$6,Components!$C$12:$AIR$13,2,FALSE))) ->  | BO13: =IF(ISNA(HLOOKUP(BO$6,Components!$C$12:$AIR$13,2,FALSE)),"",IF(HLOOKUP(BO$6,Components!$C$12:$AIR$13,2,FALSE)="","",HLOOKUP(BO$6,Components!$C$12:$AIR$13,2,FALSE))) -> 1077.92 | BP13: =IF(ISNA(HLOOKUP(BP$6,Components!$C$12:$AIR$13,2,FALSE)),"",IF(HLOOKUP(BP$6,Components!$C$12:$AIR$13,2,FALSE)="","",HLOOKUP(BP$6,Components!$C$12:$AIR$13,2,FALSE))) -> 5389.7 | BQ13: =IF(ISNA(HLOOKUP(BQ$6,Components!$C$12:$AIR$13,2,FALSE)),"",IF(HLOOKUP(BQ$6,Components!$C$12:$AIR$13,2,FALSE)="","",HLOOKUP(BQ$6,Components!$C$12:$AIR$13,2,FALSE))) -> 29491.11 | BR13: =IF(ISNA(HLOOKUP(BR$6,Components!$C$12:$AIR$13,2,FALSE)),"",IF(HLOOKUP(BR$6,Components!$C$12:$AIR$13,2,FALSE)="","",HLOOKUP(BR$6,Components!$C$12:$AIR$13,2,FALSE))) ->  | BS13: =IF(ISNA(HLOOKUP(BS$6,Components!$C$12:$AIR$13,2,FALSE)),"",IF(HLOOKUP(BS$6,Components!$C$12:$AIR$13,2,FALSE)="","",HLOOKUP(BS$6,Components!$C$12:$AIR$13,2,FALSE))) -> 3406.66 | BT13: =IF(ISNA(HLOOKUP(BT$6,Components!$C$12:$AIR$13,2,FALSE)),"",IF(HLOOKUP(BT$6,Components!$C$12:$AIR$13,2,FALSE)="","",HLOOKUP(BT$6,Components!$C$12:$AIR$13,2,FALSE))) ->  | BU13: =IF(ISNA(HLOOKUP(BU$6,Components!$C$12:$AIR$13,2,FALSE)),"",IF(HLOOKUP(BU$6,Components!$C$12:$AIR$13,2,FALSE)="","",HLOOKUP(BU$6,Components!$C$12:$AIR$13,2,FALSE))) ->  | BV13: =IF(ISNA(HLOOKUP(BV$6,Components!$C$12:$AIR$13,2,FALSE)),"",IF(HLOOKUP(BV$6,Components!$C$12:$AIR$13,2,FALSE)="","",HLOOKUP(BV$6,Components!$C$12:$AIR$13,2,FALSE))) ->  | BW13: =IF(ISNA(HLOOKUP(BW$6,Components!$C$12:$AIR$13,2,FALSE)),"",IF(HLOOKUP(BW$6,Components!$C$12:$AIR$13,2,FALSE)="","",HLOOKUP(BW$6,Components!$C$12:$AIR$13,2,FALSE))) ->  | BX13: =IF(ISNA(HLOOKUP(BX$6,Components!$C$12:$AIR$13,2,FALSE)),"",IF(HLOOKUP(BX$6,Components!$C$12:$AIR$13,2,FALSE)="","",HLOOKUP(BX$6,Components!$C$12:$AIR$13,2,FALSE))) ->  | BY13: =IF(ISNA(HLOOKUP(BY$6,Components!$C$12:$AIR$13,2,FALSE)),"",IF(HLOOKUP(BY$6,Components!$C$12:$AIR$13,2,FALSE)="","",HLOOKUP(BY$6,Components!$C$12:$AIR$13,2,FALSE))) ->  | BZ13: =IF(ISNA(HLOOKUP(BZ$6,Components!$C$12:$AIR$13,2,FALSE)),"",IF(HLOOKUP(BZ$6,Components!$C$12:$AIR$13,2,FALSE)="","",HLOOKUP(BZ$6,Components!$C$12:$AIR$13,2,FALSE))) ->  | CA13: =IF(ISNA(HLOOKUP(CA$6,Components!$C$12:$AIR$13,2,FALSE)),"",IF(HLOOKUP(CA$6,Components!$C$12:$AIR$13,2,FALSE)="","",HLOOKUP(CA$6,Components!$C$12:$AIR$13,2,FALSE))) ->  | CB13: =IF(ISNA(HLOOKUP(CB$6,Components!$C$12:$AIR$13,2,FALSE)),"",IF(HLOOKUP(CB$6,Components!$C$12:$AIR$13,2,FALSE)="","",HLOOKUP(CB$6,Components!$C$12:$AIR$13,2,FALSE))) ->  | CC13: =IF(ISNA(HLOOKUP(CC$6,Components!$C$12:$AIR$13,2,FALSE)),"",IF(HLOOKUP(CC$6,Components!$C$12:$AIR$13,2,FALSE)="","",HLOOKUP(CC$6,Components!$C$12:$AIR$13,2,FALSE))) -> 1000 | CD13: =IF(ISNA(HLOOKUP(CD$6,Components!$C$12:$AIR$13,2,FALSE)),"",IF(HLOOKUP(CD$6,Components!$C$12:$AIR$13,2,FALSE)="","",HLOOKUP(CD$6,Components!$C$12:$AIR$13,2,FALSE))) ->  | CE13: =IF(ISNA(HLOOKUP(CE$6,Components!$C$12:$AIR$13,2,FALSE)),"",IF(HLOOKUP(CE$6,Components!$C$12:$AIR$13,2,FALSE)="","",HLOOKUP(CE$6,Components!$C$12:$AIR$13,2,FALSE))) ->  | CF13: =IF(ISNA(HLOOKUP(CF$6,Components!$C$12:$AIR$13,2,FALSE)),"",IF(HLOOKUP(CF$6,Components!$C$12:$AIR$13,2,FALSE)="","",HLOOKUP(CF$6,Components!$C$12:$AIR$13,2,FALSE))) ->  | CG13: =IF(ISNA(HLOOKUP(CG$6,Components!$C$12:$AIR$13,2,FALSE)),"",IF(HLOOKUP(CG$6,Components!$C$12:$AIR$13,2,FALSE)="","",HLOOKUP(CG$6,Components!$C$12:$AIR$13,2,FALSE))) ->  | CH13: =IF(ISNA(HLOOKUP(CH$6,Components!$C$12:$AIR$13,2,FALSE)),"",IF(HLOOKUP(CH$6,Components!$C$12:$AIR$13,2,FALSE)="","",HLOOKUP(CH$6,Components!$C$12:$AIR$13,2,FALSE))) ->  | CI13: =IF(ISNA(HLOOKUP(CI$6,Components!$C$12:$AIR$13,2,FALSE)),"",IF(HLOOKUP(CI$6,Components!$C$12:$AIR$13,2,FALSE)="","",HLOOKUP(CI$6,Components!$C$12:$AIR$13,2,FALSE))) ->  | CJ13: =IF(ISNA(HLOOKUP(CJ$6,Components!$C$12:$AIR$13,2,FALSE)),"",IF(HLOOKUP(CJ$6,Components!$C$12:$AIR$13,2,FALSE)="","",HLOOKUP(CJ$6,Components!$C$12:$AIR$13,2,FALSE))) ->  | CK13: =IF(ISNA(HLOOKUP(CK$6,Components!$C$12:$AIR$13,2,FALSE)),"",IF(HLOOKUP(CK$6,Components!$C$12:$AIR$13,2,FALSE)="","",HLOOKUP(CK$6,Components!$C$12:$AIR$13,2,FALSE))) ->  | CL13: =IF(ISNA(HLOOKUP(CL$6,Components!$C$12:$AIR$13,2,FALSE)),"",IF(HLOOKUP(CL$6,Components!$C$12:$AIR$13,2,FALSE)="","",HLOOKUP(CL$6,Components!$C$12:$AIR$13,2,FALSE))) -> 1000 | CM13: =IF(ISNA(HLOOKUP(CM$6,Components!$C$12:$AIR$13,2,FALSE)),"",IF(HLOOKUP(CM$6,Components!$C$12:$AIR$13,2,FALSE)="","",HLOOKUP(CM$6,Components!$C$12:$AIR$13,2,FALSE))) ->  | CN13: =IF(ISNA(HLOOKUP(CN$6,Components!$C$12:$AIR$13,2,FALSE)),"",IF(HLOOKUP(CN$6,Components!$C$12:$AIR$13,2,FALSE)="","",HLOOKUP(CN$6,Components!$C$12:$AIR$13,2,FALSE))) ->  | CO13: =IF(ISNA(HLOOKUP(CO$6,Components!$C$12:$AIR$13,2,FALSE)),"",IF(HLOOKUP(CO$6,Components!$C$12:$AIR$13,2,FALSE)="","",HLOOKUP(CO$6,Components!$C$12:$AIR$13,2,FALSE))) ->  | CP13: =IF(ISNA(HLOOKUP(CP$6,Components!$C$12:$AIR$13,2,FALSE)),"",IF(HLOOKUP(CP$6,Components!$C$12:$AIR$13,2,FALSE)="","",HLOOKUP(CP$6,Components!$C$12:$AIR$13,2,FALSE))) -> 190 | CQ13: =IF(ISNA(HLOOKUP(CQ$6,Components!$C$12:$AIR$13,2,FALSE)),"",IF(HLOOKUP(CQ$6,Components!$C$12:$AIR$13,2,FALSE)="","",HLOOKUP(CQ$6,Components!$C$12:$AIR$13,2,FALSE))) -> 190 | CR13: =IF(ISNA(HLOOKUP(CR$6,Components!$C$12:$AIR$13,2,FALSE)),"",IF(HLOOKUP(CR$6,Components!$C$12:$AIR$13,2,FALSE)="","",HLOOKUP(CR$6,Components!$C$12:$AIR$13,2,FALSE))) ->  | CS13: =IF(ISNA(HLOOKUP(CS$6,Components!$C$12:$AIR$13,2,FALSE)),"",IF(HLOOKUP(CS$6,Components!$C$12:$AIR$13,2,FALSE)="","",HLOOKUP(CS$6,Components!$C$12:$AIR$13,2,FALSE))) ->  | CT13: =IF(ISNA(HLOOKUP(CT$6,Components!$C$12:$AIR$13,2,FALSE)),"",IF(HLOOKUP(CT$6,Components!$C$12:$AIR$13,2,FALSE)="","",HLOOKUP(CT$6,Components!$C$12:$AIR$13,2,FALSE))) -> 1500 | CU13: =IF(ISNA(HLOOKUP(CU$6,Components!$C$12:$AIR$13,2,FALSE)),"",IF(HLOOKUP(CU$6,Components!$C$12:$AIR$13,2,FALSE)="","",HLOOKUP(CU$6,Components!$C$12:$AIR$13,2,FALSE))) -> 1500 | CV13: =IF(ISNA(HLOOKUP(CV$6,Components!$C$12:$AIR$13,2,FALSE)),"",IF(HLOOKUP(CV$6,Components!$C$12:$AIR$13,2,FALSE)="","",HLOOKUP(CV$6,Components!$C$12:$AIR$13,2,FALSE))) -> 1000 | CW13: =IF(ISNA(HLOOKUP(CW$6,Components!$C$12:$AIR$13,2,FALSE)),"",IF(HLOOKUP(CW$6,Components!$C$12:$AIR$13,2,FALSE)="","",HLOOKUP(CW$6,Components!$C$12:$AIR$13,2,FALSE))) -> 1000 | CX13: =IF(ISNA(HLOOKUP(CX$6,Components!$C$12:$AIR$13,2,FALSE)),"",IF(HLOOKUP(CX$6,Components!$C$12:$AIR$13,2,FALSE)="","",HLOOKUP(CX$6,Components!$C$12:$AIR$13,2,FALSE))) -> 1000 | CY13: =IF(ISNA(HLOOKUP(CY$6,Components!$C$12:$AIR$13,2,FALSE)),"",IF(HLOOKUP(CY$6,Components!$C$12:$AIR$13,2,FALSE)="","",HLOOKUP(CY$6,Components!$C$12:$AIR$13,2,FALSE))) -> 1000 | CZ13: =IF(ISNA(HLOOKUP(CZ$6,Components!$C$12:$AIR$13,2,FALSE)),"",IF(HLOOKUP(CZ$6,Components!$C$12:$AIR$13,2,FALSE)="","",HLOOKUP(CZ$6,Components!$C$12:$AIR$13,2,FALSE))) -> 1000 | DA13: =IF(ISNA(HLOOKUP(DA$6,Components!$C$12:$AIR$13,2,FALSE)),"",IF(HLOOKUP(DA$6,Components!$C$12:$AIR$13,2,FALSE)="","",HLOOKUP(DA$6,Components!$C$12:$AIR$13,2,FALSE))) -> 1456 | DB13: =IF(ISNA(HLOOKUP(DB$6,Components!$C$12:$AIR$13,2,FALSE)),"",IF(HLOOKUP(DB$6,Components!$C$12:$AIR$13,2,FALSE)="","",HLOOKUP(DB$6,Components!$C$12:$AIR$13,2,FALSE))) -> TRUE | DC13: =IF(ISNA(HLOOKUP(DC$6,Components!$C$12:$AIR$13,2,FALSE)),"",IF(HLOOKUP(DC$6,Components!$C$12:$AIR$13,2,FALSE)="","",HLOOKUP(DC$6,Components!$C$12:$AIR$13,2,FALSE))) -> 40504.48 | DD13: =IF(ISNA(HLOOKUP(DD$6,Components!$C$12:$AIR$13,2,FALSE)),"",IF(HLOOKUP(DD$6,Components!$C$12:$AIR$13,2,FALSE)="","",HLOOKUP(DD$6,Components!$C$12:$AIR$13,2,FALSE))) ->  | DE13: =IF(ISNA(HLOOKUP(DE$6,Components!$C$12:$AIR$13,2,FALSE)),"",IF(HLOOKUP(DE$6,Components!$C$12:$AIR$13,2,FALSE)="","",HLOOKUP(DE$6,Components!$C$12:$AIR$13,2,FALSE))) ->  | DF13: =IF(ISNA(HLOOKUP(DF$6,Components!$C$12:$AIR$13,2,FALSE)),"",IF(HLOOKUP(DF$6,Components!$C$12:$AIR$13,2,FALSE)="","",HLOOKUP(DF$6,Components!$C$12:$AIR$13,2,FALSE))) ->  | DG13: =IF(ISNA(HLOOKUP(DG$6,Components!$C$12:$AIR$13,2,FALSE)),"",IF(HLOOKUP(DG$6,Components!$C$12:$AIR$13,2,FALSE)="","",HLOOKUP(DG$6,Components!$C$12:$AIR$13,2,FALSE))) ->  | DH13: =IF(ISNA(HLOOKUP(DH$6,Components!$C$12:$AIR$13,2,FALSE)),"",IF(HLOOKUP(DH$6,Components!$C$12:$AIR$13,2,FALSE)="","",HLOOKUP(DH$6,Components!$C$12:$AIR$13,2,FALSE))) ->  | DI13: =IF(ISNA(HLOOKUP(DI$6,Components!$C$12:$AIR$13,2,FALSE)),"",IF(HLOOKUP(DI$6,Components!$C$12:$AIR$13,2,FALSE)="","",HLOOKUP(DI$6,Components!$C$12:$AIR$13,2,FALSE))) ->  | DJ13: =IF(ISNA(HLOOKUP(DJ$6,Components!$C$12:$AIR$13,2,FALSE)),"",IF(HLOOKUP(DJ$6,Components!$C$12:$AIR$13,2,FALSE)="","",HLOOKUP(DJ$6,Components!$C$12:$AIR$13,2,FALSE))) ->  | DK13: =IF(ISNA(HLOOKUP(DK$6,Components!$C$12:$AIR$13,2,FALSE)),"",IF(HLOOKUP(DK$6,Components!$C$12:$AIR$13,2,FALSE)="","",HLOOKUP(DK$6,Components!$C$12:$AIR$13,2,FALSE))) ->  | DL13: =IF(ISNA(HLOOKUP(DL$6,Components!$C$12:$AIR$13,2,FALSE)),"",IF(HLOOKUP(DL$6,Components!$C$12:$AIR$13,2,FALSE)="","",HLOOKUP(DL$6,Components!$C$12:$AIR$13,2,FALSE))) ->  | DM13: =IF(ISNA(HLOOKUP(DM$6,Components!$C$12:$AIR$13,2,FALSE)),"",IF(HLOOKUP(DM$6,Components!$C$12:$AIR$13,2,FALSE)="","",HLOOKUP(DM$6,Components!$C$12:$AIR$13,2,FALSE))) ->  | DN13: =IF(ISNA(HLOOKUP(DN$6,Components!$C$12:$AIR$13,2,FALSE)),"",IF(HLOOKUP(DN$6,Components!$C$12:$AIR$13,2,FALSE)="","",HLOOKUP(DN$6,Components!$C$12:$AIR$13,2,FALSE))) ->  | DO13: =IF(ISNA(HLOOKUP(DO$6,Components!$C$12:$AIR$13,2,FALSE)),"",IF(HLOOKUP(DO$6,Components!$C$12:$AIR$13,2,FALSE)="","",HLOOKUP(DO$6,Components!$C$12:$AIR$13,2,FALSE))) ->  | DP13: =IF(ISNA(HLOOKUP(DP$6,Components!$C$12:$AIR$13,2,FALSE)),"",IF(HLOOKUP(DP$6,Components!$C$12:$AIR$13,2,FALSE)="","",HLOOKUP(DP$6,Components!$C$12:$AIR$13,2,FALSE))) ->  | DQ13: =IF(ISNA(HLOOKUP(DQ$6,Components!$C$12:$AIR$13,2,FALSE)),"",IF(HLOOKUP(DQ$6,Components!$C$12:$AIR$13,2,FALSE)="","",HLOOKUP(DQ$6,Components!$C$12:$AIR$13,2,FALSE))) ->  | DR13: =IF(ISNA(HLOOKUP(DR$6,Components!$C$12:$AIR$13,2,FALSE)),"",IF(HLOOKUP(DR$6,Components!$C$12:$AIR$13,2,FALSE)="","",HLOOKUP(DR$6,Components!$C$12:$AIR$13,2,FALSE))) -> 
A14: 7 | B14: Calc Type - other trustee (non-trust rate) Q2 (Pship) Q5 (CG) Res prop (TC1), Other prop, assets or gains (TC2) componets for 5.41EG, 5,41QG and 5.41QL Q8.15 (Special trust rates - No) 9A.1 (amt of SRB) - 1000 No POA as IT liability <1000, balance is CGT | D14: 30985.8 | E14: 0 | F14: =IF(ISNA(HLOOKUP(F$6,Components!$C$14:$AIR$15,2,FALSE)),"",IF(HLOOKUP(F$6,Components!$C$14:$AIR$15,2,FALSE)="","",HLOOKUP(F$6,Components!$C$14:$AIR$15,2,FALSE))) ->  | G14: =IF(ISNA(HLOOKUP(G$6,Components!$C$14:$AIR$15,2,FALSE)),"",IF(HLOOKUP(G$6,Components!$C$14:$AIR$15,2,FALSE)="","",HLOOKUP(G$6,Components!$C$14:$AIR$15,2,FALSE))) ->  | H14: =IF(ISNA(HLOOKUP(H$6,Components!$C$14:$AIR$15,2,FALSE)),"",IF(HLOOKUP(H$6,Components!$C$14:$AIR$15,2,FALSE)="","",HLOOKUP(H$6,Components!$C$14:$AIR$15,2,FALSE))) ->  | I14: =IF(ISNA(HLOOKUP(I$6,Components!$C$14:$AIR$15,2,FALSE)),"",IF(HLOOKUP(I$6,Components!$C$14:$AIR$15,2,FALSE)="","",HLOOKUP(I$6,Components!$C$14:$AIR$15,2,FALSE))) ->  | J14: =IF(ISNA(HLOOKUP(J$6,Components!$C$14:$AIR$15,2,FALSE)),"",IF(HLOOKUP(J$6,Components!$C$14:$AIR$15,2,FALSE)="","",HLOOKUP(J$6,Components!$C$14:$AIR$15,2,FALSE))) ->  | K14: =IF(ISNA(HLOOKUP(K$6,Components!$C$14:$AIR$15,2,FALSE)),"",IF(HLOOKUP(K$6,Components!$C$14:$AIR$15,2,FALSE)="","",HLOOKUP(K$6,Components!$C$14:$AIR$15,2,FALSE))) ->  | L14: =IF(ISNA(HLOOKUP(L$6,Components!$C$14:$AIR$15,2,FALSE)),"",IF(HLOOKUP(L$6,Components!$C$14:$AIR$15,2,FALSE)="","",HLOOKUP(L$6,Components!$C$14:$AIR$15,2,FALSE))) ->  | M14: =IF(ISNA(HLOOKUP(M$6,Components!$C$14:$AIR$15,2,FALSE)),"",IF(HLOOKUP(M$6,Components!$C$14:$AIR$15,2,FALSE)="","",HLOOKUP(M$6,Components!$C$14:$AIR$15,2,FALSE))) ->  | N14: =IF(ISNA(HLOOKUP(N$6,Components!$C$14:$AIR$15,2,FALSE)),"",IF(HLOOKUP(N$6,Components!$C$14:$AIR$15,2,FALSE)="","",HLOOKUP(N$6,Components!$C$14:$AIR$15,2,FALSE))) ->  | O14: =IF(ISNA(HLOOKUP(O$6,Components!$C$14:$AIR$15,2,FALSE)),"",IF(HLOOKUP(O$6,Components!$C$14:$AIR$15,2,FALSE)="","",HLOOKUP(O$6,Components!$C$14:$AIR$15,2,FALSE))) ->  | P14: =IF(ISNA(HLOOKUP(P$6,Components!$C$14:$AIR$15,2,FALSE)),"",IF(HLOOKUP(P$6,Components!$C$14:$AIR$15,2,FALSE)="","",HLOOKUP(P$6,Components!$C$14:$AIR$15,2,FALSE))) ->  | Q14: =IF(ISNA(HLOOKUP(Q$6,Components!$C$14:$AIR$15,2,FALSE)),"",IF(HLOOKUP(Q$6,Components!$C$14:$AIR$15,2,FALSE)="","",HLOOKUP(Q$6,Components!$C$14:$AIR$15,2,FALSE))) ->  | R14: =IF(ISNA(HLOOKUP(R$6,Components!$C$14:$AIR$15,2,FALSE)),"",IF(HLOOKUP(R$6,Components!$C$14:$AIR$15,2,FALSE)="","",HLOOKUP(R$6,Components!$C$14:$AIR$15,2,FALSE))) -> 2050 | S14: =IF(ISNA(HLOOKUP(S$6,Components!$C$14:$AIR$15,2,FALSE)),"",IF(HLOOKUP(S$6,Components!$C$14:$AIR$15,2,FALSE)="","",HLOOKUP(S$6,Components!$C$14:$AIR$15,2,FALSE))) ->  | T14: =IF(ISNA(HLOOKUP(T$6,Components!$C$14:$AIR$15,2,FALSE)),"",IF(HLOOKUP(T$6,Components!$C$14:$AIR$15,2,FALSE)="","",HLOOKUP(T$6,Components!$C$14:$AIR$15,2,FALSE))) ->  | U14: =IF(ISNA(HLOOKUP(U$6,Components!$C$14:$AIR$15,2,FALSE)),"",IF(HLOOKUP(U$6,Components!$C$14:$AIR$15,2,FALSE)="","",HLOOKUP(U$6,Components!$C$14:$AIR$15,2,FALSE))) ->  | V14: =IF(ISNA(HLOOKUP(V$6,Components!$C$14:$AIR$15,2,FALSE)),"",IF(HLOOKUP(V$6,Components!$C$14:$AIR$15,2,FALSE)="","",HLOOKUP(V$6,Components!$C$14:$AIR$15,2,FALSE))) ->  | W14: =IF(ISNA(HLOOKUP(W$6,Components!$C$14:$AIR$15,2,FALSE)),"",IF(HLOOKUP(W$6,Components!$C$14:$AIR$15,2,FALSE)="","",HLOOKUP(W$6,Components!$C$14:$AIR$15,2,FALSE))) ->  | X14: =IF(ISNA(HLOOKUP(X$6,Components!$C$14:$AIR$15,2,FALSE)),"",IF(HLOOKUP(X$6,Components!$C$14:$AIR$15,2,FALSE)="","",HLOOKUP(X$6,Components!$C$14:$AIR$15,2,FALSE))) ->  | Y14: =IF(ISNA(HLOOKUP(Y$6,Components!$C$14:$AIR$15,2,FALSE)),"",IF(HLOOKUP(Y$6,Components!$C$14:$AIR$15,2,FALSE)="","",HLOOKUP(Y$6,Components!$C$14:$AIR$15,2,FALSE))) ->  | Z14: =IF(ISNA(HLOOKUP(Z$6,Components!$C$14:$AIR$15,2,FALSE)),"",IF(HLOOKUP(Z$6,Components!$C$14:$AIR$15,2,FALSE)="","",HLOOKUP(Z$6,Components!$C$14:$AIR$15,2,FALSE))) ->  | AA14: =IF(ISNA(HLOOKUP(AA$6,Components!$C$14:$AIR$15,2,FALSE)),"",IF(HLOOKUP(AA$6,Components!$C$14:$AIR$15,2,FALSE)="","",HLOOKUP(AA$6,Components!$C$14:$AIR$15,2,FALSE))) ->  | AB14: =IF(ISNA(HLOOKUP(AB$6,Components!$C$14:$AIR$15,2,FALSE)),"",IF(HLOOKUP(AB$6,Components!$C$14:$AIR$15,2,FALSE)="","",HLOOKUP(AB$6,Components!$C$14:$AIR$15,2,FALSE))) ->  | AC14: =IF(ISNA(HLOOKUP(AC$6,Components!$C$14:$AIR$15,2,FALSE)),"",IF(HLOOKUP(AC$6,Components!$C$14:$AIR$15,2,FALSE)="","",HLOOKUP(AC$6,Components!$C$14:$AIR$15,2,FALSE))) ->  | AD14: =IF(ISNA(HLOOKUP(AD$6,Components!$C$14:$AIR$15,2,FALSE)),"",IF(HLOOKUP(AD$6,Components!$C$14:$AIR$15,2,FALSE)="","",HLOOKUP(AD$6,Components!$C$14:$AIR$15,2,FALSE))) ->  | AE14: =IF(ISNA(HLOOKUP(AE$6,Components!$C$14:$AIR$15,2,FALSE)),"",IF(HLOOKUP(AE$6,Components!$C$14:$AIR$15,2,FALSE)="","",HLOOKUP(AE$6,Components!$C$14:$AIR$15,2,FALSE))) ->  | AF14: =IF(ISNA(HLOOKUP(AF$6,Components!$C$14:$AIR$15,2,FALSE)),"",IF(HLOOKUP(AF$6,Components!$C$14:$AIR$15,2,FALSE)="","",HLOOKUP(AF$6,Components!$C$14:$AIR$15,2,FALSE))) ->  | AG14: =IF(ISNA(HLOOKUP(AG$6,Components!$C$14:$AIR$15,2,FALSE)),"",IF(HLOOKUP(AG$6,Components!$C$14:$AIR$15,2,FALSE)="","",HLOOKUP(AG$6,Components!$C$14:$AIR$15,2,FALSE))) ->  | AH14: =IF(ISNA(HLOOKUP(AH$6,Components!$C$14:$AIR$15,2,FALSE)),"",IF(HLOOKUP(AH$6,Components!$C$14:$AIR$15,2,FALSE)="","",HLOOKUP(AH$6,Components!$C$14:$AIR$15,2,FALSE))) ->  | AI14: =IF(ISNA(HLOOKUP(AI$6,Components!$C$14:$AIR$15,2,FALSE)),"",IF(HLOOKUP(AI$6,Components!$C$14:$AIR$15,2,FALSE)="","",HLOOKUP(AI$6,Components!$C$14:$AIR$15,2,FALSE))) ->  | AJ14: =IF(ISNA(HLOOKUP(AJ$6,Components!$C$14:$AIR$15,2,FALSE)),"",IF(HLOOKUP(AJ$6,Components!$C$14:$AIR$15,2,FALSE)="","",HLOOKUP(AJ$6,Components!$C$14:$AIR$15,2,FALSE))) ->  | AK14: =IF(ISNA(HLOOKUP(AK$6,Components!$C$14:$AIR$15,2,FALSE)),"",IF(HLOOKUP(AK$6,Components!$C$14:$AIR$15,2,FALSE)="","",HLOOKUP(AK$6,Components!$C$14:$AIR$15,2,FALSE))) ->  | AL14: =IF(ISNA(HLOOKUP(AL$6,Components!$C$14:$AIR$15,2,FALSE)),"",IF(HLOOKUP(AL$6,Components!$C$14:$AIR$15,2,FALSE)="","",HLOOKUP(AL$6,Components!$C$14:$AIR$15,2,FALSE))) ->  | AM14: =IF(ISNA(HLOOKUP(AM$6,Components!$C$14:$AIR$15,2,FALSE)),"",IF(HLOOKUP(AM$6,Components!$C$14:$AIR$15,2,FALSE)="","",HLOOKUP(AM$6,Components!$C$14:$AIR$15,2,FALSE))) ->  | AN14: =IF(ISNA(HLOOKUP(AN$6,Components!$C$14:$AIR$15,2,FALSE)),"",IF(HLOOKUP(AN$6,Components!$C$14:$AIR$15,2,FALSE)="","",HLOOKUP(AN$6,Components!$C$14:$AIR$15,2,FALSE))) ->  | AO14: =IF(ISNA(HLOOKUP(AO$6,Components!$C$14:$AIR$15,2,FALSE)),"",IF(HLOOKUP(AO$6,Components!$C$14:$AIR$15,2,FALSE)="","",HLOOKUP(AO$6,Components!$C$14:$AIR$15,2,FALSE))) ->  | AP14: =IF(ISNA(HLOOKUP(AP$6,Components!$C$14:$AIR$15,2,FALSE)),"",IF(HLOOKUP(AP$6,Components!$C$14:$AIR$15,2,FALSE)="","",HLOOKUP(AP$6,Components!$C$14:$AIR$15,2,FALSE))) ->  | AQ14: =IF(ISNA(HLOOKUP(AQ$6,Components!$C$14:$AIR$15,2,FALSE)),"",IF(HLOOKUP(AQ$6,Components!$C$14:$AIR$15,2,FALSE)="","",HLOOKUP(AQ$6,Components!$C$14:$AIR$15,2,FALSE))) ->  | AR14: =IF(ISNA(HLOOKUP(AR$6,Components!$C$14:$AIR$15,2,FALSE)),"",IF(HLOOKUP(AR$6,Components!$C$14:$AIR$15,2,FALSE)="","",HLOOKUP(AR$6,Components!$C$14:$AIR$15,2,FALSE))) ->  | AS14: =IF(ISNA(HLOOKUP(AS$6,Components!$C$14:$AIR$15,2,FALSE)),"",IF(HLOOKUP(AS$6,Components!$C$14:$AIR$15,2,FALSE)="","",HLOOKUP(AS$6,Components!$C$14:$AIR$15,2,FALSE))) ->  | AT14: =IF(ISNA(HLOOKUP(AT$6,Components!$C$14:$AIR$15,2,FALSE)),"",IF(HLOOKUP(AT$6,Components!$C$14:$AIR$15,2,FALSE)="","",HLOOKUP(AT$6,Components!$C$14:$AIR$15,2,FALSE))) ->  | AU14: =IF(ISNA(HLOOKUP(AU$6,Components!$C$14:$AIR$15,2,FALSE)),"",IF(HLOOKUP(AU$6,Components!$C$14:$AIR$15,2,FALSE)="","",HLOOKUP(AU$6,Components!$C$14:$AIR$15,2,FALSE))) ->  | AV14: =IF(ISNA(HLOOKUP(AV$6,Components!$C$14:$AIR$15,2,FALSE)),"",IF(HLOOKUP(AV$6,Components!$C$14:$AIR$15,2,FALSE)="","",HLOOKUP(AV$6,Components!$C$14:$AIR$15,2,FALSE))) -> 90255 | AW14: =IF(ISNA(HLOOKUP(AW$6,Components!$C$14:$AIR$15,2,FALSE)),"",IF(HLOOKUP(AW$6,Components!$C$14:$AIR$15,2,FALSE)="","",HLOOKUP(AW$6,Components!$C$14:$AIR$15,2,FALSE))) -> 25271.4 | AX14: =IF(ISNA(HLOOKUP(AX$6,Components!$C$14:$AIR$15,2,FALSE)),"",IF(HLOOKUP(AX$6,Components!$C$14:$AIR$15,2,FALSE)="","",HLOOKUP(AX$6,Components!$C$14:$AIR$15,2,FALSE))) ->  | AY14: =IF(ISNA(HLOOKUP(AY$6,Components!$C$14:$AIR$15,2,FALSE)),"",IF(HLOOKUP(AY$6,Components!$C$14:$AIR$15,2,FALSE)="","",HLOOKUP(AY$6,Components!$C$14:$AIR$15,2,FALSE))) -> 152879 | AZ14: =IF(ISNA(HLOOKUP(AZ$6,Components!$C$14:$AIR$15,2,FALSE)),"",IF(HLOOKUP(AZ$6,Components!$C$14:$AIR$15,2,FALSE)="","",HLOOKUP(AZ$6,Components!$C$14:$AIR$15,2,FALSE))) ->  | BA14: =IF(ISNA(HLOOKUP(BA$6,Components!$C$14:$AIR$15,2,FALSE)),"",IF(HLOOKUP(BA$6,Components!$C$14:$AIR$15,2,FALSE)="","",HLOOKUP(BA$6,Components!$C$14:$AIR$15,2,FALSE))) ->  | BB14: =IF(ISNA(HLOOKUP(BB$6,Components!$C$14:$AIR$15,2,FALSE)),"",IF(HLOOKUP(BB$6,Components!$C$14:$AIR$15,2,FALSE)="","",HLOOKUP(BB$6,Components!$C$14:$AIR$15,2,FALSE))) ->  | BC14: =IF(ISNA(HLOOKUP(BC$6,Components!$C$14:$AIR$15,2,FALSE)),"",IF(HLOOKUP(BC$6,Components!$C$14:$AIR$15,2,FALSE)="","",HLOOKUP(BC$6,Components!$C$14:$AIR$15,2,FALSE))) ->  | BD14: =IF(ISNA(HLOOKUP(BD$6,Components!$C$14:$AIR$15,2,FALSE)),"",IF(HLOOKUP(BD$6,Components!$C$14:$AIR$15,2,FALSE)="","",HLOOKUP(BD$6,Components!$C$14:$AIR$15,2,FALSE))) ->  | BE14: =IF(ISNA(HLOOKUP(BE$6,Components!$C$14:$AIR$15,2,FALSE)),"",IF(HLOOKUP(BE$6,Components!$C$14:$AIR$15,2,FALSE)="","",HLOOKUP(BE$6,Components!$C$14:$AIR$15,2,FALSE))) ->  | BF14: =IF(ISNA(HLOOKUP(BF$6,Components!$C$14:$AIR$15,2,FALSE)),"",IF(HLOOKUP(BF$6,Components!$C$14:$AIR$15,2,FALSE)="","",HLOOKUP(BF$6,Components!$C$14:$AIR$15,2,FALSE))) ->  | BG14: =IF(ISNA(HLOOKUP(BG$6,Components!$C$14:$AIR$15,2,FALSE)),"",IF(HLOOKUP(BG$6,Components!$C$14:$AIR$15,2,FALSE)="","",HLOOKUP(BG$6,Components!$C$14:$AIR$15,2,FALSE))) ->  | BH14: =IF(ISNA(HLOOKUP(BH$6,Components!$C$14:$AIR$15,2,FALSE)),"",IF(HLOOKUP(BH$6,Components!$C$14:$AIR$15,2,FALSE)="","",HLOOKUP(BH$6,Components!$C$14:$AIR$15,2,FALSE))) ->  | BI14: =IF(ISNA(HLOOKUP(BI$6,Components!$C$14:$AIR$15,2,FALSE)),"",IF(HLOOKUP(BI$6,Components!$C$14:$AIR$15,2,FALSE)="","",HLOOKUP(BI$6,Components!$C$14:$AIR$15,2,FALSE))) ->  | BJ14: =IF(ISNA(HLOOKUP(BJ$6,Components!$C$14:$AIR$15,2,FALSE)),"",IF(HLOOKUP(BJ$6,Components!$C$14:$AIR$15,2,FALSE)="","",HLOOKUP(BJ$6,Components!$C$14:$AIR$15,2,FALSE))) ->  | BK14: =IF(ISNA(HLOOKUP(BK$6,Components!$C$14:$AIR$15,2,FALSE)),"",IF(HLOOKUP(BK$6,Components!$C$14:$AIR$15,2,FALSE)="","",HLOOKUP(BK$6,Components!$C$14:$AIR$15,2,FALSE))) ->  | BL14: =IF(ISNA(HLOOKUP(BL$6,Components!$C$14:$AIR$15,2,FALSE)),"",IF(HLOOKUP(BL$6,Components!$C$14:$AIR$15,2,FALSE)="","",HLOOKUP(BL$6,Components!$C$14:$AIR$15,2,FALSE))) ->  | BM14: =IF(ISNA(HLOOKUP(BM$6,Components!$C$14:$AIR$15,2,FALSE)),"",IF(HLOOKUP(BM$6,Components!$C$14:$AIR$15,2,FALSE)="","",HLOOKUP(BM$6,Components!$C$14:$AIR$15,2,FALSE))) ->  | BN14: =IF(ISNA(HLOOKUP(BN$6,Components!$C$14:$AIR$15,2,FALSE)),"",IF(HLOOKUP(BN$6,Components!$C$14:$AIR$15,2,FALSE)="","",HLOOKUP(BN$6,Components!$C$14:$AIR$15,2,FALSE))) ->  | BO14: =IF(ISNA(HLOOKUP(BO$6,Components!$C$14:$AIR$15,2,FALSE)),"",IF(HLOOKUP(BO$6,Components!$C$14:$AIR$15,2,FALSE)="","",HLOOKUP(BO$6,Components!$C$14:$AIR$15,2,FALSE))) ->  | BP14: =IF(ISNA(HLOOKUP(BP$6,Components!$C$14:$AIR$15,2,FALSE)),"",IF(HLOOKUP(BP$6,Components!$C$14:$AIR$15,2,FALSE)="","",HLOOKUP(BP$6,Components!$C$14:$AIR$15,2,FALSE))) ->  | BQ14: =IF(ISNA(HLOOKUP(BQ$6,Components!$C$14:$AIR$15,2,FALSE)),"",IF(HLOOKUP(BQ$6,Components!$C$14:$AIR$15,2,FALSE)="","",HLOOKUP(BQ$6,Components!$C$14:$AIR$15,2,FALSE))) ->  | BR14: =IF(ISNA(HLOOKUP(BR$6,Components!$C$14:$AIR$15,2,FALSE)),"",IF(HLOOKUP(BR$6,Components!$C$14:$AIR$15,2,FALSE)="","",HLOOKUP(BR$6,Components!$C$14:$AIR$15,2,FALSE))) ->  | BS14: =IF(ISNA(HLOOKUP(BS$6,Components!$C$14:$AIR$15,2,FALSE)),"",IF(HLOOKUP(BS$6,Components!$C$14:$AIR$15,2,FALSE)="","",HLOOKUP(BS$6,Components!$C$14:$AIR$15,2,FALSE))) ->  | BT14: =IF(ISNA(HLOOKUP(BT$6,Components!$C$14:$AIR$15,2,FALSE)),"",IF(HLOOKUP(BT$6,Components!$C$14:$AIR$15,2,FALSE)="","",HLOOKUP(BT$6,Components!$C$14:$AIR$15,2,FALSE))) ->  | BU14: =IF(ISNA(HLOOKUP(BU$6,Components!$C$14:$AIR$15,2,FALSE)),"",IF(HLOOKUP(BU$6,Components!$C$14:$AIR$15,2,FALSE)="","",HLOOKUP(BU$6,Components!$C$14:$AIR$15,2,FALSE))) ->  | BV14: =IF(ISNA(HLOOKUP(BV$6,Components!$C$14:$AIR$15,2,FALSE)),"",IF(HLOOKUP(BV$6,Components!$C$14:$AIR$15,2,FALSE)="","",HLOOKUP(BV$6,Components!$C$14:$AIR$15,2,FALSE))) ->  | BW14: =IF(ISNA(HLOOKUP(BW$6,Components!$C$14:$AIR$15,2,FALSE)),"",IF(HLOOKUP(BW$6,Components!$C$14:$AIR$15,2,FALSE)="","",HLOOKUP(BW$6,Components!$C$14:$AIR$15,2,FALSE))) ->  | BX14: =IF(ISNA(HLOOKUP(BX$6,Components!$C$14:$AIR$15,2,FALSE)),"",IF(HLOOKUP(BX$6,Components!$C$14:$AIR$15,2,FALSE)="","",HLOOKUP(BX$6,Components!$C$14:$AIR$15,2,FALSE))) ->  | BY14: =IF(ISNA(HLOOKUP(BY$6,Components!$C$14:$AIR$15,2,FALSE)),"",IF(HLOOKUP(BY$6,Components!$C$14:$AIR$15,2,FALSE)="","",HLOOKUP(BY$6,Components!$C$14:$AIR$15,2,FALSE))) ->  | BZ14: =IF(ISNA(HLOOKUP(BZ$6,Components!$C$14:$AIR$15,2,FALSE)),"",IF(HLOOKUP(BZ$6,Components!$C$14:$AIR$15,2,FALSE)="","",HLOOKUP(BZ$6,Components!$C$14:$AIR$15,2,FALSE))) ->  | CA14: =IF(ISNA(HLOOKUP(CA$6,Components!$C$14:$AIR$15,2,FALSE)),"",IF(HLOOKUP(CA$6,Components!$C$14:$AIR$15,2,FALSE)="","",HLOOKUP(CA$6,Components!$C$14:$AIR$15,2,FALSE))) ->  | CB14: =IF(ISNA(HLOOKUP(CB$6,Components!$C$14:$AIR$15,2,FALSE)),"",IF(HLOOKUP(CB$6,Components!$C$14:$AIR$15,2,FALSE)="","",HLOOKUP(CB$6,Components!$C$14:$AIR$15,2,FALSE))) ->  | CC14: =IF(ISNA(HLOOKUP(CC$6,Components!$C$14:$AIR$15,2,FALSE)),"",IF(HLOOKUP(CC$6,Components!$C$14:$AIR$15,2,FALSE)="","",HLOOKUP(CC$6,Components!$C$14:$AIR$15,2,FALSE))) -> 1000 | CD14: =IF(ISNA(HLOOKUP(CD$6,Components!$C$14:$AIR$15,2,FALSE)),"",IF(HLOOKUP(CD$6,Components!$C$14:$AIR$15,2,FALSE)="","",HLOOKUP(CD$6,Components!$C$14:$AIR$15,2,FALSE))) ->  | CE14: =IF(ISNA(HLOOKUP(CE$6,Components!$C$14:$AIR$15,2,FALSE)),"",IF(HLOOKUP(CE$6,Components!$C$14:$AIR$15,2,FALSE)="","",HLOOKUP(CE$6,Components!$C$14:$AIR$15,2,FALSE))) ->  | CF14: =IF(ISNA(HLOOKUP(CF$6,Components!$C$14:$AIR$15,2,FALSE)),"",IF(HLOOKUP(CF$6,Components!$C$14:$AIR$15,2,FALSE)="","",HLOOKUP(CF$6,Components!$C$14:$AIR$15,2,FALSE))) ->  | CG14: =IF(ISNA(HLOOKUP(CG$6,Components!$C$14:$AIR$15,2,FALSE)),"",IF(HLOOKUP(CG$6,Components!$C$14:$AIR$15,2,FALSE)="","",HLOOKUP(CG$6,Components!$C$14:$AIR$15,2,FALSE))) ->  | CH14: =IF(ISNA(HLOOKUP(CH$6,Components!$C$14:$AIR$15,2,FALSE)),"",IF(HLOOKUP(CH$6,Components!$C$14:$AIR$15,2,FALSE)="","",HLOOKUP(CH$6,Components!$C$14:$AIR$15,2,FALSE))) ->  | CI14: =IF(ISNA(HLOOKUP(CI$6,Components!$C$14:$AIR$15,2,FALSE)),"",IF(HLOOKUP(CI$6,Components!$C$14:$AIR$15,2,FALSE)="","",HLOOKUP(CI$6,Components!$C$14:$AIR$15,2,FALSE))) ->  | CJ14: =IF(ISNA(HLOOKUP(CJ$6,Components!$C$14:$AIR$15,2,FALSE)),"",IF(HLOOKUP(CJ$6,Components!$C$14:$AIR$15,2,FALSE)="","",HLOOKUP(CJ$6,Components!$C$14:$AIR$15,2,FALSE))) ->  | CK14: =IF(ISNA(HLOOKUP(CK$6,Components!$C$14:$AIR$15,2,FALSE)),"",IF(HLOOKUP(CK$6,Components!$C$14:$AIR$15,2,FALSE)="","",HLOOKUP(CK$6,Components!$C$14:$AIR$15,2,FALSE))) ->  | CL14: =IF(ISNA(HLOOKUP(CL$6,Components!$C$14:$AIR$15,2,FALSE)),"",IF(HLOOKUP(CL$6,Components!$C$14:$AIR$15,2,FALSE)="","",HLOOKUP(CL$6,Components!$C$14:$AIR$15,2,FALSE))) ->  | CM14: =IF(ISNA(HLOOKUP(CM$6,Components!$C$14:$AIR$15,2,FALSE)),"",IF(HLOOKUP(CM$6,Components!$C$14:$AIR$15,2,FALSE)="","",HLOOKUP(CM$6,Components!$C$14:$AIR$15,2,FALSE))) ->  | CN14: =IF(ISNA(HLOOKUP(CN$6,Components!$C$14:$AIR$15,2,FALSE)),"",IF(HLOOKUP(CN$6,Components!$C$14:$AIR$15,2,FALSE)="","",HLOOKUP(CN$6,Components!$C$14:$AIR$15,2,FALSE))) ->  | CO14: =IF(ISNA(HLOOKUP(CO$6,Components!$C$14:$AIR$15,2,FALSE)),"",IF(HLOOKUP(CO$6,Components!$C$14:$AIR$15,2,FALSE)="","",HLOOKUP(CO$6,Components!$C$14:$AIR$15,2,FALSE))) ->  | CP14: =IF(ISNA(HLOOKUP(CP$6,Components!$C$14:$AIR$15,2,FALSE)),"",IF(HLOOKUP(CP$6,Components!$C$14:$AIR$15,2,FALSE)="","",HLOOKUP(CP$6,Components!$C$14:$AIR$15,2,FALSE))) ->  | CQ14: =IF(ISNA(HLOOKUP(CQ$6,Components!$C$14:$AIR$15,2,FALSE)),"",IF(HLOOKUP(CQ$6,Components!$C$14:$AIR$15,2,FALSE)="","",HLOOKUP(CQ$6,Components!$C$14:$AIR$15,2,FALSE))) ->  | CR14: =IF(ISNA(HLOOKUP(CR$6,Components!$C$14:$AIR$15,2,FALSE)),"",IF(HLOOKUP(CR$6,Components!$C$14:$AIR$15,2,FALSE)="","",HLOOKUP(CR$6,Components!$C$14:$AIR$15,2,FALSE))) ->  | CS14: =IF(ISNA(HLOOKUP(CS$6,Components!$C$14:$AIR$15,2,FALSE)),"",IF(HLOOKUP(CS$6,Components!$C$14:$AIR$15,2,FALSE)="","",HLOOKUP(CS$6,Components!$C$14:$AIR$15,2,FALSE))) ->  | CT14: =IF(ISNA(HLOOKUP(CT$6,Components!$C$14:$AIR$15,2,FALSE)),"",IF(HLOOKUP(CT$6,Components!$C$14:$AIR$15,2,FALSE)="","",HLOOKUP(CT$6,Components!$C$14:$AIR$15,2,FALSE))) ->  | CU14: =IF(ISNA(HLOOKUP(CU$6,Components!$C$14:$AIR$15,2,FALSE)),"",IF(HLOOKUP(CU$6,Components!$C$14:$AIR$15,2,FALSE)="","",HLOOKUP(CU$6,Components!$C$14:$AIR$15,2,FALSE))) ->  | CV14: =IF(ISNA(HLOOKUP(CV$6,Components!$C$14:$AIR$15,2,FALSE)),"",IF(HLOOKUP(CV$6,Components!$C$14:$AIR$15,2,FALSE)="","",HLOOKUP(CV$6,Components!$C$14:$AIR$15,2,FALSE))) ->  | CW14: =IF(ISNA(HLOOKUP(CW$6,Components!$C$14:$AIR$15,2,FALSE)),"",IF(HLOOKUP(CW$6,Components!$C$14:$AIR$15,2,FALSE)="","",HLOOKUP(CW$6,Components!$C$14:$AIR$15,2,FALSE))) ->  | CX14: =IF(ISNA(HLOOKUP(CX$6,Components!$C$14:$AIR$15,2,FALSE)),"",IF(HLOOKUP(CX$6,Components!$C$14:$AIR$15,2,FALSE)="","",HLOOKUP(CX$6,Components!$C$14:$AIR$15,2,FALSE))) ->  | CY14: =IF(ISNA(HLOOKUP(CY$6,Components!$C$14:$AIR$15,2,FALSE)),"",IF(HLOOKUP(CY$6,Components!$C$14:$AIR$15,2,FALSE)="","",HLOOKUP(CY$6,Components!$C$14:$AIR$15,2,FALSE))) ->  | CZ14: =IF(ISNA(HLOOKUP(CZ$6,Components!$C$14:$AIR$15,2,FALSE)),"",IF(HLOOKUP(CZ$6,Components!$C$14:$AIR$15,2,FALSE)="","",HLOOKUP(CZ$6,Components!$C$14:$AIR$15,2,FALSE))) ->  | DA14: =IF(ISNA(HLOOKUP(DA$6,Components!$C$14:$AIR$15,2,FALSE)),"",IF(HLOOKUP(DA$6,Components!$C$14:$AIR$15,2,FALSE)="","",HLOOKUP(DA$6,Components!$C$14:$AIR$15,2,FALSE))) ->  | DB14: =IF(ISNA(HLOOKUP(DB$6,Components!$C$14:$AIR$15,2,FALSE)),"",IF(HLOOKUP(DB$6,Components!$C$14:$AIR$15,2,FALSE)="","",HLOOKUP(DB$6,Components!$C$14:$AIR$15,2,FALSE))) ->  | DC14: =IF(ISNA(HLOOKUP(DC$6,Components!$C$14:$AIR$15,2,FALSE)),"",IF(HLOOKUP(DC$6,Components!$C$14:$AIR$15,2,FALSE)="","",HLOOKUP(DC$6,Components!$C$14:$AIR$15,2,FALSE))) ->  | DD14: =IF(ISNA(HLOOKUP(DD$6,Components!$C$14:$AIR$15,2,FALSE)),"",IF(HLOOKUP(DD$6,Components!$C$14:$AIR$15,2,FALSE)="","",HLOOKUP(DD$6,Components!$C$14:$AIR$15,2,FALSE))) ->  | DE14: =IF(ISNA(HLOOKUP(DE$6,Components!$C$14:$AIR$15,2,FALSE)),"",IF(HLOOKUP(DE$6,Components!$C$14:$AIR$15,2,FALSE)="","",HLOOKUP(DE$6,Components!$C$14:$AIR$15,2,FALSE))) ->  | DF14: =IF(ISNA(HLOOKUP(DF$6,Components!$C$14:$AIR$15,2,FALSE)),"",IF(HLOOKUP(DF$6,Components!$C$14:$AIR$15,2,FALSE)="","",HLOOKUP(DF$6,Components!$C$14:$AIR$15,2,FALSE))) ->  | DG14: =IF(ISNA(HLOOKUP(DG$6,Components!$C$14:$AIR$15,2,FALSE)),"",IF(HLOOKUP(DG$6,Components!$C$14:$AIR$15,2,FALSE)="","",HLOOKUP(DG$6,Components!$C$14:$AIR$15,2,FALSE))) ->  | DH14: =IF(ISNA(HLOOKUP(DH$6,Components!$C$14:$AIR$15,2,FALSE)),"",IF(HLOOKUP(DH$6,Components!$C$14:$AIR$15,2,FALSE)="","",HLOOKUP(DH$6,Components!$C$14:$AIR$15,2,FALSE))) ->  | DI14: =IF(ISNA(HLOOKUP(DI$6,Components!$C$14:$AIR$15,2,FALSE)),"",IF(HLOOKUP(DI$6,Components!$C$14:$AIR$15,2,FALSE)="","",HLOOKUP(DI$6,Components!$C$14:$AIR$15,2,FALSE))) ->  | DJ14: =IF(ISNA(HLOOKUP(DJ$6,Components!$C$14:$AIR$15,2,FALSE)),"",IF(HLOOKUP(DJ$6,Components!$C$14:$AIR$15,2,FALSE)="","",HLOOKUP(DJ$6,Components!$C$14:$AIR$15,2,FALSE))) ->  | DK14: =IF(ISNA(HLOOKUP(DK$6,Components!$C$14:$AIR$15,2,FALSE)),"",IF(HLOOKUP(DK$6,Components!$C$14:$AIR$15,2,FALSE)="","",HLOOKUP(DK$6,Components!$C$14:$AIR$15,2,FALSE))) ->  | DL14: =IF(ISNA(HLOOKUP(DL$6,Components!$C$14:$AIR$15,2,FALSE)),"",IF(HLOOKUP(DL$6,Components!$C$14:$AIR$15,2,FALSE)="","",HLOOKUP(DL$6,Components!$C$14:$AIR$15,2,FALSE))) ->  | DM14: =IF(ISNA(HLOOKUP(DM$6,Components!$C$14:$AIR$15,2,FALSE)),"",IF(HLOOKUP(DM$6,Components!$C$14:$AIR$15,2,FALSE)="","",HLOOKUP(DM$6,Components!$C$14:$AIR$15,2,FALSE))) ->  | DN14: =IF(ISNA(HLOOKUP(DN$6,Components!$C$14:$AIR$15,2,FALSE)),"",IF(HLOOKUP(DN$6,Components!$C$14:$AIR$15,2,FALSE)="","",HLOOKUP(DN$6,Components!$C$14:$AIR$15,2,FALSE))) ->  | DO14: =IF(ISNA(HLOOKUP(DO$6,Components!$C$14:$AIR$15,2,FALSE)),"",IF(HLOOKUP(DO$6,Components!$C$14:$AIR$15,2,FALSE)="","",HLOOKUP(DO$6,Components!$C$14:$AIR$15,2,FALSE))) ->  | DP14: =IF(ISNA(HLOOKUP(DP$6,Components!$C$14:$AIR$15,2,FALSE)),"",IF(HLOOKUP(DP$6,Components!$C$14:$AIR$15,2,FALSE)="","",HLOOKUP(DP$6,Components!$C$14:$AIR$15,2,FALSE))) ->  | DQ14: =IF(ISNA(HLOOKUP(DQ$6,Components!$C$14:$AIR$15,2,FALSE)),"",IF(HLOOKUP(DQ$6,Components!$C$14:$AIR$15,2,FALSE)="","",HLOOKUP(DQ$6,Components!$C$14:$AIR$15,2,FALSE))) ->  | DR14: =IF(ISNA(HLOOKUP(DR$6,Components!$C$14:$AIR$15,2,FALSE)),"",IF(HLOOKUP(DR$6,Components!$C$14:$AIR$15,2,FALSE)="","",HLOOKUP(DR$6,Components!$C$14:$AIR$15,2,FALSE))) -> 
A15: 8 | B15: Calc Type - Trust rate Q1 (Trade) Q3 (UK Prop) IFP profit Q4 (For) INT, DIV, FTCR Q5 (CG) Res prop (TC1), PDR tax Q8.16 (Special trust rates - Yes) Q9 (Other Inc) Untaxed UK INT, Taxed UK INT, NS&I, DIV dist AUT, Stock DIV 9A.1 (amt of SRB) - 1000 Q10A (Relief, annual Pmts and Patent Royalties) Q13 (Inc not liable at Spec trust rates) Q15A (Capital transactions) Q17 (Self Calc) ( +£94995.04 over calculated due to CG tax already paid omitted) | C15: 125129.69 | D15: 30134.65 | E15: 15067.32 | F15: =IF(ISNA(HLOOKUP(F$6,Components!$C$16:$AIR$17,2,FALSE)),"",IF(HLOOKUP(F$6,Components!$C$16:$AIR$17,2,FALSE)="","",HLOOKUP(F$6,Components!$C$16:$AIR$17,2,FALSE))) ->  | G15: =IF(ISNA(HLOOKUP(G$6,Components!$C$16:$AIR$17,2,FALSE)),"",IF(HLOOKUP(G$6,Components!$C$16:$AIR$17,2,FALSE)="","",HLOOKUP(G$6,Components!$C$16:$AIR$17,2,FALSE))) -> 28129 | H15: =IF(ISNA(HLOOKUP(H$6,Components!$C$16:$AIR$17,2,FALSE)),"",IF(HLOOKUP(H$6,Components!$C$16:$AIR$17,2,FALSE)="","",HLOOKUP(H$6,Components!$C$16:$AIR$17,2,FALSE))) -> 2917 | I15: =IF(ISNA(HLOOKUP(I$6,Components!$C$16:$AIR$17,2,FALSE)),"",IF(HLOOKUP(I$6,Components!$C$16:$AIR$17,2,FALSE)="","",HLOOKUP(I$6,Components!$C$16:$AIR$17,2,FALSE))) ->  | J15: =IF(ISNA(HLOOKUP(J$6,Components!$C$16:$AIR$17,2,FALSE)),"",IF(HLOOKUP(J$6,Components!$C$16:$AIR$17,2,FALSE)="","",HLOOKUP(J$6,Components!$C$16:$AIR$17,2,FALSE))) ->  | K15: =IF(ISNA(HLOOKUP(K$6,Components!$C$16:$AIR$17,2,FALSE)),"",IF(HLOOKUP(K$6,Components!$C$16:$AIR$17,2,FALSE)="","",HLOOKUP(K$6,Components!$C$16:$AIR$17,2,FALSE))) ->  | L15: =IF(ISNA(HLOOKUP(L$6,Components!$C$16:$AIR$17,2,FALSE)),"",IF(HLOOKUP(L$6,Components!$C$16:$AIR$17,2,FALSE)="","",HLOOKUP(L$6,Components!$C$16:$AIR$17,2,FALSE))) ->  | M15: =IF(ISNA(HLOOKUP(M$6,Components!$C$16:$AIR$17,2,FALSE)),"",IF(HLOOKUP(M$6,Components!$C$16:$AIR$17,2,FALSE)="","",HLOOKUP(M$6,Components!$C$16:$AIR$17,2,FALSE))) ->  | N15: =IF(ISNA(HLOOKUP(N$6,Components!$C$16:$AIR$17,2,FALSE)),"",IF(HLOOKUP(N$6,Components!$C$16:$AIR$17,2,FALSE)="","",HLOOKUP(N$6,Components!$C$16:$AIR$17,2,FALSE))) ->  | O15: =IF(ISNA(HLOOKUP(O$6,Components!$C$16:$AIR$17,2,FALSE)),"",IF(HLOOKUP(O$6,Components!$C$16:$AIR$17,2,FALSE)="","",HLOOKUP(O$6,Components!$C$16:$AIR$17,2,FALSE))) ->  | P15: =IF(ISNA(HLOOKUP(P$6,Components!$C$16:$AIR$17,2,FALSE)),"",IF(HLOOKUP(P$6,Components!$C$16:$AIR$17,2,FALSE)="","",HLOOKUP(P$6,Components!$C$16:$AIR$17,2,FALSE))) ->  | Q15: =IF(ISNA(HLOOKUP(Q$6,Components!$C$16:$AIR$17,2,FALSE)),"",IF(HLOOKUP(Q$6,Components!$C$16:$AIR$17,2,FALSE)="","",HLOOKUP(Q$6,Components!$C$16:$AIR$17,2,FALSE))) ->  | R15: =IF(ISNA(HLOOKUP(R$6,Components!$C$16:$AIR$17,2,FALSE)),"",IF(HLOOKUP(R$6,Components!$C$16:$AIR$17,2,FALSE)="","",HLOOKUP(R$6,Components!$C$16:$AIR$17,2,FALSE))) ->  | S15: =IF(ISNA(HLOOKUP(S$6,Components!$C$16:$AIR$17,2,FALSE)),"",IF(HLOOKUP(S$6,Components!$C$16:$AIR$17,2,FALSE)="","",HLOOKUP(S$6,Components!$C$16:$AIR$17,2,FALSE))) ->  | T15: =IF(ISNA(HLOOKUP(T$6,Components!$C$16:$AIR$17,2,FALSE)),"",IF(HLOOKUP(T$6,Components!$C$16:$AIR$17,2,FALSE)="","",HLOOKUP(T$6,Components!$C$16:$AIR$17,2,FALSE))) ->  | U15: =IF(ISNA(HLOOKUP(U$6,Components!$C$16:$AIR$17,2,FALSE)),"",IF(HLOOKUP(U$6,Components!$C$16:$AIR$17,2,FALSE)="","",HLOOKUP(U$6,Components!$C$16:$AIR$17,2,FALSE))) ->  | V15: =IF(ISNA(HLOOKUP(V$6,Components!$C$16:$AIR$17,2,FALSE)),"",IF(HLOOKUP(V$6,Components!$C$16:$AIR$17,2,FALSE)="","",HLOOKUP(V$6,Components!$C$16:$AIR$17,2,FALSE))) ->  | W15: =IF(ISNA(HLOOKUP(W$6,Components!$C$16:$AIR$17,2,FALSE)),"",IF(HLOOKUP(W$6,Components!$C$16:$AIR$17,2,FALSE)="","",HLOOKUP(W$6,Components!$C$16:$AIR$17,2,FALSE))) ->  | X15: =IF(ISNA(HLOOKUP(X$6,Components!$C$16:$AIR$17,2,FALSE)),"",IF(HLOOKUP(X$6,Components!$C$16:$AIR$17,2,FALSE)="","",HLOOKUP(X$6,Components!$C$16:$AIR$17,2,FALSE))) -> 21100 | Y15: =IF(ISNA(HLOOKUP(Y$6,Components!$C$16:$AIR$17,2,FALSE)),"",IF(HLOOKUP(Y$6,Components!$C$16:$AIR$17,2,FALSE)="","",HLOOKUP(Y$6,Components!$C$16:$AIR$17,2,FALSE))) ->  | Z15: =IF(ISNA(HLOOKUP(Z$6,Components!$C$16:$AIR$17,2,FALSE)),"",IF(HLOOKUP(Z$6,Components!$C$16:$AIR$17,2,FALSE)="","",HLOOKUP(Z$6,Components!$C$16:$AIR$17,2,FALSE))) ->  | AA15: =IF(ISNA(HLOOKUP(AA$6,Components!$C$16:$AIR$17,2,FALSE)),"",IF(HLOOKUP(AA$6,Components!$C$16:$AIR$17,2,FALSE)="","",HLOOKUP(AA$6,Components!$C$16:$AIR$17,2,FALSE))) ->  | AB15: =IF(ISNA(HLOOKUP(AB$6,Components!$C$16:$AIR$17,2,FALSE)),"",IF(HLOOKUP(AB$6,Components!$C$16:$AIR$17,2,FALSE)="","",HLOOKUP(AB$6,Components!$C$16:$AIR$17,2,FALSE))) ->  | AC15: =IF(ISNA(HLOOKUP(AC$6,Components!$C$16:$AIR$17,2,FALSE)),"",IF(HLOOKUP(AC$6,Components!$C$16:$AIR$17,2,FALSE)="","",HLOOKUP(AC$6,Components!$C$16:$AIR$17,2,FALSE))) -> 3562 | AD15: =IF(ISNA(HLOOKUP(AD$6,Components!$C$16:$AIR$17,2,FALSE)),"",IF(HLOOKUP(AD$6,Components!$C$16:$AIR$17,2,FALSE)="","",HLOOKUP(AD$6,Components!$C$16:$AIR$17,2,FALSE))) ->  | AE15: =IF(ISNA(HLOOKUP(AE$6,Components!$C$16:$AIR$17,2,FALSE)),"",IF(HLOOKUP(AE$6,Components!$C$16:$AIR$17,2,FALSE)="","",HLOOKUP(AE$6,Components!$C$16:$AIR$17,2,FALSE))) -> 2675 | AF15: =IF(ISNA(HLOOKUP(AF$6,Components!$C$16:$AIR$17,2,FALSE)),"",IF(HLOOKUP(AF$6,Components!$C$16:$AIR$17,2,FALSE)="","",HLOOKUP(AF$6,Components!$C$16:$AIR$17,2,FALSE))) ->  | AG15: =IF(ISNA(HLOOKUP(AG$6,Components!$C$16:$AIR$17,2,FALSE)),"",IF(HLOOKUP(AG$6,Components!$C$16:$AIR$17,2,FALSE)="","",HLOOKUP(AG$6,Components!$C$16:$AIR$17,2,FALSE))) ->  | AH15: =IF(ISNA(HLOOKUP(AH$6,Components!$C$16:$AIR$17,2,FALSE)),"",IF(HLOOKUP(AH$6,Components!$C$16:$AIR$17,2,FALSE)="","",HLOOKUP(AH$6,Components!$C$16:$AIR$17,2,FALSE))) ->  | AI15: =IF(ISNA(HLOOKUP(AI$6,Components!$C$16:$AIR$17,2,FALSE)),"",IF(HLOOKUP(AI$6,Components!$C$16:$AIR$17,2,FALSE)="","",HLOOKUP(AI$6,Components!$C$16:$AIR$17,2,FALSE))) ->  | AJ15: =IF(ISNA(HLOOKUP(AJ$6,Components!$C$16:$AIR$17,2,FALSE)),"",IF(HLOOKUP(AJ$6,Components!$C$16:$AIR$17,2,FALSE)="","",HLOOKUP(AJ$6,Components!$C$16:$AIR$17,2,FALSE))) ->  | AK15: =IF(ISNA(HLOOKUP(AK$6,Components!$C$16:$AIR$17,2,FALSE)),"",IF(HLOOKUP(AK$6,Components!$C$16:$AIR$17,2,FALSE)="","",HLOOKUP(AK$6,Components!$C$16:$AIR$17,2,FALSE))) ->  | AL15: =IF(ISNA(HLOOKUP(AL$6,Components!$C$16:$AIR$17,2,FALSE)),"",IF(HLOOKUP(AL$6,Components!$C$16:$AIR$17,2,FALSE)="","",HLOOKUP(AL$6,Components!$C$16:$AIR$17,2,FALSE))) ->  | AM15: =IF(ISNA(HLOOKUP(AM$6,Components!$C$16:$AIR$17,2,FALSE)),"",IF(HLOOKUP(AM$6,Components!$C$16:$AIR$17,2,FALSE)="","",HLOOKUP(AM$6,Components!$C$16:$AIR$17,2,FALSE))) ->  | AN15: =IF(ISNA(HLOOKUP(AN$6,Components!$C$16:$AIR$17,2,FALSE)),"",IF(HLOOKUP(AN$6,Components!$C$16:$AIR$17,2,FALSE)="","",HLOOKUP(AN$6,Components!$C$16:$AIR$17,2,FALSE))) ->  | AO15: =IF(ISNA(HLOOKUP(AO$6,Components!$C$16:$AIR$17,2,FALSE)),"",IF(HLOOKUP(AO$6,Components!$C$16:$AIR$17,2,FALSE)="","",HLOOKUP(AO$6,Components!$C$16:$AIR$17,2,FALSE))) -> 935.55 | AP15: =IF(ISNA(HLOOKUP(AP$6,Components!$C$16:$AIR$17,2,FALSE)),"",IF(HLOOKUP(AP$6,Components!$C$16:$AIR$17,2,FALSE)="","",HLOOKUP(AP$6,Components!$C$16:$AIR$17,2,FALSE))) -> 935.55 | AQ15: =IF(ISNA(HLOOKUP(AQ$6,Components!$C$16:$AIR$17,2,FALSE)),"",IF(HLOOKUP(AQ$6,Components!$C$16:$AIR$17,2,FALSE)="","",HLOOKUP(AQ$6,Components!$C$16:$AIR$17,2,FALSE))) ->  | AR15: =IF(ISNA(HLOOKUP(AR$6,Components!$C$16:$AIR$17,2,FALSE)),"",IF(HLOOKUP(AR$6,Components!$C$16:$AIR$17,2,FALSE)="","",HLOOKUP(AR$6,Components!$C$16:$AIR$17,2,FALSE))) ->  | AS15: =IF(ISNA(HLOOKUP(AS$6,Components!$C$16:$AIR$17,2,FALSE)),"",IF(HLOOKUP(AS$6,Components!$C$16:$AIR$17,2,FALSE)="","",HLOOKUP(AS$6,Components!$C$16:$AIR$17,2,FALSE))) ->  | AT15: =IF(ISNA(HLOOKUP(AT$6,Components!$C$16:$AIR$17,2,FALSE)),"",IF(HLOOKUP(AT$6,Components!$C$16:$AIR$17,2,FALSE)="","",HLOOKUP(AT$6,Components!$C$16:$AIR$17,2,FALSE))) ->  | AU15: =IF(ISNA(HLOOKUP(AU$6,Components!$C$16:$AIR$17,2,FALSE)),"",IF(HLOOKUP(AU$6,Components!$C$16:$AIR$17,2,FALSE)="","",HLOOKUP(AU$6,Components!$C$16:$AIR$17,2,FALSE))) ->  | AV15: =IF(ISNA(HLOOKUP(AV$6,Components!$C$16:$AIR$17,2,FALSE)),"",IF(HLOOKUP(AV$6,Components!$C$16:$AIR$17,2,FALSE)="","",HLOOKUP(AV$6,Components!$C$16:$AIR$17,2,FALSE))) -> 339268 | AW15: =IF(ISNA(HLOOKUP(AW$6,Components!$C$16:$AIR$17,2,FALSE)),"",IF(HLOOKUP(AW$6,Components!$C$16:$AIR$17,2,FALSE)="","",HLOOKUP(AW$6,Components!$C$16:$AIR$17,2,FALSE))) -> 94995.04 | AX15: =IF(ISNA(HLOOKUP(AX$6,Components!$C$16:$AIR$17,2,FALSE)),"",IF(HLOOKUP(AX$6,Components!$C$16:$AIR$17,2,FALSE)="","",HLOOKUP(AX$6,Components!$C$16:$AIR$17,2,FALSE))) ->  | AY15: =IF(ISNA(HLOOKUP(AY$6,Components!$C$16:$AIR$17,2,FALSE)),"",IF(HLOOKUP(AY$6,Components!$C$16:$AIR$17,2,FALSE)="","",HLOOKUP(AY$6,Components!$C$16:$AIR$17,2,FALSE))) ->  | AZ15: =IF(ISNA(HLOOKUP(AZ$6,Components!$C$16:$AIR$17,2,FALSE)),"",IF(HLOOKUP(AZ$6,Components!$C$16:$AIR$17,2,FALSE)="","",HLOOKUP(AZ$6,Components!$C$16:$AIR$17,2,FALSE))) ->  | BA15: =IF(ISNA(HLOOKUP(BA$6,Components!$C$16:$AIR$17,2,FALSE)),"",IF(HLOOKUP(BA$6,Components!$C$16:$AIR$17,2,FALSE)="","",HLOOKUP(BA$6,Components!$C$16:$AIR$17,2,FALSE))) ->  | BB15: =IF(ISNA(HLOOKUP(BB$6,Components!$C$16:$AIR$17,2,FALSE)),"",IF(HLOOKUP(BB$6,Components!$C$16:$AIR$17,2,FALSE)="","",HLOOKUP(BB$6,Components!$C$16:$AIR$17,2,FALSE))) ->  | BC15: =IF(ISNA(HLOOKUP(BC$6,Components!$C$16:$AIR$17,2,FALSE)),"",IF(HLOOKUP(BC$6,Components!$C$16:$AIR$17,2,FALSE)="","",HLOOKUP(BC$6,Components!$C$16:$AIR$17,2,FALSE))) ->  | BD15: =IF(ISNA(HLOOKUP(BD$6,Components!$C$16:$AIR$17,2,FALSE)),"",IF(HLOOKUP(BD$6,Components!$C$16:$AIR$17,2,FALSE)="","",HLOOKUP(BD$6,Components!$C$16:$AIR$17,2,FALSE))) ->  | BE15: =IF(ISNA(HLOOKUP(BE$6,Components!$C$16:$AIR$17,2,FALSE)),"",IF(HLOOKUP(BE$6,Components!$C$16:$AIR$17,2,FALSE)="","",HLOOKUP(BE$6,Components!$C$16:$AIR$17,2,FALSE))) ->  | BF15: =IF(ISNA(HLOOKUP(BF$6,Components!$C$16:$AIR$17,2,FALSE)),"",IF(HLOOKUP(BF$6,Components!$C$16:$AIR$17,2,FALSE)="","",HLOOKUP(BF$6,Components!$C$16:$AIR$17,2,FALSE))) ->  | BG15: =IF(ISNA(HLOOKUP(BG$6,Components!$C$16:$AIR$17,2,FALSE)),"",IF(HLOOKUP(BG$6,Components!$C$16:$AIR$17,2,FALSE)="","",HLOOKUP(BG$6,Components!$C$16:$AIR$17,2,FALSE))) ->  | BH15: =IF(ISNA(HLOOKUP(BH$6,Components!$C$16:$AIR$17,2,FALSE)),"",IF(HLOOKUP(BH$6,Components!$C$16:$AIR$17,2,FALSE)="","",HLOOKUP(BH$6,Components!$C$16:$AIR$17,2,FALSE))) ->  | BI15: =IF(ISNA(HLOOKUP(BI$6,Components!$C$16:$AIR$17,2,FALSE)),"",IF(HLOOKUP(BI$6,Components!$C$16:$AIR$17,2,FALSE)="","",HLOOKUP(BI$6,Components!$C$16:$AIR$17,2,FALSE))) -> TRUE | BJ15: =IF(ISNA(HLOOKUP(BJ$6,Components!$C$16:$AIR$17,2,FALSE)),"",IF(HLOOKUP(BJ$6,Components!$C$16:$AIR$17,2,FALSE)="","",HLOOKUP(BJ$6,Components!$C$16:$AIR$17,2,FALSE))) -> 95 | BK15: =IF(ISNA(HLOOKUP(BK$6,Components!$C$16:$AIR$17,2,FALSE)),"",IF(HLOOKUP(BK$6,Components!$C$16:$AIR$17,2,FALSE)="","",HLOOKUP(BK$6,Components!$C$16:$AIR$17,2,FALSE))) -> 3643.83 | BL15: =IF(ISNA(HLOOKUP(BL$6,Components!$C$16:$AIR$17,2,FALSE)),"",IF(HLOOKUP(BL$6,Components!$C$16:$AIR$17,2,FALSE)="","",HLOOKUP(BL$6,Components!$C$16:$AIR$17,2,FALSE))) -> 18219.09 | BM15: =IF(ISNA(HLOOKUP(BM$6,Components!$C$16:$AIR$17,2,FALSE)),"",IF(HLOOKUP(BM$6,Components!$C$16:$AIR$17,2,FALSE)="","",HLOOKUP(BM$6,Components!$C$16:$AIR$17,2,FALSE))) -> 4763.91 | BN15: =IF(ISNA(HLOOKUP(BN$6,Components!$C$16:$AIR$17,2,FALSE)),"",IF(HLOOKUP(BN$6,Components!$C$16:$AIR$17,2,FALSE)="","",HLOOKUP(BN$6,Components!$C$16:$AIR$17,2,FALSE))) ->  | BO15: =IF(ISNA(HLOOKUP(BO$6,Components!$C$16:$AIR$17,2,FALSE)),"",IF(HLOOKUP(BO$6,Components!$C$16:$AIR$17,2,FALSE)="","",HLOOKUP(BO$6,Components!$C$16:$AIR$17,2,FALSE))) ->  | BP15: =IF(ISNA(HLOOKUP(BP$6,Components!$C$16:$AIR$17,2,FALSE)),"",IF(HLOOKUP(BP$6,Components!$C$16:$AIR$17,2,FALSE)="","",HLOOKUP(BP$6,Components!$C$16:$AIR$17,2,FALSE))) ->  | BQ15: =IF(ISNA(HLOOKUP(BQ$6,Components!$C$16:$AIR$17,2,FALSE)),"",IF(HLOOKUP(BQ$6,Components!$C$16:$AIR$17,2,FALSE)="","",HLOOKUP(BQ$6,Components!$C$16:$AIR$17,2,FALSE))) ->  | BR15: =IF(ISNA(HLOOKUP(BR$6,Components!$C$16:$AIR$17,2,FALSE)),"",IF(HLOOKUP(BR$6,Components!$C$16:$AIR$17,2,FALSE)="","",HLOOKUP(BR$6,Components!$C$16:$AIR$17,2,FALSE))) -> 7826.15 | BS15: =IF(ISNA(HLOOKUP(BS$6,Components!$C$16:$AIR$17,2,FALSE)),"",IF(HLOOKUP(BS$6,Components!$C$16:$AIR$17,2,FALSE)="","",HLOOKUP(BS$6,Components!$C$16:$AIR$17,2,FALSE))) -> 1000 | BT15: =IF(ISNA(HLOOKUP(BT$6,Components!$C$16:$AIR$17,2,FALSE)),"",IF(HLOOKUP(BT$6,Components!$C$16:$AIR$17,2,FALSE)="","",HLOOKUP(BT$6,Components!$C$16:$AIR$17,2,FALSE))) ->  | BU15: =IF(ISNA(HLOOKUP(BU$6,Components!$C$16:$AIR$17,2,FALSE)),"",IF(HLOOKUP(BU$6,Components!$C$16:$AIR$17,2,FALSE)="","",HLOOKUP(BU$6,Components!$C$16:$AIR$17,2,FALSE))) ->  | BV15: =IF(ISNA(HLOOKUP(BV$6,Components!$C$16:$AIR$17,2,FALSE)),"",IF(HLOOKUP(BV$6,Components!$C$16:$AIR$17,2,FALSE)="","",HLOOKUP(BV$6,Components!$C$16:$AIR$17,2,FALSE))) ->  | BW15: =IF(ISNA(HLOOKUP(BW$6,Components!$C$16:$AIR$17,2,FALSE)),"",IF(HLOOKUP(BW$6,Components!$C$16:$AIR$17,2,FALSE)="","",HLOOKUP(BW$6,Components!$C$16:$AIR$17,2,FALSE))) -> 144 | BX15: =IF(ISNA(HLOOKUP(BX$6,Components!$C$16:$AIR$17,2,FALSE)),"",IF(HLOOKUP(BX$6,Components!$C$16:$AIR$17,2,FALSE)="","",HLOOKUP(BX$6,Components!$C$16:$AIR$17,2,FALSE))) -> 720 | BY15: =IF(ISNA(HLOOKUP(BY$6,Components!$C$16:$AIR$17,2,FALSE)),"",IF(HLOOKUP(BY$6,Components!$C$16:$AIR$17,2,FALSE)="","",HLOOKUP(BY$6,Components!$C$16:$AIR$17,2,FALSE))) ->  | BZ15: =IF(ISNA(HLOOKUP(BZ$6,Components!$C$16:$AIR$17,2,FALSE)),"",IF(HLOOKUP(BZ$6,Components!$C$16:$AIR$17,2,FALSE)="","",HLOOKUP(BZ$6,Components!$C$16:$AIR$17,2,FALSE))) ->  | CA15: =IF(ISNA(HLOOKUP(CA$6,Components!$C$16:$AIR$17,2,FALSE)),"",IF(HLOOKUP(CA$6,Components!$C$16:$AIR$17,2,FALSE)="","",HLOOKUP(CA$6,Components!$C$16:$AIR$17,2,FALSE))) ->  | CB15: =IF(ISNA(HLOOKUP(CB$6,Components!$C$16:$AIR$17,2,FALSE)),"",IF(HLOOKUP(CB$6,Components!$C$16:$AIR$17,2,FALSE)="","",HLOOKUP(CB$6,Components!$C$16:$AIR$17,2,FALSE))) ->  | CC15: =IF(ISNA(HLOOKUP(CC$6,Components!$C$16:$AIR$17,2,FALSE)),"",IF(HLOOKUP(CC$6,Components!$C$16:$AIR$17,2,FALSE)="","",HLOOKUP(CC$6,Components!$C$16:$AIR$17,2,FALSE))) -> 1000 | CD15: =IF(ISNA(HLOOKUP(CD$6,Components!$C$16:$AIR$17,2,FALSE)),"",IF(HLOOKUP(CD$6,Components!$C$16:$AIR$17,2,FALSE)="","",HLOOKUP(CD$6,Components!$C$16:$AIR$17,2,FALSE))) ->  | CE15: =IF(ISNA(HLOOKUP(CE$6,Components!$C$16:$AIR$17,2,FALSE)),"",IF(HLOOKUP(CE$6,Components!$C$16:$AIR$17,2,FALSE)="","",HLOOKUP(CE$6,Components!$C$16:$AIR$17,2,FALSE))) -> 440 | CF15: =IF(ISNA(HLOOKUP(CF$6,Components!$C$16:$AIR$17,2,FALSE)),"",IF(HLOOKUP(CF$6,Components!$C$16:$AIR$17,2,FALSE)="","",HLOOKUP(CF$6,Components!$C$16:$AIR$17,2,FALSE))) -> 2200 | CG15: =IF(ISNA(HLOOKUP(CG$6,Components!$C$16:$AIR$17,2,FALSE)),"",IF(HLOOKUP(CG$6,Components!$C$16:$AIR$17,2,FALSE)="","",HLOOKUP(CG$6,Components!$C$16:$AIR$17,2,FALSE))) ->  | CH15: =IF(ISNA(HLOOKUP(CH$6,Components!$C$16:$AIR$17,2,FALSE)),"",IF(HLOOKUP(CH$6,Components!$C$16:$AIR$17,2,FALSE)="","",HLOOKUP(CH$6,Components!$C$16:$AIR$17,2,FALSE))) ->  | CI15: =IF(ISNA(HLOOKUP(CI$6,Components!$C$16:$AIR$17,2,FALSE)),"",IF(HLOOKUP(CI$6,Components!$C$16:$AIR$17,2,FALSE)="","",HLOOKUP(CI$6,Components!$C$16:$AIR$17,2,FALSE))) ->  | CJ15: =IF(ISNA(HLOOKUP(CJ$6,Components!$C$16:$AIR$17,2,FALSE)),"",IF(HLOOKUP(CJ$6,Components!$C$16:$AIR$17,2,FALSE)="","",HLOOKUP(CJ$6,Components!$C$16:$AIR$17,2,FALSE))) ->  | CK15: =IF(ISNA(HLOOKUP(CK$6,Components!$C$16:$AIR$17,2,FALSE)),"",IF(HLOOKUP(CK$6,Components!$C$16:$AIR$17,2,FALSE)="","",HLOOKUP(CK$6,Components!$C$16:$AIR$17,2,FALSE))) ->  | CL15: =IF(ISNA(HLOOKUP(CL$6,Components!$C$16:$AIR$17,2,FALSE)),"",IF(HLOOKUP(CL$6,Components!$C$16:$AIR$17,2,FALSE)="","",HLOOKUP(CL$6,Components!$C$16:$AIR$17,2,FALSE))) ->  | CM15: =IF(ISNA(HLOOKUP(CM$6,Components!$C$16:$AIR$17,2,FALSE)),"",IF(HLOOKUP(CM$6,Components!$C$16:$AIR$17,2,FALSE)="","",HLOOKUP(CM$6,Components!$C$16:$AIR$17,2,FALSE))) ->  | CN15: =IF(ISNA(HLOOKUP(CN$6,Components!$C$16:$AIR$17,2,FALSE)),"",IF(HLOOKUP(CN$6,Components!$C$16:$AIR$17,2,FALSE)="","",HLOOKUP(CN$6,Components!$C$16:$AIR$17,2,FALSE))) -> 750 | CO15: =IF(ISNA(HLOOKUP(CO$6,Components!$C$16:$AIR$17,2,FALSE)),"",IF(HLOOKUP(CO$6,Components!$C$16:$AIR$17,2,FALSE)="","",HLOOKUP(CO$6,Components!$C$16:$AIR$17,2,FALSE))) -> 375 | CP15: =IF(ISNA(HLOOKUP(CP$6,Components!$C$16:$AIR$17,2,FALSE)),"",IF(HLOOKUP(CP$6,Components!$C$16:$AIR$17,2,FALSE)="","",HLOOKUP(CP$6,Components!$C$16:$AIR$17,2,FALSE))) -> 275 | CQ15: =IF(ISNA(HLOOKUP(CQ$6,Components!$C$16:$AIR$17,2,FALSE)),"",IF(HLOOKUP(CQ$6,Components!$C$16:$AIR$17,2,FALSE)="","",HLOOKUP(CQ$6,Components!$C$16:$AIR$17,2,FALSE))) ->  | CR15: =IF(ISNA(HLOOKUP(CR$6,Components!$C$16:$AIR$17,2,FALSE)),"",IF(HLOOKUP(CR$6,Components!$C$16:$AIR$17,2,FALSE)="","",HLOOKUP(CR$6,Components!$C$16:$AIR$17,2,FALSE))) ->  | CS15: =IF(ISNA(HLOOKUP(CS$6,Components!$C$16:$AIR$17,2,FALSE)),"",IF(HLOOKUP(CS$6,Components!$C$16:$AIR$17,2,FALSE)="","",HLOOKUP(CS$6,Components!$C$16:$AIR$17,2,FALSE))) ->  | CT15: =IF(ISNA(HLOOKUP(CT$6,Components!$C$16:$AIR$17,2,FALSE)),"",IF(HLOOKUP(CT$6,Components!$C$16:$AIR$17,2,FALSE)="","",HLOOKUP(CT$6,Components!$C$16:$AIR$17,2,FALSE))) ->  | CU15: =IF(ISNA(HLOOKUP(CU$6,Components!$C$16:$AIR$17,2,FALSE)),"",IF(HLOOKUP(CU$6,Components!$C$16:$AIR$17,2,FALSE)="","",HLOOKUP(CU$6,Components!$C$16:$AIR$17,2,FALSE))) ->  | CV15: =IF(ISNA(HLOOKUP(CV$6,Components!$C$16:$AIR$17,2,FALSE)),"",IF(HLOOKUP(CV$6,Components!$C$16:$AIR$17,2,FALSE)="","",HLOOKUP(CV$6,Components!$C$16:$AIR$17,2,FALSE))) ->  | CW15: =IF(ISNA(HLOOKUP(CW$6,Components!$C$16:$AIR$17,2,FALSE)),"",IF(HLOOKUP(CW$6,Components!$C$16:$AIR$17,2,FALSE)="","",HLOOKUP(CW$6,Components!$C$16:$AIR$17,2,FALSE))) ->  | CX15: =IF(ISNA(HLOOKUP(CX$6,Components!$C$16:$AIR$17,2,FALSE)),"",IF(HLOOKUP(CX$6,Components!$C$16:$AIR$17,2,FALSE)="","",HLOOKUP(CX$6,Components!$C$16:$AIR$17,2,FALSE))) ->  | CY15: =IF(ISNA(HLOOKUP(CY$6,Components!$C$16:$AIR$17,2,FALSE)),"",IF(HLOOKUP(CY$6,Components!$C$16:$AIR$17,2,FALSE)="","",HLOOKUP(CY$6,Components!$C$16:$AIR$17,2,FALSE))) ->  | CZ15: =IF(ISNA(HLOOKUP(CZ$6,Components!$C$16:$AIR$17,2,FALSE)),"",IF(HLOOKUP(CZ$6,Components!$C$16:$AIR$17,2,FALSE)="","",HLOOKUP(CZ$6,Components!$C$16:$AIR$17,2,FALSE))) ->  | DA15: =IF(ISNA(HLOOKUP(DA$6,Components!$C$16:$AIR$17,2,FALSE)),"",IF(HLOOKUP(DA$6,Components!$C$16:$AIR$17,2,FALSE)="","",HLOOKUP(DA$6,Components!$C$16:$AIR$17,2,FALSE))) ->  | DB15: =IF(ISNA(HLOOKUP(DB$6,Components!$C$16:$AIR$17,2,FALSE)),"",IF(HLOOKUP(DB$6,Components!$C$16:$AIR$17,2,FALSE)="","",HLOOKUP(DB$6,Components!$C$16:$AIR$17,2,FALSE))) -> TRUE | DC15: =IF(ISNA(HLOOKUP(DC$6,Components!$C$16:$AIR$17,2,FALSE)),"",IF(HLOOKUP(DC$6,Components!$C$16:$AIR$17,2,FALSE)="","",HLOOKUP(DC$6,Components!$C$16:$AIR$17,2,FALSE))) -> 125129.69 | DD15: =IF(ISNA(HLOOKUP(DD$6,Components!$C$16:$AIR$17,2,FALSE)),"",IF(HLOOKUP(DD$6,Components!$C$16:$AIR$17,2,FALSE)="","",HLOOKUP(DD$6,Components!$C$16:$AIR$17,2,FALSE))) ->  | DE15: =IF(ISNA(HLOOKUP(DE$6,Components!$C$16:$AIR$17,2,FALSE)),"",IF(HLOOKUP(DE$6,Components!$C$16:$AIR$17,2,FALSE)="","",HLOOKUP(DE$6,Components!$C$16:$AIR$17,2,FALSE))) ->  | DF15: =IF(ISNA(HLOOKUP(DF$6,Components!$C$16:$AIR$17,2,FALSE)),"",IF(HLOOKUP(DF$6,Components!$C$16:$AIR$17,2,FALSE)="","",HLOOKUP(DF$6,Components!$C$16:$AIR$17,2,FALSE))) ->  | DG15: =IF(ISNA(HLOOKUP(DG$6,Components!$C$16:$AIR$17,2,FALSE)),"",IF(HLOOKUP(DG$6,Components!$C$16:$AIR$17,2,FALSE)="","",HLOOKUP(DG$6,Components!$C$16:$AIR$17,2,FALSE))) ->  | DH15: =IF(ISNA(HLOOKUP(DH$6,Components!$C$16:$AIR$17,2,FALSE)),"",IF(HLOOKUP(DH$6,Components!$C$16:$AIR$17,2,FALSE)="","",HLOOKUP(DH$6,Components!$C$16:$AIR$17,2,FALSE))) ->  | DI15: =IF(ISNA(HLOOKUP(DI$6,Components!$C$16:$AIR$17,2,FALSE)),"",IF(HLOOKUP(DI$6,Components!$C$16:$AIR$17,2,FALSE)="","",HLOOKUP(DI$6,Components!$C$16:$AIR$17,2,FALSE))) ->  | DJ15: =IF(ISNA(HLOOKUP(DJ$6,Components!$C$16:$AIR$17,2,FALSE)),"",IF(HLOOKUP(DJ$6,Components!$C$16:$AIR$17,2,FALSE)="","",HLOOKUP(DJ$6,Components!$C$16:$AIR$17,2,FALSE))) ->  | DK15: =IF(ISNA(HLOOKUP(DK$6,Components!$C$16:$AIR$17,2,FALSE)),"",IF(HLOOKUP(DK$6,Components!$C$16:$AIR$17,2,FALSE)="","",HLOOKUP(DK$6,Components!$C$16:$AIR$17,2,FALSE))) ->  | DL15: =IF(ISNA(HLOOKUP(DL$6,Components!$C$16:$AIR$17,2,FALSE)),"",IF(HLOOKUP(DL$6,Components!$C$16:$AIR$17,2,FALSE)="","",HLOOKUP(DL$6,Components!$C$16:$AIR$17,2,FALSE))) ->  | DM15: =IF(ISNA(HLOOKUP(DM$6,Components!$C$16:$AIR$17,2,FALSE)),"",IF(HLOOKUP(DM$6,Components!$C$16:$AIR$17,2,FALSE)="","",HLOOKUP(DM$6,Components!$C$16:$AIR$17,2,FALSE))) ->  | DN15: =IF(ISNA(HLOOKUP(DN$6,Components!$C$16:$AIR$17,2,FALSE)),"",IF(HLOOKUP(DN$6,Components!$C$16:$AIR$17,2,FALSE)="","",HLOOKUP(DN$6,Components!$C$16:$AIR$17,2,FALSE))) ->  | DO15: =IF(ISNA(HLOOKUP(DO$6,Components!$C$16:$AIR$17,2,FALSE)),"",IF(HLOOKUP(DO$6,Components!$C$16:$AIR$17,2,FALSE)="","",HLOOKUP(DO$6,Components!$C$16:$AIR$17,2,FALSE))) ->  | DP15: =IF(ISNA(HLOOKUP(DP$6,Components!$C$16:$AIR$17,2,FALSE)),"",IF(HLOOKUP(DP$6,Components!$C$16:$AIR$17,2,FALSE)="","",HLOOKUP(DP$6,Components!$C$16:$AIR$17,2,FALSE))) ->  | DQ15: =IF(ISNA(HLOOKUP(DQ$6,Components!$C$16:$AIR$17,2,FALSE)),"",IF(HLOOKUP(DQ$6,Components!$C$16:$AIR$17,2,FALSE)="","",HLOOKUP(DQ$6,Components!$C$16:$AIR$17,2,FALSE))) ->  | DR15: =IF(ISNA(HLOOKUP(DR$6,Components!$C$16:$AIR$17,2,FALSE)),"",IF(HLOOKUP(DR$6,Components!$C$16:$AIR$17,2,FALSE)="","",HLOOKUP(DR$6,Components!$C$16:$AIR$17,2,FALSE))) -> 
A16: 9 | B16: Calc Type - other trustee (non-trust rate) Q4 (For) INT, DIV Q5 (CG) losses exceed gain Q8.15 (Special trust rates - No) 9A.1 (amt of SRB) - 500 Q17 (Self calculation) | C16: 514.88 | D16: 514.88 | E16: 0 | F16: =IF(ISNA(HLOOKUP(F$6,Components!$C$18:$AIR$19,2,FALSE)),"",IF(HLOOKUP(F$6,Components!$C$18:$AIR$19,2,FALSE)="","",HLOOKUP(F$6,Components!$C$18:$AIR$19,2,FALSE))) ->  | G16: =IF(ISNA(HLOOKUP(G$6,Components!$C$18:$AIR$19,2,FALSE)),"",IF(HLOOKUP(G$6,Components!$C$18:$AIR$19,2,FALSE)="","",HLOOKUP(G$6,Components!$C$18:$AIR$19,2,FALSE))) ->  | H16: =IF(ISNA(HLOOKUP(H$6,Components!$C$18:$AIR$19,2,FALSE)),"",IF(HLOOKUP(H$6,Components!$C$18:$AIR$19,2,FALSE)="","",HLOOKUP(H$6,Components!$C$18:$AIR$19,2,FALSE))) ->  | I16: =IF(ISNA(HLOOKUP(I$6,Components!$C$18:$AIR$19,2,FALSE)),"",IF(HLOOKUP(I$6,Components!$C$18:$AIR$19,2,FALSE)="","",HLOOKUP(I$6,Components!$C$18:$AIR$19,2,FALSE))) ->  | J16: =IF(ISNA(HLOOKUP(J$6,Components!$C$18:$AIR$19,2,FALSE)),"",IF(HLOOKUP(J$6,Components!$C$18:$AIR$19,2,FALSE)="","",HLOOKUP(J$6,Components!$C$18:$AIR$19,2,FALSE))) ->  | K16: =IF(ISNA(HLOOKUP(K$6,Components!$C$18:$AIR$19,2,FALSE)),"",IF(HLOOKUP(K$6,Components!$C$18:$AIR$19,2,FALSE)="","",HLOOKUP(K$6,Components!$C$18:$AIR$19,2,FALSE))) ->  | L16: =IF(ISNA(HLOOKUP(L$6,Components!$C$18:$AIR$19,2,FALSE)),"",IF(HLOOKUP(L$6,Components!$C$18:$AIR$19,2,FALSE)="","",HLOOKUP(L$6,Components!$C$18:$AIR$19,2,FALSE))) ->  | M16: =IF(ISNA(HLOOKUP(M$6,Components!$C$18:$AIR$19,2,FALSE)),"",IF(HLOOKUP(M$6,Components!$C$18:$AIR$19,2,FALSE)="","",HLOOKUP(M$6,Components!$C$18:$AIR$19,2,FALSE))) ->  | N16: =IF(ISNA(HLOOKUP(N$6,Components!$C$18:$AIR$19,2,FALSE)),"",IF(HLOOKUP(N$6,Components!$C$18:$AIR$19,2,FALSE)="","",HLOOKUP(N$6,Components!$C$18:$AIR$19,2,FALSE))) ->  | O16: =IF(ISNA(HLOOKUP(O$6,Components!$C$18:$AIR$19,2,FALSE)),"",IF(HLOOKUP(O$6,Components!$C$18:$AIR$19,2,FALSE)="","",HLOOKUP(O$6,Components!$C$18:$AIR$19,2,FALSE))) ->  | P16: =IF(ISNA(HLOOKUP(P$6,Components!$C$18:$AIR$19,2,FALSE)),"",IF(HLOOKUP(P$6,Components!$C$18:$AIR$19,2,FALSE)="","",HLOOKUP(P$6,Components!$C$18:$AIR$19,2,FALSE))) ->  | Q16: =IF(ISNA(HLOOKUP(Q$6,Components!$C$18:$AIR$19,2,FALSE)),"",IF(HLOOKUP(Q$6,Components!$C$18:$AIR$19,2,FALSE)="","",HLOOKUP(Q$6,Components!$C$18:$AIR$19,2,FALSE))) ->  | R16: =IF(ISNA(HLOOKUP(R$6,Components!$C$18:$AIR$19,2,FALSE)),"",IF(HLOOKUP(R$6,Components!$C$18:$AIR$19,2,FALSE)="","",HLOOKUP(R$6,Components!$C$18:$AIR$19,2,FALSE))) ->  | S16: =IF(ISNA(HLOOKUP(S$6,Components!$C$18:$AIR$19,2,FALSE)),"",IF(HLOOKUP(S$6,Components!$C$18:$AIR$19,2,FALSE)="","",HLOOKUP(S$6,Components!$C$18:$AIR$19,2,FALSE))) ->  | T16: =IF(ISNA(HLOOKUP(T$6,Components!$C$18:$AIR$19,2,FALSE)),"",IF(HLOOKUP(T$6,Components!$C$18:$AIR$19,2,FALSE)="","",HLOOKUP(T$6,Components!$C$18:$AIR$19,2,FALSE))) ->  | U16: =IF(ISNA(HLOOKUP(U$6,Components!$C$18:$AIR$19,2,FALSE)),"",IF(HLOOKUP(U$6,Components!$C$18:$AIR$19,2,FALSE)="","",HLOOKUP(U$6,Components!$C$18:$AIR$19,2,FALSE))) ->  | V16: =IF(ISNA(HLOOKUP(V$6,Components!$C$18:$AIR$19,2,FALSE)),"",IF(HLOOKUP(V$6,Components!$C$18:$AIR$19,2,FALSE)="","",HLOOKUP(V$6,Components!$C$18:$AIR$19,2,FALSE))) ->  | W16: =IF(ISNA(HLOOKUP(W$6,Components!$C$18:$AIR$19,2,FALSE)),"",IF(HLOOKUP(W$6,Components!$C$18:$AIR$19,2,FALSE)="","",HLOOKUP(W$6,Components!$C$18:$AIR$19,2,FALSE))) ->  | X16: =IF(ISNA(HLOOKUP(X$6,Components!$C$18:$AIR$19,2,FALSE)),"",IF(HLOOKUP(X$6,Components!$C$18:$AIR$19,2,FALSE)="","",HLOOKUP(X$6,Components!$C$18:$AIR$19,2,FALSE))) ->  | Y16: =IF(ISNA(HLOOKUP(Y$6,Components!$C$18:$AIR$19,2,FALSE)),"",IF(HLOOKUP(Y$6,Components!$C$18:$AIR$19,2,FALSE)="","",HLOOKUP(Y$6,Components!$C$18:$AIR$19,2,FALSE))) ->  | Z16: =IF(ISNA(HLOOKUP(Z$6,Components!$C$18:$AIR$19,2,FALSE)),"",IF(HLOOKUP(Z$6,Components!$C$18:$AIR$19,2,FALSE)="","",HLOOKUP(Z$6,Components!$C$18:$AIR$19,2,FALSE))) ->  | AA16: =IF(ISNA(HLOOKUP(AA$6,Components!$C$18:$AIR$19,2,FALSE)),"",IF(HLOOKUP(AA$6,Components!$C$18:$AIR$19,2,FALSE)="","",HLOOKUP(AA$6,Components!$C$18:$AIR$19,2,FALSE))) ->  | AB16: =IF(ISNA(HLOOKUP(AB$6,Components!$C$18:$AIR$19,2,FALSE)),"",IF(HLOOKUP(AB$6,Components!$C$18:$AIR$19,2,FALSE)="","",HLOOKUP(AB$6,Components!$C$18:$AIR$19,2,FALSE))) ->  | AC16: =IF(ISNA(HLOOKUP(AC$6,Components!$C$18:$AIR$19,2,FALSE)),"",IF(HLOOKUP(AC$6,Components!$C$18:$AIR$19,2,FALSE)="","",HLOOKUP(AC$6,Components!$C$18:$AIR$19,2,FALSE))) -> 1580 | AD16: =IF(ISNA(HLOOKUP(AD$6,Components!$C$18:$AIR$19,2,FALSE)),"",IF(HLOOKUP(AD$6,Components!$C$18:$AIR$19,2,FALSE)="","",HLOOKUP(AD$6,Components!$C$18:$AIR$19,2,FALSE))) ->  | AE16: =IF(ISNA(HLOOKUP(AE$6,Components!$C$18:$AIR$19,2,FALSE)),"",IF(HLOOKUP(AE$6,Components!$C$18:$AIR$19,2,FALSE)="","",HLOOKUP(AE$6,Components!$C$18:$AIR$19,2,FALSE))) -> 2273.75 | AF16: =IF(ISNA(HLOOKUP(AF$6,Components!$C$18:$AIR$19,2,FALSE)),"",IF(HLOOKUP(AF$6,Components!$C$18:$AIR$19,2,FALSE)="","",HLOOKUP(AF$6,Components!$C$18:$AIR$19,2,FALSE))) ->  | AG16: =IF(ISNA(HLOOKUP(AG$6,Components!$C$18:$AIR$19,2,FALSE)),"",IF(HLOOKUP(AG$6,Components!$C$18:$AIR$19,2,FALSE)="","",HLOOKUP(AG$6,Components!$C$18:$AIR$19,2,FALSE))) ->  | AH16: =IF(ISNA(HLOOKUP(AH$6,Components!$C$18:$AIR$19,2,FALSE)),"",IF(HLOOKUP(AH$6,Components!$C$18:$AIR$19,2,FALSE)="","",HLOOKUP(AH$6,Components!$C$18:$AIR$19,2,FALSE))) ->  | AI16: =IF(ISNA(HLOOKUP(AI$6,Components!$C$18:$AIR$19,2,FALSE)),"",IF(HLOOKUP(AI$6,Components!$C$18:$AIR$19,2,FALSE)="","",HLOOKUP(AI$6,Components!$C$18:$AIR$19,2,FALSE))) ->  | AJ16: =IF(ISNA(HLOOKUP(AJ$6,Components!$C$18:$AIR$19,2,FALSE)),"",IF(HLOOKUP(AJ$6,Components!$C$18:$AIR$19,2,FALSE)="","",HLOOKUP(AJ$6,Components!$C$18:$AIR$19,2,FALSE))) ->  | AK16: =IF(ISNA(HLOOKUP(AK$6,Components!$C$18:$AIR$19,2,FALSE)),"",IF(HLOOKUP(AK$6,Components!$C$18:$AIR$19,2,FALSE)="","",HLOOKUP(AK$6,Components!$C$18:$AIR$19,2,FALSE))) ->  | AL16: =IF(ISNA(HLOOKUP(AL$6,Components!$C$18:$AIR$19,2,FALSE)),"",IF(HLOOKUP(AL$6,Components!$C$18:$AIR$19,2,FALSE)="","",HLOOKUP(AL$6,Components!$C$18:$AIR$19,2,FALSE))) ->  | AM16: =IF(ISNA(HLOOKUP(AM$6,Components!$C$18:$AIR$19,2,FALSE)),"",IF(HLOOKUP(AM$6,Components!$C$18:$AIR$19,2,FALSE)="","",HLOOKUP(AM$6,Components!$C$18:$AIR$19,2,FALSE))) ->  | AN16: =IF(ISNA(HLOOKUP(AN$6,Components!$C$18:$AIR$19,2,FALSE)),"",IF(HLOOKUP(AN$6,Components!$C$18:$AIR$19,2,FALSE)="","",HLOOKUP(AN$6,Components!$C$18:$AIR$19,2,FALSE))) ->  | AO16: =IF(ISNA(HLOOKUP(AO$6,Components!$C$18:$AIR$19,2,FALSE)),"",IF(HLOOKUP(AO$6,Components!$C$18:$AIR$19,2,FALSE)="","",HLOOKUP(AO$6,Components!$C$18:$AIR$19,2,FALSE))) ->  | AP16: =IF(ISNA(HLOOKUP(AP$6,Components!$C$18:$AIR$19,2,FALSE)),"",IF(HLOOKUP(AP$6,Components!$C$18:$AIR$19,2,FALSE)="","",HLOOKUP(AP$6,Components!$C$18:$AIR$19,2,FALSE))) ->  | AQ16: =IF(ISNA(HLOOKUP(AQ$6,Components!$C$18:$AIR$19,2,FALSE)),"",IF(HLOOKUP(AQ$6,Components!$C$18:$AIR$19,2,FALSE)="","",HLOOKUP(AQ$6,Components!$C$18:$AIR$19,2,FALSE))) ->  | AR16: =IF(ISNA(HLOOKUP(AR$6,Components!$C$18:$AIR$19,2,FALSE)),"",IF(HLOOKUP(AR$6,Components!$C$18:$AIR$19,2,FALSE)="","",HLOOKUP(AR$6,Components!$C$18:$AIR$19,2,FALSE))) ->  | AS16: =IF(ISNA(HLOOKUP(AS$6,Components!$C$18:$AIR$19,2,FALSE)),"",IF(HLOOKUP(AS$6,Components!$C$18:$AIR$19,2,FALSE)="","",HLOOKUP(AS$6,Components!$C$18:$AIR$19,2,FALSE))) ->  | AT16: =IF(ISNA(HLOOKUP(AT$6,Components!$C$18:$AIR$19,2,FALSE)),"",IF(HLOOKUP(AT$6,Components!$C$18:$AIR$19,2,FALSE)="","",HLOOKUP(AT$6,Components!$C$18:$AIR$19,2,FALSE))) ->  | AU16: =IF(ISNA(HLOOKUP(AU$6,Components!$C$18:$AIR$19,2,FALSE)),"",IF(HLOOKUP(AU$6,Components!$C$18:$AIR$19,2,FALSE)="","",HLOOKUP(AU$6,Components!$C$18:$AIR$19,2,FALSE))) ->  | AV16: =IF(ISNA(HLOOKUP(AV$6,Components!$C$18:$AIR$19,2,FALSE)),"",IF(HLOOKUP(AV$6,Components!$C$18:$AIR$19,2,FALSE)="","",HLOOKUP(AV$6,Components!$C$18:$AIR$19,2,FALSE))) ->  | AW16: =IF(ISNA(HLOOKUP(AW$6,Components!$C$18:$AIR$19,2,FALSE)),"",IF(HLOOKUP(AW$6,Components!$C$18:$AIR$19,2,FALSE)="","",HLOOKUP(AW$6,Components!$C$18:$AIR$19,2,FALSE))) ->  | AX16: =IF(ISNA(HLOOKUP(AX$6,Components!$C$18:$AIR$19,2,FALSE)),"",IF(HLOOKUP(AX$6,Components!$C$18:$AIR$19,2,FALSE)="","",HLOOKUP(AX$6,Components!$C$18:$AIR$19,2,FALSE))) ->  | AY16: =IF(ISNA(HLOOKUP(AY$6,Components!$C$18:$AIR$19,2,FALSE)),"",IF(HLOOKUP(AY$6,Components!$C$18:$AIR$19,2,FALSE)="","",HLOOKUP(AY$6,Components!$C$18:$AIR$19,2,FALSE))) ->  | AZ16: =IF(ISNA(HLOOKUP(AZ$6,Components!$C$18:$AIR$19,2,FALSE)),"",IF(HLOOKUP(AZ$6,Components!$C$18:$AIR$19,2,FALSE)="","",HLOOKUP(AZ$6,Components!$C$18:$AIR$19,2,FALSE))) ->  | BA16: =IF(ISNA(HLOOKUP(BA$6,Components!$C$18:$AIR$19,2,FALSE)),"",IF(HLOOKUP(BA$6,Components!$C$18:$AIR$19,2,FALSE)="","",HLOOKUP(BA$6,Components!$C$18:$AIR$19,2,FALSE))) ->  | BB16: =IF(ISNA(HLOOKUP(BB$6,Components!$C$18:$AIR$19,2,FALSE)),"",IF(HLOOKUP(BB$6,Components!$C$18:$AIR$19,2,FALSE)="","",HLOOKUP(BB$6,Components!$C$18:$AIR$19,2,FALSE))) ->  | BC16: =IF(ISNA(HLOOKUP(BC$6,Components!$C$18:$AIR$19,2,FALSE)),"",IF(HLOOKUP(BC$6,Components!$C$18:$AIR$19,2,FALSE)="","",HLOOKUP(BC$6,Components!$C$18:$AIR$19,2,FALSE))) ->  | BD16: =IF(ISNA(HLOOKUP(BD$6,Components!$C$18:$AIR$19,2,FALSE)),"",IF(HLOOKUP(BD$6,Components!$C$18:$AIR$19,2,FALSE)="","",HLOOKUP(BD$6,Components!$C$18:$AIR$19,2,FALSE))) ->  | BE16: =IF(ISNA(HLOOKUP(BE$6,Components!$C$18:$AIR$19,2,FALSE)),"",IF(HLOOKUP(BE$6,Components!$C$18:$AIR$19,2,FALSE)="","",HLOOKUP(BE$6,Components!$C$18:$AIR$19,2,FALSE))) ->  | BF16: =IF(ISNA(HLOOKUP(BF$6,Components!$C$18:$AIR$19,2,FALSE)),"",IF(HLOOKUP(BF$6,Components!$C$18:$AIR$19,2,FALSE)="","",HLOOKUP(BF$6,Components!$C$18:$AIR$19,2,FALSE))) ->  | BG16: =IF(ISNA(HLOOKUP(BG$6,Components!$C$18:$AIR$19,2,FALSE)),"",IF(HLOOKUP(BG$6,Components!$C$18:$AIR$19,2,FALSE)="","",HLOOKUP(BG$6,Components!$C$18:$AIR$19,2,FALSE))) ->  | BH16: =IF(ISNA(HLOOKUP(BH$6,Components!$C$18:$AIR$19,2,FALSE)),"",IF(HLOOKUP(BH$6,Components!$C$18:$AIR$19,2,FALSE)="","",HLOOKUP(BH$6,Components!$C$18:$AIR$19,2,FALSE))) ->  | BI16: =IF(ISNA(HLOOKUP(BI$6,Components!$C$18:$AIR$19,2,FALSE)),"",IF(HLOOKUP(BI$6,Components!$C$18:$AIR$19,2,FALSE)="","",HLOOKUP(BI$6,Components!$C$18:$AIR$19,2,FALSE))) ->  | BJ16: =IF(ISNA(HLOOKUP(BJ$6,Components!$C$18:$AIR$19,2,FALSE)),"",IF(HLOOKUP(BJ$6,Components!$C$18:$AIR$19,2,FALSE)="","",HLOOKUP(BJ$6,Components!$C$18:$AIR$19,2,FALSE))) ->  | BK16: =IF(ISNA(HLOOKUP(BK$6,Components!$C$18:$AIR$19,2,FALSE)),"",IF(HLOOKUP(BK$6,Components!$C$18:$AIR$19,2,FALSE)="","",HLOOKUP(BK$6,Components!$C$18:$AIR$19,2,FALSE))) ->  | BL16: =IF(ISNA(HLOOKUP(BL$6,Components!$C$18:$AIR$19,2,FALSE)),"",IF(HLOOKUP(BL$6,Components!$C$18:$AIR$19,2,FALSE)="","",HLOOKUP(BL$6,Components!$C$18:$AIR$19,2,FALSE))) ->  | BM16: =IF(ISNA(HLOOKUP(BM$6,Components!$C$18:$AIR$19,2,FALSE)),"",IF(HLOOKUP(BM$6,Components!$C$18:$AIR$19,2,FALSE)="","",HLOOKUP(BM$6,Components!$C$18:$AIR$19,2,FALSE))) ->  | BN16: =IF(ISNA(HLOOKUP(BN$6,Components!$C$18:$AIR$19,2,FALSE)),"",IF(HLOOKUP(BN$6,Components!$C$18:$AIR$19,2,FALSE)="","",HLOOKUP(BN$6,Components!$C$18:$AIR$19,2,FALSE))) ->  | BO16: =IF(ISNA(HLOOKUP(BO$6,Components!$C$18:$AIR$19,2,FALSE)),"",IF(HLOOKUP(BO$6,Components!$C$18:$AIR$19,2,FALSE)="","",HLOOKUP(BO$6,Components!$C$18:$AIR$19,2,FALSE))) ->  | BP16: =IF(ISNA(HLOOKUP(BP$6,Components!$C$18:$AIR$19,2,FALSE)),"",IF(HLOOKUP(BP$6,Components!$C$18:$AIR$19,2,FALSE)="","",HLOOKUP(BP$6,Components!$C$18:$AIR$19,2,FALSE))) ->  | BQ16: =IF(ISNA(HLOOKUP(BQ$6,Components!$C$18:$AIR$19,2,FALSE)),"",IF(HLOOKUP(BQ$6,Components!$C$18:$AIR$19,2,FALSE)="","",HLOOKUP(BQ$6,Components!$C$18:$AIR$19,2,FALSE))) ->  | BR16: =IF(ISNA(HLOOKUP(BR$6,Components!$C$18:$AIR$19,2,FALSE)),"",IF(HLOOKUP(BR$6,Components!$C$18:$AIR$19,2,FALSE)="","",HLOOKUP(BR$6,Components!$C$18:$AIR$19,2,FALSE))) ->  | BS16: =IF(ISNA(HLOOKUP(BS$6,Components!$C$18:$AIR$19,2,FALSE)),"",IF(HLOOKUP(BS$6,Components!$C$18:$AIR$19,2,FALSE)="","",HLOOKUP(BS$6,Components!$C$18:$AIR$19,2,FALSE))) ->  | BT16: =IF(ISNA(HLOOKUP(BT$6,Components!$C$18:$AIR$19,2,FALSE)),"",IF(HLOOKUP(BT$6,Components!$C$18:$AIR$19,2,FALSE)="","",HLOOKUP(BT$6,Components!$C$18:$AIR$19,2,FALSE))) ->  | BU16: =IF(ISNA(HLOOKUP(BU$6,Components!$C$18:$AIR$19,2,FALSE)),"",IF(HLOOKUP(BU$6,Components!$C$18:$AIR$19,2,FALSE)="","",HLOOKUP(BU$6,Components!$C$18:$AIR$19,2,FALSE))) ->  | BV16: =IF(ISNA(HLOOKUP(BV$6,Components!$C$18:$AIR$19,2,FALSE)),"",IF(HLOOKUP(BV$6,Components!$C$18:$AIR$19,2,FALSE)="","",HLOOKUP(BV$6,Components!$C$18:$AIR$19,2,FALSE))) ->  | BW16: =IF(ISNA(HLOOKUP(BW$6,Components!$C$18:$AIR$19,2,FALSE)),"",IF(HLOOKUP(BW$6,Components!$C$18:$AIR$19,2,FALSE)="","",HLOOKUP(BW$6,Components!$C$18:$AIR$19,2,FALSE))) ->  | BX16: =IF(ISNA(HLOOKUP(BX$6,Components!$C$18:$AIR$19,2,FALSE)),"",IF(HLOOKUP(BX$6,Components!$C$18:$AIR$19,2,FALSE)="","",HLOOKUP(BX$6,Components!$C$18:$AIR$19,2,FALSE))) ->  | BY16: =IF(ISNA(HLOOKUP(BY$6,Components!$C$18:$AIR$19,2,FALSE)),"",IF(HLOOKUP(BY$6,Components!$C$18:$AIR$19,2,FALSE)="","",HLOOKUP(BY$6,Components!$C$18:$AIR$19,2,FALSE))) ->  | BZ16: =IF(ISNA(HLOOKUP(BZ$6,Components!$C$18:$AIR$19,2,FALSE)),"",IF(HLOOKUP(BZ$6,Components!$C$18:$AIR$19,2,FALSE)="","",HLOOKUP(BZ$6,Components!$C$18:$AIR$19,2,FALSE))) ->  | CA16: =IF(ISNA(HLOOKUP(CA$6,Components!$C$18:$AIR$19,2,FALSE)),"",IF(HLOOKUP(CA$6,Components!$C$18:$AIR$19,2,FALSE)="","",HLOOKUP(CA$6,Components!$C$18:$AIR$19,2,FALSE))) ->  | CB16: =IF(ISNA(HLOOKUP(CB$6,Components!$C$18:$AIR$19,2,FALSE)),"",IF(HLOOKUP(CB$6,Components!$C$18:$AIR$19,2,FALSE)="","",HLOOKUP(CB$6,Components!$C$18:$AIR$19,2,FALSE))) ->  | CC16: =IF(ISNA(HLOOKUP(CC$6,Components!$C$18:$AIR$19,2,FALSE)),"",IF(HLOOKUP(CC$6,Components!$C$18:$AIR$19,2,FALSE)="","",HLOOKUP(CC$6,Components!$C$18:$AIR$19,2,FALSE))) -> 500 | CD16: =IF(ISNA(HLOOKUP(CD$6,Components!$C$18:$AIR$19,2,FALSE)),"",IF(HLOOKUP(CD$6,Components!$C$18:$AIR$19,2,FALSE)="","",HLOOKUP(CD$6,Components!$C$18:$AIR$19,2,FALSE))) ->  | CE16: =IF(ISNA(HLOOKUP(CE$6,Components!$C$18:$AIR$19,2,FALSE)),"",IF(HLOOKUP(CE$6,Components!$C$18:$AIR$19,2,FALSE)="","",HLOOKUP(CE$6,Components!$C$18:$AIR$19,2,FALSE))) ->  | CF16: =IF(ISNA(HLOOKUP(CF$6,Components!$C$18:$AIR$19,2,FALSE)),"",IF(HLOOKUP(CF$6,Components!$C$18:$AIR$19,2,FALSE)="","",HLOOKUP(CF$6,Components!$C$18:$AIR$19,2,FALSE))) ->  | CG16: =IF(ISNA(HLOOKUP(CG$6,Components!$C$18:$AIR$19,2,FALSE)),"",IF(HLOOKUP(CG$6,Components!$C$18:$AIR$19,2,FALSE)="","",HLOOKUP(CG$6,Components!$C$18:$AIR$19,2,FALSE))) ->  | CH16: =IF(ISNA(HLOOKUP(CH$6,Components!$C$18:$AIR$19,2,FALSE)),"",IF(HLOOKUP(CH$6,Components!$C$18:$AIR$19,2,FALSE)="","",HLOOKUP(CH$6,Components!$C$18:$AIR$19,2,FALSE))) ->  | CI16: =IF(ISNA(HLOOKUP(CI$6,Components!$C$18:$AIR$19,2,FALSE)),"",IF(HLOOKUP(CI$6,Components!$C$18:$AIR$19,2,FALSE)="","",HLOOKUP(CI$6,Components!$C$18:$AIR$19,2,FALSE))) ->  | CJ16: =IF(ISNA(HLOOKUP(CJ$6,Components!$C$18:$AIR$19,2,FALSE)),"",IF(HLOOKUP(CJ$6,Components!$C$18:$AIR$19,2,FALSE)="","",HLOOKUP(CJ$6,Components!$C$18:$AIR$19,2,FALSE))) ->  | CK16: =IF(ISNA(HLOOKUP(CK$6,Components!$C$18:$AIR$19,2,FALSE)),"",IF(HLOOKUP(CK$6,Components!$C$18:$AIR$19,2,FALSE)="","",HLOOKUP(CK$6,Components!$C$18:$AIR$19,2,FALSE))) ->  | CL16: =IF(ISNA(HLOOKUP(CL$6,Components!$C$18:$AIR$19,2,FALSE)),"",IF(HLOOKUP(CL$6,Components!$C$18:$AIR$19,2,FALSE)="","",HLOOKUP(CL$6,Components!$C$18:$AIR$19,2,FALSE))) ->  | CM16: =IF(ISNA(HLOOKUP(CM$6,Components!$C$18:$AIR$19,2,FALSE)),"",IF(HLOOKUP(CM$6,Components!$C$18:$AIR$19,2,FALSE)="","",HLOOKUP(CM$6,Components!$C$18:$AIR$19,2,FALSE))) ->  | CN16: =IF(ISNA(HLOOKUP(CN$6,Components!$C$18:$AIR$19,2,FALSE)),"",IF(HLOOKUP(CN$6,Components!$C$18:$AIR$19,2,FALSE)="","",HLOOKUP(CN$6,Components!$C$18:$AIR$19,2,FALSE))) ->  | CO16: =IF(ISNA(HLOOKUP(CO$6,Components!$C$18:$AIR$19,2,FALSE)),"",IF(HLOOKUP(CO$6,Components!$C$18:$AIR$19,2,FALSE)="","",HLOOKUP(CO$6,Components!$C$18:$AIR$19,2,FALSE))) ->  | CP16: =IF(ISNA(HLOOKUP(CP$6,Components!$C$18:$AIR$19,2,FALSE)),"",IF(HLOOKUP(CP$6,Components!$C$18:$AIR$19,2,FALSE)="","",HLOOKUP(CP$6,Components!$C$18:$AIR$19,2,FALSE))) ->  | CQ16: =IF(ISNA(HLOOKUP(CQ$6,Components!$C$18:$AIR$19,2,FALSE)),"",IF(HLOOKUP(CQ$6,Components!$C$18:$AIR$19,2,FALSE)="","",HLOOKUP(CQ$6,Components!$C$18:$AIR$19,2,FALSE))) ->  | CR16: =IF(ISNA(HLOOKUP(CR$6,Components!$C$18:$AIR$19,2,FALSE)),"",IF(HLOOKUP(CR$6,Components!$C$18:$AIR$19,2,FALSE)="","",HLOOKUP(CR$6,Components!$C$18:$AIR$19,2,FALSE))) ->  | CS16: =IF(ISNA(HLOOKUP(CS$6,Components!$C$18:$AIR$19,2,FALSE)),"",IF(HLOOKUP(CS$6,Components!$C$18:$AIR$19,2,FALSE)="","",HLOOKUP(CS$6,Components!$C$18:$AIR$19,2,FALSE))) ->  | CT16: =IF(ISNA(HLOOKUP(CT$6,Components!$C$18:$AIR$19,2,FALSE)),"",IF(HLOOKUP(CT$6,Components!$C$18:$AIR$19,2,FALSE)="","",HLOOKUP(CT$6,Components!$C$18:$AIR$19,2,FALSE))) ->  | CU16: =IF(ISNA(HLOOKUP(CU$6,Components!$C$18:$AIR$19,2,FALSE)),"",IF(HLOOKUP(CU$6,Components!$C$18:$AIR$19,2,FALSE)="","",HLOOKUP(CU$6,Components!$C$18:$AIR$19,2,FALSE))) ->  | CV16: =IF(ISNA(HLOOKUP(CV$6,Components!$C$18:$AIR$19,2,FALSE)),"",IF(HLOOKUP(CV$6,Components!$C$18:$AIR$19,2,FALSE)="","",HLOOKUP(CV$6,Components!$C$18:$AIR$19,2,FALSE))) ->  | CW16: =IF(ISNA(HLOOKUP(CW$6,Components!$C$18:$AIR$19,2,FALSE)),"",IF(HLOOKUP(CW$6,Components!$C$18:$AIR$19,2,FALSE)="","",HLOOKUP(CW$6,Components!$C$18:$AIR$19,2,FALSE))) ->  | CX16: =IF(ISNA(HLOOKUP(CX$6,Components!$C$18:$AIR$19,2,FALSE)),"",IF(HLOOKUP(CX$6,Components!$C$18:$AIR$19,2,FALSE)="","",HLOOKUP(CX$6,Components!$C$18:$AIR$19,2,FALSE))) ->  | CY16: =IF(ISNA(HLOOKUP(CY$6,Components!$C$18:$AIR$19,2,FALSE)),"",IF(HLOOKUP(CY$6,Components!$C$18:$AIR$19,2,FALSE)="","",HLOOKUP(CY$6,Components!$C$18:$AIR$19,2,FALSE))) ->  | CZ16: =IF(ISNA(HLOOKUP(CZ$6,Components!$C$18:$AIR$19,2,FALSE)),"",IF(HLOOKUP(CZ$6,Components!$C$18:$AIR$19,2,FALSE)="","",HLOOKUP(CZ$6,Components!$C$18:$AIR$19,2,FALSE))) ->  | DA16: =IF(ISNA(HLOOKUP(DA$6,Components!$C$18:$AIR$19,2,FALSE)),"",IF(HLOOKUP(DA$6,Components!$C$18:$AIR$19,2,FALSE)="","",HLOOKUP(DA$6,Components!$C$18:$AIR$19,2,FALSE))) ->  | DB16: =IF(ISNA(HLOOKUP(DB$6,Components!$C$18:$AIR$19,2,FALSE)),"",IF(HLOOKUP(DB$6,Components!$C$18:$AIR$19,2,FALSE)="","",HLOOKUP(DB$6,Components!$C$18:$AIR$19,2,FALSE))) -> TRUE | DC16: =IF(ISNA(HLOOKUP(DC$6,Components!$C$18:$AIR$19,2,FALSE)),"",IF(HLOOKUP(DC$6,Components!$C$18:$AIR$19,2,FALSE)="","",HLOOKUP(DC$6,Components!$C$18:$AIR$19,2,FALSE))) -> 514.88 | DD16: =IF(ISNA(HLOOKUP(DD$6,Components!$C$18:$AIR$19,2,FALSE)),"",IF(HLOOKUP(DD$6,Components!$C$18:$AIR$19,2,FALSE)="","",HLOOKUP(DD$6,Components!$C$18:$AIR$19,2,FALSE))) ->  | DE16: =IF(ISNA(HLOOKUP(DE$6,Components!$C$18:$AIR$19,2,FALSE)),"",IF(HLOOKUP(DE$6,Components!$C$18:$AIR$19,2,FALSE)="","",HLOOKUP(DE$6,Components!$C$18:$AIR$19,2,FALSE))) ->  | DF16: =IF(ISNA(HLOOKUP(DF$6,Components!$C$18:$AIR$19,2,FALSE)),"",IF(HLOOKUP(DF$6,Components!$C$18:$AIR$19,2,FALSE)="","",HLOOKUP(DF$6,Components!$C$18:$AIR$19,2,FALSE))) ->  | DG16: =IF(ISNA(HLOOKUP(DG$6,Components!$C$18:$AIR$19,2,FALSE)),"",IF(HLOOKUP(DG$6,Components!$C$18:$AIR$19,2,FALSE)="","",HLOOKUP(DG$6,Components!$C$18:$AIR$19,2,FALSE))) ->  | DH16: =IF(ISNA(HLOOKUP(DH$6,Components!$C$18:$AIR$19,2,FALSE)),"",IF(HLOOKUP(DH$6,Components!$C$18:$AIR$19,2,FALSE)="","",HLOOKUP(DH$6,Components!$C$18:$AIR$19,2,FALSE))) ->  | DI16: =IF(ISNA(HLOOKUP(DI$6,Components!$C$18:$AIR$19,2,FALSE)),"",IF(HLOOKUP(DI$6,Components!$C$18:$AIR$19,2,FALSE)="","",HLOOKUP(DI$6,Components!$C$18:$AIR$19,2,FALSE))) ->  | DJ16: =IF(ISNA(HLOOKUP(DJ$6,Components!$C$18:$AIR$19,2,FALSE)),"",IF(HLOOKUP(DJ$6,Components!$C$18:$AIR$19,2,FALSE)="","",HLOOKUP(DJ$6,Components!$C$18:$AIR$19,2,FALSE))) ->  | DK16: =IF(ISNA(HLOOKUP(DK$6,Components!$C$18:$AIR$19,2,FALSE)),"",IF(HLOOKUP(DK$6,Components!$C$18:$AIR$19,2,FALSE)="","",HLOOKUP(DK$6,Components!$C$18:$AIR$19,2,FALSE))) ->  | DL16: =IF(ISNA(HLOOKUP(DL$6,Components!$C$18:$AIR$19,2,FALSE)),"",IF(HLOOKUP(DL$6,Components!$C$18:$AIR$19,2,FALSE)="","",HLOOKUP(DL$6,Components!$C$18:$AIR$19,2,FALSE))) ->  | DM16: =IF(ISNA(HLOOKUP(DM$6,Components!$C$18:$AIR$19,2,FALSE)),"",IF(HLOOKUP(DM$6,Components!$C$18:$AIR$19,2,FALSE)="","",HLOOKUP(DM$6,Components!$C$18:$AIR$19,2,FALSE))) ->  | DN16: =IF(ISNA(HLOOKUP(DN$6,Components!$C$18:$AIR$19,2,FALSE)),"",IF(HLOOKUP(DN$6,Components!$C$18:$AIR$19,2,FALSE)="","",HLOOKUP(DN$6,Components!$C$18:$AIR$19,2,FALSE))) ->  | DO16: =IF(ISNA(HLOOKUP(DO$6,Components!$C$18:$AIR$19,2,FALSE)),"",IF(HLOOKUP(DO$6,Components!$C$18:$AIR$19,2,FALSE)="","",HLOOKUP(DO$6,Components!$C$18:$AIR$19,2,FALSE))) ->  | DP16: =IF(ISNA(HLOOKUP(DP$6,Components!$C$18:$AIR$19,2,FALSE)),"",IF(HLOOKUP(DP$6,Components!$C$18:$AIR$19,2,FALSE)="","",HLOOKUP(DP$6,Components!$C$18:$AIR$19,2,FALSE))) ->  | DQ16: =IF(ISNA(HLOOKUP(DQ$6,Components!$C$18:$AIR$19,2,FALSE)),"",IF(HLOOKUP(DQ$6,Components!$C$18:$AIR$19,2,FALSE)="","",HLOOKUP(DQ$6,Components!$C$18:$AIR$19,2,FALSE))) ->  | DR16: =IF(ISNA(HLOOKUP(DR$6,Components!$C$18:$AIR$19,2,FALSE)),"",IF(HLOOKUP(DR$6,Components!$C$18:$AIR$19,2,FALSE)="","",HLOOKUP(DR$6,Components!$C$18:$AIR$19,2,FALSE))) -> 
A17: 10 | B17: Calc Type - Personal Rep Q8.12 (settlor Ben) Q9 (Other Inc) Untaxed UK INT, Taxed UK INT. NS&I INT(taxed) Q17 (Self calculation) Q23 (Estate Pens Chgs) | C17: 6459.98 | D17: 6459.98 | E17: 3229.99 | F17: =IF(ISNA(HLOOKUP(F$6,Components!$C$20:$AIR$21,2,FALSE)),"",IF(HLOOKUP(F$6,Components!$C$20:$AIR$21,2,FALSE)="","",HLOOKUP(F$6,Components!$C$20:$AIR$21,2,FALSE))) ->  | G17: =IF(ISNA(HLOOKUP(G$6,Components!$C$20:$AIR$21,2,FALSE)),"",IF(HLOOKUP(G$6,Components!$C$20:$AIR$21,2,FALSE)="","",HLOOKUP(G$6,Components!$C$20:$AIR$21,2,FALSE))) ->  | H17: =IF(ISNA(HLOOKUP(H$6,Components!$C$20:$AIR$21,2,FALSE)),"",IF(HLOOKUP(H$6,Components!$C$20:$AIR$21,2,FALSE)="","",HLOOKUP(H$6,Components!$C$20:$AIR$21,2,FALSE))) ->  | I17: =IF(ISNA(HLOOKUP(I$6,Components!$C$20:$AIR$21,2,FALSE)),"",IF(HLOOKUP(I$6,Components!$C$20:$AIR$21,2,FALSE)="","",HLOOKUP(I$6,Components!$C$20:$AIR$21,2,FALSE))) ->  | J17: =IF(ISNA(HLOOKUP(J$6,Components!$C$20:$AIR$21,2,FALSE)),"",IF(HLOOKUP(J$6,Components!$C$20:$AIR$21,2,FALSE)="","",HLOOKUP(J$6,Components!$C$20:$AIR$21,2,FALSE))) ->  | K17: =IF(ISNA(HLOOKUP(K$6,Components!$C$20:$AIR$21,2,FALSE)),"",IF(HLOOKUP(K$6,Components!$C$20:$AIR$21,2,FALSE)="","",HLOOKUP(K$6,Components!$C$20:$AIR$21,2,FALSE))) ->  | L17: =IF(ISNA(HLOOKUP(L$6,Components!$C$20:$AIR$21,2,FALSE)),"",IF(HLOOKUP(L$6,Components!$C$20:$AIR$21,2,FALSE)="","",HLOOKUP(L$6,Components!$C$20:$AIR$21,2,FALSE))) ->  | M17: =IF(ISNA(HLOOKUP(M$6,Components!$C$20:$AIR$21,2,FALSE)),"",IF(HLOOKUP(M$6,Components!$C$20:$AIR$21,2,FALSE)="","",HLOOKUP(M$6,Components!$C$20:$AIR$21,2,FALSE))) ->  | N17: =IF(ISNA(HLOOKUP(N$6,Components!$C$20:$AIR$21,2,FALSE)),"",IF(HLOOKUP(N$6,Components!$C$20:$AIR$21,2,FALSE)="","",HLOOKUP(N$6,Components!$C$20:$AIR$21,2,FALSE))) ->  | O17: =IF(ISNA(HLOOKUP(O$6,Components!$C$20:$AIR$21,2,FALSE)),"",IF(HLOOKUP(O$6,Components!$C$20:$AIR$21,2,FALSE)="","",HLOOKUP(O$6,Components!$C$20:$AIR$21,2,FALSE))) ->  | P17: =IF(ISNA(HLOOKUP(P$6,Components!$C$20:$AIR$21,2,FALSE)),"",IF(HLOOKUP(P$6,Components!$C$20:$AIR$21,2,FALSE)="","",HLOOKUP(P$6,Components!$C$20:$AIR$21,2,FALSE))) ->  | Q17: =IF(ISNA(HLOOKUP(Q$6,Components!$C$20:$AIR$21,2,FALSE)),"",IF(HLOOKUP(Q$6,Components!$C$20:$AIR$21,2,FALSE)="","",HLOOKUP(Q$6,Components!$C$20:$AIR$21,2,FALSE))) ->  | R17: =IF(ISNA(HLOOKUP(R$6,Components!$C$20:$AIR$21,2,FALSE)),"",IF(HLOOKUP(R$6,Components!$C$20:$AIR$21,2,FALSE)="","",HLOOKUP(R$6,Components!$C$20:$AIR$21,2,FALSE))) ->  | S17: =IF(ISNA(HLOOKUP(S$6,Components!$C$20:$AIR$21,2,FALSE)),"",IF(HLOOKUP(S$6,Components!$C$20:$AIR$21,2,FALSE)="","",HLOOKUP(S$6,Components!$C$20:$AIR$21,2,FALSE))) ->  | T17: =IF(ISNA(HLOOKUP(T$6,Components!$C$20:$AIR$21,2,FALSE)),"",IF(HLOOKUP(T$6,Components!$C$20:$AIR$21,2,FALSE)="","",HLOOKUP(T$6,Components!$C$20:$AIR$21,2,FALSE))) ->  | U17: =IF(ISNA(HLOOKUP(U$6,Components!$C$20:$AIR$21,2,FALSE)),"",IF(HLOOKUP(U$6,Components!$C$20:$AIR$21,2,FALSE)="","",HLOOKUP(U$6,Components!$C$20:$AIR$21,2,FALSE))) ->  | V17: =IF(ISNA(HLOOKUP(V$6,Components!$C$20:$AIR$21,2,FALSE)),"",IF(HLOOKUP(V$6,Components!$C$20:$AIR$21,2,FALSE)="","",HLOOKUP(V$6,Components!$C$20:$AIR$21,2,FALSE))) ->  | W17: =IF(ISNA(HLOOKUP(W$6,Components!$C$20:$AIR$21,2,FALSE)),"",IF(HLOOKUP(W$6,Components!$C$20:$AIR$21,2,FALSE)="","",HLOOKUP(W$6,Components!$C$20:$AIR$21,2,FALSE))) ->  | X17: =IF(ISNA(HLOOKUP(X$6,Components!$C$20:$AIR$21,2,FALSE)),"",IF(HLOOKUP(X$6,Components!$C$20:$AIR$21,2,FALSE)="","",HLOOKUP(X$6,Components!$C$20:$AIR$21,2,FALSE))) ->  | Y17: =IF(ISNA(HLOOKUP(Y$6,Components!$C$20:$AIR$21,2,FALSE)),"",IF(HLOOKUP(Y$6,Components!$C$20:$AIR$21,2,FALSE)="","",HLOOKUP(Y$6,Components!$C$20:$AIR$21,2,FALSE))) ->  | Z17: =IF(ISNA(HLOOKUP(Z$6,Components!$C$20:$AIR$21,2,FALSE)),"",IF(HLOOKUP(Z$6,Components!$C$20:$AIR$21,2,FALSE)="","",HLOOKUP(Z$6,Components!$C$20:$AIR$21,2,FALSE))) ->  | AA17: =IF(ISNA(HLOOKUP(AA$6,Components!$C$20:$AIR$21,2,FALSE)),"",IF(HLOOKUP(AA$6,Components!$C$20:$AIR$21,2,FALSE)="","",HLOOKUP(AA$6,Components!$C$20:$AIR$21,2,FALSE))) ->  | AB17: =IF(ISNA(HLOOKUP(AB$6,Components!$C$20:$AIR$21,2,FALSE)),"",IF(HLOOKUP(AB$6,Components!$C$20:$AIR$21,2,FALSE)="","",HLOOKUP(AB$6,Components!$C$20:$AIR$21,2,FALSE))) ->  | AC17: =IF(ISNA(HLOOKUP(AC$6,Components!$C$20:$AIR$21,2,FALSE)),"",IF(HLOOKUP(AC$6,Components!$C$20:$AIR$21,2,FALSE)="","",HLOOKUP(AC$6,Components!$C$20:$AIR$21,2,FALSE))) ->  | AD17: =IF(ISNA(HLOOKUP(AD$6,Components!$C$20:$AIR$21,2,FALSE)),"",IF(HLOOKUP(AD$6,Components!$C$20:$AIR$21,2,FALSE)="","",HLOOKUP(AD$6,Components!$C$20:$AIR$21,2,FALSE))) ->  | AE17: =IF(ISNA(HLOOKUP(AE$6,Components!$C$20:$AIR$21,2,FALSE)),"",IF(HLOOKUP(AE$6,Components!$C$20:$AIR$21,2,FALSE)="","",HLOOKUP(AE$6,Components!$C$20:$AIR$21,2,FALSE))) ->  | AF17: =IF(ISNA(HLOOKUP(AF$6,Components!$C$20:$AIR$21,2,FALSE)),"",IF(HLOOKUP(AF$6,Components!$C$20:$AIR$21,2,FALSE)="","",HLOOKUP(AF$6,Components!$C$20:$AIR$21,2,FALSE))) ->  | AG17: =IF(ISNA(HLOOKUP(AG$6,Components!$C$20:$AIR$21,2,FALSE)),"",IF(HLOOKUP(AG$6,Components!$C$20:$AIR$21,2,FALSE)="","",HLOOKUP(AG$6,Components!$C$20:$AIR$21,2,FALSE))) ->  | AH17: =IF(ISNA(HLOOKUP(AH$6,Components!$C$20:$AIR$21,2,FALSE)),"",IF(HLOOKUP(AH$6,Components!$C$20:$AIR$21,2,FALSE)="","",HLOOKUP(AH$6,Components!$C$20:$AIR$21,2,FALSE))) ->  | AI17: =IF(ISNA(HLOOKUP(AI$6,Components!$C$20:$AIR$21,2,FALSE)),"",IF(HLOOKUP(AI$6,Components!$C$20:$AIR$21,2,FALSE)="","",HLOOKUP(AI$6,Components!$C$20:$AIR$21,2,FALSE))) ->  | AJ17: =IF(ISNA(HLOOKUP(AJ$6,Components!$C$20:$AIR$21,2,FALSE)),"",IF(HLOOKUP(AJ$6,Components!$C$20:$AIR$21,2,FALSE)="","",HLOOKUP(AJ$6,Components!$C$20:$AIR$21,2,FALSE))) ->  | AK17: =IF(ISNA(HLOOKUP(AK$6,Components!$C$20:$AIR$21,2,FALSE)),"",IF(HLOOKUP(AK$6,Components!$C$20:$AIR$21,2,FALSE)="","",HLOOKUP(AK$6,Components!$C$20:$AIR$21,2,FALSE))) ->  | AL17: =IF(ISNA(HLOOKUP(AL$6,Components!$C$20:$AIR$21,2,FALSE)),"",IF(HLOOKUP(AL$6,Components!$C$20:$AIR$21,2,FALSE)="","",HLOOKUP(AL$6,Components!$C$20:$AIR$21,2,FALSE))) ->  | AM17: =IF(ISNA(HLOOKUP(AM$6,Components!$C$20:$AIR$21,2,FALSE)),"",IF(HLOOKUP(AM$6,Components!$C$20:$AIR$21,2,FALSE)="","",HLOOKUP(AM$6,Components!$C$20:$AIR$21,2,FALSE))) ->  | AN17: =IF(ISNA(HLOOKUP(AN$6,Components!$C$20:$AIR$21,2,FALSE)),"",IF(HLOOKUP(AN$6,Components!$C$20:$AIR$21,2,FALSE)="","",HLOOKUP(AN$6,Components!$C$20:$AIR$21,2,FALSE))) ->  | AO17: =IF(ISNA(HLOOKUP(AO$6,Components!$C$20:$AIR$21,2,FALSE)),"",IF(HLOOKUP(AO$6,Components!$C$20:$AIR$21,2,FALSE)="","",HLOOKUP(AO$6,Components!$C$20:$AIR$21,2,FALSE))) ->  | AP17: =IF(ISNA(HLOOKUP(AP$6,Components!$C$20:$AIR$21,2,FALSE)),"",IF(HLOOKUP(AP$6,Components!$C$20:$AIR$21,2,FALSE)="","",HLOOKUP(AP$6,Components!$C$20:$AIR$21,2,FALSE))) ->  | AQ17: =IF(ISNA(HLOOKUP(AQ$6,Components!$C$20:$AIR$21,2,FALSE)),"",IF(HLOOKUP(AQ$6,Components!$C$20:$AIR$21,2,FALSE)="","",HLOOKUP(AQ$6,Components!$C$20:$AIR$21,2,FALSE))) ->  | AR17: =IF(ISNA(HLOOKUP(AR$6,Components!$C$20:$AIR$21,2,FALSE)),"",IF(HLOOKUP(AR$6,Components!$C$20:$AIR$21,2,FALSE)="","",HLOOKUP(AR$6,Components!$C$20:$AIR$21,2,FALSE))) ->  | AS17: =IF(ISNA(HLOOKUP(AS$6,Components!$C$20:$AIR$21,2,FALSE)),"",IF(HLOOKUP(AS$6,Components!$C$20:$AIR$21,2,FALSE)="","",HLOOKUP(AS$6,Components!$C$20:$AIR$21,2,FALSE))) ->  | AT17: =IF(ISNA(HLOOKUP(AT$6,Components!$C$20:$AIR$21,2,FALSE)),"",IF(HLOOKUP(AT$6,Components!$C$20:$AIR$21,2,FALSE)="","",HLOOKUP(AT$6,Components!$C$20:$AIR$21,2,FALSE))) ->  | AU17: =IF(ISNA(HLOOKUP(AU$6,Components!$C$20:$AIR$21,2,FALSE)),"",IF(HLOOKUP(AU$6,Components!$C$20:$AIR$21,2,FALSE)="","",HLOOKUP(AU$6,Components!$C$20:$AIR$21,2,FALSE))) ->  | AV17: =IF(ISNA(HLOOKUP(AV$6,Components!$C$20:$AIR$21,2,FALSE)),"",IF(HLOOKUP(AV$6,Components!$C$20:$AIR$21,2,FALSE)="","",HLOOKUP(AV$6,Components!$C$20:$AIR$21,2,FALSE))) ->  | AW17: =IF(ISNA(HLOOKUP(AW$6,Components!$C$20:$AIR$21,2,FALSE)),"",IF(HLOOKUP(AW$6,Components!$C$20:$AIR$21,2,FALSE)="","",HLOOKUP(AW$6,Components!$C$20:$AIR$21,2,FALSE))) ->  | AX17: =IF(ISNA(HLOOKUP(AX$6,Components!$C$20:$AIR$21,2,FALSE)),"",IF(HLOOKUP(AX$6,Components!$C$20:$AIR$21,2,FALSE)="","",HLOOKUP(AX$6,Components!$C$20:$AIR$21,2,FALSE))) ->  | AY17: =IF(ISNA(HLOOKUP(AY$6,Components!$C$20:$AIR$21,2,FALSE)),"",IF(HLOOKUP(AY$6,Components!$C$20:$AIR$21,2,FALSE)="","",HLOOKUP(AY$6,Components!$C$20:$AIR$21,2,FALSE))) ->  | AZ17: =IF(ISNA(HLOOKUP(AZ$6,Components!$C$20:$AIR$21,2,FALSE)),"",IF(HLOOKUP(AZ$6,Components!$C$20:$AIR$21,2,FALSE)="","",HLOOKUP(AZ$6,Components!$C$20:$AIR$21,2,FALSE))) ->  | BA17: =IF(ISNA(HLOOKUP(BA$6,Components!$C$20:$AIR$21,2,FALSE)),"",IF(HLOOKUP(BA$6,Components!$C$20:$AIR$21,2,FALSE)="","",HLOOKUP(BA$6,Components!$C$20:$AIR$21,2,FALSE))) ->  | BB17: =IF(ISNA(HLOOKUP(BB$6,Components!$C$20:$AIR$21,2,FALSE)),"",IF(HLOOKUP(BB$6,Components!$C$20:$AIR$21,2,FALSE)="","",HLOOKUP(BB$6,Components!$C$20:$AIR$21,2,FALSE))) ->  | BC17: =IF(ISNA(HLOOKUP(BC$6,Components!$C$20:$AIR$21,2,FALSE)),"",IF(HLOOKUP(BC$6,Components!$C$20:$AIR$21,2,FALSE)="","",HLOOKUP(BC$6,Components!$C$20:$AIR$21,2,FALSE))) ->  | BD17: =IF(ISNA(HLOOKUP(BD$6,Components!$C$20:$AIR$21,2,FALSE)),"",IF(HLOOKUP(BD$6,Components!$C$20:$AIR$21,2,FALSE)="","",HLOOKUP(BD$6,Components!$C$20:$AIR$21,2,FALSE))) ->  | BE17: =IF(ISNA(HLOOKUP(BE$6,Components!$C$20:$AIR$21,2,FALSE)),"",IF(HLOOKUP(BE$6,Components!$C$20:$AIR$21,2,FALSE)="","",HLOOKUP(BE$6,Components!$C$20:$AIR$21,2,FALSE))) ->  | BF17: =IF(ISNA(HLOOKUP(BF$6,Components!$C$20:$AIR$21,2,FALSE)),"",IF(HLOOKUP(BF$6,Components!$C$20:$AIR$21,2,FALSE)="","",HLOOKUP(BF$6,Components!$C$20:$AIR$21,2,FALSE))) ->  | BG17: =IF(ISNA(HLOOKUP(BG$6,Components!$C$20:$AIR$21,2,FALSE)),"",IF(HLOOKUP(BG$6,Components!$C$20:$AIR$21,2,FALSE)="","",HLOOKUP(BG$6,Components!$C$20:$AIR$21,2,FALSE))) -> TRUE | BH17: =IF(ISNA(HLOOKUP(BH$6,Components!$C$20:$AIR$21,2,FALSE)),"",IF(HLOOKUP(BH$6,Components!$C$20:$AIR$21,2,FALSE)="","",HLOOKUP(BH$6,Components!$C$20:$AIR$21,2,FALSE))) ->  | BI17: =IF(ISNA(HLOOKUP(BI$6,Components!$C$20:$AIR$21,2,FALSE)),"",IF(HLOOKUP(BI$6,Components!$C$20:$AIR$21,2,FALSE)="","",HLOOKUP(BI$6,Components!$C$20:$AIR$21,2,FALSE))) ->  | BJ17: =IF(ISNA(HLOOKUP(BJ$6,Components!$C$20:$AIR$21,2,FALSE)),"",IF(HLOOKUP(BJ$6,Components!$C$20:$AIR$21,2,FALSE)="","",HLOOKUP(BJ$6,Components!$C$20:$AIR$21,2,FALSE))) -> 1800 | BK17: =IF(ISNA(HLOOKUP(BK$6,Components!$C$20:$AIR$21,2,FALSE)),"",IF(HLOOKUP(BK$6,Components!$C$20:$AIR$21,2,FALSE)="","",HLOOKUP(BK$6,Components!$C$20:$AIR$21,2,FALSE))) -> 100.02 | BL17: =IF(ISNA(HLOOKUP(BL$6,Components!$C$20:$AIR$21,2,FALSE)),"",IF(HLOOKUP(BL$6,Components!$C$20:$AIR$21,2,FALSE)="","",HLOOKUP(BL$6,Components!$C$20:$AIR$21,2,FALSE))) -> 500.11 | BM17: =IF(ISNA(HLOOKUP(BM$6,Components!$C$20:$AIR$21,2,FALSE)),"",IF(HLOOKUP(BM$6,Components!$C$20:$AIR$21,2,FALSE)="","",HLOOKUP(BM$6,Components!$C$20:$AIR$21,2,FALSE))) ->  | BN17: =IF(ISNA(HLOOKUP(BN$6,Components!$C$20:$AIR$21,2,FALSE)),"",IF(HLOOKUP(BN$6,Components!$C$20:$AIR$21,2,FALSE)="","",HLOOKUP(BN$6,Components!$C$20:$AIR$21,2,FALSE))) -> 20000 | BO17: =IF(ISNA(HLOOKUP(BO$6,Components!$C$20:$AIR$21,2,FALSE)),"",IF(HLOOKUP(BO$6,Components!$C$20:$AIR$21,2,FALSE)="","",HLOOKUP(BO$6,Components!$C$20:$AIR$21,2,FALSE))) ->  | BP17: =IF(ISNA(HLOOKUP(BP$6,Components!$C$20:$AIR$21,2,FALSE)),"",IF(HLOOKUP(BP$6,Components!$C$20:$AIR$21,2,FALSE)="","",HLOOKUP(BP$6,Components!$C$20:$AIR$21,2,FALSE))) ->  | BQ17: =IF(ISNA(HLOOKUP(BQ$6,Components!$C$20:$AIR$21,2,FALSE)),"",IF(HLOOKUP(BQ$6,Components!$C$20:$AIR$21,2,FALSE)="","",HLOOKUP(BQ$6,Components!$C$20:$AIR$21,2,FALSE))) ->  | BR17: =IF(ISNA(HLOOKUP(BR$6,Components!$C$20:$AIR$21,2,FALSE)),"",IF(HLOOKUP(BR$6,Components!$C$20:$AIR$21,2,FALSE)="","",HLOOKUP(BR$6,Components!$C$20:$AIR$21,2,FALSE))) ->  | BS17: =IF(ISNA(HLOOKUP(BS$6,Components!$C$20:$AIR$21,2,FALSE)),"",IF(HLOOKUP(BS$6,Components!$C$20:$AIR$21,2,FALSE)="","",HLOOKUP(BS$6,Components!$C$20:$AIR$21,2,FALSE))) ->  | BT17: =IF(ISNA(HLOOKUP(BT$6,Components!$C$20:$AIR$21,2,FALSE)),"",IF(HLOOKUP(BT$6,Components!$C$20:$AIR$21,2,FALSE)="","",HLOOKUP(BT$6,Components!$C$20:$AIR$21,2,FALSE))) ->  | BU17: =IF(ISNA(HLOOKUP(BU$6,Components!$C$20:$AIR$21,2,FALSE)),"",IF(HLOOKUP(BU$6,Components!$C$20:$AIR$21,2,FALSE)="","",HLOOKUP(BU$6,Components!$C$20:$AIR$21,2,FALSE))) ->  | BV17: =IF(ISNA(HLOOKUP(BV$6,Components!$C$20:$AIR$21,2,FALSE)),"",IF(HLOOKUP(BV$6,Components!$C$20:$AIR$21,2,FALSE)="","",HLOOKUP(BV$6,Components!$C$20:$AIR$21,2,FALSE))) ->  | BW17: =IF(ISNA(HLOOKUP(BW$6,Components!$C$20:$AIR$21,2,FALSE)),"",IF(HLOOKUP(BW$6,Components!$C$20:$AIR$21,2,FALSE)="","",HLOOKUP(BW$6,Components!$C$20:$AIR$21,2,FALSE))) ->  | BX17: =IF(ISNA(HLOOKUP(BX$6,Components!$C$20:$AIR$21,2,FALSE)),"",IF(HLOOKUP(BX$6,Components!$C$20:$AIR$21,2,FALSE)="","",HLOOKUP(BX$6,Components!$C$20:$AIR$21,2,FALSE))) ->  | BY17: =IF(ISNA(HLOOKUP(BY$6,Components!$C$20:$AIR$21,2,FALSE)),"",IF(HLOOKUP(BY$6,Components!$C$20:$AIR$21,2,FALSE)="","",HLOOKUP(BY$6,Components!$C$20:$AIR$21,2,FALSE))) ->  | BZ17: =IF(ISNA(HLOOKUP(BZ$6,Components!$C$20:$AIR$21,2,FALSE)),"",IF(HLOOKUP(BZ$6,Components!$C$20:$AIR$21,2,FALSE)="","",HLOOKUP(BZ$6,Components!$C$20:$AIR$21,2,FALSE))) ->  | CA17: =IF(ISNA(HLOOKUP(CA$6,Components!$C$20:$AIR$21,2,FALSE)),"",IF(HLOOKUP(CA$6,Components!$C$20:$AIR$21,2,FALSE)="","",HLOOKUP(CA$6,Components!$C$20:$AIR$21,2,FALSE))) ->  | CB17: =IF(ISNA(HLOOKUP(CB$6,Components!$C$20:$AIR$21,2,FALSE)),"",IF(HLOOKUP(CB$6,Components!$C$20:$AIR$21,2,FALSE)="","",HLOOKUP(CB$6,Components!$C$20:$AIR$21,2,FALSE))) ->  | CC17: =IF(ISNA(HLOOKUP(CC$6,Components!$C$20:$AIR$21,2,FALSE)),"",IF(HLOOKUP(CC$6,Components!$C$20:$AIR$21,2,FALSE)="","",HLOOKUP(CC$6,Components!$C$20:$AIR$21,2,FALSE))) ->  | CD17: =IF(ISNA(HLOOKUP(CD$6,Components!$C$20:$AIR$21,2,FALSE)),"",IF(HLOOKUP(CD$6,Components!$C$20:$AIR$21,2,FALSE)="","",HLOOKUP(CD$6,Components!$C$20:$AIR$21,2,FALSE))) ->  | CE17: =IF(ISNA(HLOOKUP(CE$6,Components!$C$20:$AIR$21,2,FALSE)),"",IF(HLOOKUP(CE$6,Components!$C$20:$AIR$21,2,FALSE)="","",HLOOKUP(CE$6,Components!$C$20:$AIR$21,2,FALSE))) ->  | CF17: =IF(ISNA(HLOOKUP(CF$6,Components!$C$20:$AIR$21,2,FALSE)),"",IF(HLOOKUP(CF$6,Components!$C$20:$AIR$21,2,FALSE)="","",HLOOKUP(CF$6,Components!$C$20:$AIR$21,2,FALSE))) ->  | CG17: =IF(ISNA(HLOOKUP(CG$6,Components!$C$20:$AIR$21,2,FALSE)),"",IF(HLOOKUP(CG$6,Components!$C$20:$AIR$21,2,FALSE)="","",HLOOKUP(CG$6,Components!$C$20:$AIR$21,2,FALSE))) ->  | CH17: =IF(ISNA(HLOOKUP(CH$6,Components!$C$20:$AIR$21,2,FALSE)),"",IF(HLOOKUP(CH$6,Components!$C$20:$AIR$21,2,FALSE)="","",HLOOKUP(CH$6,Components!$C$20:$AIR$21,2,FALSE))) ->  | CI17: =IF(ISNA(HLOOKUP(CI$6,Components!$C$20:$AIR$21,2,FALSE)),"",IF(HLOOKUP(CI$6,Components!$C$20:$AIR$21,2,FALSE)="","",HLOOKUP(CI$6,Components!$C$20:$AIR$21,2,FALSE))) ->  | CJ17: =IF(ISNA(HLOOKUP(CJ$6,Components!$C$20:$AIR$21,2,FALSE)),"",IF(HLOOKUP(CJ$6,Components!$C$20:$AIR$21,2,FALSE)="","",HLOOKUP(CJ$6,Components!$C$20:$AIR$21,2,FALSE))) ->  | CK17: =IF(ISNA(HLOOKUP(CK$6,Components!$C$20:$AIR$21,2,FALSE)),"",IF(HLOOKUP(CK$6,Components!$C$20:$AIR$21,2,FALSE)="","",HLOOKUP(CK$6,Components!$C$20:$AIR$21,2,FALSE))) ->  | CL17: =IF(ISNA(HLOOKUP(CL$6,Components!$C$20:$AIR$21,2,FALSE)),"",IF(HLOOKUP(CL$6,Components!$C$20:$AIR$21,2,FALSE)="","",HLOOKUP(CL$6,Components!$C$20:$AIR$21,2,FALSE))) ->  | CM17: =IF(ISNA(HLOOKUP(CM$6,Components!$C$20:$AIR$21,2,FALSE)),"",IF(HLOOKUP(CM$6,Components!$C$20:$AIR$21,2,FALSE)="","",HLOOKUP(CM$6,Components!$C$20:$AIR$21,2,FALSE))) ->  | CN17: =IF(ISNA(HLOOKUP(CN$6,Components!$C$20:$AIR$21,2,FALSE)),"",IF(HLOOKUP(CN$6,Components!$C$20:$AIR$21,2,FALSE)="","",HLOOKUP(CN$6,Components!$C$20:$AIR$21,2,FALSE))) ->  | CO17: =IF(ISNA(HLOOKUP(CO$6,Components!$C$20:$AIR$21,2,FALSE)),"",IF(HLOOKUP(CO$6,Components!$C$20:$AIR$21,2,FALSE)="","",HLOOKUP(CO$6,Components!$C$20:$AIR$21,2,FALSE))) ->  | CP17: =IF(ISNA(HLOOKUP(CP$6,Components!$C$20:$AIR$21,2,FALSE)),"",IF(HLOOKUP(CP$6,Components!$C$20:$AIR$21,2,FALSE)="","",HLOOKUP(CP$6,Components!$C$20:$AIR$21,2,FALSE))) ->  | CQ17: =IF(ISNA(HLOOKUP(CQ$6,Components!$C$20:$AIR$21,2,FALSE)),"",IF(HLOOKUP(CQ$6,Components!$C$20:$AIR$21,2,FALSE)="","",HLOOKUP(CQ$6,Components!$C$20:$AIR$21,2,FALSE))) ->  | CR17: =IF(ISNA(HLOOKUP(CR$6,Components!$C$20:$AIR$21,2,FALSE)),"",IF(HLOOKUP(CR$6,Components!$C$20:$AIR$21,2,FALSE)="","",HLOOKUP(CR$6,Components!$C$20:$AIR$21,2,FALSE))) ->  | CS17: =IF(ISNA(HLOOKUP(CS$6,Components!$C$20:$AIR$21,2,FALSE)),"",IF(HLOOKUP(CS$6,Components!$C$20:$AIR$21,2,FALSE)="","",HLOOKUP(CS$6,Components!$C$20:$AIR$21,2,FALSE))) ->  | CT17: =IF(ISNA(HLOOKUP(CT$6,Components!$C$20:$AIR$21,2,FALSE)),"",IF(HLOOKUP(CT$6,Components!$C$20:$AIR$21,2,FALSE)="","",HLOOKUP(CT$6,Components!$C$20:$AIR$21,2,FALSE))) ->  | CU17: =IF(ISNA(HLOOKUP(CU$6,Components!$C$20:$AIR$21,2,FALSE)),"",IF(HLOOKUP(CU$6,Components!$C$20:$AIR$21,2,FALSE)="","",HLOOKUP(CU$6,Components!$C$20:$AIR$21,2,FALSE))) ->  | CV17: =IF(ISNA(HLOOKUP(CV$6,Components!$C$20:$AIR$21,2,FALSE)),"",IF(HLOOKUP(CV$6,Components!$C$20:$AIR$21,2,FALSE)="","",HLOOKUP(CV$6,Components!$C$20:$AIR$21,2,FALSE))) ->  | CW17: =IF(ISNA(HLOOKUP(CW$6,Components!$C$20:$AIR$21,2,FALSE)),"",IF(HLOOKUP(CW$6,Components!$C$20:$AIR$21,2,FALSE)="","",HLOOKUP(CW$6,Components!$C$20:$AIR$21,2,FALSE))) ->  | CX17: =IF(ISNA(HLOOKUP(CX$6,Components!$C$20:$AIR$21,2,FALSE)),"",IF(HLOOKUP(CX$6,Components!$C$20:$AIR$21,2,FALSE)="","",HLOOKUP(CX$6,Components!$C$20:$AIR$21,2,FALSE))) ->  | CY17: =IF(ISNA(HLOOKUP(CY$6,Components!$C$20:$AIR$21,2,FALSE)),"",IF(HLOOKUP(CY$6,Components!$C$20:$AIR$21,2,FALSE)="","",HLOOKUP(CY$6,Components!$C$20:$AIR$21,2,FALSE))) ->  | CZ17: =IF(ISNA(HLOOKUP(CZ$6,Components!$C$20:$AIR$21,2,FALSE)),"",IF(HLOOKUP(CZ$6,Components!$C$20:$AIR$21,2,FALSE)="","",HLOOKUP(CZ$6,Components!$C$20:$AIR$21,2,FALSE))) ->  | DA17: =IF(ISNA(HLOOKUP(DA$6,Components!$C$20:$AIR$21,2,FALSE)),"",IF(HLOOKUP(DA$6,Components!$C$20:$AIR$21,2,FALSE)="","",HLOOKUP(DA$6,Components!$C$20:$AIR$21,2,FALSE))) ->  | DB17: =IF(ISNA(HLOOKUP(DB$6,Components!$C$20:$AIR$21,2,FALSE)),"",IF(HLOOKUP(DB$6,Components!$C$20:$AIR$21,2,FALSE)="","",HLOOKUP(DB$6,Components!$C$20:$AIR$21,2,FALSE))) -> TRUE | DC17: =IF(ISNA(HLOOKUP(DC$6,Components!$C$20:$AIR$21,2,FALSE)),"",IF(HLOOKUP(DC$6,Components!$C$20:$AIR$21,2,FALSE)="","",HLOOKUP(DC$6,Components!$C$20:$AIR$21,2,FALSE))) -> 6459.98 | DD17: =IF(ISNA(HLOOKUP(DD$6,Components!$C$20:$AIR$21,2,FALSE)),"",IF(HLOOKUP(DD$6,Components!$C$20:$AIR$21,2,FALSE)="","",HLOOKUP(DD$6,Components!$C$20:$AIR$21,2,FALSE))) ->  | DE17: =IF(ISNA(HLOOKUP(DE$6,Components!$C$20:$AIR$21,2,FALSE)),"",IF(HLOOKUP(DE$6,Components!$C$20:$AIR$21,2,FALSE)="","",HLOOKUP(DE$6,Components!$C$20:$AIR$21,2,FALSE))) ->  | DF17: =IF(ISNA(HLOOKUP(DF$6,Components!$C$20:$AIR$21,2,FALSE)),"",IF(HLOOKUP(DF$6,Components!$C$20:$AIR$21,2,FALSE)="","",HLOOKUP(DF$6,Components!$C$20:$AIR$21,2,FALSE))) ->  | DG17: =IF(ISNA(HLOOKUP(DG$6,Components!$C$20:$AIR$21,2,FALSE)),"",IF(HLOOKUP(DG$6,Components!$C$20:$AIR$21,2,FALSE)="","",HLOOKUP(DG$6,Components!$C$20:$AIR$21,2,FALSE))) -> 2100 | DH17: =IF(ISNA(HLOOKUP(DH$6,Components!$C$20:$AIR$21,2,FALSE)),"",IF(HLOOKUP(DH$6,Components!$C$20:$AIR$21,2,FALSE)="","",HLOOKUP(DH$6,Components!$C$20:$AIR$21,2,FALSE))) ->  | DI17: =IF(ISNA(HLOOKUP(DI$6,Components!$C$20:$AIR$21,2,FALSE)),"",IF(HLOOKUP(DI$6,Components!$C$20:$AIR$21,2,FALSE)="","",HLOOKUP(DI$6,Components!$C$20:$AIR$21,2,FALSE))) ->  | DJ17: =IF(ISNA(HLOOKUP(DJ$6,Components!$C$20:$AIR$21,2,FALSE)),"",IF(HLOOKUP(DJ$6,Components!$C$20:$AIR$21,2,FALSE)="","",HLOOKUP(DJ$6,Components!$C$20:$AIR$21,2,FALSE))) ->  | DK17: =IF(ISNA(HLOOKUP(DK$6,Components!$C$20:$AIR$21,2,FALSE)),"",IF(HLOOKUP(DK$6,Components!$C$20:$AIR$21,2,FALSE)="","",HLOOKUP(DK$6,Components!$C$20:$AIR$21,2,FALSE))) ->  | DL17: =IF(ISNA(HLOOKUP(DL$6,Components!$C$20:$AIR$21,2,FALSE)),"",IF(HLOOKUP(DL$6,Components!$C$20:$AIR$21,2,FALSE)="","",HLOOKUP(DL$6,Components!$C$20:$AIR$21,2,FALSE))) ->  | DM17: =IF(ISNA(HLOOKUP(DM$6,Components!$C$20:$AIR$21,2,FALSE)),"",IF(HLOOKUP(DM$6,Components!$C$20:$AIR$21,2,FALSE)="","",HLOOKUP(DM$6,Components!$C$20:$AIR$21,2,FALSE))) ->  | DN17: =IF(ISNA(HLOOKUP(DN$6,Components!$C$20:$AIR$21,2,FALSE)),"",IF(HLOOKUP(DN$6,Components!$C$20:$AIR$21,2,FALSE)="","",HLOOKUP(DN$6,Components!$C$20:$AIR$21,2,FALSE))) ->  | DO17: =IF(ISNA(HLOOKUP(DO$6,Components!$C$20:$AIR$21,2,FALSE)),"",IF(HLOOKUP(DO$6,Components!$C$20:$AIR$21,2,FALSE)="","",HLOOKUP(DO$6,Components!$C$20:$AIR$21,2,FALSE))) -> 9000 | DP17: =IF(ISNA(HLOOKUP(DP$6,Components!$C$20:$AIR$21,2,FALSE)),"",IF(HLOOKUP(DP$6,Components!$C$20:$AIR$21,2,FALSE)="","",HLOOKUP(DP$6,Components!$C$20:$AIR$21,2,FALSE))) -> 20000 | DQ17: =IF(ISNA(HLOOKUP(DQ$6,Components!$C$20:$AIR$21,2,FALSE)),"",IF(HLOOKUP(DQ$6,Components!$C$20:$AIR$21,2,FALSE)="","",HLOOKUP(DQ$6,Components!$C$20:$AIR$21,2,FALSE))) ->  | DR17: =IF(ISNA(HLOOKUP(DR$6,Components!$C$20:$AIR$21,2,FALSE)),"",IF(HLOOKUP(DR$6,Components!$C$20:$AIR$21,2,FALSE)="","",HLOOKUP(DR$6,Components!$C$20:$AIR$21,2,FALSE))) -> 8700
